Workbook

Sheet Startseite
A2: Berechnung der Sanierungsdauer | L2: Excel-Version | M2: =INFO("version") -> 16.0
A3: Anaerober mikrobieller LCKW-Abbau
A5: Version 1.0

Sheet Schadstoffbelastung (hidden)
B2: Schadstoff | D2: MB + 2 s [mg/m² OS] | E2: Inventar [kg] | H2: Geometrie des Schadensherdes | J2: Einheit | K2: Wert | M2: Schadstoffstatistik | O2: Einheit | P2: LCKW | Q2: AKW | U2: Mittl. Konz. (GW) [µg/L] | V2: Mittl. Konz. (GW) [µmol/L] | W2: Ci [µg/L] | X2: Grenzkonz. Boden [mg/kg] | Y2: Mittlere Konz. Boden [mg/kg] | Z2: Residualphase [mg/kg]
R3: FALSE
B4: Tetrachlorethen | C4: PCE | E4: =IF($R$3,'Schadstoffkonzentration Boden'!$Z$27,'Schadstoffbelastung GW'!V8) -> 48.5856 | H4: Mittlere Länge (Schadensherd) | J4: m | K4: 10 | M4: Minimum | O4: mg/kg OS | P4: =IF($R$3,'Schadstoffkonzentration Boden'!$W$93,"") ->  | T4: PCE | U4: ='Schadstoffbelastung GW'!Y8 -> 700 | V4: =U4/Stoffdatenbank!R5 -> 4.21686747 | W4: =Stoffdatenbank!N5*1000*(Schadstoffbelastung!V4/Schadstoffbelastung!V$17) -> 25965.56076 | X4: =U4/1000*Bodencharakterisierung!$E$9*Stoffdatenbank!J5 -> 2.52 | Y4: =IFERROR(E4*1000/$K$12,0) -> 26.72475248 | Z4: =IF(Y4<X4,0,Y4-X4) -> 24.20475248
B5: Trichlorethen | C5: TCE | E5: =IF($R$3,'Schadstoffkonzentration Boden'!Z28,'Schadstoffbelastung GW'!V9) -> 18.76392 | H5: Mittlere Breite (Schadensherd) | J5: m | K5: 20 | M5: Maximum | O5: mg/kg OS | P5: =IF($R$3,'Schadstoffkonzentration Boden'!$X$93,"") ->  | T5: TCE | U5: ='Schadstoffbelastung GW'!Y9 -> 680 | V5: =U5/Stoffdatenbank!R6 -> 5.190839695 | W5: =Stoffdatenbank!N6*1000*(Schadstoffbelastung!V5/Schadstoffbelastung!V$17) -> 199767.7548 | X5: =U5/1000*Bodencharakterisierung!$E$9*Stoffdatenbank!J6 -> 0.884 | Y5: =IFERROR(E5*1000/$K$12,0) -> 10.32118812 | Z5: =IF(Y5<X5,0,Y5-X5) -> 9.437188119
B6: cis-1,2-Dichlorethen | C6: cDCE | E6: =IF($R$3,'Schadstoffkonzentration Boden'!Z29,'Schadstoffbelastung GW'!V10) -> 16.965 | H6: Fläche der Belastung | J6: m² | K6: =K4*K5 -> 200 | M6: Median | O6: mg/kg OS | P6: =IF($R$3,'Schadstoffkonzentration Boden'!$Y$93,"") ->  | T6: cDCE | U6: ='Schadstoffbelastung GW'!Y10 -> 1300 | V6: =U6/Stoffdatenbank!R7 -> 13.40206186 | W6: =Stoffdatenbank!N7*1000*(Schadstoffbelastung!V6/Schadstoffbelastung!V$17) -> 1805208.767 | X6: =U6/1000*Bodencharakterisierung!$E$9*Stoffdatenbank!J7 -> 0.65 | Y6: 9.331683168 | Z6: 8.681683168
B7: trans-1,2-Dichlorethen | C7: tDCE | E7: =IF($R$3,'Schadstoffkonzentration Boden'!Z30,'Schadstoffbelastung GW'!V11) -> 1.4868e-10 | H7: Oberkante der Belastung | J7: m u. GOK | K7: 2 | M7: Mittlere Konzentration (arithm.) | O7: mg/kg OS | P7: =IF($R$3,'Schadstoffkonzentration Boden'!$Z$93,"") ->  | T7: tDCE | U7: ='Schadstoffbelastung GW'!Y11 -> 1e-08 | V7: =U7/Stoffdatenbank!R8 -> 1.030927835e-10 | W7: =Stoffdatenbank!N8*1000*(Schadstoffbelastung!V7/Schadstoffbelastung!V$17) -> 2.499519831e-05 | X7: =U7/1000*Bodencharakterisierung!$E$9*Stoffdatenbank!J8 -> 6e-12 | Y7: 8.178217822e-11 | Z7: 7.578217822e-11
B8: 1,1-Dichlorethen | C8: 11DCE | E8: =IF($R$3,'Schadstoffkonzentration Boden'!Z31,'Schadstoffbelastung GW'!V12) -> 1.6778718e-10 | H8: Unterkante der Belastung | J8: m u. GOK | K8: 8 | M8: Standardabweichung | O8: mg/kg OS | P8: =IF($R$3,'Schadstoffkonzentration Boden'!$AA$93,"") ->  | T8: 11DCE | U8: ='Schadstoffbelastung GW'!Y12 -> 1e-08 | V8: =U8/Stoffdatenbank!R9 -> 1.030927835e-10 | W8: =Stoffdatenbank!N9*1000*(Schadstoffbelastung!V8/Schadstoffbelastung!V$17) -> 9.91872949e-06 | X8: =U8/1000*Bodencharakterisierung!$E$9*Stoffdatenbank!J9 -> 7.051e-12 | Y8: 9.229217822e-11 | Z8: 8.524117822e-11
B9: Vinylchlorid | C9: VC | E9: =IF($R$3,'Schadstoffkonzentration Boden'!Z32,'Schadstoffbelastung GW'!V13) -> 2.9736 | H9: Mittlere Mächtigkeit (Schadensherd) | J9: m | K9: =K8-K7 -> 6 | M9: MW + 2 s | O9: mg/kg OS | P9: =IF($R$3,'Schadstoffkonzentration Boden'!$AB$93,"") ->  | T9: VC | U9: ='Schadstoffbelastung GW'!Y13 -> 200 | V9: =U9/Stoffdatenbank!R10 -> 3.174603175 | W9: =Stoffdatenbank!N10*1000*(Schadstoffbelastung!V9/Schadstoffbelastung!V$17) -> 134390.9126 | X9: =U9/1000*Bodencharakterisierung!$E$9*Stoffdatenbank!J10 -> 0.12 | Y9: 1.635643564 | Z9: 1.515643564
B10: Tetrachlormethan | C10: CT | E10: =IF($R$3,'Schadstoffkonzentration Boden'!Z33,'Schadstoffbelastung GW'!V14) -> 5.588208e-10 | H10: Bodenlagerungsdichte | J10: kg/L | K10: =Bodencharakterisierung!E11 -> 1.515 | M10: Schadstoffinventar (mittelwertbezogen) | O10: kg | P10: =IF($R$3,'Schadstoffkonzentration Boden'!$AC$93,"") ->  | T10: CT | U10: ='Schadstoffbelastung GW'!Y14 -> 1e-08 | V10: =U10/Stoffdatenbank!R11 -> 6.493506494e-11 | W10: =Stoffdatenbank!N11*1000*(Schadstoffbelastung!V10/Schadstoffbelastung!V$17) -> 1.999203658e-06 | X10: =U10/1000*Bodencharakterisierung!$E$9*Stoffdatenbank!J11 -> 2.856e-11 | Y10: 3.073821782e-10 | Z10: =IF(Y10<X10,0,Y10-X10) -> 2.788221782e-10
B11: Trichlormethan | C11: CF | E11: =IF($R$3,'Schadstoffkonzentration Boden'!Z34,'Schadstoffbelastung GW'!V15) -> 1.3269978e-10 | H11: Volumen kontaminierter Boden | J11: m³ | K11: =K9*K6 -> 1200 | M11: Schadstoffinventar (flächengewichtet) | O11: kg | P11: =IF($R$3,'Schadstoffkonzentration Boden'!$W$93,"") ->  | T11: CF | U11: ='Schadstoffbelastung GW'!Y15 -> 1e-08 | V11: =U11/Stoffdatenbank!R12 -> 8.403361345e-11 | W11: =Stoffdatenbank!N12*1000*(Schadstoffbelastung!V11/Schadstoffbelastung!V$17) -> 2.651884852e-05 | X11: =U11/1000*Bodencharakterisierung!$E$9*Stoffdatenbank!J12 -> 5.121e-12 | Y11: 7.299217822e-11 | Z11: 6.787117822e-11
B12: Dichlormethan | C12: DCM | E12: =IF($R$3,'Schadstoffkonzentration Boden'!Z35,'Schadstoffbelastung GW'!V16) -> 6.16887e-11 | J12: t | K12: =K11*K10 -> 1818 | M12: Schadstoffinventrar (residuale Phase) | O12: kg | P12: =Z17 -> 43.83926733 | T12: DCM | U12: ='Schadstoffbelastung GW'!Y16 -> 1e-08 | V12: =U12/Stoffdatenbank!R13 -> 1.176470588e-10 | W12: =Stoffdatenbank!N13*1000*(Schadstoffbelastung!V12/Schadstoffbelastung!V$17) -> 8.058689986e-05 | X12: =U12/1000*Bodencharakterisierung!$E$9*Stoffdatenbank!J13 -> 1.215e-12 | Y12: 3.393217822e-11 | Z12: 3.271717822e-11
B13: 1,1,1-Trichlorethan | C13: 111TCA | E13: =IF($R$3,'Schadstoffkonzentration Boden'!Z36,'Schadstoffbelastung GW'!V17) -> 3.01392e-11 | H13: Grundwasserflurabstand | J13: m u. GOK | K13: 3 | T13: 111TCA | U13: ='Schadstoffbelastung GW'!Y17 -> 1e-09 | V13: =U13/Stoffdatenbank!R14 -> 7.496027106e-12 | W13: =Stoffdatenbank!N14*1000*(Schadstoffbelastung!V13/Schadstoffbelastung!V$17) -> 3.750267724e-07 | X13: =U13/1000*Bodencharakterisierung!$E$9*Stoffdatenbank!J14 -> 1.44e-12 | Y13: 1.657821782e-11 | Z13: 1.513821782e-11
B14: 1,1,2-Trichlorethan | C14: 112TCA | E14: =IF($R$3,'Schadstoffkonzentration Boden'!Z37,'Schadstoffbelastung GW'!V18) -> 1.1893752e-10 | T14: 112TCA | U14: ='Schadstoffbelastung GW'!Y18 -> 1e-08 | V14: =U14/Stoffdatenbank!R15 -> 7.496027106e-11 | W14: =Stoffdatenbank!N15*1000*(Schadstoffbelastung!V14/Schadstoffbelastung!V$17) -> 1.298169597e-05 | X14: =U14/1000*Bodencharakterisierung!$E$9*Stoffdatenbank!J15 -> 4.364e-12 | Y14: 6.542217822e-11 | Z14: 6.105817822e-11
B15: 1,1-Dichlorethan | C15: 11DCA | E15: =IF($R$3,'Schadstoffkonzentration Boden'!Z38,'Schadstoffbelastung GW'!V19) -> 1.0457532e-10 | T15: 11DCA | U15: ='Schadstoffbelastung GW'!Y19 -> 1e-08 | V15: =U15/Stoffdatenbank!R16 -> 1.010509297e-10 | W15: =Stoffdatenbank!N16*1000*(Schadstoffbelastung!V15/Schadstoffbelastung!V$17) -> 3.379464288e-05 | X15: =U15/1000*Bodencharakterisierung!$E$9*Stoffdatenbank!J16 -> 3.574e-12 | Y15: 5.752217822e-11 | Z15: 5.394817822e-11
B16: 1,2-Dichlorethan | C16: 12DCA | E16: =IF($R$3,'Schadstoffkonzentration Boden'!Z39,'Schadstoffbelastung GW'!V20) -> 1.115928e-10 | T16: 12DCA | U16: ='Schadstoffbelastung GW'!Y20 -> 1e-08 | V16: =U16/Stoffdatenbank!R17 -> 1.010509297e-10 | W16: =Stoffdatenbank!N17*1000*(Schadstoffbelastung!V16/Schadstoffbelastung!V$17) -> 3.379464288e-05 | X16: =U16/1000*Bodencharakterisierung!$E$9*Stoffdatenbank!J17 -> 3.96e-12 | Y16: =IFERROR(E16*1000/$K$12,0) -> 6.138217822e-11 | Z16: 5.742217822e-11
B17: LCKW | E17: =SUM(E4:E16) -> 87.28812 | T17: S LCKW | U17: ='Schadstoffbelastung GW'!Y21 -> 2880 | V17: =SUM(V4:V16) -> 25.9843722 | W17: =SUM(W4:W16) -> 2165332.996 | X17: 4.174 | Y17: 48.01326733 | Z17: =SUM(Z4:Z16) -> 43.83926733
B18: Benzol | C18: B | E18: 0 | V18: =U18/Stoffdatenbank!R19 ->  | W18: =Stoffdatenbank!N19*1000*(Schadstoffbelastung!V18/Schadstoffbelastung!V$35) ->  | X18: =(W18/(1000)*Bodencharakterisierung!$E$11*((Stoffdatenbank!J19*Bodencharakterisierung!$E$9)+Bodencharakterisierung!$E$8)) ->  | Y18: =(E18/$K$12)*1000 -> 0 | Z18: =IF(Y18<X18,0,Y18-X18) -> 
B19: Toluol | C19: T | E19: 0 | V19: =U19/Stoffdatenbank!R20 ->  | W19: =Stoffdatenbank!N20*1000*(Schadstoffbelastung!V19/Schadstoffbelastung!V$35) ->  | X19: =(W19/(1000)*Bodencharakterisierung!$E$11*((Stoffdatenbank!J20*Bodencharakterisierung!$E$9)+Bodencharakterisierung!$E$8)) ->  | Y19: 0
B20: Ethylbenzol | C20: ETBE | E20: 0 | V20: =U20/Stoffdatenbank!R21 ->  | W20: =Stoffdatenbank!N21*1000*(Schadstoffbelastung!V20/Schadstoffbelastung!V$35) ->  | X20: =(W20/(1000)*Bodencharakterisierung!$E$11*((Stoffdatenbank!J21*Bodencharakterisierung!$E$9)+Bodencharakterisierung!$E$8)) ->  | Y20: 0
B21: o-Xylol | C21: oX | E21: 0 | V21: =U21/Stoffdatenbank!R22 ->  | W21: =Stoffdatenbank!N22*1000*(Schadstoffbelastung!V21/Schadstoffbelastung!V$35) ->  | X21: =(W21/(1000)*Bodencharakterisierung!$E$11*((Stoffdatenbank!J22*Bodencharakterisierung!$E$9)+Bodencharakterisierung!$E$8)) ->  | Y21: 0
B22: m-Xylol | C22: mX | E22: 0 | V22: =U22/Stoffdatenbank!R23 ->  | W22: =Stoffdatenbank!N23*1000*(Schadstoffbelastung!V22/Schadstoffbelastung!V$35) ->  | X22: =(W22/(1000)*Bodencharakterisierung!$E$11*((Stoffdatenbank!J23*Bodencharakterisierung!$E$9)+Bodencharakterisierung!$E$8)) ->  | Y22: 0
B23: p-Xylol | C23: pX | E23: 0 | V23: =U23/Stoffdatenbank!R24 ->  | W23: =Stoffdatenbank!N24*1000*(Schadstoffbelastung!V23/Schadstoffbelastung!V$35) ->  | X23: =(W23/(1000)*Bodencharakterisierung!$E$11*((Stoffdatenbank!J24*Bodencharakterisierung!$E$9)+Bodencharakterisierung!$E$8)) ->  | Y23: 0
B24: n-Propylbenzol | C24: nPB | E24: 0 | V24: =U24/Stoffdatenbank!R25 ->  | W24: =Stoffdatenbank!N25*1000*(Schadstoffbelastung!V24/Schadstoffbelastung!V$35) ->  | X24: =(W24/(1000)*Bodencharakterisierung!$E$11*((Stoffdatenbank!J25*Bodencharakterisierung!$E$9)+Bodencharakterisierung!$E$8)) ->  | Y24: 0
B25: Isopropylbenzol | C25: iPB | E25: 0 | V25: =U25/Stoffdatenbank!R26 ->  | W25: =Stoffdatenbank!N26*1000*(Schadstoffbelastung!V25/Schadstoffbelastung!V$35) ->  | X25: =(W25/(1000)*Bodencharakterisierung!$E$11*((Stoffdatenbank!J26*Bodencharakterisierung!$E$9)+Bodencharakterisierung!$E$8)) ->  | Y25: 0
B26: o-Ethyltoluol | C26: oET | E26: 0 | V26: =U26/Stoffdatenbank!R27 ->  | W26: =Stoffdatenbank!N27*1000*(Schadstoffbelastung!V26/Schadstoffbelastung!V$35) ->  | X26: =(W26/(1000)*Bodencharakterisierung!$E$11*((Stoffdatenbank!J27*Bodencharakterisierung!$E$9)+Bodencharakterisierung!$E$8)) ->  | Y26: 0
B27: m-Ethyltoluol | C27: oET | E27: 0 | V27: =U27/Stoffdatenbank!R28 ->  | W27: =Stoffdatenbank!N28*1000*(Schadstoffbelastung!V27/Schadstoffbelastung!V$35) ->  | X27: =(W27/(1000)*Bodencharakterisierung!$E$11*((Stoffdatenbank!J28*Bodencharakterisierung!$E$9)+Bodencharakterisierung!$E$8)) ->  | Y27: 0
B28: p-Ethyltoluol | C28: pET | E28: 0 | V28: =U28/Stoffdatenbank!R29 ->  | W28: =Stoffdatenbank!N29*1000*(Schadstoffbelastung!V28/Schadstoffbelastung!V$35) ->  | X28: =(W28/(1000)*Bodencharakterisierung!$E$11*((Stoffdatenbank!J29*Bodencharakterisierung!$E$9)+Bodencharakterisierung!$E$8)) ->  | Y28: 0
B29: 1,2-Diethylbenzol | C29: 12DEB | E29: 0 | V29: =U29/Stoffdatenbank!R30 ->  | W29: =Stoffdatenbank!N30*1000*(Schadstoffbelastung!V29/Schadstoffbelastung!V$35) ->  | X29: =(W29/(1000)*Bodencharakterisierung!$E$11*((Stoffdatenbank!J30*Bodencharakterisierung!$E$9)+Bodencharakterisierung!$E$8)) ->  | Y29: 0
B30: 1,3-Diethylbenzol | C30: 13DEB | E30: 0 | V30: =U30/Stoffdatenbank!R31 ->  | W30: =Stoffdatenbank!N31*1000*(Schadstoffbelastung!V30/Schadstoffbelastung!V$35) ->  | X30: =(W30/(1000)*Bodencharakterisierung!$E$11*((Stoffdatenbank!J31*Bodencharakterisierung!$E$9)+Bodencharakterisierung!$E$8)) ->  | Y30: 0
B31: 1,4-Diethylbenzol | C31: 14DEB | E31: 0 | V31: =U31/Stoffdatenbank!R32 ->  | W31: =Stoffdatenbank!N32*1000*(Schadstoffbelastung!V31/Schadstoffbelastung!V$35) ->  | X31: =(W31/(1000)*Bodencharakterisierung!$E$11*((Stoffdatenbank!J32*Bodencharakterisierung!$E$9)+Bodencharakterisierung!$E$8)) ->  | Y31: 0
B32: 1,2,3-Trimethylbenzol | C32: 123TMB | E32: 0 | V32: =U32/Stoffdatenbank!R33 ->  | W32: =Stoffdatenbank!N33*1000*(Schadstoffbelastung!V32/Schadstoffbelastung!V$35) ->  | X32: =(W32/(1000)*Bodencharakterisierung!$E$11*((Stoffdatenbank!J33*Bodencharakterisierung!$E$9)+Bodencharakterisierung!$E$8)) ->  | Y32: 0
B33: 1,2,4-Trimethylbenzol | C33: 124TMB | E33: 0 | V33: =U33/Stoffdatenbank!R34 ->  | W33: =Stoffdatenbank!N34*1000*(Schadstoffbelastung!V33/Schadstoffbelastung!V$35) ->  | X33: =(W33/(1000)*Bodencharakterisierung!$E$11*((Stoffdatenbank!J34*Bodencharakterisierung!$E$9)+Bodencharakterisierung!$E$8)) ->  | Y33: 0
B34: 1,3,5-Trimethylbenzol | C34: 135TMB | E34: 0 | V34: =U34/Stoffdatenbank!R35 ->  | W34: =Stoffdatenbank!N35*1000*(Schadstoffbelastung!V34/Schadstoffbelastung!V$35) ->  | X34: =(W34/(1000)*Bodencharakterisierung!$E$11*((Stoffdatenbank!J35*Bodencharakterisierung!$E$9)+Bodencharakterisierung!$E$8)) ->  | Y34: 0
B35: AKW | E35: 0 | V35: =SUM(V18:V34) -> 
B36: =Stoffdatenbank!A37 -> n-Pentan | C36: nC5 | E36: 0 | U36: 2 | V36: =U36/Stoffdatenbank!R37 -> 0.02777777778 | W36: =Stoffdatenbank!N37*1000*(Schadstoffbelastung!V36/Schadstoffbelastung!V$42) -> 1693.639125 | X36: =(W36/(1000)*Bodencharakterisierung!$E$11*((Stoffdatenbank!J37*Bodencharakterisierung!$E$9)+Bodencharakterisierung!$E$8)) -> 23.16974537 | Y36: 0 | Z36: 0
B37: =Stoffdatenbank!A38 -> n-Hexan | C37: nC6 | E37: 0 | U37: 4 | V37: =U37/Stoffdatenbank!R38 -> 0.04651162791 | W37: =Stoffdatenbank!N38*1000*(Schadstoffbelastung!V37/Schadstoffbelastung!V$42) -> 708.9652153 | X37: =(W37/(1000)*Bodencharakterisierung!$E$11*((Stoffdatenbank!J38*Bodencharakterisierung!$E$9)+Bodencharakterisierung!$E$8)) -> 22.2657261 | Y37: 0 | Z37: 0
B38: =Stoffdatenbank!A39 -> n-Heptan | C38: nC7 | E38: 0 | U38: 44 | V38: =U38/Stoffdatenbank!R39 -> 0.44 | W38: =Stoffdatenbank!N39*1000*(Schadstoffbelastung!V38/Schadstoffbelastung!V$42) -> 1475.498406 | X38: =(W38/(1000)*Bodencharakterisierung!$E$11*((Stoffdatenbank!J39*Bodencharakterisierung!$E$9)+Bodencharakterisierung!$E$8)) -> 118.0951299 | Y38: 0 | Z38: 0
B39: =Stoffdatenbank!A40 -> n-Octan | C39: nC8 | E39: 0 | U39: 6 | V39: =U39/Stoffdatenbank!R40 -> 0.05263157895 | W39: =Stoffdatenbank!N40*1000*(Schadstoffbelastung!V39/Schadstoffbelastung!V$42) -> 56.15750784 | X39: =(W39/(1000)*Bodencharakterisierung!$E$11*((Stoffdatenbank!J40*Bodencharakterisierung!$E$9)+Bodencharakterisierung!$E$8)) -> 14.81474086 | Y39: 0 | Z39: 0
B40: =Stoffdatenbank!A41 -> n-Nonan | C40: nC9 | E40: 0 | U40: 6 | V40: =U40/Stoffdatenbank!R41 -> 0.046875 | W40: =Stoffdatenbank!N41*1000*(Schadstoffbelastung!V40/Schadstoffbelastung!V$42) -> 8.574048072 | X40: =(W40/(1000)*Bodencharakterisierung!$E$11*((Stoffdatenbank!J41*Bodencharakterisierung!$E$9)+Bodencharakterisierung!$E$8)) -> 3.581645246 | Y40: 0 | Z40: 0
B41: =Stoffdatenbank!A42 -> n-Decan | C41: nC10 | E41: 0 | U41: 6 | V41: =U41/Stoffdatenbank!R42 -> 0.04225352113 | W41: =Stoffdatenbank!N42*1000*(Schadstoffbelastung!V41/Schadstoffbelastung!V$42) -> 3.220299745 | X41: =(W41/(1000)*Bodencharakterisierung!$E$11*((Stoffdatenbank!J42*Bodencharakterisierung!$E$9)+Bodencharakterisierung!$E$8)) -> 10.67534824 | Y41: 0 | Z41: 0
B42: =Stoffdatenbank!A36 -> n-Alkane | E42: 0 | U42: 68 | V42: =SUM(V36:V41) -> 0.6560495058
B43: MTBE (Methyl-tert-butylether) | E43: 0 | U43: 5 | V43: =U43/Stoffdatenbank!R44 -> 0.05672278441 | W43: =Stoffdatenbank!N44*1000*(Schadstoffbelastung!V43/Schadstoffbelastung!V$46) -> 4778172.871 | X43: =(W43/(1000)*Bodencharakterisierung!$E$11*((Stoffdatenbank!J44*Bodencharakterisierung!$E$9)+Bodencharakterisierung!$E$8)) -> 3185.130036 | Y43: 0 | Z43: 0
B44: ETBE (Ethyl-tert-butylether) | E44: 0 | U44: 55 | V44: =U44/Stoffdatenbank!R45 -> 0.5382931995 | W44: =Stoffdatenbank!N45*1000*(Schadstoffbelastung!V44/Schadstoffbelastung!V$46) -> 10615350.22 | X44: =(W44/(1000)*Bodencharakterisierung!$E$11*((Stoffdatenbank!J45*Bodencharakterisierung!$E$9)+Bodencharakterisierung!$E$8)) -> 6754.547342 | Y44: 0 | Z44: 0
B45: TBA (tert-Butylalkohol) | E45: 0 | U45: 1 | V45: =U45/Stoffdatenbank!R46 -> 0.01349134395 | X45: =(W45/(1000)*Bodencharakterisierung!$E$11*((Stoffdatenbank!J46*Bodencharakterisierung!$E$9)+Bodencharakterisierung!$E$8)) -> 0 | Y45: 0 | Z45: 0
B46: Oxigenate | E46: 0 | U46: 61 | V46: =SUM(V43:V45) -> 0.6085073279
B47: DOC
I54: Berechnung der Schadstoffinventare mit Daten aus

Sheet Schadstoffkonzentration Boden (hidden)
A2: Die Grafiken enthalten größensortierte Daten aus dem unteren Teil des Eingabeblattes (gemessenen Konzentrationen) und dienen ausschließlich der Visualisierung der Werteverteilung
A21: Mittlere Schadstoffmasse im gesättigten Boden (Einheitsfläche) (MB) [mg/m²]
V23: Summe [kg] | W23: Mittlere Flächen-Konz. (MB) [mg/m²] | X23: Standard-abweich. (MB) [mg/m²] | Y23: MB + 2 s [mg/m²] | Z23: Inventar (MB-bezogen) [kg]
A24: Sondierung (Bezeichnung)
A25: Flächenrepräsentanz [m²] | B25: 5 | C25: 5 | D25: 5 | E25: 5 | F25: 5 | G25: 5 | H25: 5 | I25: 5 | J25: 5 | K25: 5 | L25: 5 | M25: 5 | N25: 5 | O25: 5 | P25: 5 | Q25: 5 | R25: 5 | S25: 5 | T25: 50 | U25: 60 | V25: =IF(SUM(B25:U25)=Schadstoffbelastung!$K$6,SUM(B25:U25),"Σ ≠ "&Schadstoffbelastung!$K$6&"!") -> 200
A26: Leichtflüchtige chlorierte Kohlenwasserstoffe (LCKW) | V26: kg
A27: Tetrachlorethen | B27: 900000 | C27: 900000 | D27: 900000 | E27: 900000 | F27: 900000 | G27: 900000 | H27: 900000 | I27: 900000 | J27: 900000 | K27: 900000 | L27: 900000 | M27: 900000 | N27: 900000 | O27: 900000 | P27: 900000 | Q27: 900000 | R27: 900000 | S27: 900000 | T27: 900000 | U27: 900000 | V27: =SUMPRODUCT($B$25:$U$25,B27:U27)*10^-6 -> 180 | W27: =IFERROR(AVERAGE($B27:$U27),0) -> 900000 | X27: =IF(SUM($B27:$U27)>0,_xlfn.STDEV.S(B27:U27),"") -> 0 | Y27: =IF(SUM($B27:$U27)>0,W27+X27*2,"") -> 900000 | Z27: =IFERROR(Y27*$V$25/1000/1000,0) -> 180
A28: Trichlorethen | L28: 900000 | M28: 900000 | N28: 900000 | O28: 900000 | P28: 900000 | Q28: 900000 | R28: 900000 | S28: 900000 | V28: =SUMPRODUCT($B$25:$U$25,B28:U28)*10^-6 -> 36 | W28: =IFERROR(AVERAGE($B28:$U28),0) -> 900000 | X28: =IF(SUM($B28:$U28)>0,_xlfn.STDEV.S(B28:U28),"") -> 0 | Y28: =IF(SUM($B28:$U28)>0,W28+X28*2,"") -> 900000 | Z28: =IFERROR(Y28*$V$25/1000/1000,0) -> 180
A29: cis-1,2-Dichlorethen | L29: 900000 | M29: 900000 | N29: 900000 | O29: 900000 | P29: 900000 | Q29: 900000 | R29: 900000 | S29: 900000 | V29: 36 | W29: 900000 | X29: =IF(SUM($B29:$U29)>0,_xlfn.STDEV.S(B29:U29),"") -> 0 | Y29: 900000 | Z29: 180
A30: trans-1,2-Dichlorethen | L30: 900000 | M30: 900000 | N30: 900000 | O30: 900000 | P30: 900000 | Q30: 900000 | R30: 900000 | S30: 900000 | V30: 36 | W30: 900000 | X30: 0 | Y30: 900000 | Z30: 180
A31: 1,1-Dichlorethen | V31: 0 | W31: 0 | Z31: 0
A32: Vinylchlorid | V32: 0 | W32: 0 | Z32: 0
A33: Tetrachlormethan | V33: 0 | W33: 0 | Z33: 0
A34: Trichlormethan | L34: 900000 | M34: 900000 | N34: 900000 | O34: 900000 | P34: 900000 | Q34: 900000 | R34: 900000 | S34: 900000 | V34: 36 | W34: 900000 | X34: 0 | Y34: 900000 | Z34: 180
A35: Dichlormethan | L35: 900000 | M35: 900000 | N35: 900000 | O35: 900000 | P35: 900000 | Q35: 900000 | R35: 900000 | S35: 900000 | V35: 36 | W35: 900000 | X35: 0 | Y35: 900000 | Z35: 180
A36: 1,1,1-Trichlorethan | L36: 900000 | M36: 900000 | N36: 900000 | O36: 900000 | P36: 900000 | Q36: 900000 | R36: 900000 | S36: 900000 | V36: 36 | W36: 900000 | X36: 0 | Y36: 900000 | Z36: 180
A37: 1,1,2-Trichlorethan | L37: 900000 | M37: 900000 | N37: 900000 | O37: 900000 | P37: 900000 | Q37: 900000 | R37: 900000 | S37: 900000 | V37: 36 | W37: 900000 | X37: 0 | Y37: 900000 | Z37: 180
A38: 1,1-Dichlorethan | L38: 900000 | M38: 900000 | N38: 900000 | O38: 900000 | P38: 900000 | Q38: 900000 | R38: 900000 | S38: 900000 | V38: 36 | W38: 900000 | X38: 0 | Y38: 900000 | Z38: 180
A39: 1,2-Dichlorethan | L39: 900000 | M39: 900000 | N39: 900000 | O39: 900000 | P39: 900000 | Q39: 900000 | R39: 900000 | S39: 900000 | V39: 36 | W39: 900000 | X39: 0 | Y39: 900000 | Z39: 180
A40: LCKW | B40: =IF(SUM(B27:B39)>0,SUM(B27:B39),"") -> 900000 | C40: =IF(SUM(C27:C39)>0,SUM(C27:C39),"") -> 900000 | D40: 900000 | E40: 900000 | F40: 900000 | G40: 900000 | H40: 900000 | I40: 900000 | J40: 900000 | K40: 900000 | L40: 9000000 | M40: 9000000 | N40: 9000000 | O40: 9000000 | P40: 9000000 | Q40: 9000000 | R40: 9000000 | S40: 9000000 | T40: 900000 | U40: 900000 | V40: =SUM(V27:V39) -> 504 | W40: 4140000 | X40: 4071259.989 | Y40: =IF(SUM($B40:$U40)>0,W40+X40*2,"") -> 12282519.98 | Z40: =SUM(Z27:Z39) -> 1800
A41: (Mono)aromatische Kohlenwasserstoffe (AKW)
A42: Benzol | V42: =(B42*B$25/$V$25+C42*C$25/$V$25+D42*D$25/$V$25+E42*E$25/$V$25+F42*F$25/$V$25+G42*G$25/$V$25+H42*H$25/$V$25+I42*I$25/$V$25+J42*J$25/$V$25+K42*K$25/$V$25+L42*L$25/$V$25+M42*M$25/$V$25+N42*N$25/$V$25+O42*O$25/$V$25+P42*P$25/$V$25+Q42*Q$25/$V$25+R42*R$25/$V$25+S42*S$25/$V$25+T42*T$25/$V$25+U42*U$25/$V$25)*$V$25/1000/1000 -> 0 | W42: =IF(SUM($B42:$U42)>0,AVERAGE($B42:$U42),"") ->  | X42: =IF(SUM($B42:$U42)>0,_xlfn.STDEV.S(B42:U42),"") ->  | Y42: =IF(SUM($B42:$U42)>0,W42+X42*2,"") ->  | Z42: =Y42*$V$25/1000/1000 -> 
A43: Toluol | V43: 0
A44: Ethylbenzol | V44: 0
A45: o-Xylol | V45: 0
A46: m-Xylol | V46: 0
A47: p-Xylol | V47: 0
A48: n-Propylbenzol | V48: 0
A49: Isopropylbenzol | V49: 0
A50: o-Ethyltoluol | V50: 0
A51: m-Ethyltoluol | V51: 0
A52: p-Ethyltoluol | V52: 0
A53: 1,2-Diethylbenzol | V53: 0
A54: 1,3-Diethylbenzol | V54: 0
A55: 1,4-Diethylbenzol | V55: 0
A56: 1,2,3-Trimethylbenzol | V56: 0
A57: 1,2,4-Trimethylbenzol | V57: 0
A58: 1,3,5-Trimethylbenzol | V58: 0
A59: BTEX | B59: =IF(SUM(B42:B47)>0,SUM(B42:B47),"") ->  | C59: =IF(SUM(C42:C47)>0,SUM(C42:C47),"") ->  | V59: =SUM(V42:V47) -> 0 | Z59: =SUM(Z42:Z47) -> 
A60: AKW | B60: =IF(SUM(B42:B58)>0,SUM(B42:B58),"") ->  | C60: =IF(SUM(C42:C58)>0,SUM(C42:C58),"") ->  | V60: =SUM(V42:V58) -> 0 | Z60: =SUM(Z42:Z58) -> 
A61: Oxigenate
A62: MTBE (Methyl-tert-butylether) | V62: =(B62*B$25/$V$25+C62*C$25/$V$25+D62*D$25/$V$25+E62*E$25/$V$25+F62*F$25/$V$25+G62*G$25/$V$25+H62*H$25/$V$25+I62*I$25/$V$25+J62*J$25/$V$25+K62*K$25/$V$25+L62*L$25/$V$25+M62*M$25/$V$25+N62*N$25/$V$25+O62*O$25/$V$25+P62*P$25/$V$25+Q62*Q$25/$V$25+R62*R$25/$V$25+S62*S$25/$V$25+T62*T$25/$V$25+U62*U$25/$V$25)*$V$25/1000/1000 -> 0 | W62: =IF(SUM($B62:$U62)>0,AVERAGE($B62:$U62),"") ->  | X62: =IF(SUM($B62:$U62)>0,_xlfn.STDEV.S(B62:U62),"") ->  | Y62: =IF(SUM($B62:$U62)>0,W62+X62*2,"") ->  | Z62: =Y62*$V$25/1000/1000 -> 
A63: ETBE (Ethyl-tert-butylether) | V63: =(B63*B$25/$V$25+C63*C$25/$V$25+D63*D$25/$V$25+E63*E$25/$V$25+F63*F$25/$V$25+G63*G$25/$V$25+H63*H$25/$V$25+I63*I$25/$V$25+J63*J$25/$V$25+K63*K$25/$V$25+L63*L$25/$V$25+M63*M$25/$V$25+N63*N$25/$V$25+O63*O$25/$V$25+P63*P$25/$V$25+Q63*Q$25/$V$25+R63*R$25/$V$25+S63*S$25/$V$25+T63*T$25/$V$25+U63*U$25/$V$25)*$V$25/1000/1000 -> 0 | W63: =IF(SUM($B63:$U63)>0,AVERAGE($B63:$U63),"") ->  | X63: =IF(SUM($B63:$U63)>0,_xlfn.STDEV.S(B63:U63),"") ->  | Y63: =IF(SUM($B63:$U63)>0,W63+X63*2,"") ->  | Z63: =Y63*$V$25/1000/1000 -> 
A64: TBA (tert-Butylalkohol) | V64: =(B64*B$25/$V$25+C64*C$25/$V$25+D64*D$25/$V$25+E64*E$25/$V$25+F64*F$25/$V$25+G64*G$25/$V$25+H64*H$25/$V$25+I64*I$25/$V$25+J64*J$25/$V$25+K64*K$25/$V$25+L64*L$25/$V$25+M64*M$25/$V$25+N64*N$25/$V$25+O64*O$25/$V$25+P64*P$25/$V$25+Q64*Q$25/$V$25+R64*R$25/$V$25+S64*S$25/$V$25+T64*T$25/$V$25+U64*U$25/$V$25)*$V$25/1000/1000 -> 0 | W64: =IF(SUM($B64:$U64)>0,AVERAGE($B64:$U64),"") ->  | X64: =IF(SUM($B64:$U64)>0,_xlfn.STDEV.S(B64:U64),"") ->  | Y64: =IF(SUM($B64:$U64)>0,W64+X64*2,"") ->  | Z64: =Y64*$V$25/1000/1000 -> 
A65: Oxigenate | B65: =IF(SUM(B62:B64)>0,SUM(B62:B64),"") ->  | C65: =IF(SUM(C62:C64)>0,SUM(C62:C64),"") ->  | V65: =SUM(V62:V64) -> 0 | W65: =IF(SUM($B65:$U65)>0,AVERAGE($B65:$U65),"") ->  | X65: =IF(SUM($B65:$U65)>0,_xlfn.STDEV.S(B65:U65),"") ->  | Y65: =IF(SUM($B65:$U65)>0,W65+X65*2,"") ->  | Z65: =SUM(Z62:Z64) -> 
A66: n-Alkane
A67: n-Pentan | V67: =(B67*B$25/$V$25+C67*C$25/$V$25+D67*D$25/$V$25+E67*E$25/$V$25+F67*F$25/$V$25+G67*G$25/$V$25+H67*H$25/$V$25+I67*I$25/$V$25+J67*J$25/$V$25+K67*K$25/$V$25+L67*L$25/$V$25+M67*M$25/$V$25+N67*N$25/$V$25+O67*O$25/$V$25+P67*P$25/$V$25+Q67*Q$25/$V$25+R67*R$25/$V$25+S67*S$25/$V$25+T67*T$25/$V$25+U67*U$25/$V$25)*$V$25/1000/1000 -> 0 | W67: =IF(SUM($B67:$U67)>0,AVERAGE($B67:$U67),"") ->  | X67: =IF(SUM($B67:$U67)>0,_xlfn.STDEV.S(B67:U67),"") ->  | Y67: =IF(SUM($B67:$U67)>0,W67+X67*2,"") ->  | Z67: =Y67*$V$25/1000/1000 -> 
A68: n-Hexan | V68: 0
A69: n-Heptan | V69: 0
A70: n-Octan | V70: 0 | Z70: =Y70*$V$25/1000/1000 -> 
A71: n-Nonan | V71: 0
A72: n-Decan | V72: 0
A73: n-Alkane | B73: =IF(SUM(B67:B72)>0,SUM(B67:B72),"") ->  | C73: =IF(SUM(C67:C72)>0,SUM(C67:C72),"") ->  | V73: =SUM(V67:V71) -> 0 | Z73: =SUM(Z67:Z72) -> 
A75: Analysierte Schadstoffkonzentrationen im gesättigten Boden [mg/kg]
A76: Probe | B76: 1 | C76: 2 | D76: 3 | E76: 4 | F76: 5 | G76: 6 | H76: 7 | I76: 8 | J76: 9 | K76: 10 | L76: 11 | M76: 12 | N76: 13 | O76: 14 | P76: 15 | Q76: 16 | R76: 17 | S76: 18 | T76: 19 | U76: 20 | W76: Minimum [mg/kg OS] | X76: Maximum [mg/kg OS] | Y76: Median [mg/kg OS] | Z76: Mittlere Konz. (MW) [mg/kg OS] | AA76: Standard-abweich. [mg/kg OS] | AB76: MW + 2 s [mg/kg OS] | AC76: Inventar (Mittelwert-bezogen) [kg]
A77: Bezeichnung
A79: Leichtflüchtige chlorierte Kohlenwasserstoffe (LCKW)
A80: Tetrachlorethen | B80: 1000 | C80: 1000 | D80: 1000 | E80: 1000 | F80: 1000 | G80: 1000 | K80: 1000 | L80: 1000 | M80: 1000 | N80: 1000 | W80: =MIN(B80:U80) -> 1000 | X80: =MAX($B80:$U80) -> 1000 | Y80: =IFERROR(MEDIAN($B80:$U80),"") -> 1000 | Z80: =IF(SUM($B80:$U80)>0,AVERAGE($B80:$U80),"") -> 1000 | AA80: =IF(SUM($B80:$U80)>0,_xlfn.STDEV.S(B80:U80),"") -> 0 | AB80: =IF(SUM($B80:$U80)>0,Z80+AA80*2,"") -> 1000 | AC80: =IFERROR(AB80*Tonnage/1000,0) -> 1818
A81: Trichlorethen | B81: 65.4 | C81: 410 | D81: 2.8 | E81: 3.2 | F81: 1.3 | G81: 0.9 | K81: 2 | L81: 3 | M81: 4 | N81: 5 | W81: 0.9 | X81: 410 | Y81: 3.1 | Z81: =IF(SUM($B81:$U81)>0,AVERAGE($B81:$U81),"") -> 49.76 | AA81: =IF(SUM($B81:$U81)>0,_xlfn.STDEV.S(B81:U81),"") -> 128.102027 | AB81: =IF(SUM($B81:$U81)>0,Z81+AA81*2,"") -> 305.9640541 | AC81: 556.2426503
A82: cis-1,2-Dichlorethen | B82: 25.2 | C82: 810 | D82: 350 | E82: 1.2 | F82: 0 | G82: 1.1 | K82: 2 | L82: 3 | M82: 4 | N82: 5 | W82: 0 | X82: 810 | Y82: 3.5 | Z82: 120.15 | AA82: 265.6086229 | AB82: 651.3672458 | AC82: 1184.185653
A83: trans-1,2-Dichlorethen | B83: 0 | C83: 1.5 | D83: 0 | E83: 0 | F83: 0 | G83: 0 | K83: 2 | L83: 3 | M83: 4 | N83: 5 | W83: 0 | X83: 5 | Y83: 0.75 | Z83: 1.55 | AA83: 1.892235597 | AB83: 5.334471195 | AC83: 9.698068632
A84: 1,1-Dichlorethen | B84: 5.4 | C84: 74 | D84: 22 | E84: 0 | F84: 0 | G84: 0 | K84: 2 | L84: 3 | M84: 4 | N84: 5 | W84: 0 | X84: 74 | Y84: 3.5 | Z84: 11.54 | AA84: 22.8799864 | AB84: 57.2999728 | AC84: 104.1713506
A85: Vinylchlorid | B85: 0 | C85: 31 | D85: 0 | E85: 0 | F85: 0 | G85: 0 | K85: 2 | L85: 3 | M85: 4 | N85: 5 | W85: 0 | X85: 31 | Y85: 1 | Z85: 4.5 | AA85: 9.501461876 | AB85: 23.50292375 | AC85: 42.72831538
A86: Tetrachlormethan | W86: 0 | X86: 0 | AC86: 0
A87: Trichlormethan | W87: 0 | X87: 0 | AC87: 0
A88: Dichlormethan | W88: 0 | X88: 0 | AC88: 0
A89: 1,1,1-Trichlorethan | E89: 0 | F89: 0 | G89: 0 | K89: 2 | L89: 3 | M89: 4 | N89: 5 | W89: 0 | X89: 5 | Y89: 2 | Z89: 2 | AA89: 2.081665999 | AB89: 6.163331999 | AC89: 11.20493757
A90: 1,1,2-Trichlorethan | K90: 2 | L90: 3 | M90: 4 | N90: 5 | W90: 2 | X90: 5 | Y90: 3.5 | Z90: 3.5 | AA90: 1.290994449 | AB90: 6.081988897 | AC90: 11.05705582
A91: 1,1-Dichlorethan | E91: 0 | F91: 1.2 | G91: 0 | K91: 2 | L91: 3 | M91: 4 | N91: 5 | W91: 0 | X91: 5 | Y91: 2 | Z91: 2.171428571 | AA91: 1.933661713 | AB91: 6.038751997 | AC91: 10.97845113
A92: 1,2-Dichlorethan | B92: 0 | C92: 110 | D92: 37 | E92: 0 | F92: 0 | G92: 0 | K92: 2 | L92: 3 | M92: 4 | N92: 5 | W92: 0 | X92: 110 | Y92: 2.5 | Z92: 16.1 | AA92: 34.85031484 | AB92: 85.80062968 | AC92: 155.9855448
A93: LCKW | B93: =IF(SUM(B80:B92)>0,SUM(B80:B92),"") -> 1096 | C93: =IF(SUM(C80:C92)>0,SUM(C80:C92),"") -> 2436.5 | D93: 1411.8 | E93: 1004.4 | F93: 1002.5 | G93: 1002 | K93: 1018 | L93: 1027 | M93: 1036 | N93: 1045 | W93: 1002 | X93: 2436.5 | Y93: 1031.5 | Z93: 1207.92 | AA93: 449.0018357 | AB93: 2105.923671 | AC93: =AB93*Tonnage/1000 -> 3828.569235

Sheet Tabelle1 (hidden)
B6: ='Schadstoffkonzentration Boden'!B93 -> 1096 | C6: ='Schadstoffkonzentration Boden'!C93 -> 2436.5 | D6: ='Schadstoffkonzentration Boden'!D93 -> 1411.8 | E6: ='Schadstoffkonzentration Boden'!E93 -> 1004.4 | F6: ='Schadstoffkonzentration Boden'!F93 -> 1002.5 | G6: ='Schadstoffkonzentration Boden'!G93 -> 1002 | H6: ='Schadstoffkonzentration Boden'!H93 ->  | I6: ='Schadstoffkonzentration Boden'!I93 ->  | J6: ='Schadstoffkonzentration Boden'!J93 ->  | K6: ='Schadstoffkonzentration Boden'!K93 -> 1018 | L6: ='Schadstoffkonzentration Boden'!L93 -> 1027 | M6: ='Schadstoffkonzentration Boden'!M93 -> 1036 | N6: ='Schadstoffkonzentration Boden'!N93 -> 1045 | O6: ='Schadstoffkonzentration Boden'!O93 ->  | P6: ='Schadstoffkonzentration Boden'!P93 ->  | Q6: ='Schadstoffkonzentration Boden'!Q93 ->  | R6: ='Schadstoffkonzentration Boden'!R93 ->  | S6: ='Schadstoffkonzentration Boden'!S93 ->  | T6: ='Schadstoffkonzentration Boden'!T93 ->  | U6: ='Schadstoffkonzentration Boden'!U93 -> 
B7: =_xlfn.RANK.EQ(B6,$B6:$U6) -> 3 | C7: =_xlfn.RANK.EQ(C6,$B6:$U6) -> 1 | D7: 2 | E7: 8 | F7: 9 | G7: 10 | K7: 7 | L7: 6 | M7: 5 | N7: 4 | S7: =IF(SUM(S6)>0,_xlfn.RANK.EQ(S6,$B6:$U6),"") ->  | T7: =IF(SUM(T6)>0,_xlfn.RANK.EQ(T6,$B6:$U6),"") ->  | U7: =IF(SUM(U6)>0,_xlfn.RANK.EQ(U6,$B6:$U6),"") -> 

Sheet Schadstoffbelastung GW (hidden)
A3: Schadstoffkonzentrationen im Grundwasser (gelöst) [µg/L] | I3: Korrekturfaktor | K3: 10 | Z3: =Fläche*Mächtigkeit*Pges/1000/1000 -> 0.000396 | AA3: =Fläche*Mächtigkeit*Bodencharakterisierung!E11*Bodencharakterisierung!E9/1000/1000 -> 1.818e-05
A5: Messstelle Nr. | B5: 1 | C5: 2 | D5: 3 | E5: 4 | F5: 5 | G5: 6 | H5: 7 | I5: 8 | J5: 9 | K5: 10 | L5: 11 | M5: 12 | N5: 13 | O5: 14 | P5: 15 | Q5: 16 | R5: 17 | S5: 18 | T5: 19 | U5: 20 | V5: Summe | Y5: Mittlere Konz. (MW) [µg/L] | Z5: Inventar (gelöst) [kg] | AA5: Inventar (sorbiert) [kg]
A6: Bezeichnung | B6: A
A7: Leichtflüchtige chlorierte Kohlenwasserstoffe (LCKW) | V7: kg
A8: Tetrachlorethen | B8: 700 | V8: =IF(SUM(B8:U8)>0,(Z8+AA8)*KorFak,"") -> 48.5856 | Y8: =IFERROR(AVERAGE($B8:$U8),0) -> 700 | Z8: =$Z$3*Y8 -> 0.2772 | AA8: =$AA$3*Y8*Stoffdatenbank!J5 -> 4.58136
A9: Trichlorethen | B9: 680 | V9: 18.76392 | Y9: =IFERROR(AVERAGE($B9:$U9),0) -> 680 | Z9: =$Z$3*Y9 -> 0.26928 | AA9: =$AA$3*Y9*Stoffdatenbank!J6 -> 1.607112
A10: cis-1,2-Dichlorethen | B10: 1300 | V10: 16.965 | Y10: 1300 | Z10: 0.5148 | AA10: =$AA$3*Y10*Stoffdatenbank!J7 -> 1.1817
A11: trans-1,2-Dichlorethen | B11: 1e-08 | V11: 1.4868e-10 | Y11: 1e-08 | Z11: 3.96e-12 | AA11: =$AA$3*Y11*Stoffdatenbank!J8 -> 1.0908e-11
A12: 1,1-Dichlorethen | B12: 1e-08 | V12: 1.6778718e-10 | Y12: 1e-08 | Z12: 3.96e-12 | AA12: =$AA$3*Y12*Stoffdatenbank!J9 -> 1.2818718e-11
A13: Vinylchlorid | B13: 200 | V13: 2.9736 | Y13: 200 | Z13: 0.0792 | AA13: =$AA$3*Y13*Stoffdatenbank!J10 -> 0.21816
A14: Tetrachlormethan | B14: 1e-08 | V14: 5.588208e-10 | Y14: 1e-08 | Z14: 3.96e-12 | AA14: =$AA$3*Y14*Stoffdatenbank!J11 -> 5.192208e-11
A15: Trichlormethan | B15: 1e-08 | V15: 1.3269978e-10 | Y15: 1e-08 | Z15: 3.96e-12 | AA15: =$AA$3*Y15*Stoffdatenbank!J12 -> 9.309978e-12
A16: Dichlormethan | B16: 1e-08 | V16: 6.16887e-11 | Y16: 1e-08 | Z16: 3.96e-12 | AA16: =$AA$3*Y16*Stoffdatenbank!J13 -> 2.20887e-12
A17: 1,1,1-Trichlorethan | B17: 1e-09 | V17: 3.01392e-11 | Y17: 1e-09 | Z17: 3.96e-13 | AA17: =$AA$3*Y17*Stoffdatenbank!J14 -> 2.61792e-12
A18: 1,1,2-Trichlorethan | B18: 1e-08 | V18: 1.1893752e-10 | Y18: 1e-08 | Z18: 3.96e-12 | AA18: =$AA$3*Y18*Stoffdatenbank!J15 -> 7.933752e-12
A19: 1,1-Dichlorethan | B19: 1e-08 | V19: 1.0457532e-10 | Y19: 1e-08 | Z19: 3.96e-12 | AA19: =$AA$3*Y19*Stoffdatenbank!J16 -> 6.497532e-12
A20: 1,2-Dichlorethan | B20: 1e-08 | V20: 1.115928e-10 | Y20: 1e-08 | Z20: 3.96e-12 | AA20: =$AA$3*Y20*Stoffdatenbank!J17 -> 7.19928e-12
A21: LCKW | B21: =IF(SUM(B8:B20)>0,SUM(B8:B20),"") -> 2880 | C21: =IF(SUM(C8:C20)>0,SUM(C8:C20),"") ->  | V21: =SUM(V8:V20) -> 87.28812 | Y21: 2880
A22: (Mono)aromatische Kohlenwasserstoffe (AKW)
A23: Benzol | V23: =IF(SUM(B23:U23)>0,(Z23+AA23)*$K$3,"") ->  | X23: =V23 -> 
A24: Toluol | V24: =IF(SUM(B24:U24)>0,(Z24+AA24)*$K$3,"") -> 
A25: Ethylbenzol
A26: o-Xylol
A27: m-Xylol
A28: p-Xylol
A29: n-Propylbenzol
A30: Isopropylbenzol
A31: o-Ethyltoluol
A32: m-Ethyltoluol
A33: p-Ethyltoluol
A34: 1,2-Diethylbenzol
A35: 1,3-Diethylbenzol
A36: 1,4-Diethylbenzol
A37: 1,2,3-Trimethylbenzol
A38: 1,2,4-Trimethylbenzol
A39: 1,3,5-Trimethylbenzol
A40: BTEX | B40: =IF(SUM(B23:B28)>0,SUM(B23:B28),"") ->  | C40: =IF(SUM(C23:C28)>0,SUM(C23:C28),"") ->  | V40: =SUM(V23:V28) -> 0
A41: AKW | B41: =IF(SUM(B23:B39)>0,SUM(B23:B39),"") ->  | C41: =IF(SUM(C23:C39)>0,SUM(C23:C39),"") ->  | V41: =SUM(V23:V39) -> 0
A42: n-Alkane
A43: n-Pentan | V43: =IF(SUM(B43:U43)>0,(Z43+AA43)*$K$3,"") ->  | X43: =V43 -> 
A44: n-Hexan
A45: n-Heptan
A46: n-Octan
A47: n-Nonan
A48: n-Decan
A49: n-Alkane | B49: =IF(SUM(B43:B48)>0,SUM(B43:B48),"") ->  | C49: =IF(SUM(C43:C48)>0,SUM(C43:C48),"") ->  | H49: =IF(SUM(H43:H48)>0,SUM(H43:H48),"") ->  | T49: =IF(SUM(T43:T48)>0,SUM(T43:T48),"") ->  | V49: =SUM(V43:V48) -> 0
A50: Oxigenate
A51: MTBE (Methyl-tert-butylether) | V51: =IF(SUM(B51:U51)>0,(Z51+AA51)*$K$3,"") ->  | X51: =V51 -> 
A52: ETBE (Ethyl-tert-butylether) | V52: =IF(SUM(B52:U52)>0,(Z52+AA52)*$K$3,"") ->  | X52: =V52 -> 
A53: TBA (tert-Butylalkohol) | V53: =IF(SUM(B53:U53)>0,(Z53+AA53)*$K$3,"") ->  | X53: =V53 -> 
A54: Oxigenate | B54: =IF(SUM(B51:B53)>0,SUM(B51:B53),"") ->  | T54: =IF(SUM(T51:T53)>0,SUM(T51:T53),"") ->  | U54: =IF(SUM(U51:U53)>0,SUM(U51:U53),"") ->  | V54: =SUM(V51:V53) -> 0
A56: [mg/m²]
O57: [mg/m²]

Sheet Bodencharakterisierung (hidden)
B2: Parameter | D2: Einheit | E2: Hauptbodenart | F2: Nebenbodenart | M2: Parameter | N2: Einheit | O2: Datenbank
O3: Grobsand | P3: Mittelsand | Q3: Feinsand | R3: Schluff | S3: Ton
B4: Relativer Anteil (geschätzt) | D4: % | E4: 97 | F4: =100-E4 -> 3 | I4: =O3 -> Grobsand | M4: Parameter | N4: Einheit | O4: Grobsand | P4: Mittelsand | Q4: Feinsand | R4: Schluff | S4: Ton
B5: Wassersättigung (ungesättigter Boden) | C5: SW | D5: - | E5: 0.26 | F5: 0.26 | I5: =P3 -> Mittelsand | M5: Wassersättigung (ungesättigter Boden) | N5: - | O5: 0.26 | P5: 0.26 | Q5: 0.26 | R5: 0.27 | S5: 0.29
B6: Durchlässigkeitsbeiwert | C6: kf | D6: m/s | E6: 0.000275 | F6: 0.000275 | H6: =F6/E6 -> 1 | I6: =Q3 -> Feinsand | M6: Durchlässigkeitsbeiwert (kf) | N6: m/s | O6: 0.0002 | P6: 0.000275 | Q6: 1e-05 | R6: 1e-07 | S6: 1e-11
B7: Nutzbare Porosität | C7: neff | D7: - | E7: 0.125 | F7: 0.125 | I7: =R3 -> Schluff | M7: Nutzbare Porosität (neff) | N7: - | O7: 0.2 | P7: 0.125 | Q7: 0.1 | R7: 0.075 | S7: 0.035
B8: Gesamtporosität (Hohlraumvolumen) | C8: n | D8: - | E8: 0.33 | F8: 0.33 | I8: =S3 -> Ton | M8: Gesamtporosität (Hohlraumvolumen) | N8: - | O8: 0.33 | P8: 0.33 | Q8: 0.33 | R8: 0.34 | S8: 0.35
B9: Organische Kohlenstoffgehalt | C9: fOC | D9: - | E9: 0.01 | F9: 0.01 | M9: Organische Kohlenstoffgehalt | N9: - | O9: 0.01 | P9: 0.01 | Q9: 0.01 | R9: 0.01 | S9: 0.01
B10: Korndichte | C10: ρs | D10: kg/m³ | E10: 2650 | F10: 2650 | M10: Korndichte | N10: kg/m³ | O10: 2650 | P10: 2650 | Q10: 2650 | R10: 2690 | S10: 2700
B11: Schüttdichte | C11: d | D11: kg/L | E11: 1.515 | F11: 1.515 | M11: Schüttdichte | N11: kg/dm³ | O11: 1.515 | P11: 1.515 | Q11: 1.515 | R11: 1.43 | S11: 1.64
B12: Bodendichte (Materialdichte) | C12: nM | D12: kg/m³ | E12: 1015.05 | F12: 1015.05 | M12: Anteil (Bodenkorn) | N12: kg/m³ | O12: =1000*(1-O8)*O11 -> 1015.05 | P12: =1000*(1-P8)*P11 -> 1015.05 | Q12: =1000*(1-Q8)*Q11 -> 1015.05 | R12: =1000*(1-R8)*R11 -> 943.8 | S12: =1000*(1-S8)*S11 -> 1066
B13: Mittlerer Kornradius | C13: d50 | D13: m | E13: 0.000415 | F13: 0.000415 | M13: Mittlerer Kornradius (d50) | N13: m | O13: 0.001315 | P13: 0.000415 | Q13: 0.0001315 | R13: 3.25e-05 | S13: 2e-06
B14: Tortouistät in der Wasserphase | C14: tw | D14: - | E14: 8 | F14: 8 | M14: Tortuoistät in der Wasserphase (τw) | N14: - | O14: =1/O7 -> 5 | P14: =1/P7 -> 8 | Q14: =1/Q7 -> 10 | R14: =1/R7 -> 13.33333333 | S14: =1/S7 -> 28.57142857
B15: Wärmeleitfähigkeit | C15: l | D15: W/(m·K) | E15: 3.34 | F15: 3.34 | M15: Wärmeleitfähigkeit (λ) | N15: W/(m·K) | O15: 3.72 | P15: 3.34 | Q15: 2.75 | R15: 1.5 | S15: 1.5
B16: Temperaturleitfähigkeit | C16: a | D16: m²/s | E16: 0.001336 | F16: 0.001336 | M16: Temperaturleitfähigkeit (α) | N16: m²/s | O16: =O15/O18 -> 0.001488 | P16: =P15/P18 -> 0.001336 | Q16: =Q15/Q18 -> 0.0011 | R16: =R15/R18 -> 0.000625 | S16: =S15/S18 -> 0.000625
B17: Untergrundtemperatur | C17: T0 | D17: K | E17: 283.15 | F17: 283.15 | M17: Untergrundtemperatur (T0) | N17: K | O17: 283.15 | P17: 283.15 | Q17: 283.15 | R17: 283.15 | S17: 283.15
B18: Spezifische Wärmekapazität (Bodenkorn) | C18: cM | D18: kJ/(kg·K) | E18: 2500 | F18: 2500 | M18: Spezifische Wärmekapazität | N18: kJ/(kg·K) | O18: 2500 | P18: 2500 | Q18: 2500 | R18: 2400 | S18: 2400

Sheet Grundwassercharakterisierung (hidden)
B2: Parameter | C2: Einheit | D2: Wert
B3: Mittlerer hydraulischer Gradient (I) | C3: % | D3: 0.1
B4: Grundwasserabstandsgeschwindigkeit (va) | C4: m/d | D4: =Bodencharakterisierung!E6*(Grundwassercharakterisierung!D3/100)/Bodencharakterisierung!E7*3600*24 -> 0.19008
A5: Redoxmilieu (charakteristische Mittelwerte)
B6: pH-Wert | C6: -- | D6: 7 | I6: 7
B7: Redoxspannung (korr.) | C7: mV | D7: 200 | I7: 200
B8: Temperatur | C8: °C | D8: 3 | I8: 3
B9: Gelöster Sauerstoff | C9: mg/L | D9: 20 | I9: 20
B10: Nitrat | C10: mg/L | D10: 0 | I10: 0
B11: Mangan (gelöst) | C11: mg/L | D11: 0 | I11: 0
B12: Eisen (gelöst) | C12: mg/L | D12: 200 | I12: 200
B13: Sulfat | C13: mg/L | D13: 0 | I13: 0
B14: Methan | C14: mg/L | D14: 2 | I14: 2
B15: DOC | C15: mg/L | D15: 2 | I15: 2

Sheet Heterogenität (hidden)
A3: Heterogenität (Gini-Koeffizient) | C3: Hoch | D3: 0.7
A4: Korrekturfaktor | D4: =1/(1-(1-2.45068336614863*(Schadstoffbelastung!$K$4*Schadstoffbelastung!$K$5)^-0.457209937280527)*$D$3) -> 2.211553449
F6: Sondierung | G6: Gini-Koeffizient

Sheet Stoffdatenbank (hidden)
B2: Abbaurate (Permang.) | C2: Abbaurate (Sufat-Radikal) | D2: Abbaurate (ERD) | E2: Abbaurate (O2) | F2: Abbaurate (Nitrat) | G2: Abbaurate (Sulfat) | H2: Ver-dampfungs-enthalpie | I2: Gemisch-siedetemp. mit Wasser | J2: Sorptions-koeffizient | K2: Henry-Koeffizient | L2: Diffusions-koeffizient (in Wasser) | M2: Diffusions-koeffizient (in Luft) | N2: Löslichkeit | O2: Dampf-druck | P2: Siede-punkt | Q2: Dichte | R2: Molekular-gewicht
A3: Verbindung | B3: lPM [mol-1 s-1] | C3: lPM [mol-1 s-1] | D3: lERD [d-1] | E3: lOx [d-1] | F3: lNO3 [d-1] | G3: lSO4 [d-1] | H3: ΔHv [kJ/kg] | I3: °C | J3: KOC [L/kg] | K3: H (15°C) [-] | L3: Dw (15°C) [m²/s] | M3: Da (15°C) [m²/s] | N3: Lw (20°C) [mg/L] | O3: Po (15°C) [Pa] | P3: °C | Q3: [kg/L] | R3: Mm [g/mol] | S3: Bemerkung
A4: Leichtflüchtige chlorierte Kohlenwasserstoffe (LCKW)
A5: Tetrachlorethen | B5: 0.038 | D5: 0.028 | E5: -- | F5: -- | G5: -- | H5: 239.22 | I5: 88.7 | J5: =0.36*1000 -> 360 | K5: 0.64 | L5: 7.49e-10 | M5: 6.62e-06 | N5: 160 | O5: 1479 | P5: 121.075 | Q5: 1.624 | R5: 166 | W5: 0.028
A6: Trichlorethen | B6: 0.67 | D6: 0.027 | E6: -- | F6: -- | G6: -- | H6: 263.15 | I6: 73.5 | J6: 130 | K6: 0.33 | L6: 8.08e-10 | M6: 7.12e-06 | N6: 1000 | O6: 6064 | P6: 86.975 | Q6: 1.4642 | R6: 131 | W6: 0.027
A7: cis-1,2-Dichlorethen | D7: 0.012 | E7: -- | F7: -- | G7: -- | H7: 319.07 | I7: 55.3 | J7: 50 | K7: 0.2 | L7: 8.95e-10 | M7: 7.88e-06 | N7: 3500 | O7: 17284 | P7: 60.1875 | Q7: 1.2837 | R7: 97 | S7: Lw (cDCE) bei 25 °C | W7: 0.012
A8: trans-1,2-Dichlorethen | B8: 43.6 | D8: 0.012 | E8: -- | F8: -- | G8: -- | H8: 306.55 | I8: 45.3 | J8: 60 | K8: 0.19 | L8: 8.86e-10 | M8: 8.83e-06 | N8: 6300 | O8: 29294 | P8: 48.066 | Q8: 1.2565 | R8: 97 | W8: 0.012
A9: 1,1-Dichlorethen | B9: 2.32 | D9: 0.012 | E9: -- | F9: -- | G9: -- | H9: 274.33 | I9: =I7 -> 55.3 | J9: 70.51 | K9: 0.8 | L9: 1.173e-09 | M9: 9.865e-06 | N9: 2500 | O9: 6792.77 | P9: 31.4 | Q9: 1.218 | R9: 97 | W9: 0.012
A10: Vinylchlorid | D10: 0.018 | E10: 0.03 | F10: 0.002 | G10: 0.002 | H10: 364.6 | I10: -13 | J10: 60 | K10: 6.78 | L10: 5.78e-10 | M10: 5.94e-06 | N10: 1100 | O10: 285916 | P10: -13.758 | Q10: 0.9121 | R10: 63 | W10: 0.018
A11: Tetrachlormethan | D11: 0.06 | E11: -- | F11: -- | G11: -- | H11: 201.95 | I11: 66 | J11: 285.6 | K11: 1.153 | L11: 7.293e-10 | M11: 6.323e-06 | N11: 800 | O11: 11940 | P11: 76.76 | Q11: 1.594 | R11: 154 | W11: 0.06
A12: Trichlormethan | D12: 0.06 | E12: -- | F12: -- | G12: -- | H12: 273.11 | I12: 56.1 | J12: 51.21 | K12: 0.185 | L12: 8.245e-10 | M12: 7.141e-06 | N12: 8200 | O12: 20900 | P12: 61.12 | Q12: 1.485 | R12: 119 | W12: 0.06
A13: Dichlormethan | D13: 0.03 | E13: -- | F13: -- | G13: -- | H13: 343.36 | I13: 43.5 | J13: 12.15 | K13: 0.1159 | L13: 9.83e-10 | M13: 8.441e-06 | N13: 17799 | O13: 39156.78 | P13: 39.95 | Q13: 1.328 | R13: 85 | W13: 0.03
A14: 1,1,1-Trichlorethan | D14: 0.01 | E14: -- | F14: -- | G14: -- | H14: 243.62 | I14: 86 | J14: 144 | K14: 1 | L14: 7.61e-10 | M14: 6.77e-06 | N14: 1300 | O14: 1369.81 | P14: 74.05 | Q14: 1.339 | R14: 133.404 | W14: 0.01
A15: 1,1,2-Trichlorethan | D15: 0.01 | E15: -- | F15: -- | G15: -- | H15: 301.34 | I15: 86 | J15: 43.64 | K15: 0.038 | L15: 6.8e-10 | M15: 7.6e-06 | N15: 4500 | O15: 2500 | P15: 13.65 | Q15: 1.441 | R15: 133.404 | S15: D abgeschätzt | W15: 0.01
A16: 1,1-Dichlorethan | D16: 0.0065 | E16: -- | F16: -- | G16: -- | H16: 310.28 | I16: 72.8 | J16: 35.74 | K16: 0.257 | L16: 1.14e-09 | M16: 8.7e-06 | N16: 8690 | O16: 29100 | P16: 57.4 | Q16: 1.235 | R16: 98.96 | S16: D abgeschätzt | W16: 0.0065
A17: 1,2-Dichlorethan | D17: 0.0065 | E17: -- | F17: -- | G17: -- | H17: 354.69 | I17: 72.845 | J17: 39.6 | K17: 0.0508 | L17: 9.2e-10 | M17: 7.83e-06 | N17: 8690 | O17: 10000 | P17: 83.6 | Q17: 1.25 | R17: 98.96 | W17: 0.0065
A18: (Mono)aromatische Kohlenwasserstoffe (AKW)
A19: Benzol | B19: 7e-06 | C19: 1680000000 | D19: -- | E19: 0.15 | F19: 0.0015 | G19: 0.01 | H19: 434.62 | I19: 69.3 | J19: 80 | K19: 0.15 | L19: 8.15e-10 | M19: 7.59e-06 | N19: 1770 | O19: 7941 | P19: 80.15 | Q19: 0.877 | R19: 78
A20: Toluol | B20: 0.00057 | C20: 1870000000 | D20: -- | E20: 0.23 | F20: 0.5 | G20: 0.05 | H20: 390.22 | I20: 84.6 | J20: 300 | K20: 0.16 | L20: 7.34e-10 | M20: 6.9e-06 | N20: 520 | O20: 2215 | P20: 110.7 | Q20: 0.87 | R20: 92
A21: Ethylbenzol | B21: 0.00707 | C21: 1000000000 | D21: -- | E21: 0.15 | F21: 0.25 | G21: 0.003 | H21: 386.76 | I21: 91.5 | J21: 1100 | K21: 0.19 | L21: 6.76e-10 | M21: 6.39e-06 | N21: 170 | O21: 728 | P21: 136.2 | Q21: 0.866 | R21: 106
A22: o-Xylol | B22: 0.00147 | D22: -- | E22: 0.07 | F22: 0.025 | G22: 0.04 | H22: 396.23 | I22: 93.3 | J22: 830 | K22: 0.12 | L22: 6.8e-10 | M22: 6.42e-06 | N22: 180 | O22: 492 | P22: 143.9 | Q22: 0.88 | R22: 106
A23: m-Xylol | B23: 0.001 | D23: -- | E23: 0.1 | F23: 0.1 | G23: 0.08 | H23: 386.79 | I23: 93.3 | J23: 980 | K23: 0.16 | L23: 6.71e-10 | M23: 6.36e-06 | N23: 174 | O23: 615 | P23: 139.2 | Q23: 0.864 | R23: 106
A24: p-Xylol | B24: 0.00222 | C24: 2700000000 | D24: -- | E24: 0.1 | F24: 0.05 | G24: 0.04 | H24: 396.23 | I24: 93.3 | J24: 880 | K24: 0.15 | L24: 6.71e-10 | M24: 6.36e-06 | N24: 200 | O24: 657 | P24: 138.3 | Q24: 0.861 | R24: 106
A25: n-Propylbenzol | D25: -- | E25: 0.1 | F25: 0.02 | G25: 0.003 | H25: 383.33 | I25: 96.5 | J25: 980 | K25: 0.2 | L25: 6.2e-10 | M25: 6e-06 | N25: 60 | O25: 237 | P25: 158.9 | Q25: 0.86 | R25: 120 | S25: LW bei 25 °C
A26: Isopropylbenzol | D26: -- | E26: 0.15 | F26: 0.02 | G26: 0.02 | H26: 366.67 | I26: 95 | J26: 940 | K26: 0.43 | L26: 6.2e-10 | M26: 6e-06 | N26: 50 | O26: 427 | P26: 151.9 | Q26: 0.862 | R26: 120 | S26: LW bei 25 °C
A27: o-Ethyltoluol | D27: -- | E27: 0.05 | F27: 0.02 | G27: 0.04 | H27: 395.25 | I27: 96.5 | J27: 790 | K27: 0.11 | L27: 6.3e-10 | M27: 6e-06 | N27: 93 | O27: 202 | P27: 165.2 | Q27: 0.88 | R27: 120
A28: m-Ethyltoluol | D28: -- | E28: 0.15 | F28: 0.1 | G28: 0.08 | H28: 390 | I28: 96.5 | J28: 760 | K28: 0.1 | L28: 6.2e-10 | M28: 6e-06 | N28: 97 | O28: 202 | P28: 161.4 | Q28: 0.864 | R28: 120
A29: p-Ethyltoluol | D29: -- | E29: 0.15 | F29: 0.05 | G29: 0.04 | H29: 388.92 | I29: 96.5 | J29: 900 | K29: 0.12 | L29: 6.2e-10 | M29: 6e-06 | N29: 95 | O29: 230 | P29: 162 | Q29: 0.861 | R29: 120
A30: 1,2-Diethylbenzol | D30: -- | E30: 0.07 | F30: 0.015 | G30: 0.04 | H30: 394.03 | I30: 96.5 | J30: 500 | K30: 0.16 | L30: 5.9e-10 | M30: 5.7e-06 | N30: 24 | O30: 67 | P30: 182.9 | Q30: 0.88 | R30: 134
A31: 1,3-Diethylbenzol | D31: -- | E31: 0.07 | F31: 0.05 | G31: 0.08 | H31: 391.79 | I31: 96.5 | J31: 420 | K31: 0.23 | L31: 5.8e-10 | M31: 5.6e-06 | N31: 27 | O31: 109 | P31: 180.9 | Q31: 0.86 | R31: 134
A32: 1,4-Diethylbenzol | D32: -- | E32: 0.07 | F32: 0.03 | G32: 0.04 | H32: 391.79 | I32: 96.5 | J32: 460 | K32: 0.23 | L32: 5.8e-10 | M32: 5.6e-06 | N32: 25 | O32: 101 | P32: 183.7 | Q32: 0.862 | R32: 134
A33: 1,2,3-Trimethylbenzol | D33: -- | E33: 0.12 | F33: 0.003 | G33: 0.03 | H33: 408.33 | I33: 96.5 | J33: 650 | K33: 0.08 | L33: 6.4e-10 | M33: 6e-06 | N33: 75 | O33: 125 | P33: 176.1 | Q33: 0.894 | R33: 120
A34: 1,2,4-Trimethylbenzol | D34: -- | E34: 0.17 | F34: 0.003 | G34: 0.05 | H34: 391.67 | I34: 96.5 | J34: 650 | K34: 0.12 | L34: 6.3e-10 | M34: 6e-06 | N34: 60 | O34: 147 | P34: 169.3 | Q34: 0.876 | R34: 120 | S34: LW bei 25 °C
A35: 1,3,5-Trimethylbenzol | D35: -- | E35: 0.05 | F35: 0.003 | G35: 0.05 | H35: 395.92 | I35: 96.5 | J35: 670 | K35: 0.48 | L35: 6.3e-10 | M35: 6e-06 | N35: 20 | O35: 193 | P35: 164.7 | Q35: 0.865 | R35: 120
A36: n-Alkane
A37: n-Pentan | C37: 125000000 | D37: -- | E37: 0.06 | F37: 0.01 | G37: 0.005 | H37: 368.06 | I37: 34.6 | J37: 870 | K37: 35.69 | L37: 7.01e-10 | M37: 6.89e-06 | N37: 40 | O37: 46219 | P37: 36.05 | Q37: 0.626 | R37: 72
A38: n-Hexan | C38: 160000000 | D38: -- | E38: 0.11 | F38: 0.01 | G38: 0.005 | H38: 360.47 | I38: 61.6 | J38: 2040 | K38: 46.48 | L38: 6.49e-10 | M38: 6.36e-06 | N38: 10 | O38: 12922 | P38: 68.75 | Q38: 0.66 | R38: 86
A39: n-Heptan | C39: 247000000 | D39: -- | E39: 0.15 | F39: 0.01 | G39: 0.005 | H39: 360 | I39: 79.6 | J39: 5250 | K39: 69.3 | L39: 6.05e-10 | M39: 5.92e-06 | N39: 2.2 | O39: 3645 | P39: 98.35 | Q39: 0.684 | R39: 100 | S39: LW bei 25 °C
A40: n-Octan | C40: 337000000 | D40: -- | E40: 0.19 | F40: 0.01 | G40: 0.005 | H40: 359.65 | I40: 89.5 | J40: 17380 | K40: 70.89 | L40: 5.69e-10 | M40: 5.58e-06 | N40: 0.7 | O40: 1041 | P40: 125.6 | Q40: 0.7025 | R40: 114
A41: n-Nonan | D41: -- | E41: 0.22 | F41: 0.01 | G41: 0.005 | H41: 363.28 | I41: 94.8 | J41: 27540 | K41: 156.63 | L41: 5.41e-10 | M41: 5.31e-06 | N41: 0.12 | O41: 351 | P41: 150.7 | Q41: 0.72 | R41: 128 | S41: LW bei 25 °C
A42: n-Decan | D42: -- | E42: 0.22 | F42: 0.01 | G42: 0.005 | H42: 361.27 | I42: 97.2 | J42: 218780 | K42: 140.3 | L42: 5.13e-10 | M42: 5.05e-06 | N42: 0.05 | O42: 118 | P42: 174.1 | Q42: 0.73 | R42: 142
A43: Oxigenate
A44: MTBE (Methyl-tert-butylether) | C44: 31000000 | D44: -- | E44: 0.07 | F44: 0.003 | G44: 0.002 | H44: 340.34 | I44: 52.4 | J44: 11 | K44: 0.027 | L44: 9.513e-10 | M44: 8.286e-06 | N44: 51259 | O44: 33300 | P44: 55.65 | Q44: 0.74 | R44: 88.148
A45: ETBE (Ethyl-tert-butylether) | D45: -- | E45: 0.07 | F45: 0.003 | G45: 0.002 | H45: 323.37 | I45: 65.2 | J45: 9 | K45: 0.081 | L45: 7.337962963e-10 | M45: 6.944444444e-06 | N45: 12000 | O45: 16500 | P45: 72.825 | Q45: 0.75 | R45: 102.1748
A46: TBA (tert-Butylalkohol) | C46: 740000 | D46: -- | E46: 0.07 | F46: 0.001 | G46: 0.002 | H46: 620.6 | I46: 79.9 | J46: 37 | K46: 0.00061 | L46: 7e-10 | M46: =M44/(L44/L46) -> 6.097130243e-06 | N46: mischbar | O46: 5430 | P46: 82.35 | Q46: 0.79 | R46: 74.1216
A47: grau = abgeschätzt

Sheet Sanierungsdesign (hidden)
B2: Parameter | D2: Einheit | E2: Wert | L2: Stöchiometrische Faktoren Bedarf an Wasserstoff | O2: Stöchiometrische Faktoren Generierung von Wasserstoff | S2: Substratauswahl | U2: Anzeigewert | V2: Schadstoff
A3: Sanierungszielwert | S3: Acetat | U3: Summe LCKW | V3: =tblSchadstoffauswahl[[#This Row],[Anzeigewert]] -> Summe LCKW
B4: Sanierungszielwert | D4: µg/L | E4: 200 | L4: Elektronenakzeptor (EA) | M4: g/g EA | O4: Elektronendonator (ED) | P4: ED g/g Wasserstoff | S4: Biomasse | U4: Tetrachlorethen | V4: =tblSchadstoffauswahl[[#This Row],[Anzeigewert]] -> Tetrachlorethen
B5: Unproduktiver Wasserstoffbedarf des Bodens | D5: g/kg | E5: 0.005 | O5: Wasserstoff | P5: 1 | S5: Ethanol | U5: Trichlorethen | V5: =tblSchadstoffauswahl[[#This Row],[Anzeigewert]] -> Trichlorethen
A6: Design | O6: Acetat | P6: 30.05 | S6: Glucose | U6: cis-1,2-Dichlorethen | V6: =tblSchadstoffauswahl[[#This Row],[Anzeigewert]] -> cis-1,2-Dichlorethen
B7: Sanierungsfläche | D7: m² | E7: =Schadstoffbelastung!K6 -> 200 | O7: Ethanol | P7: 23.05 | S7: Laktat | U7: trans-1,2-Dichlorethen | V7: =tblSchadstoffauswahl[[#This Row],[Anzeigewert]] -> trans-1,2-Dichlorethen
B8: Anzahl der Injektionsbrunnen | D8: - | E8: 5 | O8: Laktat | P8: 45.05 | S8: Palmöl | U8: 1,1-Dichlorethen | V8: =tblSchadstoffauswahl[[#This Row],[Anzeigewert]] -> 1,1-Dichlorethen
B9: Radius Injektionsbrunnen inkl. Filterkies | D9: m | E9: 0.2 | O9: Glucose | P9: 90.1 | S9: Rapsöl | U9: Vinylchlorid | V9: =tblSchadstoffauswahl[[#This Row],[Anzeigewert]] -> Vinylchlorid
B10: maximaler Injektionsdruck | D10: Bar | E10: 0.2 | O10: Sojaöl | P10: 436.55 | S10: Sojaöl | U10: Tetrachlormethan | V10: =tblSchadstoffauswahl[[#This Row],[Anzeigewert]] -> Tetrachlormethan
B11: Elektonendonator (H2) | D11: mg/L | E11: 100 | L11: Tetrachlorethen | M11: 0.04819277108 | O11: Palmöl | P11: 424.25 | S11: Wasserstoff | U11: Trichlormethan | V11: =tblSchadstoffauswahl[[#This Row],[Anzeigewert]] -> Trichlormethan
L12: Trichlorethen | M12: 0.04580152672 | O12: Rapsöl | P12: 442.3 | S12: Andere | U12: Dichlormethan | V12: =tblSchadstoffauswahl[[#This Row],[Anzeigewert]] -> Dichlormethan
B13: Betrachteter Schadstoff (zur Auswahl in Zelle clicken) | E13: Summe LCKW | L13: cis-1,2-Dichlorethen | M13: 0.0412371134 | O13: Biomasse | P13: 56.55 | U13: 1,1,1-Trichlorethan | V13: =tblSchadstoffauswahl[[#This Row],[Anzeigewert]] -> 1,1,1-Trichlorethan
L14: t-1,2-Dichlorethen | M14: 0.0412371134 | O14: Andere | P14: 0 | U14: 1,1,2-Trichlorethan | V14: =tblSchadstoffauswahl[[#This Row],[Anzeigewert]] -> 1,1,2-Trichlorethan
L15: 1,1-Dichlorethen | M15: 0.0412371134 | U15: 1,1-Dichlorethan | V15: =tblSchadstoffauswahl[[#This Row],[Anzeigewert]] -> 1,1-Dichlorethan
B16: Substrat (zur Auswahl in Zelle clicken) | E16: Glucose | L16: Vinylchlorid | M16: 0.03174603175 | U16: 1,2-Dichlorethan | V16: =tblSchadstoffauswahl[[#This Row],[Anzeigewert]] -> 1,2-Dichlorethan
L17: Tetrachlormethan | M17: 0.05194805195 | U17: bewertungsrelevanter Schadstoff | V17: =OFFSET(Calculation!$B$49,MATCH(MAX(Calculation!$O$49:$O$62),Calculation!$O$49:$O$62,0)-1,0) -> Tetrachlorethen
L18: Trichlormethan | M18: 0.05042016807
L19: Dichlormethan | M19: 0.04705882353
L20: 1,1,1-Trichlorethan | M20: 0.04497616263
L21: 1,1,2-Trichlorethan | M21: 0.04497616263
L22: 1,1-Dichlorethan | M22: 0.04042037187
L23: 1,2-Dichlorethan | M23: 0.04042037187

Sheet Calculation (hidden)
B1: Ergebnisparameter | C1: Einheit | D1: Wert | F1: Sanierungsdauer (d) | G1: =COUNT(AT18:AT5017) -> 3374 | I1: Eingabeparameter
F2: Sanierungsdauer (a) | G2: =G1/365.25 -> 9.237508556 | I2: Reynoldzahl Re' | J2: =(Bodencharakterisierung!$E$13*Bodencharakterisierung!$E$6*(IF((Grundwassercharakterisierung!$D$3<0.1),0.1/100,Grundwassercharakterisierung!$D$3/100))/(1.3*10^-6*Bodencharakterisierung!$E$7)) -> 0.0007023076923
B3: Dauer der ERD-Sanierung | C3: Tage | D3: =G1 -> 3374 | F3: Auflösung der Residualphase (d) | G3: =COUNT(AH18:AH150) -> 133 | I3: Diffusionskoeffizient Wasser Daq [m²/s] | J3: =VLOOKUP(C30,B44:X62,17,FALSE) -> 7.883829695e-10
B4: Min. erforderliche Substratmenge (LCKW-Abbau) | C4: kg | D4: =VLOOKUP($C$30,B83:G96,6,FALSE) -> 359.9385538 | F4: Desorptionsprozess (d) | G4: =G1-G3 -> 3241 | I4: foc | J4: =Bodencharakterisierung!E9 -> 0.01
B5: End-Schadstoffkonzentration | C5: µg/L | D5: =(MIN(AX18:AX5017)) -> 199.5799326 | F5: Sanierungsziel kg/m3 Wasser | G5: =Sanierungsdesign!E4*10^-6 -> 0.0002 | I5: Kd [m³ Wasser/ kg Boden] | J5: =$D$24/1000 -> 0.002060187413
F6: Sanierungsziel ug/L | G6: =G5*10^6 -> 200 | I6: λ_Schadstoff [d-1] | J6: =$D$25 -> 0.0228123147
B7: Injektionsvolumen pro Pegel | C7: m3 | D7: =$G$8 -> 30 | F7: V(Pegel) (-> Volumen um einen Pegel) [m3 Boden] | G7: =Schadstoffbelastung!$K$11/Sanierungsdesign!E8 -> 240
B8: Injektionsradius (ROI) | C8: m | D8: =$G$9 -> 3.568248232 | F8: V(Inj) (-> Volumen einer Injektion) [m3 Wasser] | G8: =G7*Bodencharakterisierung!$E$7 -> 30 | I8: Cw (aktuelle Konz.) [kg/m³ Wasser] | J8: =$D$18/1000000 -> 0.00288
B9: Dauer eines Injektionszyklus | C9: h | D9: =(G8/G18)/3600 -> 3.413804222 | F9: r(ROI) (-> Radius der Injektion um eine Bohrung) [m] | G9: =SQRT(G7/PI()/Schadstoffbelastung!$K$9) -> 3.568248232 | I9: Cs (Grenzkonzentration)[kg/kg] | J9: =$D$20/1000000 -> 4.174e-06
B10: Injektionsrate | C10: L/s | D10: =G18*1000 -> 2.441069491 | F10: c(inj) (-> Injektionskonz. nach diff. Ausgleich) [kg H2/m3 Wasser] | G10: =Sanierungsdesign!$E$11*0.001*(Bodencharakterisierung!$E$7/Bodencharakterisierung!$E$8) -> 0.03787878788 | I10: Cs (Grenzkonzentration) [kg/m3 Boden] | J10: =J9*Bodencharakterisierung!$E$11*1000 -> 0.00632361
B11: Anzahl Injektionen Nebenreaktanten | C11: Anzahl | D11: =G21 -> 3.36 | F11: maßgeblicher stöchiometrischer Faktor [kgH2/Kg Schadstoff) | G11: =$D$28 -> 0.04382090633 | I11: λsw [1/d] | J11: =(10^(0.301-0.668*LOG(J5*1000)))*24 -> 29.61566892 | Y11: Abbau im GW | Z11: =Z17-$Z$17*EXP((-$J$6/Heterogenität!$D$4)*1) -> 0.0002391599663 | AB11: [kg/m3 Wasser]
B12: Anzahl Injektionen Schadstoffaustrag | C12: Anzahl | D12: =$G$22 -> 22.80387599 | F12: c(gesamtboden;inj) [kg H2/m3 Boden/Injektion] | G12: =G10*Bodencharakterisierung!E8 -> 0.0125 | I12: c(i) (Sättigungskonz) [kg/m3 Wasser] | J12: =VLOOKUP($C$30,$B$49:$X$62,21,FALSE) -> 2.165332996
B13: Anzahl der Gesamtinjektionen | C13: Anzahl | D13: =$G$23 -> 26.16387599 | F13: r(0) (-> Radius Injektionsbohrungen) [m] | G13: =Sanierungsdesign!$E$9 -> 0.2 | I13: C(w, Gleichgewicht [kg/m3 Wasser] | J13: =VLOOKUP($C$30,$B$49:$X$62,23,FALSE) -> 0.02330529107
B14: Min. Substratmenge zur Redoxmilieubildung | C14: kg | D14: =(G19+G33)*Schadstoffbelastung!K11*E66 -> 908.208 | F14: s (-> Aufhöhung der Wassersäule in Bohrung) [m] | G14: =Sanierungsdesign!$E$10*10 -> 2 | I14: C(w, Berechnung) [kg/m3] | J14: =IF(MAX(J13,J8)>J12,J12,MAX(J13,J8)) -> 0.02330529107 | AF14: =$J$9*0.05 -> 2.087e-07 | AM14: Desorption
F15: H (-> Mächtigkeit Grundwasserleiter) [m] | G15: =Schadstoffbelastung!$K$9 -> 6 | Z15: C(w) [kg/m3 Wasser] | AA15: Abbau | AB15: Volumetrischer Schadstoffanteil θ [m³/m³] | AC15: Transferrate J [kg/m3 Wasser*d ] | AD15: Zunahme im Wasser dC [kg/m3 Wasser] | AE15: Residualphase C(Res,neu) [kg/m3 Boden] | AF15: Residualphase C(Res,neu) [kg/kg Boden] | AG15: Wasser C(w,Res,neu) [kg/m3 Wasser] | AJ15: Verbrauch ED [kg H2/m3 Boden] | AN15: Wasser C(w) [kg/m3 Wasser] | AO15: Transferrate J [kg/m3 Wasser d] | AP15: Zunahme im Wasser dC [kg/m3] | AQ15: sorbierte Phase C(s,neu-desorp.) [kg/m3 Boden] | AR15: sorbierte Phase C(s,neu-desorp.) [kg/kg Boden] | AS15: Wasser C(w,neu-desorp.) [kg/m3 Wasser] | AT15: Daten für Grafik | AZ15: Daten für Grafik | BE15: Daten für Grafik | BG15: Daten für Grafik | BH15: Daten für Grafik
F16: T (-> Transmissivität Grundwasserleiter) [m2/s] | G16: =Bodencharakterisierung!$E$6*$G$15 -> 0.00165 | I16: C Residual [kg/kg] | J16: =$D$21/1000000 -> 4.383926733e-05 | Y16: Tage | AH16: Tage | AK16: Injektionen | AM16: Tage | AT16: Tage | AV16: Verbrauch ED [kg/m3 Boden] | AW16: Injektionen | AX16: Ausgabe | AY16: Tage gesamt | AZ16: Injektionen gesamt | BA16: Injektionen Residual Anzahl | BB16: Injektionen Desorption Anzahl | BC16: Injektionen zustromender gelöster Stoffe Anzahl | BE16: Cboden [mg/kg] | BF16: Cboden_sorb [mg/kg] | BG16: Cboden_res [mg/kg] | BH16: cwasser [µg/L]
F17: S (-> Speicherkoeffizient [-] | G17: =G15*3.3*10^-6 -> 1.98e-05 | I17: C Residual [kg/m3 Boden] | J17: =J16*1000*Bodencharakterisierung!E11 -> 0.06641649 | Y17: 0 | Z17: =$J$14 -> 0.02330529107 | AA17: =Z17*EXP((-$J$6/Heterogenität!$D$4)*1) -> 0.02306613111 | AB17: =$J$16*Bodencharakterisierung!$E$11/$J$20 -> 4.587723557e-05 | AC17: =((150*($J$2^0.87)*(AB17^0.79)*$J$3)/(Bodencharakterisierung!$E$13^2))*($J$12-Z17)*3600*24 -> 0.08574559256 | AD17: =MIN(AC17,Z17-AA17) -> 0.0002391599663 | AE17: =$J$17-(AD17*Bodencharakterisierung!$E$8) -> 0.06633756721 | AF17: =IF(AE17>$J$18,(AE17/(Bodencharakterisierung!$E$11*1000)),0) -> 4.378717308e-05 | AG17: =AA17+AD17 -> 0.02330529107 | AK17: 0 | AM17: 0 | AN17: =J14 -> 0.02330529107 | AT17: 0 | AW17: 0 | AZ17: =D11 -> 3.36 | BE17: =J19*10^6 -> 4.3827 | BF17: =MAX(#REF!)*10^6 ->  | BG17: =D21 -> 43.83926733 | BH17: =AN17*10^6 -> 23305.29107
B18: Mittlere Konzentration Grundwasser | C18: µg/L | D18: =VLOOKUP($C$30,$B$49:$X$62,3,FALSE)*1000000 -> 2880 | F18: Q(mittel) (-> mittlerer Durchfluss Injektion) [m3/s] | G18: =(((G15+G14)^2)-(G15^2))/2*(4*PI()*Bodencharakterisierung!E6/LN(2.25*G16*3600*24/G17/G13^2)) -> 0.002441069491 | I18: C Sorption neu [kg/m3 Boden] | J18: =J19*Bodencharakterisierung!$E$11*1000 -> 0.0066397905 | K18: =IF(G1>365*5,"Achtung - Sanierungslaufzeit überschreitet einen Zeitraum von 5 Jahren","") -> Achtung - Sanierungslaufzeit überschreitet einen Zeitraum von 5 Jahren | Y18: 1 | Z18: =AG17 -> 0.02330529107 | AA18: =Z18*EXP((-$J$6/Heterogenität!$D$4)*1) -> 0.02306613111 | AB18: =AF17*Bodencharakterisierung!$E$11/$J$20 -> 4.58227196e-05 | AC18: =((150*($J$2^0.87)*(AB18^0.79)*$J$3)/(Bodencharakterisierung!$E$13^2))*($J$12-Z18)*3600*24 -> 0.08566508816 | AD18: =MIN(AC18,Z18-AA18) -> 0.0002391599663 | AE18: =AE17-AD18*Bodencharakterisierung!$E$8 -> 0.06625864442 | AF18: =IF(AE18>$J$18,(AE18/(Bodencharakterisierung!$E$11*1000)),0) -> 4.373507883e-05 | AG18: =AA18+AD18 -> 0.02330529107 | AH18: =IF(AD18>0,Y18,NA()) -> 1 | AJ18: =AD18*$G$11*Bodencharakterisierung!$E$8 -> 3.458468138e-06 | AK18: =IF(AH18>0,(AJ18*Schadstoffbelastung!$K$11)/($G$12*$G$7)+AK17,NA()) -> 0.001383387255 | AM18: 1 | AN18: =IF(AF18<=$J$9*0.05,AN17*EXP((-$J$6*1)/Heterogenität!$D$4),Z18) -> 0.02330529107 | AO18: =IF(OR(AF18>=$J$19, J19/$J$5<AN18),0, Bodencharakterisierung!$E$8*$J$11*((J19/$J$5)-AN18)) -> 0 | AP18: =MIN(AO18,$AN$17-AN18) -> 0 | AQ18: =J18-AP18*Bodencharakterisierung!$E$8 -> 0.0066397905 | AR18: =AQ18/(Bodencharakterisierung!$E$11*1000) -> 4.3827e-06 | AS18: =AN18+AP18 -> 0.02330529107 | AT18: =IF(AN18>$G$5,AM18,NA()) -> 1 | AV18: =(AP18)*$G$11*Bodencharakterisierung!$E$8 -> 0 | AW18: =IF(AF18<=$J$9*1.05,(AV18*Schadstoffbelastung!$K$11)/($G$12*$G$7)+AW17,NA()) ->  | AX18: =IF(BH18>($G$5*10^6),BH18*0.99,9999) -> 23072.23816 | AY18: =AT18+$G$3 -> 134 | AZ18: =IF(ISNUMBER(AT18),BA18+BB18+BC18+$AZ$17,"") -> 3.367656027 | BA18: =IF(ISNUMBER(AK18),AK18,BA17) -> 0.001383387255 | BB18: =IF(ISNUMBER(AW18),AW18,0) -> 0 | BC18: =$G$34/$G$12/$G$8 -> 0.00627264 | BE18: =AR18*10^6 -> 4.3827 | BF18: =#REF!*10^6 ->  | BG18: =AF18*10^6 -> 43.73507883 | BH18: 23305.29107
B19: Mittlere Konzentration Boden | C19: mg/kg | D19: =VLOOKUP($C$30,$B$49:$X$62,19,FALSE)*1000000 -> 48.01326733 | F19: Masse unprod. ED-Bedarf im Boden [kg H2/m3 Boden] | G19: =Sanierungsdesign!E5*Bodencharakterisierung!$E$11 -> 0.007575 | I19: C Sorption neu [kg/kg] | J19: =MIN(D19,D20*1.05)*10^-6 -> 4.3827e-06 | Y19: 2 | Z19: =AG18 -> 0.02330529107 | AA19: =Z19*EXP((-$J$6/Heterogenität!$D$4)*1) -> 0.02306613111 | AB19: =AF18*Bodencharakterisierung!$E$11/$J$20 -> 4.576820363e-05 | AC19: =((150*($J$2^0.87)*(AB19^0.79)*$J$3)/(Bodencharakterisierung!$E$13^2))*($J$12-Z19)*3600*24 -> 0.08558456364 | AD19: =MIN(AC19,Z19-AA19) -> 0.0002391599663 | AE19: =AE18-AD19*Bodencharakterisierung!$E$8 -> 0.06617972163 | AF19: =IF(AE19>$J$18,(AE19/(Bodencharakterisierung!$E$11*1000)),0) -> 4.368298458e-05 | AG19: =AA19+AD19 -> 0.02330529107 | AH19: =IF(AD19>0,Y19,NA()) -> 2 | AJ19: =(AD19)*$G$11*Bodencharakterisierung!$E$8 -> 3.458468138e-06 | AK19: =IF(AH19>0,(AJ19*Schadstoffbelastung!$K$11+$G$34)/($G$12*$G$7)+AK18,NA()) -> 0.003550854511 | AM19: 2 | AN19: =IF(AF19<=$J$9*0.05,AS18*EXP((-$J$6*1)/Heterogenität!$D$4),Z19) -> 0.02330529107 | AO19: =IF(OR(AF19>=$J$19, AR18/$J$5<AN19),0, Bodencharakterisierung!$E$8*$J$11*((AR18/$J$5)-AN19)) -> 0 | AP19: =MIN(AO19,AS18-AN19) -> 0 | AQ19: =AQ18-AP19*Bodencharakterisierung!$E$8 -> 0.0066397905 | AR19: =AQ19/(Bodencharakterisierung!$E$11*1000) -> 4.3827e-06 | AS19: =AN19+AP19 -> 0.02330529107 | AT19: 2 | AV19: =(AP19)*$G$11*Bodencharakterisierung!$E$8 -> 0 | AW19: =IF(AF19<=$J$9*1.05,(AV19*Schadstoffbelastung!$K$11)/($G$12*$G$7)+AW18,NA()) ->  | AX19: 23072.23816 | AY19: 135 | AZ19: =IF(ISNUMBER(AT19),BA19+BB19+BC19+$AZ$17,"") -> 3.376096135 | BA19: =IF(ISNUMBER(AK19),AK19,BA18) -> 0.003550854511 | BB19: =IF(ISNUMBER(AW19),AW19,0) -> 0 | BC19: =$G$34/$G$12/$G$8+BC18 -> 0.01254528 | BE19: =AR19*10^6 -> 4.3827 | BF19: =#REF!*10^6 ->  | BG19: 43.68298458 | BH19: 23305.29107
B20: Grenzkonzentration Boden | C20: mg/kg | D20: =VLOOKUP($C$30,$B$49:$X$62,18,FALSE)*1000000 -> 4.174 | I20: Dichte Schadstoff [kg/L] | J20: =$D$27 -> 1.44770035 | Y20: 3 | Z20: =AG19 -> 0.02330529107 | AA20: =Z20*EXP((-$J$6/Heterogenität!$D$4)*1) -> 0.02306613111 | AB20: =AF19*Bodencharakterisierung!$E$11/$J$20 -> 4.571368766e-05 | AC20: =((150*($J$2^0.87)*(AB20^0.79)*$J$3)/(Bodencharakterisierung!$E$13^2))*($J$12-Z20)*3600*24 -> 0.08550401898 | AD20: 0.0002391599663 | AE20: =AE19-AD20*Bodencharakterisierung!$E$8 -> 0.06610079885 | AF20: =IF(AE20>$J$18,(AE20/(Bodencharakterisierung!$E$11*1000)),0) -> 4.363089033e-05 | AG20: 0.02330529107 | AH20: 3 | AJ20: =(AD20)*$G$11*Bodencharakterisierung!$E$8 -> 3.458468138e-06 | AK20: =IF(AH20>0,(AJ20*Schadstoffbelastung!$K$11+$G$34)/($G$12*$G$7)+AK19,NA()) -> 0.005718321766 | AM20: 3 | AN20: =IF(AF20<=$J$9*0.05,AS19*EXP((-$J$6*1)/Heterogenität!$D$4),Z20) -> 0.02330529107 | AO20: =IF(OR(AF20>=$J$19, AR19/$J$5<AN20),0, Bodencharakterisierung!$E$8*$J$11*((AR19/$J$5)-AN20)) -> 0 | AP20: =MIN(AO20,AS19-AN20) -> 0 | AQ20: =AQ19-AP20*Bodencharakterisierung!$E$8 -> 0.0066397905 | AR20: =AQ20/(Bodencharakterisierung!$E$11*1000) -> 4.3827e-06 | AS20: =AN20+AP20 -> 0.02330529107 | AT20: 3 | AV20: =(AP20)*$G$11*Bodencharakterisierung!$E$8 -> 0 | AW20: =IF(AF20<=$J$9*1.05,(AV20*Schadstoffbelastung!$K$11)/($G$12*$G$7)+AW19,NA()) ->  | AX20: 23072.23816 | AY20: 136 | AZ20: 3.384536242 | BA20: 0.005718321766 | BB20: 0 | BC20: =$G$34/$G$12/$G$8+BC19 -> 0.01881792 | BE20: 4.3827 | BF20: =#REF!*10^6 ->  | BG20: 43.63089033 | BH20: 23305.29107
B21: Konzentration Residualphase | C21: mg/kg | D21: =VLOOKUP($C$30,$B$49:$X$62,20,FALSE)*1000000 -> 43.83926733 | F21: Anzahl Injektionen für unprod. ED-Bedarf | G21: =($G$19+$G$33)*Schadstoffbelastung!$K$11/($G$12*Calculation!$G$7) -> 3.36 | Y21: 4 | Z21: 0.02330529107 | AA21: =Z21*EXP((-$J$6/Heterogenität!$D$4)*1) -> 0.02306613111 | AB21: =AF20*Bodencharakterisierung!$E$11/$J$20 -> 4.565917169e-05 | AC21: =((150*($J$2^0.87)*(AB21^0.79)*$J$3)/(Bodencharakterisierung!$E$13^2))*($J$12-Z21)*3600*24 -> 0.08542345415 | AD21: 0.0002391599663 | AE21: =AE20-AD21*Bodencharakterisierung!$E$8 -> 0.06602187606 | AF21: =IF(AE21>$J$18,(AE21/(Bodencharakterisierung!$E$11*1000)),0) -> 4.357879608e-05 | AG21: 0.02330529107 | AH21: 4 | AJ21: =(AD21)*$G$11*Bodencharakterisierung!$E$8 -> 3.458468138e-06 | AK21: =IF(AH21>0,(AJ21*Schadstoffbelastung!$K$11+$G$34)/($G$12*$G$7)+AK20,NA()) -> 0.007885789022 | AM21: 4 | AN21: =IF(AF21<=$J$9*0.05,AS20*EXP((-$J$6*1)/Heterogenität!$D$4),Z21) -> 0.02330529107 | AO21: =IF(OR(AF21>=$J$19, AR20/$J$5<AN21),0, Bodencharakterisierung!$E$8*$J$11*((AR20/$J$5)-AN21)) -> 0 | AP21: 0 | AQ21: =AQ20-AP21*Bodencharakterisierung!$E$8 -> 0.0066397905 | AR21: =AQ21/(Bodencharakterisierung!$E$11*1000) -> 4.3827e-06 | AS21: 0.02330529107 | AT21: 4 | AV21: =(AP21)*$G$11*Bodencharakterisierung!$E$8 -> 0 | AW21: =IF(AF21<=$J$9*1.05,(AV21*Schadstoffbelastung!$K$11)/($G$12*$G$7)+AW20,NA()) ->  | AX21: 23072.23816 | AY21: 137 | AZ21: 3.392976349 | BA21: 0.007885789022 | BB21: 0 | BC21: 0.02509056 | BE21: 4.3827 | BF21: =#REF!*10^6 ->  | BG21: 43.57879608 | BH21: 23305.29107
B22: Konzentration Sorbierte Phase | C22: mg/kg | D22: =$J$19*1000000*1000 -> 4382.7 | F22: Anzahl Injektionen Schadstoffaustrag | G22: =G23-G21 -> 22.80387599 | I22: Plausibilitätsprüfung | Y22: 5 | Z22: 0.02330529107 | AA22: =Z22*EXP((-$J$6/Heterogenität!$D$4)*1) -> 0.02306613111 | AB22: =AF21*Bodencharakterisierung!$E$11/$J$20 -> 4.560465572e-05 | AC22: =((150*($J$2^0.87)*(AB22^0.79)*$J$3)/(Bodencharakterisierung!$E$13^2))*($J$12-Z22)*3600*24 -> 0.08534286912 | AD22: 0.0002391599663 | AE22: =AE21-AD22*Bodencharakterisierung!$E$8 -> 0.06594295327 | AF22: =IF(AE22>$J$18,(AE22/(Bodencharakterisierung!$E$11*1000)),0) -> 4.352670183e-05 | AG22: 0.02330529107 | AH22: 5 | AJ22: =(AD22)*$G$11*Bodencharakterisierung!$E$8 -> 3.458468138e-06 | AK22: =IF(AH22>0,(AJ22*Schadstoffbelastung!$K$11+$G$34)/($G$12*$G$7)+AK21,NA()) -> 0.01005325628 | AM22: 5 | AN22: =IF(AF22<=$J$9*0.05,AS21*EXP((-$J$6*1)/Heterogenität!$D$4),Z22) -> 0.02330529107 | AO22: =IF(OR(AF22>=$J$19, AR21/$J$5<AN22),0, Bodencharakterisierung!$E$8*$J$11*((AR21/$J$5)-AN22)) -> 0 | AP22: 0 | AQ22: =AQ21-AP22*Bodencharakterisierung!$E$8 -> 0.0066397905 | AR22: =AQ22/(Bodencharakterisierung!$E$11*1000) -> 4.3827e-06 | AS22: 0.02330529107 | AT22: 5 | AV22: =(AP22)*$G$11*Bodencharakterisierung!$E$8 -> 0 | AW22: =IF(AF22<=$J$9*1.05,(AV22*Schadstoffbelastung!$K$11)/($G$12*$G$7)+AW21,NA()) ->  | AX22: 23072.23816 | AY22: 138 | AZ22: 3.401416456 | BA22: 0.01005325628 | BB22: 0 | BC22: 0.0313632 | BE22: 4.3827 | BF22: =#REF!*10^6 ->  | BG22: 43.52670183 | BH22: 23305.29107
B23: Stoffparameter | F23: Gesamtanzahl der Injektionen | G23: =MAX(AZ17:AZ5017) -> 26.16387599 | I23: Zu entfernende Schadstoffmenge im GW ges. [kg] | J23: =(D18-Sanierungsdesign!$E$4)*Schadstoffbelastung!$K$11*Bodencharakterisierung!$E$8*10^-6 -> 1.06128 | Y23: 6 | Z23: 0.02330529107 | AA23: =Z23*EXP((-$J$6/Heterogenität!$D$4)*1) -> 0.02306613111 | AB23: =AF22*Bodencharakterisierung!$E$11/$J$20 -> 4.555013975e-05 | AC23: =((150*($J$2^0.87)*(AB23^0.79)*$J$3)/(Bodencharakterisierung!$E$13^2))*($J$12-Z23)*3600*24 -> 0.08526226385 | AD23: 0.0002391599663 | AE23: =AE22-AD23*Bodencharakterisierung!$E$8 -> 0.06586403048 | AF23: =IF(AE23>$J$18,(AE23/(Bodencharakterisierung!$E$11*1000)),0) -> 4.347460758e-05 | AG23: 0.02330529107 | AH23: 6 | AJ23: =(AD23)*$G$11*Bodencharakterisierung!$E$8 -> 3.458468138e-06 | AK23: =IF(AH23>0,(AJ23*Schadstoffbelastung!$K$11+$G$34)/($G$12*$G$7)+AK22,NA()) -> 0.01222072353 | AM23: 6 | AN23: =IF(AF23<=$J$9*0.05,AS22*EXP((-$J$6*1)/Heterogenität!$D$4),Z23) -> 0.02330529107 | AO23: =IF(OR(AF23>=$J$19, AR22/$J$5<AN23),0, Bodencharakterisierung!$E$8*$J$11*((AR22/$J$5)-AN23)) -> 0 | AP23: 0 | AQ23: =AQ22-AP23*Bodencharakterisierung!$E$8 -> 0.0066397905 | AR23: =AQ23/(Bodencharakterisierung!$E$11*1000) -> 4.3827e-06 | AS23: 0.02330529107 | AT23: 6 | AV23: =(AP23)*$G$11*Bodencharakterisierung!$E$8 -> 0 | AW23: =IF(AF23<=$J$9*1.05,(AV23*Schadstoffbelastung!$K$11)/($G$12*$G$7)+AW22,NA()) ->  | AX23: 23072.23816 | AY23: 139 | AZ23: 3.409856564 | BA23: 0.01222072353 | BB23: 0 | BC23: 0.03763584 | BE23: 4.3827 | BF23: =#REF!*10^6 ->  | BG23: 43.47460758 | BH23: 23305.29107
B24: Verteilungskoeffizient Boden-Wasser (kD) | C24: L/kg | D24: =VLOOKUP($C$30,$B$49:$X$62,10,FALSE)*1000 -> 2.060187413 | F24: Gesamtanzahl der Injektionszyklen (Kampagnen) | G24: =G23/Sanierungsdesign!$E$8 -> 5.232775198 | I24: Zu entfernende Schadstoffmenge im Boden ges. [kg] | J24: =(D19)*Bodencharakterisierung!E11/1000*Schadstoffbelastung!$K$11 -> 87.28812 | Y24: 7 | Z24: 0.02330529107 | AA24: =Z24*EXP((-$J$6/Heterogenität!$D$4)*1) -> 0.02306613111 | AB24: =AF23*Bodencharakterisierung!$E$11/$J$20 -> 4.549562378e-05 | AC24: =((150*($J$2^0.87)*(AB24^0.79)*$J$3)/(Bodencharakterisierung!$E$13^2))*($J$12-Z24)*3600*24 -> 0.08518163832 | AD24: 0.0002391599663 | AE24: =AE23-AD24*Bodencharakterisierung!$E$8 -> 0.06578510769 | AF24: =IF(AE24>$J$18,(AE24/(Bodencharakterisierung!$E$11*1000)),0) -> 4.342251333e-05 | AG24: 0.02330529107 | AH24: 7 | AJ24: =(AD24)*$G$11*Bodencharakterisierung!$E$8 -> 3.458468138e-06 | AK24: =IF(AH24>0,(AJ24*Schadstoffbelastung!$K$11+$G$34)/($G$12*$G$7)+AK23,NA()) -> 0.01438819079 | AM24: 7 | AN24: =IF(AF24<=$J$9*0.05,AS23*EXP((-$J$6*1)/Heterogenität!$D$4),Z24) -> 0.02330529107 | AO24: =IF(OR(AF24>=$J$19, AR23/$J$5<AN24),0, Bodencharakterisierung!$E$8*$J$11*((AR23/$J$5)-AN24)) -> 0 | AP24: 0 | AQ24: =AQ23-AP24*Bodencharakterisierung!$E$8 -> 0.0066397905 | AR24: =AQ24/(Bodencharakterisierung!$E$11*1000) -> 4.3827e-06 | AS24: 0.02330529107 | AT24: 7 | AV24: =(AP24)*$G$11*Bodencharakterisierung!$E$8 -> 0 | AW24: =IF(AF24<=$J$9*1.05,(AV24*Schadstoffbelastung!$K$11)/($G$12*$G$7)+AW23,NA()) ->  | AX24: 23072.23816 | AY24: 140 | AZ24: 3.418296671 | BA24: 0.01438819079 | BB24: 0 | BC24: 0.04390848 | BE24: 4.3827 | BF24: =#REF!*10^6 ->  | BG24: 43.42251333 | BH24: 23305.29107
B25: Abbaurate | C25: d-1 | D25: =VLOOKUP($C$30,$B$49:$X$62,8,FALSE) -> 0.0228123147 | F25: Relevante Konzentration DOC im Gesamtboden [kg DOC/m3 Boden] | G25: =IF((Grundwassercharakterisierung!D15>2),(Grundwassercharakterisierung!D15*Bodencharakterisierung!E8*0.001*2),0) -> 0 | I25: H2 Bedarf zur Entfernung im GW [kg] | J25: =$G$11*J23 -> 0.04650625147 | Y25: 8 | Z25: 0.02330529107 | AA25: =Z25*EXP((-$J$6/Heterogenität!$D$4)*1) -> 0.02306613111 | AB25: =AF24*Bodencharakterisierung!$E$11/$J$20 -> 4.544110781e-05 | AC25: =((150*($J$2^0.87)*(AB25^0.79)*$J$3)/(Bodencharakterisierung!$E$13^2))*($J$12-Z25)*3600*24 -> 0.0851009925 | AD25: 0.0002391599663 | AE25: =AE24-AD25*Bodencharakterisierung!$E$8 -> 0.0657061849 | AF25: =IF(AE25>$J$18,(AE25/(Bodencharakterisierung!$E$11*1000)),0) -> 4.337041908e-05 | AG25: 0.02330529107 | AH25: 8 | AJ25: =(AD25)*$G$11*Bodencharakterisierung!$E$8 -> 3.458468138e-06 | AK25: =IF(AH25>0,(AJ25*Schadstoffbelastung!$K$11+$G$34)/($G$12*$G$7)+AK24,NA()) -> 0.01655565804 | AM25: 8 | AN25: =IF(AF25<=$J$9*0.05,AS24*EXP((-$J$6*1)/Heterogenität!$D$4),Z25) -> 0.02330529107 | AO25: =IF(OR(AF25>=$J$19, AR24/$J$5<AN25),0, Bodencharakterisierung!$E$8*$J$11*((AR24/$J$5)-AN25)) -> 0 | AP25: 0 | AQ25: =AQ24-AP25*Bodencharakterisierung!$E$8 -> 0.0066397905 | AR25: =AQ25/(Bodencharakterisierung!$E$11*1000) -> 4.3827e-06 | AS25: 0.02330529107 | AT25: 8 | AV25: =(AP25)*$G$11*Bodencharakterisierung!$E$8 -> 0 | AW25: =IF(AF25<=$J$9*1.05,(AV25*Schadstoffbelastung!$K$11)/($G$12*$G$7)+AW24,NA()) ->  | AX25: 23072.23816 | AY25: 141 | AZ25: 3.426736778 | BA25: 0.01655565804 | BB25: 0 | BC25: 0.05018112 | BE25: 4.3827 | BF25: =#REF!*10^6 ->  | BG25: 43.37041908 | BH25: 23305.29107
B26: Modifizierte Reynoldszahl | C26: - | D26: =$J$2 -> 0.0007023076923 | F26: Stöchio. Faktor Sauerstoff [g H2/gEA] | G26: 0.125 | I26: H2 Bedarf zur Entfernung im Boden [kg] | J26: =$G$11*J24 -> 3.82504453 | Y26: 9 | Z26: 0.02330529107 | AA26: =Z26*EXP((-$J$6/Heterogenität!$D$4)*1) -> 0.02306613111 | AB26: =AF25*Bodencharakterisierung!$E$11/$J$20 -> 4.538659184e-05 | AC26: =((150*($J$2^0.87)*(AB26^0.79)*$J$3)/(Bodencharakterisierung!$E$13^2))*($J$12-Z26)*3600*24 -> 0.08502032636 | AD26: 0.0002391599663 | AE26: =AE25-AD26*Bodencharakterisierung!$E$8 -> 0.06562726211 | AF26: =IF(AE26>$J$18,(AE26/(Bodencharakterisierung!$E$11*1000)),0) -> 4.331832483e-05 | AG26: 0.02330529107 | AH26: 9 | AJ26: =(AD26)*$G$11*Bodencharakterisierung!$E$8 -> 3.458468138e-06 | AK26: =IF(AH26>0,(AJ26*Schadstoffbelastung!$K$11+$G$34)/($G$12*$G$7)+AK25,NA()) -> 0.0187231253 | AM26: 9 | AN26: =IF(AF26<=$J$9*0.05,AS25*EXP((-$J$6*1)/Heterogenität!$D$4),Z26) -> 0.02330529107 | AO26: =IF(OR(AF26>=$J$19, AR25/$J$5<AN26),0, Bodencharakterisierung!$E$8*$J$11*((AR25/$J$5)-AN26)) -> 0 | AP26: 0 | AQ26: =AQ25-AP26*Bodencharakterisierung!$E$8 -> 0.0066397905 | AR26: =AQ26/(Bodencharakterisierung!$E$11*1000) -> 4.3827e-06 | AS26: 0.02330529107 | AT26: 9 | AV26: =(AP26)*$G$11*Bodencharakterisierung!$E$8 -> 0 | AW26: =IF(AF26<=$J$9*1.05,(AV26*Schadstoffbelastung!$K$11)/($G$12*$G$7)+AW25,NA()) ->  | AX26: 23072.23816 | AY26: 142 | AZ26: 3.435176885 | BA26: 0.0187231253 | BB26: 0 | BC26: 0.05645376 | BE26: 4.3827 | BF26: =#REF!*10^6 ->  | BG26: 43.31832483 | BH26: 23305.29107
B27: Dichte des Schadstoffes | C27: kg/L | D27: =VLOOKUP($C$30,$B$49:$X$62,16,FALSE) -> 1.44770035 | F27: Stöchio. Faktor Nitrat [g H2/gEA] | G27: 0.08064516129 | I27: Erforderliche Injektionen gesamt | J27: =(J25+J26)/$G$10/$G$8 -> 3.406964688 | Y27: 10 | Z27: 0.02330529107 | AA27: =Z27*EXP((-$J$6/Heterogenität!$D$4)*1) -> 0.02306613111 | AB27: =AF26*Bodencharakterisierung!$E$11/$J$20 -> 4.533207587e-05 | AC27: =((150*($J$2^0.87)*(AB27^0.79)*$J$3)/(Bodencharakterisierung!$E$13^2))*($J$12-Z27)*3600*24 -> 0.08493963987 | AD27: 0.0002391599663 | AE27: =AE26-AD27*Bodencharakterisierung!$E$8 -> 0.06554833932 | AF27: =IF(AE27>$J$18,(AE27/(Bodencharakterisierung!$E$11*1000)),0) -> 4.326623058e-05 | AG27: 0.02330529107 | AH27: 10 | AJ27: =(AD27)*$G$11*Bodencharakterisierung!$E$8 -> 3.458468138e-06 | AK27: =IF(AH27>0,(AJ27*Schadstoffbelastung!$K$11+$G$34)/($G$12*$G$7)+AK26,NA()) -> 0.02089059255 | AM27: 10 | AN27: =IF(AF27<=$J$9*0.05,AS26*EXP((-$J$6*1)/Heterogenität!$D$4),Z27) -> 0.02330529107 | AO27: =IF(OR(AF27>=$J$19, AR26/$J$5<AN27),0, Bodencharakterisierung!$E$8*$J$11*((AR26/$J$5)-AN27)) -> 0 | AP27: 0 | AQ27: =AQ26-AP27*Bodencharakterisierung!$E$8 -> 0.0066397905 | AR27: =AQ27/(Bodencharakterisierung!$E$11*1000) -> 4.3827e-06 | AS27: 0.02330529107 | AT27: 10 | AV27: =(AP27)*$G$11*Bodencharakterisierung!$E$8 -> 0 | AW27: =IF(AF27<=$J$9*1.05,(AV27*Schadstoffbelastung!$K$11)/($G$12*$G$7)+AW26,NA()) ->  | AX27: 23072.23816 | AY27: 143 | AZ27: 3.443616993 | BA27: 0.02089059255 | BB27: 0 | BC27: 0.0627264 | BE27: 4.3827 | BF27: =#REF!*10^6 ->  | BG27: 43.26623058 | BH27: 23305.29107
B28: Stöchiometrischer Abbau-Faktor | C28: g/g | D28: =VLOOKUP($C$30,$B$49:$X$62,22,FALSE) -> 0.04382090633 | F28: Stöchio. Faktor Mangan [g H2/gEA] | G28: 0.02298850575 | Y28: 11 | Z28: 0.02330529107 | AA28: =Z28*EXP((-$J$6/Heterogenität!$D$4)*1) -> 0.02306613111 | AB28: =AF27*Bodencharakterisierung!$E$11/$J$20 -> 4.52775599e-05 | AC28: =((150*($J$2^0.87)*(AB28^0.79)*$J$3)/(Bodencharakterisierung!$E$13^2))*($J$12-Z28)*3600*24 -> 0.08485893299 | AD28: 0.0002391599663 | AE28: =AE27-AD28*Bodencharakterisierung!$E$8 -> 0.06546941653 | AF28: =IF(AE28>$J$18,(AE28/(Bodencharakterisierung!$E$11*1000)),0) -> 4.321413633e-05 | AG28: 0.02330529107 | AH28: 11 | AJ28: =(AD28)*$G$11*Bodencharakterisierung!$E$8 -> 3.458468138e-06 | AK28: =IF(AH28>0,(AJ28*Schadstoffbelastung!$K$11+$G$34)/($G$12*$G$7)+AK27,NA()) -> 0.02305805981 | AM28: 11 | AN28: =IF(AF28<=$J$9*0.05,AS27*EXP((-$J$6*1)/Heterogenität!$D$4),Z28) -> 0.02330529107 | AO28: =IF(OR(AF28>=$J$19, AR27/$J$5<AN28),0, Bodencharakterisierung!$E$8*$J$11*((AR27/$J$5)-AN28)) -> 0 | AP28: 0 | AQ28: =AQ27-AP28*Bodencharakterisierung!$E$8 -> 0.0066397905 | AR28: =AQ28/(Bodencharakterisierung!$E$11*1000) -> 4.3827e-06 | AS28: 0.02330529107 | AT28: 11 | AV28: =(AP28)*$G$11*Bodencharakterisierung!$E$8 -> 0 | AW28: =IF(AF28<=$J$9*1.05,(AV28*Schadstoffbelastung!$K$11)/($G$12*$G$7)+AW27,NA()) ->  | AX28: 23072.23816 | AY28: 144 | AZ28: 3.4520571 | BA28: 0.02305805981 | BB28: 0 | BC28: 0.06899904 | BE28: 4.3827 | BF28: =#REF!*10^6 ->  | BG28: 43.21413633 | BH28: 23305.29107
F29: Stöchio. Faktor Eisen [g H2/gEA] | G29: 0.01785714286 | Y29: 12 | Z29: 0.02330529107 | AA29: =Z29*EXP((-$J$6/Heterogenität!$D$4)*1) -> 0.02306613111 | AB29: =AF28*Bodencharakterisierung!$E$11/$J$20 -> 4.522304393e-05 | AC29: =((150*($J$2^0.87)*(AB29^0.79)*$J$3)/(Bodencharakterisierung!$E$13^2))*($J$12-Z29)*3600*24 -> 0.08477820572 | AD29: 0.0002391599663 | AE29: =AE28-AD29*Bodencharakterisierung!$E$8 -> 0.06539049375 | AF29: =IF(AE29>$J$18,(AE29/(Bodencharakterisierung!$E$11*1000)),0) -> 4.316204208e-05 | AG29: 0.02330529107 | AH29: 12 | AJ29: =(AD29)*$G$11*Bodencharakterisierung!$E$8 -> 3.458468138e-06 | AK29: =IF(AH29>0,(AJ29*Schadstoffbelastung!$K$11+$G$34)/($G$12*$G$7)+AK28,NA()) -> 0.02522552706 | AM29: 12 | AN29: =IF(AF29<=$J$9*0.05,AS28*EXP((-$J$6*1)/Heterogenität!$D$4),Z29) -> 0.02330529107 | AO29: =IF(OR(AF29>=$J$19, AR28/$J$5<AN29),0, Bodencharakterisierung!$E$8*$J$11*((AR28/$J$5)-AN29)) -> 0 | AP29: 0 | AQ29: =AQ28-AP29*Bodencharakterisierung!$E$8 -> 0.0066397905 | AR29: =AQ29/(Bodencharakterisierung!$E$11*1000) -> 4.3827e-06 | AS29: 0.02330529107 | AT29: 12 | AV29: =(AP29)*$G$11*Bodencharakterisierung!$E$8 -> 0 | AW29: =IF(AF29<=$J$9*1.05,(AV29*Schadstoffbelastung!$K$11)/($G$12*$G$7)+AW28,NA()) ->  | AX29: 23072.23816 | AY29: 145 | AZ29: 3.460497207 | BA29: 0.02522552706 | BB29: 0 | BC29: 0.07527168 | BE29: 4.3827 | BF29: =#REF!*10^6 ->  | BG29: 43.16204208 | BH29: 23305.29107
B30: Betrachteter Schadstoff | C30: =VLOOKUP(Sanierungsdesign!$E$13,tblSchadstoffauswahl[],2,FALSE) -> Summe LCKW | F30: Stöchio. Faktor Sulfat [g H2/gEA] | G30: 0.08333333333 | Y30: 13 | Z30: 0.02330529107 | AA30: =Z30*EXP((-$J$6/Heterogenität!$D$4)*1) -> 0.02306613111 | AB30: =AF29*Bodencharakterisierung!$E$11/$J$20 -> 4.516852796e-05 | AC30: =((150*($J$2^0.87)*(AB30^0.79)*$J$3)/(Bodencharakterisierung!$E$13^2))*($J$12-Z30)*3600*24 -> 0.084697458 | AD30: 0.0002391599663 | AE30: =AE29-AD30*Bodencharakterisierung!$E$8 -> 0.06531157096 | AF30: =IF(AE30>$J$18,(AE30/(Bodencharakterisierung!$E$11*1000)),0) -> 4.310994783e-05 | AG30: 0.02330529107 | AH30: 13 | AJ30: =(AD30)*$G$11*Bodencharakterisierung!$E$8 -> 3.458468138e-06 | AK30: =IF(AH30>0,(AJ30*Schadstoffbelastung!$K$11+$G$34)/($G$12*$G$7)+AK29,NA()) -> 0.02739299432 | AM30: 13 | AN30: =IF(AF30<=$J$9*0.05,AS29*EXP((-$J$6*1)/Heterogenität!$D$4),Z30) -> 0.02330529107 | AO30: =IF(OR(AF30>=$J$19, AR29/$J$5<AN30),0, Bodencharakterisierung!$E$8*$J$11*((AR29/$J$5)-AN30)) -> 0 | AP30: 0 | AQ30: =AQ29-AP30*Bodencharakterisierung!$E$8 -> 0.0066397905 | AR30: =AQ30/(Bodencharakterisierung!$E$11*1000) -> 4.3827e-06 | AS30: 0.02330529107 | AT30: 13 | AV30: =(AP30)*$G$11*Bodencharakterisierung!$E$8 -> 0 | AW30: =IF(AF30<=$J$9*1.05,(AV30*Schadstoffbelastung!$K$11)/($G$12*$G$7)+AW29,NA()) ->  | AX30: 23072.23816 | AY30: 146 | AZ30: 3.468937314 | BA30: 0.02739299432 | BB30: 0 | BC30: 0.08154432 | BE30: 4.3827 | BF30: =#REF!*10^6 ->  | BG30: 43.10994783 | BH30: 23305.29107
B31: Verwendetes Substrat | C31: =Sanierungsdesign!$E$16 -> Glucose | F31: Stöchio. Faktor CO2 [g H2/gEA] | G31: 0.1818181818 | Y31: 14 | Z31: 0.02330529107 | AA31: =Z31*EXP((-$J$6/Heterogenität!$D$4)*1) -> 0.02306613111 | AB31: =AF30*Bodencharakterisierung!$E$11/$J$20 -> 4.511401199e-05 | AC31: =((150*($J$2^0.87)*(AB31^0.79)*$J$3)/(Bodencharakterisierung!$E$13^2))*($J$12-Z31)*3600*24 -> 0.08461668981 | AD31: 0.0002391599663 | AE31: =AE30-AD31*Bodencharakterisierung!$E$8 -> 0.06523264817 | AF31: =IF(AE31>$J$18,(AE31/(Bodencharakterisierung!$E$11*1000)),0) -> 4.305785358e-05 | AG31: 0.02330529107 | AH31: 14 | AJ31: =(AD31)*$G$11*Bodencharakterisierung!$E$8 -> 3.458468138e-06 | AK31: =IF(AH31>0,(AJ31*Schadstoffbelastung!$K$11+$G$34)/($G$12*$G$7)+AK30,NA()) -> 0.02956046158 | AM31: 14 | AN31: =IF(AF31<=$J$9*0.05,AS30*EXP((-$J$6*1)/Heterogenität!$D$4),Z31) -> 0.02330529107 | AO31: =IF(OR(AF31>=$J$19, AR30/$J$5<AN31),0, Bodencharakterisierung!$E$8*$J$11*((AR30/$J$5)-AN31)) -> 0 | AP31: 0 | AQ31: =AQ30-AP31*Bodencharakterisierung!$E$8 -> 0.0066397905 | AR31: =AQ31/(Bodencharakterisierung!$E$11*1000) -> 4.3827e-06 | AS31: 0.02330529107 | AT31: 14 | AV31: =(AP31)*$G$11*Bodencharakterisierung!$E$8 -> 0 | AW31: =IF(AF31<=$J$9*1.05,(AV31*Schadstoffbelastung!$K$11)/($G$12*$G$7)+AW30,NA()) ->  | AX31: 23072.23816 | AY31: 147 | AZ31: 3.477377422 | BA31: 0.02956046158 | BB31: 0 | BC31: 0.08781696 | BE31: 4.3827 | BF31: =#REF!*10^6 ->  | BG31: 43.05785358 | BH31: 23305.29107
B32: Gesamtdauer [d] | C32: =D3+((D11*D9)/24) -> 3374.477933 | Y32: 15 | Z32: 0.02330529107 | AA32: =Z32*EXP((-$J$6/Heterogenität!$D$4)*1) -> 0.02306613111 | AB32: =AF31*Bodencharakterisierung!$E$11/$J$20 -> 4.505949602e-05 | AC32: =((150*($J$2^0.87)*(AB32^0.79)*$J$3)/(Bodencharakterisierung!$E$13^2))*($J$12-Z32)*3600*24 -> 0.08453590112 | AD32: 0.0002391599663 | AE32: =AE31-AD32*Bodencharakterisierung!$E$8 -> 0.06515372538 | AF32: =IF(AE32>$J$18,(AE32/(Bodencharakterisierung!$E$11*1000)),0) -> 4.300575933e-05 | AG32: 0.02330529107 | AH32: 15 | AJ32: =(AD32)*$G$11*Bodencharakterisierung!$E$8 -> 3.458468138e-06 | AK32: =IF(AH32>0,(AJ32*Schadstoffbelastung!$K$11+$G$34)/($G$12*$G$7)+AK31,NA()) -> 0.03172792883 | AM32: 15 | AN32: =IF(AF32<=$J$9*0.05,AS31*EXP((-$J$6*1)/Heterogenität!$D$4),Z32) -> 0.02330529107 | AO32: =IF(OR(AF32>=$J$19, AR31/$J$5<AN32),0, Bodencharakterisierung!$E$8*$J$11*((AR31/$J$5)-AN32)) -> 0 | AP32: 0 | AQ32: =AQ31-AP32*Bodencharakterisierung!$E$8 -> 0.0066397905 | AR32: =AQ32/(Bodencharakterisierung!$E$11*1000) -> 4.3827e-06 | AS32: 0.02330529107 | AT32: 15 | AV32: =(AP32)*$G$11*Bodencharakterisierung!$E$8 -> 0 | AW32: =IF(AF32<=$J$9*1.05,(AV32*Schadstoffbelastung!$K$11)/($G$12*$G$7)+AW31,NA()) ->  | AX32: 23072.23816 | AY32: 148 | AZ32: 3.485817529 | BA32: 0.03172792883 | BB32: 0 | BC32: 0.0940896 | BE32: 4.3827 | BF32: =#REF!*10^6 ->  | BG32: 43.00575933 | BH32: 23305.29107
F33: ED-Verbrauch durch gelöste Stoffe [kg H2/m3 Boden] | G33: =(Grundwassercharakterisierung!D9*G26+Grundwassercharakterisierung!$D$10*G27+Grundwassercharakterisierung!$D$13*G30)*0.001*Bodencharakterisierung!$E$8 -> 0.000825 | Y33: 16 | Z33: 0.02330529107 | AA33: =Z33*EXP((-$J$6/Heterogenität!$D$4)*1) -> 0.02306613111 | AB33: =AF32*Bodencharakterisierung!$E$11/$J$20 -> 4.500498005e-05 | AC33: =((150*($J$2^0.87)*(AB33^0.79)*$J$3)/(Bodencharakterisierung!$E$13^2))*($J$12-Z33)*3600*24 -> 0.08445509191 | AD33: 0.0002391599663 | AE33: =AE32-AD33*Bodencharakterisierung!$E$8 -> 0.06507480259 | AF33: =IF(AE33>$J$18,(AE33/(Bodencharakterisierung!$E$11*1000)),0) -> 4.295366508e-05 | AG33: 0.02330529107 | AH33: 16 | AJ33: =(AD33)*$G$11*Bodencharakterisierung!$E$8 -> 3.458468138e-06 | AK33: =IF(AH33>0,(AJ33*Schadstoffbelastung!$K$11+$G$34)/($G$12*$G$7)+AK32,NA()) -> 0.03389539609 | AM33: 16 | AN33: =IF(AF33<=$J$9*0.05,AS32*EXP((-$J$6*1)/Heterogenität!$D$4),Z33) -> 0.02330529107 | AO33: =IF(OR(AF33>=$J$19, AR32/$J$5<AN33),0, Bodencharakterisierung!$E$8*$J$11*((AR32/$J$5)-AN33)) -> 0 | AP33: 0 | AQ33: =AQ32-AP33*Bodencharakterisierung!$E$8 -> 0.0066397905 | AR33: =AQ33/(Bodencharakterisierung!$E$11*1000) -> 4.3827e-06 | AS33: 0.02330529107 | AT33: 16 | AV33: =(AP33)*$G$11*Bodencharakterisierung!$E$8 -> 0 | AW33: =IF(AF33<=$J$9*1.05,(AV33*Schadstoffbelastung!$K$11)/($G$12*$G$7)+AW32,NA()) ->  | AX33: 23072.23816 | AY33: 149 | AZ33: 3.494257636 | BA33: 0.03389539609 | BB33: 0 | BC33: 0.10036224 | BE33: 4.3827 | BF33: =#REF!*10^6 ->  | BG33: 42.95366508 | BH33: 23305.29107
F34: ED-Verbrauch durch gelöste zuströmende Stoffe [kg H2/d] | G34: =Grundwassercharakterisierung!$D$4*Bodencharakterisierung!$E$7*Schadstoffbelastung!$K$5*Schadstoffbelastung!$K$9*G33 -> 0.00235224 | Y34: 17 | Z34: 0.02330529107 | AA34: =Z34*EXP((-$J$6/Heterogenität!$D$4)*1) -> 0.02306613111 | AB34: =AF33*Bodencharakterisierung!$E$11/$J$20 -> 4.495046408e-05 | AC34: =((150*($J$2^0.87)*(AB34^0.79)*$J$3)/(Bodencharakterisierung!$E$13^2))*($J$12-Z34)*3600*24 -> 0.08437426214 | AD34: 0.0002391599663 | AE34: =AE33-AD34*Bodencharakterisierung!$E$8 -> 0.0649958798 | AF34: =IF(AE34>$J$18,(AE34/(Bodencharakterisierung!$E$11*1000)),0) -> 4.290157083e-05 | AG34: 0.02330529107 | AH34: 17 | AJ34: =(AD34)*$G$11*Bodencharakterisierung!$E$8 -> 3.458468138e-06 | AK34: =IF(AH34>0,(AJ34*Schadstoffbelastung!$K$11+$G$34)/($G$12*$G$7)+AK33,NA()) -> 0.03606286334 | AM34: 17 | AN34: =IF(AF34<=$J$9*0.05,AS33*EXP((-$J$6*1)/Heterogenität!$D$4),Z34) -> 0.02330529107 | AO34: =IF(OR(AF34>=$J$19, AR33/$J$5<AN34),0, Bodencharakterisierung!$E$8*$J$11*((AR33/$J$5)-AN34)) -> 0 | AP34: 0 | AQ34: =AQ33-AP34*Bodencharakterisierung!$E$8 -> 0.0066397905 | AR34: =AQ34/(Bodencharakterisierung!$E$11*1000) -> 4.3827e-06 | AS34: 0.02330529107 | AT34: 17 | AV34: =(AP34)*$G$11*Bodencharakterisierung!$E$8 -> 0 | AW34: =IF(AF34<=$J$9*1.05,(AV34*Schadstoffbelastung!$K$11)/($G$12*$G$7)+AW33,NA()) ->  | AX34: 23072.23816 | AY34: 150 | AZ34: 3.502697743 | BA34: 0.03606286334 | BB34: 0 | BC34: 0.10663488 | BE34: 4.3827 | BF34: =#REF!*10^6 ->  | BG34: 42.90157083 | BH34: 23305.29107
Y35: 18 | Z35: 0.02330529107 | AA35: =Z35*EXP((-$J$6/Heterogenität!$D$4)*1) -> 0.02306613111 | AB35: =AF34*Bodencharakterisierung!$E$11/$J$20 -> 4.489594811e-05 | AC35: =((150*($J$2^0.87)*(AB35^0.79)*$J$3)/(Bodencharakterisierung!$E$13^2))*($J$12-Z35)*3600*24 -> 0.08429341177 | AD35: 0.0002391599663 | AE35: =AE34-AD35*Bodencharakterisierung!$E$8 -> 0.06491695701 | AF35: =IF(AE35>$J$18,(AE35/(Bodencharakterisierung!$E$11*1000)),0) -> 4.284947658e-05 | AG35: 0.02330529107 | AH35: 18 | AJ35: =(AD35)*$G$11*Bodencharakterisierung!$E$8 -> 3.458468138e-06 | AK35: =IF(AH35>0,(AJ35*Schadstoffbelastung!$K$11+$G$34)/($G$12*$G$7)+AK34,NA()) -> 0.0382303306 | AM35: 18 | AN35: =IF(AF35<=$J$9*0.05,AS34*EXP((-$J$6*1)/Heterogenität!$D$4),Z35) -> 0.02330529107 | AO35: =IF(OR(AF35>=$J$19, AR34/$J$5<AN35),0, Bodencharakterisierung!$E$8*$J$11*((AR34/$J$5)-AN35)) -> 0 | AP35: 0 | AQ35: =AQ34-AP35*Bodencharakterisierung!$E$8 -> 0.0066397905 | AR35: =AQ35/(Bodencharakterisierung!$E$11*1000) -> 4.3827e-06 | AS35: 0.02330529107 | AT35: 18 | AV35: =(AP35)*$G$11*Bodencharakterisierung!$E$8 -> 0 | AW35: =IF(AF35<=$J$9*1.05,(AV35*Schadstoffbelastung!$K$11)/($G$12*$G$7)+AW34,NA()) ->  | AX35: 23072.23816 | AY35: 151 | AZ35: 3.511137851 | BA35: 0.0382303306 | BB35: 0 | BC35: 0.11290752 | BE35: 4.3827 | BF35: =#REF!*10^6 ->  | BG35: 42.84947658 | BH35: 23305.29107
Y36: 19 | Z36: 0.02330529107 | AA36: =Z36*EXP((-$J$6/Heterogenität!$D$4)*1) -> 0.02306613111 | AB36: =AF35*Bodencharakterisierung!$E$11/$J$20 -> 4.484143214e-05 | AC36: =((150*($J$2^0.87)*(AB36^0.79)*$J$3)/(Bodencharakterisierung!$E$13^2))*($J$12-Z36)*3600*24 -> 0.08421254079 | AD36: 0.0002391599663 | AE36: =AE35-AD36*Bodencharakterisierung!$E$8 -> 0.06483803422 | AF36: =IF(AE36>$J$18,(AE36/(Bodencharakterisierung!$E$11*1000)),0) -> 4.279738233e-05 | AG36: 0.02330529107 | AH36: 19 | AJ36: =(AD36)*$G$11*Bodencharakterisierung!$E$8 -> 3.458468138e-06 | AK36: =IF(AH36>0,(AJ36*Schadstoffbelastung!$K$11+$G$34)/($G$12*$G$7)+AK35,NA()) -> 0.04039779785 | AM36: 19 | AN36: =IF(AF36<=$J$9*0.05,AS35*EXP((-$J$6*1)/Heterogenität!$D$4),Z36) -> 0.02330529107 | AO36: =IF(OR(AF36>=$J$19, AR35/$J$5<AN36),0, Bodencharakterisierung!$E$8*$J$11*((AR35/$J$5)-AN36)) -> 0 | AP36: 0 | AQ36: =AQ35-AP36*Bodencharakterisierung!$E$8 -> 0.0066397905 | AR36: =AQ36/(Bodencharakterisierung!$E$11*1000) -> 4.3827e-06 | AS36: 0.02330529107 | AT36: 19 | AV36: =(AP36)*$G$11*Bodencharakterisierung!$E$8 -> 0 | AW36: =IF(AF36<=$J$9*1.05,(AV36*Schadstoffbelastung!$K$11)/($G$12*$G$7)+AW35,NA()) ->  | AX36: 23072.23816 | AY36: 152 | AZ36: 3.519577958 | BA36: 0.04039779785 | BB36: 0 | BC36: 0.11918016 | BE36: 4.3827 | BF36: =#REF!*10^6 ->  | BG36: 42.79738233 | BH36: 23305.29107
Y37: 20 | Z37: 0.02330529107 | AA37: =Z37*EXP((-$J$6/Heterogenität!$D$4)*1) -> 0.02306613111 | AB37: =AF36*Bodencharakterisierung!$E$11/$J$20 -> 4.478691617e-05 | AC37: =((150*($J$2^0.87)*(AB37^0.79)*$J$3)/(Bodencharakterisierung!$E$13^2))*($J$12-Z37)*3600*24 -> 0.08413164916 | AD37: 0.0002391599663 | AE37: =AE36-AD37*Bodencharakterisierung!$E$8 -> 0.06475911143 | AF37: =IF(AE37>$J$18,(AE37/(Bodencharakterisierung!$E$11*1000)),0) -> 4.274528808e-05 | AG37: 0.02330529107 | AH37: 20 | AJ37: =(AD37)*$G$11*Bodencharakterisierung!$E$8 -> 3.458468138e-06 | AK37: =IF(AH37>0,(AJ37*Schadstoffbelastung!$K$11+$G$34)/($G$12*$G$7)+AK36,NA()) -> 0.04256526511 | AM37: 20 | AN37: =IF(AF37<=$J$9*0.05,AS36*EXP((-$J$6*1)/Heterogenität!$D$4),Z37) -> 0.02330529107 | AO37: =IF(OR(AF37>=$J$19, AR36/$J$5<AN37),0, Bodencharakterisierung!$E$8*$J$11*((AR36/$J$5)-AN37)) -> 0 | AP37: 0 | AQ37: =AQ36-AP37*Bodencharakterisierung!$E$8 -> 0.0066397905 | AR37: =AQ37/(Bodencharakterisierung!$E$11*1000) -> 4.3827e-06 | AS37: 0.02330529107 | AT37: 20 | AV37: =(AP37)*$G$11*Bodencharakterisierung!$E$8 -> 0 | AW37: =IF(AF37<=$J$9*1.05,(AV37*Schadstoffbelastung!$K$11)/($G$12*$G$7)+AW36,NA()) ->  | AX37: 23072.23816 | AY37: 153 | AZ37: 3.528018065 | BA37: 0.04256526511 | BB37: 0 | BC37: 0.1254528 | BE37: 4.3827 | BF37: =#REF!*10^6 ->  | BG37: 42.74528808 | BH37: 23305.29107
Y38: 21 | Z38: 0.02330529107 | AA38: =Z38*EXP((-$J$6/Heterogenität!$D$4)*1) -> 0.02306613111 | AB38: =AF37*Bodencharakterisierung!$E$11/$J$20 -> 4.47324002e-05 | AC38: =((150*($J$2^0.87)*(AB38^0.79)*$J$3)/(Bodencharakterisierung!$E$13^2))*($J$12-Z38)*3600*24 -> 0.08405073685 | AD38: 0.0002391599663 | AE38: =AE37-AD38*Bodencharakterisierung!$E$8 -> 0.06468018865 | AF38: =IF(AE38>$J$18,(AE38/(Bodencharakterisierung!$E$11*1000)),0) -> 4.269319383e-05 | AG38: 0.02330529107 | AH38: 21 | AJ38: =(AD38)*$G$11*Bodencharakterisierung!$E$8 -> 3.458468138e-06 | AK38: =IF(AH38>0,(AJ38*Schadstoffbelastung!$K$11+$G$34)/($G$12*$G$7)+AK37,NA()) -> 0.04473273236 | AM38: 21 | AN38: =IF(AF38<=$J$9*0.05,AS37*EXP((-$J$6*1)/Heterogenität!$D$4),Z38) -> 0.02330529107 | AO38: =IF(OR(AF38>=$J$19, AR37/$J$5<AN38),0, Bodencharakterisierung!$E$8*$J$11*((AR37/$J$5)-AN38)) -> 0 | AP38: 0 | AQ38: =AQ37-AP38*Bodencharakterisierung!$E$8 -> 0.0066397905 | AR38: =AQ38/(Bodencharakterisierung!$E$11*1000) -> 4.3827e-06 | AS38: 0.02330529107 | AT38: 21 | AV38: =(AP38)*$G$11*Bodencharakterisierung!$E$8 -> 0 | AW38: =IF(AF38<=$J$9*1.05,(AV38*Schadstoffbelastung!$K$11)/($G$12*$G$7)+AW37,NA()) ->  | AX38: 23072.23816 | AY38: 154 | AZ38: 3.536458172 | BA38: 0.04473273236 | BB38: 0 | BC38: 0.13172544 | BE38: 4.3827 | BF38: =#REF!*10^6 ->  | BG38: 42.69319383 | BH38: 23305.29107
Y39: 22 | Z39: 0.02330529107 | AA39: =Z39*EXP((-$J$6/Heterogenität!$D$4)*1) -> 0.02306613111 | AB39: =AF38*Bodencharakterisierung!$E$11/$J$20 -> 4.467788423e-05 | AC39: =((150*($J$2^0.87)*(AB39^0.79)*$J$3)/(Bodencharakterisierung!$E$13^2))*($J$12-Z39)*3600*24 -> 0.08396980383 | AD39: 0.0002391599663 | AE39: =AE38-AD39*Bodencharakterisierung!$E$8 -> 0.06460126586 | AF39: =IF(AE39>$J$18,(AE39/(Bodencharakterisierung!$E$11*1000)),0) -> 4.264109958e-05 | AG39: 0.02330529107 | AH39: 22 | AJ39: =(AD39)*$G$11*Bodencharakterisierung!$E$8 -> 3.458468138e-06 | AK39: =IF(AH39>0,(AJ39*Schadstoffbelastung!$K$11+$G$34)/($G$12*$G$7)+AK38,NA()) -> 0.04690019962 | AM39: 22 | AN39: =IF(AF39<=$J$9*0.05,AS38*EXP((-$J$6*1)/Heterogenität!$D$4),Z39) -> 0.02330529107 | AO39: =IF(OR(AF39>=$J$19, AR38/$J$5<AN39),0, Bodencharakterisierung!$E$8*$J$11*((AR38/$J$5)-AN39)) -> 0 | AP39: 0 | AQ39: =AQ38-AP39*Bodencharakterisierung!$E$8 -> 0.0066397905 | AR39: =AQ39/(Bodencharakterisierung!$E$11*1000) -> 4.3827e-06 | AS39: 0.02330529107 | AT39: 22 | AV39: =(AP39)*$G$11*Bodencharakterisierung!$E$8 -> 0 | AW39: =IF(AF39<=$J$9*1.05,(AV39*Schadstoffbelastung!$K$11)/($G$12*$G$7)+AW38,NA()) ->  | AX39: 23072.23816 | AY39: 155 | AZ39: 3.54489828 | BA39: 0.04690019962 | BB39: 0 | BC39: 0.13799808 | BE39: 4.3827 | BF39: =#REF!*10^6 ->  | BG39: 42.64109958 | BH39: 23305.29107
Y40: 23 | Z40: 0.02330529107 | AA40: =Z40*EXP((-$J$6/Heterogenität!$D$4)*1) -> 0.02306613111 | AB40: =AF39*Bodencharakterisierung!$E$11/$J$20 -> 4.462336826e-05 | AC40: =((150*($J$2^0.87)*(AB40^0.79)*$J$3)/(Bodencharakterisierung!$E$13^2))*($J$12-Z40)*3600*24 -> 0.08388885006 | AD40: 0.0002391599663 | AE40: =AE39-AD40*Bodencharakterisierung!$E$8 -> 0.06452234307 | AF40: =IF(AE40>$J$18,(AE40/(Bodencharakterisierung!$E$11*1000)),0) -> 4.258900533e-05 | AG40: 0.02330529107 | AH40: 23 | AJ40: =(AD40)*$G$11*Bodencharakterisierung!$E$8 -> 3.458468138e-06 | AK40: =IF(AH40>0,(AJ40*Schadstoffbelastung!$K$11+$G$34)/($G$12*$G$7)+AK39,NA()) -> 0.04906766687 | AM40: 23 | AN40: =IF(AF40<=$J$9*0.05,AS39*EXP((-$J$6*1)/Heterogenität!$D$4),Z40) -> 0.02330529107 | AO40: =IF(OR(AF40>=$J$19, AR39/$J$5<AN40),0, Bodencharakterisierung!$E$8*$J$11*((AR39/$J$5)-AN40)) -> 0 | AP40: 0 | AQ40: =AQ39-AP40*Bodencharakterisierung!$E$8 -> 0.0066397905 | AR40: =AQ40/(Bodencharakterisierung!$E$11*1000) -> 4.3827e-06 | AS40: 0.02330529107 | AT40: 23 | AV40: =(AP40)*$G$11*Bodencharakterisierung!$E$8 -> 0 | AW40: =IF(AF40<=$J$9*1.05,(AV40*Schadstoffbelastung!$K$11)/($G$12*$G$7)+AW39,NA()) ->  | AX40: 23072.23816 | AY40: 156 | AZ40: 3.553338387 | BA40: 0.04906766687 | BB40: 0 | BC40: 0.14427072 | BE40: 4.3827 | BF40: =#REF!*10^6 ->  | BG40: 42.58900533 | BH40: 23305.29107
Y41: 24 | Z41: 0.02330529107 | AA41: =Z41*EXP((-$J$6/Heterogenität!$D$4)*1) -> 0.02306613111 | AB41: =AF40*Bodencharakterisierung!$E$11/$J$20 -> 4.456885229e-05 | AC41: =((150*($J$2^0.87)*(AB41^0.79)*$J$3)/(Bodencharakterisierung!$E$13^2))*($J$12-Z41)*3600*24 -> 0.08380787553 | AD41: 0.0002391599663 | AE41: =AE40-AD41*Bodencharakterisierung!$E$8 -> 0.06444342028 | AF41: =IF(AE41>$J$18,(AE41/(Bodencharakterisierung!$E$11*1000)),0) -> 4.253691108e-05 | AG41: 0.02330529107 | AH41: 24 | AJ41: =(AD41)*$G$11*Bodencharakterisierung!$E$8 -> 3.458468138e-06 | AK41: =IF(AH41>0,(AJ41*Schadstoffbelastung!$K$11+$G$34)/($G$12*$G$7)+AK40,NA()) -> 0.05123513413 | AM41: 24 | AN41: =IF(AF41<=$J$9*0.05,AS40*EXP((-$J$6*1)/Heterogenität!$D$4),Z41) -> 0.02330529107 | AO41: =IF(OR(AF41>=$J$19, AR40/$J$5<AN41),0, Bodencharakterisierung!$E$8*$J$11*((AR40/$J$5)-AN41)) -> 0 | AP41: 0 | AQ41: =AQ40-AP41*Bodencharakterisierung!$E$8 -> 0.0066397905 | AR41: =AQ41/(Bodencharakterisierung!$E$11*1000) -> 4.3827e-06 | AS41: 0.02330529107 | AT41: 24 | AV41: =(AP41)*$G$11*Bodencharakterisierung!$E$8 -> 0 | AW41: =IF(AF41<=$J$9*1.05,(AV41*Schadstoffbelastung!$K$11)/($G$12*$G$7)+AW40,NA()) ->  | AX41: 23072.23816 | AY41: 157 | AZ41: 3.561778494 | BA41: 0.05123513413 | BB41: 0 | BC41: 0.15054336 | BE41: 4.3827 | BF41: =#REF!*10^6 ->  | BG41: 42.53691108 | BH41: 23305.29107
Y42: 25 | Z42: 0.02330529107 | AA42: =Z42*EXP((-$J$6/Heterogenität!$D$4)*1) -> 0.02306613111 | AB42: =AF41*Bodencharakterisierung!$E$11/$J$20 -> 4.451433632e-05 | AC42: =((150*($J$2^0.87)*(AB42^0.79)*$J$3)/(Bodencharakterisierung!$E$13^2))*($J$12-Z42)*3600*24 -> 0.08372688019 | AD42: 0.0002391599663 | AE42: =AE41-AD42*Bodencharakterisierung!$E$8 -> 0.06436449749 | AF42: =IF(AE42>$J$18,(AE42/(Bodencharakterisierung!$E$11*1000)),0) -> 4.248481683e-05 | AG42: 0.02330529107 | AH42: 25 | AJ42: =(AD42)*$G$11*Bodencharakterisierung!$E$8 -> 3.458468138e-06 | AK42: =IF(AH42>0,(AJ42*Schadstoffbelastung!$K$11+$G$34)/($G$12*$G$7)+AK41,NA()) -> 0.05340260138 | AM42: 25 | AN42: =IF(AF42<=$J$9*0.05,AS41*EXP((-$J$6*1)/Heterogenität!$D$4),Z42) -> 0.02330529107 | AO42: =IF(OR(AF42>=$J$19, AR41/$J$5<AN42),0, Bodencharakterisierung!$E$8*$J$11*((AR41/$J$5)-AN42)) -> 0 | AP42: 0 | AQ42: =AQ41-AP42*Bodencharakterisierung!$E$8 -> 0.0066397905 | AR42: =AQ42/(Bodencharakterisierung!$E$11*1000) -> 4.3827e-06 | AS42: 0.02330529107 | AT42: 25 | AV42: =(AP42)*$G$11*Bodencharakterisierung!$E$8 -> 0 | AW42: =IF(AF42<=$J$9*1.05,(AV42*Schadstoffbelastung!$K$11)/($G$12*$G$7)+AW41,NA()) ->  | AX42: 23072.23816 | AY42: 158 | AZ42: 3.570218601 | BA42: 0.05340260138 | BB42: 0 | BC42: 0.156816 | BE42: 4.3827 | BF42: =#REF!*10^6 ->  | BG42: 42.48481683 | BH42: 23305.29107
Y43: 26 | Z43: 0.02330529107 | AA43: =Z43*EXP((-$J$6/Heterogenität!$D$4)*1) -> 0.02306613111 | AB43: =AF42*Bodencharakterisierung!$E$11/$J$20 -> 4.445982035e-05 | AC43: =((150*($J$2^0.87)*(AB43^0.79)*$J$3)/(Bodencharakterisierung!$E$13^2))*($J$12-Z43)*3600*24 -> 0.08364586402 | AD43: 0.0002391599663 | AE43: =AE42-AD43*Bodencharakterisierung!$E$8 -> 0.0642855747 | AF43: =IF(AE43>$J$18,(AE43/(Bodencharakterisierung!$E$11*1000)),0) -> 4.243272258e-05 | AG43: 0.02330529107 | AH43: 26 | AJ43: =(AD43)*$G$11*Bodencharakterisierung!$E$8 -> 3.458468138e-06 | AK43: =IF(AH43>0,(AJ43*Schadstoffbelastung!$K$11+$G$34)/($G$12*$G$7)+AK42,NA()) -> 0.05557006864 | AM43: 26 | AN43: =IF(AF43<=$J$9*0.05,AS42*EXP((-$J$6*1)/Heterogenität!$D$4),Z43) -> 0.02330529107 | AO43: =IF(OR(AF43>=$J$19, AR42/$J$5<AN43),0, Bodencharakterisierung!$E$8*$J$11*((AR42/$J$5)-AN43)) -> 0 | AP43: 0 | AQ43: =AQ42-AP43*Bodencharakterisierung!$E$8 -> 0.0066397905 | AR43: =AQ43/(Bodencharakterisierung!$E$11*1000) -> 4.3827e-06 | AS43: 0.02330529107 | AT43: 26 | AV43: =(AP43)*$G$11*Bodencharakterisierung!$E$8 -> 0 | AW43: =IF(AF43<=$J$9*1.05,(AV43*Schadstoffbelastung!$K$11)/($G$12*$G$7)+AW42,NA()) ->  | AX43: 23072.23816 | AY43: 159 | AZ43: 3.578658709 | BA43: 0.05557006864 | BB43: 0 | BC43: 0.16308864 | BE43: 4.3827 | BF43: =#REF!*10^6 ->  | BG43: 42.43272258 | BH43: 23305.29107
B44: 1 | C44: =B44+1 -> 2 | D44: =C44+1 -> 3 | E44: =D44+1 -> 4 | F44: =E44+1 -> 5 | G44: =F44+1 -> 6 | H44: =G44+1 -> 7 | I44: =H44+1 -> 8 | J44: =I44+1 -> 9 | K44: =J44+1 -> 10 | L44: =K44+1 -> 11 | M44: =L44+1 -> 12 | N44: =M44+1 -> 13 | O44: =N44+1 -> 14 | P44: =O44+1 -> 15 | Q44: =P44+1 -> 16 | R44: =Q44+1 -> 17 | S44: =R44+1 -> 18 | T44: =S44+1 -> 19 | U44: =T44+1 -> 20 | V44: =U44+1 -> 21 | W44: =V44+1 -> 22 | X44: =W44+1 -> 23 | Y44: 27 | Z44: 0.02330529107 | AA44: =Z44*EXP((-$J$6/Heterogenität!$D$4)*1) -> 0.02306613111 | AB44: =AF43*Bodencharakterisierung!$E$11/$J$20 -> 4.440530438e-05 | AC44: =((150*($J$2^0.87)*(AB44^0.79)*$J$3)/(Bodencharakterisierung!$E$13^2))*($J$12-Z44)*3600*24 -> 0.08356482699 | AD44: 0.0002391599663 | AE44: =AE43-AD44*Bodencharakterisierung!$E$8 -> 0.06420665191 | AF44: =IF(AE44>$J$18,(AE44/(Bodencharakterisierung!$E$11*1000)),0) -> 4.238062833e-05 | AG44: 0.02330529107 | AH44: 27 | AJ44: =(AD44)*$G$11*Bodencharakterisierung!$E$8 -> 3.458468138e-06 | AK44: =IF(AH44>0,(AJ44*Schadstoffbelastung!$K$11+$G$34)/($G$12*$G$7)+AK43,NA()) -> 0.0577375359 | AM44: 27 | AN44: =IF(AF44<=$J$9*0.05,AS43*EXP((-$J$6*1)/Heterogenität!$D$4),Z44) -> 0.02330529107 | AO44: =IF(OR(AF44>=$J$19, AR43/$J$5<AN44),0, Bodencharakterisierung!$E$8*$J$11*((AR43/$J$5)-AN44)) -> 0 | AP44: 0 | AQ44: =AQ43-AP44*Bodencharakterisierung!$E$8 -> 0.0066397905 | AR44: =AQ44/(Bodencharakterisierung!$E$11*1000) -> 4.3827e-06 | AS44: 0.02330529107 | AT44: 27 | AV44: =(AP44)*$G$11*Bodencharakterisierung!$E$8 -> 0 | AW44: =IF(AF44<=$J$9*1.05,(AV44*Schadstoffbelastung!$K$11)/($G$12*$G$7)+AW43,NA()) ->  | AX44: 23072.23816 | AY44: 160 | AZ44: 3.587098816 | BA44: 0.0577375359 | BB44: 0 | BC44: 0.16936128 | BE44: 4.3827 | BF44: =#REF!*10^6 ->  | BG44: 42.38062833 | BH44: 23305.29107
B45: betrachteter Schadstoff | Y45: 28 | Z45: 0.02330529107 | AA45: =Z45*EXP((-$J$6/Heterogenität!$D$4)*1) -> 0.02306613111 | AB45: =AF44*Bodencharakterisierung!$E$11/$J$20 -> 4.435078841e-05 | AC45: =((150*($J$2^0.87)*(AB45^0.79)*$J$3)/(Bodencharakterisierung!$E$13^2))*($J$12-Z45)*3600*24 -> 0.08348376906 | AD45: 0.0002391599663 | AE45: =AE44-AD45*Bodencharakterisierung!$E$8 -> 0.06412772912 | AF45: =IF(AE45>$J$18,(AE45/(Bodencharakterisierung!$E$11*1000)),0) -> 4.232853408e-05 | AG45: 0.02330529107 | AH45: 28 | AJ45: =(AD45)*$G$11*Bodencharakterisierung!$E$8 -> 3.458468138e-06 | AK45: =IF(AH45>0,(AJ45*Schadstoffbelastung!$K$11+$G$34)/($G$12*$G$7)+AK44,NA()) -> 0.05990500315 | AM45: 28 | AN45: =IF(AF45<=$J$9*0.05,AS44*EXP((-$J$6*1)/Heterogenität!$D$4),Z45) -> 0.02330529107 | AO45: =IF(OR(AF45>=$J$19, AR44/$J$5<AN45),0, Bodencharakterisierung!$E$8*$J$11*((AR44/$J$5)-AN45)) -> 0 | AP45: 0 | AQ45: =AQ44-AP45*Bodencharakterisierung!$E$8 -> 0.0066397905 | AR45: =AQ45/(Bodencharakterisierung!$E$11*1000) -> 4.3827e-06 | AS45: 0.02330529107 | AT45: 28 | AV45: =(AP45)*$G$11*Bodencharakterisierung!$E$8 -> 0 | AW45: =IF(AF45<=$J$9*1.05,(AV45*Schadstoffbelastung!$K$11)/($G$12*$G$7)+AW44,NA()) ->  | AX45: 23072.23816 | AY45: 161 | AZ45: 3.595538923 | BA45: 0.05990500315 | BB45: 0 | BC45: 0.17563392 | BE45: 4.3827 | BF45: =#REF!*10^6 ->  | BG45: 42.32853408 | BH45: 23305.29107
C46: Inventar [kg] | D46: Konz. Wasser [kg/m3] | E46: Molgewicht [g/Mol] | F46: Stoffmenge [Mol] | G46: Anteile [-] | H46: bewertungs-relevant | I46: Abbaurate [d-1] | J46: Löslichkeit [kg/m3] | K46: Kd [kg/m3] | L46: ZielC [kg/m³] | M46: StartC/ZielC | N46: Sanierung erforderlich? | O46: Auswahl | P46: Relevant | Q46: Dichte Schadstoff [kg/L] | R46: Diffusionskoeffizient Wasser Daq [m2/s] | S46: Grenzkonzentration | T46: Mittlere Konzentration | U46: Residualphase | V46: Sättigungskonzentration | W46: Stöchiometrischer Faktor | X46: C(w, Gleich-gewicht) [m³/kg] | Y46: 29 | Z46: 0.02330529107 | AA46: =Z46*EXP((-$J$6/Heterogenität!$D$4)*1) -> 0.02306613111 | AB46: =AF45*Bodencharakterisierung!$E$11/$J$20 -> 4.429627244e-05 | AC46: =((150*($J$2^0.87)*(AB46^0.79)*$J$3)/(Bodencharakterisierung!$E$13^2))*($J$12-Z46)*3600*24 -> 0.0834026902 | AD46: 0.0002391599663 | AE46: =AE45-AD46*Bodencharakterisierung!$E$8 -> 0.06404880634 | AF46: =IF(AE46>$J$18,(AE46/(Bodencharakterisierung!$E$11*1000)),0) -> 4.227643983e-05 | AG46: 0.02330529107 | AH46: 29 | AJ46: =(AD46)*$G$11*Bodencharakterisierung!$E$8 -> 3.458468138e-06 | AK46: =IF(AH46>0,(AJ46*Schadstoffbelastung!$K$11+$G$34)/($G$12*$G$7)+AK45,NA()) -> 0.06207247041 | AM46: 29 | AN46: =IF(AF46<=$J$9*0.05,AS45*EXP((-$J$6*1)/Heterogenität!$D$4),Z46) -> 0.02330529107 | AO46: =IF(OR(AF46>=$J$19, AR45/$J$5<AN46),0, Bodencharakterisierung!$E$8*$J$11*((AR45/$J$5)-AN46)) -> 0 | AP46: 0 | AQ46: =AQ45-AP46*Bodencharakterisierung!$E$8 -> 0.0066397905 | AR46: =AQ46/(Bodencharakterisierung!$E$11*1000) -> 4.3827e-06 | AS46: 0.02330529107 | AT46: 29 | AV46: =(AP46)*$G$11*Bodencharakterisierung!$E$8 -> 0 | AW46: =IF(AF46<=$J$9*1.05,(AV46*Schadstoffbelastung!$K$11)/($G$12*$G$7)+AW45,NA()) ->  | AX46: 23072.23816 | AY46: 162 | AZ46: 3.60397903 | BA46: 0.06207247041 | BB46: 0 | BC46: 0.18190656 | BE46: 4.3827 | BF46: =#REF!*10^6 ->  | BG46: 42.27643983 | BH46: 23305.29107
B47: LCKW | S47: Boden [kg/kg] | T47: Boden [kg/kg] | U47: Boden [kg/kg] | V47: ci [kg/m3] | Y47: 30 | Z47: 0.02330529107 | AA47: =Z47*EXP((-$J$6/Heterogenität!$D$4)*1) -> 0.02306613111 | AB47: =AF46*Bodencharakterisierung!$E$11/$J$20 -> 4.424175647e-05 | AC47: =((150*($J$2^0.87)*(AB47^0.79)*$J$3)/(Bodencharakterisierung!$E$13^2))*($J$12-Z47)*3600*24 -> 0.08332159038 | AD47: 0.0002391599663 | AE47: =AE46-AD47*Bodencharakterisierung!$E$8 -> 0.06396988355 | AF47: =IF(AE47>$J$18,(AE47/(Bodencharakterisierung!$E$11*1000)),0) -> 4.222434558e-05 | AG47: 0.02330529107 | AH47: 30 | AJ47: =(AD47)*$G$11*Bodencharakterisierung!$E$8 -> 3.458468138e-06 | AK47: =IF(AH47>0,(AJ47*Schadstoffbelastung!$K$11+$G$34)/($G$12*$G$7)+AK46,NA()) -> 0.06423993766 | AM47: 30 | AN47: =IF(AF47<=$J$9*0.05,AS46*EXP((-$J$6*1)/Heterogenität!$D$4),Z47) -> 0.02330529107 | AO47: =IF(OR(AF47>=$J$19, AR46/$J$5<AN47),0, Bodencharakterisierung!$E$8*$J$11*((AR46/$J$5)-AN47)) -> 0 | AP47: 0 | AQ47: =AQ46-AP47*Bodencharakterisierung!$E$8 -> 0.0066397905 | AR47: =AQ47/(Bodencharakterisierung!$E$11*1000) -> 4.3827e-06 | AS47: 0.02330529107 | AT47: 30 | AV47: =(AP47)*$G$11*Bodencharakterisierung!$E$8 -> 0 | AW47: =IF(AF47<=$J$9*1.05,(AV47*Schadstoffbelastung!$K$11)/($G$12*$G$7)+AW46,NA()) ->  | AX47: 23072.23816 | AY47: 163 | AZ47: 3.612419138 | BA47: 0.06423993766 | BB47: 0 | BC47: 0.1881792 | BE47: 4.3827 | BF47: =#REF!*10^6 ->  | BG47: 42.22434558 | BH47: 23305.29107
Y48: 31 | Z48: 0.02330529107 | AA48: =Z48*EXP((-$J$6/Heterogenität!$D$4)*1) -> 0.02306613111 | AB48: =AF47*Bodencharakterisierung!$E$11/$J$20 -> 4.41872405e-05 | AC48: =((150*($J$2^0.87)*(AB48^0.79)*$J$3)/(Bodencharakterisierung!$E$13^2))*($J$12-Z48)*3600*24 -> 0.08324046958 | AD48: 0.0002391599663 | AE48: =AE47-AD48*Bodencharakterisierung!$E$8 -> 0.06389096076 | AF48: =IF(AE48>$J$18,(AE48/(Bodencharakterisierung!$E$11*1000)),0) -> 4.217225132e-05 | AG48: 0.02330529107 | AH48: 31 | AJ48: =(AD48)*$G$11*Bodencharakterisierung!$E$8 -> 3.458468138e-06 | AK48: =IF(AH48>0,(AJ48*Schadstoffbelastung!$K$11+$G$34)/($G$12*$G$7)+AK47,NA()) -> 0.06640740492 | AM48: 31 | AN48: =IF(AF48<=$J$9*0.05,AS47*EXP((-$J$6*1)/Heterogenität!$D$4),Z48) -> 0.02330529107 | AO48: =IF(OR(AF48>=$J$19, AR47/$J$5<AN48),0, Bodencharakterisierung!$E$8*$J$11*((AR47/$J$5)-AN48)) -> 0 | AP48: 0 | AQ48: =AQ47-AP48*Bodencharakterisierung!$E$8 -> 0.0066397905 | AR48: =AQ48/(Bodencharakterisierung!$E$11*1000) -> 4.3827e-06 | AS48: 0.02330529107 | AT48: 31 | AV48: =(AP48)*$G$11*Bodencharakterisierung!$E$8 -> 0 | AW48: =IF(AF48<=$J$9*1.05,(AV48*Schadstoffbelastung!$K$11)/($G$12*$G$7)+AW47,NA()) ->  | AX48: 23072.23816 | AY48: 164 | AZ48: 3.620859245 | BA48: 0.06640740492 | BB48: 0 | BC48: 0.19445184 | BE48: 4.3827 | BF48: =#REF!*10^6 ->  | BG48: 42.17225132 | BH48: 23305.29107
B49: Tetrachlorethen | C49: =Schadstoffbelastung!E4 -> 48.5856 | D49: =Schadstoffbelastung!U4*10^-6 -> 0.0007 | E49: =Stoffdatenbank!R5 -> 166 | F49: =IFERROR(C49*1000/E49,0) -> 292.6843373 | G49: =(F49/$F$62) -> 0.4447973456 | H49: =G49>0.05 -> TRUE | I49: =Stoffdatenbank!D5 -> 0.028 | J49: =Stoffdatenbank!N5*10^-3 -> 0.16 | K49: =(Stoffdatenbank!J5*10^-3)*Bodencharakterisierung!$E$9 -> 0.0036 | L49: =Sanierungsdesign!$E$4*10^-6 -> 0.0002 | M49: =D49/L49 -> 3.5 | N49: =M49>1 -> TRUE | O49: =N49*((M49^0.5)*K49)/((I49^1.2)*(J49^0.9)) -> 2.558815077 | P49: =IF(O49=MAX($O$49:$O$61),"Ja",0) -> Ja | Q49: =Stoffdatenbank!Q5 -> 1.624 | R49: =Stoffdatenbank!L5 -> 7.49e-10 | S49: =Schadstoffbelastung!X4*10^-6 -> 2.52e-06 | T49: =Schadstoffbelastung!Y4*10^-6 -> 2.672475248e-05 | U49: =Schadstoffbelastung!Z4*10^-6 -> 2.420475248e-05 | V49: =Schadstoffbelastung!W4*10^-6 -> 0.02596556076 | W49: =Sanierungsdesign!M11 -> 0.04819277108 | X49: =T49/K49 -> 0.007423542354 | Y49: 32 | Z49: 0.02330529107 | AA49: =Z49*EXP((-$J$6/Heterogenität!$D$4)*1) -> 0.02306613111 | AB49: =AF48*Bodencharakterisierung!$E$11/$J$20 -> 4.413272453e-05 | AC49: =((150*($J$2^0.87)*(AB49^0.79)*$J$3)/(Bodencharakterisierung!$E$13^2))*($J$12-Z49)*3600*24 -> 0.08315932776 | AD49: 0.0002391599663 | AE49: =AE48-AD49*Bodencharakterisierung!$E$8 -> 0.06381203797 | AF49: =IF(AE49>$J$18,(AE49/(Bodencharakterisierung!$E$11*1000)),0) -> 4.212015707e-05 | AG49: 0.02330529107 | AH49: 32 | AJ49: =(AD49)*$G$11*Bodencharakterisierung!$E$8 -> 3.458468138e-06 | AK49: =IF(AH49>0,(AJ49*Schadstoffbelastung!$K$11+$G$34)/($G$12*$G$7)+AK48,NA()) -> 0.06857487217 | AM49: 32 | AN49: =IF(AF49<=$J$9*0.05,AS48*EXP((-$J$6*1)/Heterogenität!$D$4),Z49) -> 0.02330529107 | AO49: =IF(OR(AF49>=$J$19, AR48/$J$5<AN49),0, Bodencharakterisierung!$E$8*$J$11*((AR48/$J$5)-AN49)) -> 0 | AP49: 0 | AQ49: =AQ48-AP49*Bodencharakterisierung!$E$8 -> 0.0066397905 | AR49: =AQ49/(Bodencharakterisierung!$E$11*1000) -> 4.3827e-06 | AS49: 0.02330529107 | AT49: 32 | AV49: =(AP49)*$G$11*Bodencharakterisierung!$E$8 -> 0 | AW49: =IF(AF49<=$J$9*1.05,(AV49*Schadstoffbelastung!$K$11)/($G$12*$G$7)+AW48,NA()) ->  | AX49: 23072.23816 | AY49: 165 | AZ49: 3.629299352 | BA49: 0.06857487217 | BB49: 0 | BC49: 0.20072448 | BE49: 4.3827 | BF49: =#REF!*10^6 ->  | BG49: 42.12015707 | BH49: 23305.29107
B50: Trichlorethen | C50: =Schadstoffbelastung!E5 -> 18.76392 | D50: =Schadstoffbelastung!U5*10^-6 -> 0.00068 | E50: =Stoffdatenbank!R6 -> 131 | F50: =IFERROR(C50*1000/E50,0) -> 143.2360305 | G50: =(F50/$F$62) -> 0.2176782221 | H50: =G50>0.05 -> TRUE | I50: =Stoffdatenbank!D6 -> 0.027 | J50: =Stoffdatenbank!N6*10^-3 -> 1 | K50: =(Stoffdatenbank!J6*10^-3)*Bodencharakterisierung!$E$9 -> 0.0013 | L50: =Sanierungsdesign!$E$4*10^-6 -> 0.0002 | M50: =D50/L50 -> 3.4 | N50: =M50>1 -> TRUE | O50: =N50*((M50^0.5)*K50)/((I50^1.2)*(J50^0.9)) -> 0.1828295094 | P50: =IF(O50=MAX($O$49:$O$61),"Ja",0) -> 0 | Q50: =Stoffdatenbank!Q6 -> 1.4642 | R50: =Stoffdatenbank!L6 -> 8.08e-10 | S50: =Schadstoffbelastung!X5*10^-6 -> 8.84e-07 | T50: =Schadstoffbelastung!Y5*10^-6 -> 1.032118812e-05 | U50: =Schadstoffbelastung!Z5*10^-6 -> 9.437188119e-06 | V50: =Schadstoffbelastung!W5*10^-6 -> 0.1997677548 | W50: =Sanierungsdesign!M12 -> 0.04580152672 | X50: =T50/K50 -> 0.007939375476 | Y50: 33 | Z50: 0.02330529107 | AA50: =Z50*EXP((-$J$6/Heterogenität!$D$4)*1) -> 0.02306613111 | AB50: =AF49*Bodencharakterisierung!$E$11/$J$20 -> 4.407820856e-05 | AC50: =((150*($J$2^0.87)*(AB50^0.79)*$J$3)/(Bodencharakterisierung!$E$13^2))*($J$12-Z50)*3600*24 -> 0.08307816488 | AD50: 0.0002391599663 | AE50: =AE49-AD50*Bodencharakterisierung!$E$8 -> 0.06373311518 | AF50: =IF(AE50>$J$18,(AE50/(Bodencharakterisierung!$E$11*1000)),0) -> 4.206806282e-05 | AG50: 0.02330529107 | AH50: 33 | AJ50: =(AD50)*$G$11*Bodencharakterisierung!$E$8 -> 3.458468138e-06 | AK50: =IF(AH50>0,(AJ50*Schadstoffbelastung!$K$11+$G$34)/($G$12*$G$7)+AK49,NA()) -> 0.07074233943 | AM50: 33 | AN50: =IF(AF50<=$J$9*0.05,AS49*EXP((-$J$6*1)/Heterogenität!$D$4),Z50) -> 0.02330529107 | AO50: =IF(OR(AF50>=$J$19, AR49/$J$5<AN50),0, Bodencharakterisierung!$E$8*$J$11*((AR49/$J$5)-AN50)) -> 0 | AP50: 0 | AQ50: =AQ49-AP50*Bodencharakterisierung!$E$8 -> 0.0066397905 | AR50: =AQ50/(Bodencharakterisierung!$E$11*1000) -> 4.3827e-06 | AS50: 0.02330529107 | AT50: 33 | AV50: =(AP50)*$G$11*Bodencharakterisierung!$E$8 -> 0 | AW50: =IF(AF50<=$J$9*1.05,(AV50*Schadstoffbelastung!$K$11)/($G$12*$G$7)+AW49,NA()) ->  | AX50: 23072.23816 | AY50: 166 | AZ50: 3.637739459 | BA50: 0.07074233943 | BB50: 0 | BC50: 0.20699712 | BE50: 4.3827 | BF50: =#REF!*10^6 ->  | BG50: 42.06806282 | BH50: 23305.29107
B51: cis-1,2-Dichlorethen | C51: =Schadstoffbelastung!E6 -> 16.965 | D51: =Schadstoffbelastung!U6*10^-6 -> 0.0013 | E51: =Stoffdatenbank!R7 -> 97 | F51: 174.8969072 | G51: 0.2657937927 | H51: TRUE | I51: =Stoffdatenbank!D7 -> 0.012 | J51: =Stoffdatenbank!N7*10^-3 -> 3.5 | K51: =(Stoffdatenbank!J7*10^-3)*Bodencharakterisierung!$E$9 -> 0.0005 | L51: =Sanierungsdesign!$E$4*10^-6 -> 0.0002 | M51: 6.5 | N51: TRUE | O51: 0.08331974795 | P51: 0 | Q51: =Stoffdatenbank!Q7 -> 1.2837 | R51: =Stoffdatenbank!L7 -> 8.95e-10 | S51: =Schadstoffbelastung!X6*10^-6 -> 6.5e-07 | T51: =Schadstoffbelastung!Y6*10^-6 -> 9.331683168e-06 | U51: =Schadstoffbelastung!Z6*10^-6 -> 8.681683168e-06 | V51: =Schadstoffbelastung!W6*10^-6 -> 1.805208767 | W51: =Sanierungsdesign!M13 -> 0.0412371134 | X51: 0.01866336634 | Y51: 34 | Z51: 0.02330529107 | AA51: =Z51*EXP((-$J$6/Heterogenität!$D$4)*1) -> 0.02306613111 | AB51: =AF50*Bodencharakterisierung!$E$11/$J$20 -> 4.402369259e-05 | AC51: =((150*($J$2^0.87)*(AB51^0.79)*$J$3)/(Bodencharakterisierung!$E$13^2))*($J$12-Z51)*3600*24 -> 0.08299698093 | AD51: 0.0002391599663 | AE51: =AE50-AD51*Bodencharakterisierung!$E$8 -> 0.06365419239 | AF51: =IF(AE51>$J$18,(AE51/(Bodencharakterisierung!$E$11*1000)),0) -> 4.201596857e-05 | AG51: 0.02330529107 | AH51: 34 | AJ51: =(AD51)*$G$11*Bodencharakterisierung!$E$8 -> 3.458468138e-06 | AK51: =IF(AH51>0,(AJ51*Schadstoffbelastung!$K$11+$G$34)/($G$12*$G$7)+AK50,NA()) -> 0.07290980668 | AM51: 34 | AN51: =IF(AF51<=$J$9*0.05,AS50*EXP((-$J$6*1)/Heterogenität!$D$4),Z51) -> 0.02330529107 | AO51: =IF(OR(AF51>=$J$19, AR50/$J$5<AN51),0, Bodencharakterisierung!$E$8*$J$11*((AR50/$J$5)-AN51)) -> 0 | AP51: 0 | AQ51: =AQ50-AP51*Bodencharakterisierung!$E$8 -> 0.0066397905 | AR51: =AQ51/(Bodencharakterisierung!$E$11*1000) -> 4.3827e-06 | AS51: 0.02330529107 | AT51: 34 | AV51: =(AP51)*$G$11*Bodencharakterisierung!$E$8 -> 0 | AW51: =IF(AF51<=$J$9*1.05,(AV51*Schadstoffbelastung!$K$11)/($G$12*$G$7)+AW50,NA()) ->  | AX51: 23072.23816 | AY51: 167 | AZ51: 3.646179567 | BA51: 0.07290980668 | BB51: 0 | BC51: 0.21326976 | BE51: 4.3827 | BF51: =#REF!*10^6 ->  | BG51: 42.01596857 | BH51: 23305.29107
B52: trans-1,2-Dichlorethen | C52: =Schadstoffbelastung!E7 -> 1.4868e-10 | D52: =Schadstoffbelastung!U7*10^-6 -> 1e-14 | E52: =Stoffdatenbank!R8 -> 97 | F52: 1.532783505e-09 | G52: 2.329397059e-12 | H52: FALSE | I52: =Stoffdatenbank!D8 -> 0.012 | J52: =Stoffdatenbank!N8*10^-3 -> 6.3 | K52: =(Stoffdatenbank!J8*10^-3)*Bodencharakterisierung!$E$9 -> 0.0006 | L52: =Sanierungsdesign!$E$4*10^-6 -> 0.0002 | M52: 5e-11 | N52: FALSE | O52: 0 | P52: 0 | Q52: =Stoffdatenbank!Q8 -> 1.2565 | R52: =Stoffdatenbank!L8 -> 8.86e-10 | S52: =Schadstoffbelastung!X7*10^-6 -> 6e-18 | T52: =Schadstoffbelastung!Y7*10^-6 -> 8.178217822e-17 | U52: =Schadstoffbelastung!Z7*10^-6 -> 7.578217822e-17 | V52: =Schadstoffbelastung!W7*10^-6 -> 2.499519831e-11 | W52: =Sanierungsdesign!M14 -> 0.0412371134 | X52: 1.363036304e-13 | Y52: 35 | Z52: 0.02330529107 | AA52: =Z52*EXP((-$J$6/Heterogenität!$D$4)*1) -> 0.02306613111 | AB52: =AF51*Bodencharakterisierung!$E$11/$J$20 -> 4.396917662e-05 | AC52: =((150*($J$2^0.87)*(AB52^0.79)*$J$3)/(Bodencharakterisierung!$E$13^2))*($J$12-Z52)*3600*24 -> 0.08291577585 | AD52: 0.0002391599663 | AE52: =AE51-AD52*Bodencharakterisierung!$E$8 -> 0.0635752696 | AF52: =IF(AE52>$J$18,(AE52/(Bodencharakterisierung!$E$11*1000)),0) -> 4.196387432e-05 | AG52: 0.02330529107 | AH52: 35 | AJ52: =(AD52)*$G$11*Bodencharakterisierung!$E$8 -> 3.458468138e-06 | AK52: =IF(AH52>0,(AJ52*Schadstoffbelastung!$K$11+$G$34)/($G$12*$G$7)+AK51,NA()) -> 0.07507727394 | AM52: 35 | AN52: =IF(AF52<=$J$9*0.05,AS51*EXP((-$J$6*1)/Heterogenität!$D$4),Z52) -> 0.02330529107 | AO52: =IF(OR(AF52>=$J$19, AR51/$J$5<AN52),0, Bodencharakterisierung!$E$8*$J$11*((AR51/$J$5)-AN52)) -> 0 | AP52: 0 | AQ52: =AQ51-AP52*Bodencharakterisierung!$E$8 -> 0.0066397905 | AR52: =AQ52/(Bodencharakterisierung!$E$11*1000) -> 4.3827e-06 | AS52: 0.02330529107 | AT52: 35 | AV52: =(AP52)*$G$11*Bodencharakterisierung!$E$8 -> 0 | AW52: =IF(AF52<=$J$9*1.05,(AV52*Schadstoffbelastung!$K$11)/($G$12*$G$7)+AW51,NA()) ->  | AX52: 23072.23816 | AY52: 168 | AZ52: 3.654619674 | BA52: 0.07507727394 | BB52: 0 | BC52: 0.2195424 | BE52: 4.3827 | BF52: =#REF!*10^6 ->  | BG52: 41.96387432 | BH52: 23305.29107
B53: 1,1-Dichlorethen | C53: =Schadstoffbelastung!E8 -> 1.6778718e-10 | D53: =Schadstoffbelastung!U8*10^-6 -> 1e-14 | E53: =Stoffdatenbank!R9 -> 97 | F53: 1.729764742e-09 | G53: 2.628752782e-12 | H53: FALSE | I53: =Stoffdatenbank!D9 -> 0.012 | J53: =Stoffdatenbank!N9*10^-3 -> 2.5 | K53: =(Stoffdatenbank!J9*10^-3)*Bodencharakterisierung!$E$9 -> 0.0007051 | L53: =Sanierungsdesign!$E$4*10^-6 -> 0.0002 | M53: 5e-11 | N53: FALSE | O53: 0 | P53: 0 | Q53: =Stoffdatenbank!Q9 -> 1.218 | R53: =Stoffdatenbank!L9 -> 1.173e-09 | S53: =Schadstoffbelastung!X8*10^-6 -> 7.051e-18 | T53: =Schadstoffbelastung!Y8*10^-6 -> 9.229217822e-17 | U53: =Schadstoffbelastung!Z8*10^-6 -> 8.524117822e-17 | V53: =Schadstoffbelastung!W8*10^-6 -> 9.91872949e-12 | W53: =Sanierungsdesign!M15 -> 0.0412371134 | X53: 1.308923248e-13 | Y53: 36 | Z53: 0.02330529107 | AA53: =Z53*EXP((-$J$6/Heterogenität!$D$4)*1) -> 0.02306613111 | AB53: =AF52*Bodencharakterisierung!$E$11/$J$20 -> 4.391466065e-05 | AC53: =((150*($J$2^0.87)*(AB53^0.79)*$J$3)/(Bodencharakterisierung!$E$13^2))*($J$12-Z53)*3600*24 -> 0.08283454964 | AD53: 0.0002391599663 | AE53: =AE52-AD53*Bodencharakterisierung!$E$8 -> 0.06349634681 | AF53: =IF(AE53>$J$18,(AE53/(Bodencharakterisierung!$E$11*1000)),0) -> 4.191178007e-05 | AG53: 0.02330529107 | AH53: 36 | AJ53: =(AD53)*$G$11*Bodencharakterisierung!$E$8 -> 3.458468138e-06 | AK53: =IF(AH53>0,(AJ53*Schadstoffbelastung!$K$11+$G$34)/($G$12*$G$7)+AK52,NA()) -> 0.07724474119 | AM53: 36 | AN53: =IF(AF53<=$J$9*0.05,AS52*EXP((-$J$6*1)/Heterogenität!$D$4),Z53) -> 0.02330529107 | AO53: =IF(OR(AF53>=$J$19, AR52/$J$5<AN53),0, Bodencharakterisierung!$E$8*$J$11*((AR52/$J$5)-AN53)) -> 0 | AP53: 0 | AQ53: =AQ52-AP53*Bodencharakterisierung!$E$8 -> 0.0066397905 | AR53: =AQ53/(Bodencharakterisierung!$E$11*1000) -> 4.3827e-06 | AS53: 0.02330529107 | AT53: 36 | AV53: =(AP53)*$G$11*Bodencharakterisierung!$E$8 -> 0 | AW53: =IF(AF53<=$J$9*1.05,(AV53*Schadstoffbelastung!$K$11)/($G$12*$G$7)+AW52,NA()) ->  | AX53: 23072.23816 | AY53: 169 | AZ53: 3.663059781 | BA53: 0.07724474119 | BB53: 0 | BC53: 0.22581504 | BE53: 4.3827 | BF53: =#REF!*10^6 ->  | BG53: 41.91178007 | BH53: 23305.29107
B54: Vinylchlorid | C54: =Schadstoffbelastung!E9 -> 2.9736 | D54: =Schadstoffbelastung!U9*10^-6 -> 0.0002 | E54: =Stoffdatenbank!R10 -> 63 | F54: 47.2 | G54: 0.07173063958 | H54: TRUE | I54: =Stoffdatenbank!D10 -> 0.018 | J54: =Stoffdatenbank!N10*10^-3 -> 1.1 | K54: =(Stoffdatenbank!J10*10^-3)*Bodencharakterisierung!$E$9 -> 0.0006 | L54: =Sanierungsdesign!$E$4*10^-6 -> 0.0002 | M54: 1 | N54: FALSE | O54: 0 | P54: 0 | Q54: =Stoffdatenbank!Q10 -> 0.9121 | R54: =Stoffdatenbank!L10 -> 5.78e-10 | S54: =Schadstoffbelastung!X9*10^-6 -> 1.2e-07 | T54: =Schadstoffbelastung!Y9*10^-6 -> 1.635643564e-06 | U54: =Schadstoffbelastung!Z9*10^-6 -> 1.515643564e-06 | V54: =Schadstoffbelastung!W9*10^-6 -> 0.1343909126 | W54: =Sanierungsdesign!M16 -> 0.03174603175 | X54: 0.002726072607 | Y54: 37 | Z54: 0.02330529107 | AA54: =Z54*EXP((-$J$6/Heterogenität!$D$4)*1) -> 0.02306613111 | AB54: =AF53*Bodencharakterisierung!$E$11/$J$20 -> 4.386014468e-05 | AC54: =((150*($J$2^0.87)*(AB54^0.79)*$J$3)/(Bodencharakterisierung!$E$13^2))*($J$12-Z54)*3600*24 -> 0.08275330224 | AD54: 0.0002391599663 | AE54: =AE53-AD54*Bodencharakterisierung!$E$8 -> 0.06341742402 | AF54: =IF(AE54>$J$18,(AE54/(Bodencharakterisierung!$E$11*1000)),0) -> 4.185968582e-05 | AG54: 0.02330529107 | AH54: 37 | AJ54: =(AD54)*$G$11*Bodencharakterisierung!$E$8 -> 3.458468138e-06 | AK54: =IF(AH54>0,(AJ54*Schadstoffbelastung!$K$11+$G$34)/($G$12*$G$7)+AK53,NA()) -> 0.07941220845 | AM54: 37 | AN54: =IF(AF54<=$J$9*0.05,AS53*EXP((-$J$6*1)/Heterogenität!$D$4),Z54) -> 0.02330529107 | AO54: =IF(OR(AF54>=$J$19, AR53/$J$5<AN54),0, Bodencharakterisierung!$E$8*$J$11*((AR53/$J$5)-AN54)) -> 0 | AP54: 0 | AQ54: =AQ53-AP54*Bodencharakterisierung!$E$8 -> 0.0066397905 | AR54: =AQ54/(Bodencharakterisierung!$E$11*1000) -> 4.3827e-06 | AS54: 0.02330529107 | AT54: 37 | AV54: =(AP54)*$G$11*Bodencharakterisierung!$E$8 -> 0 | AW54: =IF(AF54<=$J$9*1.05,(AV54*Schadstoffbelastung!$K$11)/($G$12*$G$7)+AW53,NA()) ->  | AX54: 23072.23816 | AY54: 170 | AZ54: 3.671499888 | BA54: 0.07941220845 | BB54: 0 | BC54: 0.23208768 | BE54: 4.3827 | BF54: =#REF!*10^6 ->  | BG54: 41.85968582 | BH54: 23305.29107
B55: Tetrachlormethan | C55: =Schadstoffbelastung!E10 -> 5.588208e-10 | D55: =Schadstoffbelastung!U10*10^-6 -> 1e-14 | E55: =Stoffdatenbank!R11 -> 154 | F55: 3.628706494e-09 | G55: 5.51460673e-12 | H55: FALSE | I55: =Stoffdatenbank!D11 -> 0.06 | J55: =Stoffdatenbank!N11*10^-3 -> 0.8 | K55: =(Stoffdatenbank!J11*10^-3)*Bodencharakterisierung!$E$9 -> 0.002856 | L55: =Sanierungsdesign!$E$4*10^-6 -> 0.0002 | M55: 5e-11 | N55: FALSE | O55: 0 | P55: 0 | Q55: =Stoffdatenbank!Q11 -> 1.594 | R55: =Stoffdatenbank!L11 -> 7.293e-10 | S55: =Schadstoffbelastung!X10*10^-6 -> 2.856e-17 | T55: =Schadstoffbelastung!Y10*10^-6 -> 3.073821782e-16 | U55: =Schadstoffbelastung!Z10*10^-6 -> 2.788221782e-16 | V55: =Schadstoffbelastung!W10*10^-6 -> 1.999203658e-12 | W55: =Sanierungsdesign!M17 -> 0.05194805195 | X55: 1.076268131e-13 | Y55: 38 | Z55: 0.02330529107 | AA55: =Z55*EXP((-$J$6/Heterogenität!$D$4)*1) -> 0.02306613111 | AB55: =AF54*Bodencharakterisierung!$E$11/$J$20 -> 4.380562871e-05 | AC55: =((150*($J$2^0.87)*(AB55^0.79)*$J$3)/(Bodencharakterisierung!$E$13^2))*($J$12-Z55)*3600*24 -> 0.08267203363 | AD55: 0.0002391599663 | AE55: =AE54-AD55*Bodencharakterisierung!$E$8 -> 0.06333850124 | AF55: =IF(AE55>$J$18,(AE55/(Bodencharakterisierung!$E$11*1000)),0) -> 4.180759157e-05 | AG55: 0.02330529107 | AH55: 38 | AJ55: =(AD55)*$G$11*Bodencharakterisierung!$E$8 -> 3.458468138e-06 | AK55: =IF(AH55>0,(AJ55*Schadstoffbelastung!$K$11+$G$34)/($G$12*$G$7)+AK54,NA()) -> 0.0815796757 | AM55: 38 | AN55: =IF(AF55<=$J$9*0.05,AS54*EXP((-$J$6*1)/Heterogenität!$D$4),Z55) -> 0.02330529107 | AO55: =IF(OR(AF55>=$J$19, AR54/$J$5<AN55),0, Bodencharakterisierung!$E$8*$J$11*((AR54/$J$5)-AN55)) -> 0 | AP55: 0 | AQ55: =AQ54-AP55*Bodencharakterisierung!$E$8 -> 0.0066397905 | AR55: =AQ55/(Bodencharakterisierung!$E$11*1000) -> 4.3827e-06 | AS55: 0.02330529107 | AT55: 38 | AV55: =(AP55)*$G$11*Bodencharakterisierung!$E$8 -> 0 | AW55: =IF(AF55<=$J$9*1.05,(AV55*Schadstoffbelastung!$K$11)/($G$12*$G$7)+AW54,NA()) ->  | AX55: 23072.23816 | AY55: 171 | AZ55: 3.679939996 | BA55: 0.0815796757 | BB55: 0 | BC55: 0.23836032 | BE55: 4.3827 | BF55: =#REF!*10^6 ->  | BG55: 41.80759157 | BH55: 23305.29107
B56: Trichlormethan | C56: =Schadstoffbelastung!E11 -> 1.3269978e-10 | D56: =Schadstoffbelastung!U11*10^-6 -> 1e-14 | E56: =Stoffdatenbank!R12 -> 119 | F56: 1.115124202e-09 | G56: 1.69467314e-12 | H56: FALSE | I56: =Stoffdatenbank!D12 -> 0.06 | J56: =Stoffdatenbank!N12*10^-3 -> 8.2 | K56: =(Stoffdatenbank!J12*10^-3)*Bodencharakterisierung!$E$9 -> 0.0005121 | L56: =Sanierungsdesign!$E$4*10^-6 -> 0.0002 | M56: 5e-11 | N56: FALSE | O56: 0 | P56: 0 | Q56: =Stoffdatenbank!Q12 -> 1.485 | R56: =Stoffdatenbank!L12 -> 8.245e-10 | S56: =Schadstoffbelastung!X11*10^-6 -> 5.121e-18 | T56: =Schadstoffbelastung!Y11*10^-6 -> 7.299217822e-17 | U56: =Schadstoffbelastung!Z11*10^-6 -> 6.787117822e-17 | V56: =Schadstoffbelastung!W11*10^-6 -> 2.651884852e-11 | W56: =Sanierungsdesign!M18 -> 0.05042016807 | X56: 1.425350092e-13 | Y56: 39 | Z56: 0.02330529107 | AA56: =Z56*EXP((-$J$6/Heterogenität!$D$4)*1) -> 0.02306613111 | AB56: =AF55*Bodencharakterisierung!$E$11/$J$20 -> 4.375111274e-05 | AC56: =((150*($J$2^0.87)*(AB56^0.79)*$J$3)/(Bodencharakterisierung!$E$13^2))*($J$12-Z56)*3600*24 -> 0.08259074378 | AD56: 0.0002391599663 | AE56: =AE55-AD56*Bodencharakterisierung!$E$8 -> 0.06325957845 | AF56: =IF(AE56>$J$18,(AE56/(Bodencharakterisierung!$E$11*1000)),0) -> 4.175549732e-05 | AG56: 0.02330529107 | AH56: 39 | AJ56: =(AD56)*$G$11*Bodencharakterisierung!$E$8 -> 3.458468138e-06 | AK56: =IF(AH56>0,(AJ56*Schadstoffbelastung!$K$11+$G$34)/($G$12*$G$7)+AK55,NA()) -> 0.08374714296 | AM56: 39 | AN56: =IF(AF56<=$J$9*0.05,AS55*EXP((-$J$6*1)/Heterogenität!$D$4),Z56) -> 0.02330529107 | AO56: =IF(OR(AF56>=$J$19, AR55/$J$5<AN56),0, Bodencharakterisierung!$E$8*$J$11*((AR55/$J$5)-AN56)) -> 0 | AP56: 0 | AQ56: =AQ55-AP56*Bodencharakterisierung!$E$8 -> 0.0066397905 | AR56: =AQ56/(Bodencharakterisierung!$E$11*1000) -> 4.3827e-06 | AS56: 0.02330529107 | AT56: 39 | AV56: =(AP56)*$G$11*Bodencharakterisierung!$E$8 -> 0 | AW56: =IF(AF56<=$J$9*1.05,(AV56*Schadstoffbelastung!$K$11)/($G$12*$G$7)+AW55,NA()) ->  | AX56: 23072.23816 | AY56: 172 | AZ56: 3.688380103 | BA56: 0.08374714296 | BB56: 0 | BC56: 0.24463296 | BE56: 4.3827 | BF56: =#REF!*10^6 ->  | BG56: 41.75549732 | BH56: 23305.29107
B57: Dichlormethan | C57: =Schadstoffbelastung!E12 -> 6.16887e-11 | D57: =Schadstoffbelastung!U12*10^-6 -> 1e-14 | E57: =Stoffdatenbank!R13 -> 85 | F57: 7.257494118e-10 | G57: 1.102933675e-12 | H57: FALSE | I57: =Stoffdatenbank!D13 -> 0.03 | J57: =Stoffdatenbank!N13*10^-3 -> 17.799 | K57: =(Stoffdatenbank!J13*10^-3)*Bodencharakterisierung!$E$9 -> 0.0001215 | L57: =Sanierungsdesign!$E$4*10^-6 -> 0.0002 | M57: 5e-11 | N57: FALSE | O57: 0 | P57: 0 | Q57: =Stoffdatenbank!Q13 -> 1.328 | R57: =Stoffdatenbank!L13 -> 9.83e-10 | S57: =Schadstoffbelastung!X12*10^-6 -> 1.215e-18 | T57: =Schadstoffbelastung!Y12*10^-6 -> 3.393217822e-17 | U57: =Schadstoffbelastung!Z12*10^-6 -> 3.271717822e-17 | V57: =Schadstoffbelastung!W12*10^-6 -> 8.058689986e-11 | W57: =Sanierungsdesign!M19 -> 0.04705882353 | X57: 2.79277187e-13 | Y57: 40 | Z57: 0.02330529107 | AA57: =Z57*EXP((-$J$6/Heterogenität!$D$4)*1) -> 0.02306613111 | AB57: =AF56*Bodencharakterisierung!$E$11/$J$20 -> 4.369659677e-05 | AC57: =((150*($J$2^0.87)*(AB57^0.79)*$J$3)/(Bodencharakterisierung!$E$13^2))*($J$12-Z57)*3600*24 -> 0.08250943266 | AD57: 0.0002391599663 | AE57: =AE56-AD57*Bodencharakterisierung!$E$8 -> 0.06318065566 | AF57: =IF(AE57>$J$18,(AE57/(Bodencharakterisierung!$E$11*1000)),0) -> 4.170340307e-05 | AG57: 0.02330529107 | AH57: 40 | AJ57: =(AD57)*$G$11*Bodencharakterisierung!$E$8 -> 3.458468138e-06 | AK57: =IF(AH57>0,(AJ57*Schadstoffbelastung!$K$11+$G$34)/($G$12*$G$7)+AK56,NA()) -> 0.08591461022 | AM57: 40 | AN57: =IF(AF57<=$J$9*0.05,AS56*EXP((-$J$6*1)/Heterogenität!$D$4),Z57) -> 0.02330529107 | AO57: =IF(OR(AF57>=$J$19, AR56/$J$5<AN57),0, Bodencharakterisierung!$E$8*$J$11*((AR56/$J$5)-AN57)) -> 0 | AP57: 0 | AQ57: =AQ56-AP57*Bodencharakterisierung!$E$8 -> 0.0066397905 | AR57: =AQ57/(Bodencharakterisierung!$E$11*1000) -> 4.3827e-06 | AS57: 0.02330529107 | AT57: 40 | AV57: =(AP57)*$G$11*Bodencharakterisierung!$E$8 -> 0 | AW57: =IF(AF57<=$J$9*1.05,(AV57*Schadstoffbelastung!$K$11)/($G$12*$G$7)+AW56,NA()) ->  | AX57: 23072.23816 | AY57: 173 | AZ57: 3.69682021 | BA57: 0.08591461022 | BB57: 0 | BC57: 0.2509056 | BE57: 4.3827 | BF57: =#REF!*10^6 ->  | BG57: 41.70340307 | BH57: 23305.29107
B58: 1,1,1-Trichlorethan | C58: =Schadstoffbelastung!E13 -> 3.01392e-11 | D58: =Schadstoffbelastung!U13*10^-6 -> 1e-15 | E58: =Stoffdatenbank!R14 -> 133.404 | F58: 2.259242601e-10 | G58: 3.433409254e-13 | H58: FALSE | I58: =Stoffdatenbank!D14 -> 0.01 | J58: =Stoffdatenbank!N14*10^-3 -> 1.3 | K58: =(Stoffdatenbank!J14*10^-3)*Bodencharakterisierung!$E$9 -> 0.00144 | L58: =Sanierungsdesign!$E$4*10^-6 -> 0.0002 | M58: 5e-12 | N58: FALSE | O58: 0 | P58: 0 | Q58: =Stoffdatenbank!Q14 -> 1.339 | R58: =Stoffdatenbank!L14 -> 7.61e-10 | S58: =Schadstoffbelastung!X13*10^-6 -> 1.44e-18 | T58: =Schadstoffbelastung!Y13*10^-6 -> 1.657821782e-17 | U58: =Schadstoffbelastung!Z13*10^-6 -> 1.513821782e-17 | V58: =Schadstoffbelastung!W13*10^-6 -> 3.750267724e-13 | W58: =Sanierungsdesign!M20 -> 0.04497616263 | X58: 1.151265127e-14 | Y58: 41 | Z58: 0.02330529107 | AA58: =Z58*EXP((-$J$6/Heterogenität!$D$4)*1) -> 0.02306613111 | AB58: =AF57*Bodencharakterisierung!$E$11/$J$20 -> 4.36420808e-05 | AC58: =((150*($J$2^0.87)*(AB58^0.79)*$J$3)/(Bodencharakterisierung!$E$13^2))*($J$12-Z58)*3600*24 -> 0.08242810023 | AD58: 0.0002391599663 | AE58: =AE57-AD58*Bodencharakterisierung!$E$8 -> 0.06310173287 | AF58: =IF(AE58>$J$18,(AE58/(Bodencharakterisierung!$E$11*1000)),0) -> 4.165130882e-05 | AG58: 0.02330529107 | AH58: 41 | AJ58: =(AD58)*$G$11*Bodencharakterisierung!$E$8 -> 3.458468138e-06 | AK58: =IF(AH58>0,(AJ58*Schadstoffbelastung!$K$11+$G$34)/($G$12*$G$7)+AK57,NA()) -> 0.08808207747 | AM58: 41 | AN58: =IF(AF58<=$J$9*0.05,AS57*EXP((-$J$6*1)/Heterogenität!$D$4),Z58) -> 0.02330529107 | AO58: =IF(OR(AF58>=$J$19, AR57/$J$5<AN58),0, Bodencharakterisierung!$E$8*$J$11*((AR57/$J$5)-AN58)) -> 0 | AP58: 0 | AQ58: =AQ57-AP58*Bodencharakterisierung!$E$8 -> 0.0066397905 | AR58: =AQ58/(Bodencharakterisierung!$E$11*1000) -> 4.3827e-06 | AS58: 0.02330529107 | AT58: 41 | AV58: =(AP58)*$G$11*Bodencharakterisierung!$E$8 -> 0 | AW58: =IF(AF58<=$J$9*1.05,(AV58*Schadstoffbelastung!$K$11)/($G$12*$G$7)+AW57,NA()) ->  | AX58: 23072.23816 | AY58: 174 | AZ58: 3.705260317 | BA58: 0.08808207747 | BB58: 0 | BC58: 0.25717824 | BE58: 4.3827 | BF58: =#REF!*10^6 ->  | BG58: 41.65130882 | BH58: 23305.29107
B59: 1,1,2-Trichlorethan | C59: =Schadstoffbelastung!E14 -> 1.1893752e-10 | D59: =Schadstoffbelastung!U14*10^-6 -> 1e-14 | E59: =Stoffdatenbank!R15 -> 133.404 | F59: 8.915588738e-10 | G59: 1.354917124e-12 | H59: FALSE | I59: =Stoffdatenbank!D15 -> 0.01 | J59: =Stoffdatenbank!N15*10^-3 -> 4.5 | K59: =(Stoffdatenbank!J15*10^-3)*Bodencharakterisierung!$E$9 -> 0.0004364 | L59: =Sanierungsdesign!$E$4*10^-6 -> 0.0002 | M59: 5e-11 | N59: FALSE | O59: 0 | P59: 0 | Q59: =Stoffdatenbank!Q15 -> 1.441 | R59: =Stoffdatenbank!L15 -> 6.8e-10 | S59: =Schadstoffbelastung!X14*10^-6 -> 4.364e-18 | T59: =Schadstoffbelastung!Y14*10^-6 -> 6.542217822e-17 | U59: =Schadstoffbelastung!Z14*10^-6 -> 6.105817822e-17 | V59: =Schadstoffbelastung!W14*10^-6 -> 1.298169597e-11 | W59: =Sanierungsdesign!M21 -> 0.04497616263 | X59: 1.499133323e-13 | Y59: 42 | Z59: 0.02330529107 | AA59: =Z59*EXP((-$J$6/Heterogenität!$D$4)*1) -> 0.02306613111 | AB59: =AF58*Bodencharakterisierung!$E$11/$J$20 -> 4.358756483e-05 | AC59: =((150*($J$2^0.87)*(AB59^0.79)*$J$3)/(Bodencharakterisierung!$E$13^2))*($J$12-Z59)*3600*24 -> 0.08234674647 | AD59: 0.0002391599663 | AE59: =AE58-AD59*Bodencharakterisierung!$E$8 -> 0.06302281008 | AF59: =IF(AE59>$J$18,(AE59/(Bodencharakterisierung!$E$11*1000)),0) -> 4.159921457e-05 | AG59: 0.02330529107 | AH59: 42 | AJ59: =(AD59)*$G$11*Bodencharakterisierung!$E$8 -> 3.458468138e-06 | AK59: =IF(AH59>0,(AJ59*Schadstoffbelastung!$K$11+$G$34)/($G$12*$G$7)+AK58,NA()) -> 0.09024954473 | AM59: 42 | AN59: =IF(AF59<=$J$9*0.05,AS58*EXP((-$J$6*1)/Heterogenität!$D$4),Z59) -> 0.02330529107 | AO59: =IF(OR(AF59>=$J$19, AR58/$J$5<AN59),0, Bodencharakterisierung!$E$8*$J$11*((AR58/$J$5)-AN59)) -> 0 | AP59: 0 | AQ59: =AQ58-AP59*Bodencharakterisierung!$E$8 -> 0.0066397905 | AR59: =AQ59/(Bodencharakterisierung!$E$11*1000) -> 4.3827e-06 | AS59: 0.02330529107 | AT59: 42 | AV59: =(AP59)*$G$11*Bodencharakterisierung!$E$8 -> 0 | AW59: =IF(AF59<=$J$9*1.05,(AV59*Schadstoffbelastung!$K$11)/($G$12*$G$7)+AW58,NA()) ->  | AX59: 23072.23816 | AY59: 175 | AZ59: 3.713700425 | BA59: 0.09024954473 | BB59: 0 | BC59: 0.26345088 | BE59: 4.3827 | BF59: =#REF!*10^6 ->  | BG59: 41.59921457 | BH59: 23305.29107
B60: 1,1-Dichlorethan | C60: =Schadstoffbelastung!E15 -> 1.0457532e-10 | D60: =Schadstoffbelastung!U15*10^-6 -> 1e-14 | E60: =Stoffdatenbank!R16 -> 98.96 | F60: 1.056743331e-09 | G60: 1.605950741e-12 | H60: FALSE | I60: =Stoffdatenbank!D16 -> 0.0065 | J60: =Stoffdatenbank!N16*10^-3 -> 8.69 | K60: =(Stoffdatenbank!J16*10^-3)*Bodencharakterisierung!$E$9 -> 0.0003574 | L60: =Sanierungsdesign!$E$4*10^-6 -> 0.0002 | M60: 5e-11 | N60: FALSE | O60: 0 | P60: 0 | Q60: =Stoffdatenbank!Q16 -> 1.235 | R60: =Stoffdatenbank!L16 -> 1.14e-09 | S60: =Schadstoffbelastung!X15*10^-6 -> 3.574e-18 | T60: =Schadstoffbelastung!Y15*10^-6 -> 5.752217822e-17 | U60: =Schadstoffbelastung!Z15*10^-6 -> 5.394817822e-17 | V60: =Schadstoffbelastung!W15*10^-6 -> 3.379464288e-11 | W60: =Sanierungsdesign!M22 -> 0.04042037187 | X60: 1.609462177e-13 | Y60: 43 | Z60: 0.02330529107 | AA60: =Z60*EXP((-$J$6/Heterogenität!$D$4)*1) -> 0.02306613111 | AB60: =AF59*Bodencharakterisierung!$E$11/$J$20 -> 4.353304886e-05 | AC60: =((150*($J$2^0.87)*(AB60^0.79)*$J$3)/(Bodencharakterisierung!$E$13^2))*($J$12-Z60)*3600*24 -> 0.08226537133 | AD60: 0.0002391599663 | AE60: =AE59-AD60*Bodencharakterisierung!$E$8 -> 0.06294388729 | AF60: =IF(AE60>$J$18,(AE60/(Bodencharakterisierung!$E$11*1000)),0) -> 4.154712032e-05 | AG60: 0.02330529107 | AH60: 43 | AJ60: =(AD60)*$G$11*Bodencharakterisierung!$E$8 -> 3.458468138e-06 | AK60: =IF(AH60>0,(AJ60*Schadstoffbelastung!$K$11+$G$34)/($G$12*$G$7)+AK59,NA()) -> 0.09241701198 | AM60: 43 | AN60: =IF(AF60<=$J$9*0.05,AS59*EXP((-$J$6*1)/Heterogenität!$D$4),Z60) -> 0.02330529107 | AO60: =IF(OR(AF60>=$J$19, AR59/$J$5<AN60),0, Bodencharakterisierung!$E$8*$J$11*((AR59/$J$5)-AN60)) -> 0 | AP60: 0 | AQ60: =AQ59-AP60*Bodencharakterisierung!$E$8 -> 0.0066397905 | AR60: =AQ60/(Bodencharakterisierung!$E$11*1000) -> 4.3827e-06 | AS60: 0.02330529107 | AT60: 43 | AV60: =(AP60)*$G$11*Bodencharakterisierung!$E$8 -> 0 | AW60: =IF(AF60<=$J$9*1.05,(AV60*Schadstoffbelastung!$K$11)/($G$12*$G$7)+AW59,NA()) ->  | AX60: 23072.23816 | AY60: 176 | AZ60: 3.722140532 | BA60: 0.09241701198 | BB60: 0 | BC60: 0.26972352 | BE60: 4.3827 | BF60: =#REF!*10^6 ->  | BG60: 41.54712032 | BH60: 23305.29107
B61: 1,2-Dichlorethan | C61: =Schadstoffbelastung!E16 -> 1.115928e-10 | D61: =Schadstoffbelastung!U16*10^-6 -> 1e-14 | E61: =Stoffdatenbank!R17 -> 98.96 | F61: 1.127655618e-09 | G61: 1.713717346e-12 | H61: FALSE | I61: =Stoffdatenbank!D17 -> 0.0065 | J61: =Stoffdatenbank!N17*10^-3 -> 8.69 | K61: =(Stoffdatenbank!J17*10^-3)*Bodencharakterisierung!$E$9 -> 0.000396 | L61: =Sanierungsdesign!$E$4*10^-6 -> 0.0002 | M61: 5e-11 | N61: FALSE | O61: 0 | P61: 0 | Q61: 1.25 | R61: =Stoffdatenbank!L17 -> 9.2e-10 | S61: =Schadstoffbelastung!X16*10^-6 -> 3.96e-18 | T61: =Schadstoffbelastung!Y16*10^-6 -> 6.138217822e-17 | U61: =Schadstoffbelastung!Z16*10^-6 -> 5.742217822e-17 | V61: =Schadstoffbelastung!W16*10^-6 -> 3.379464288e-11 | W61: =Sanierungsdesign!M23 -> 0.04042037187 | X61: 1.550055006e-13 | Y61: 44 | Z61: 0.02330529107 | AA61: =Z61*EXP((-$J$6/Heterogenität!$D$4)*1) -> 0.02306613111 | AB61: =AF60*Bodencharakterisierung!$E$11/$J$20 -> 4.347853289e-05 | AC61: =((150*($J$2^0.87)*(AB61^0.79)*$J$3)/(Bodencharakterisierung!$E$13^2))*($J$12-Z61)*3600*24 -> 0.08218397479 | AD61: 0.0002391599663 | AE61: =AE60-AD61*Bodencharakterisierung!$E$8 -> 0.0628649645 | AF61: =IF(AE61>$J$18,(AE61/(Bodencharakterisierung!$E$11*1000)),0) -> 4.149502607e-05 | AG61: 0.02330529107 | AH61: 44 | AJ61: =(AD61)*$G$11*Bodencharakterisierung!$E$8 -> 3.458468138e-06 | AK61: =IF(AH61>0,(AJ61*Schadstoffbelastung!$K$11+$G$34)/($G$12*$G$7)+AK60,NA()) -> 0.09458447924 | AM61: 44 | AN61: =IF(AF61<=$J$9*0.05,AS60*EXP((-$J$6*1)/Heterogenität!$D$4),Z61) -> 0.02330529107 | AO61: =IF(OR(AF61>=$J$19, AR60/$J$5<AN61),0, Bodencharakterisierung!$E$8*$J$11*((AR60/$J$5)-AN61)) -> 0 | AP61: 0 | AQ61: =AQ60-AP61*Bodencharakterisierung!$E$8 -> 0.0066397905 | AR61: =AQ61/(Bodencharakterisierung!$E$11*1000) -> 4.3827e-06 | AS61: 0.02330529107 | AT61: 44 | AV61: =(AP61)*$G$11*Bodencharakterisierung!$E$8 -> 0 | AW61: =IF(AF61<=$J$9*1.05,(AV61*Schadstoffbelastung!$K$11)/($G$12*$G$7)+AW60,NA()) ->  | AX61: 23072.23816 | AY61: 177 | AZ61: 3.730580639 | BA61: 0.09458447924 | BB61: 0 | BC61: 0.27599616 | BE61: 4.3827 | BF61: =#REF!*10^6 ->  | BG61: 41.49502607 | BH61: 23305.29107
B62: Summe LCKW | D62: =SUM(D49:D61) -> 0.00288 | F62: =SUM(F49:F61) -> 658.0172751 | G62: =SUM(G49:G61) -> 1 | H62: TRUE | I62: =(I49*G49)+(I50*G50)+(I51*G51)+(I52*G52)+(I53*G53)+(I54*G54)+(I55*G55)+(I56*G56)+(I57*G57)+(I58*G58)+(I59*G59)+(I60*G60)+(I61*G61) -> 0.0228123147 | J62: =(J49*G49)+(J50*G50)+(J51*G51)+(J52*G52)+(J53*G53)+(J54*G54)+(J55*G55)+(J56*G56)+(J57*G57)+(J58*G58)+(J59*G59)+(J60*G60)+(J61*G61) -> 1.298027775 | K62: =(K49*G49)+(K50*G50)+(K51*G51)+(K52*G52)+(K53*G53)+(K54*G54)+(K55*G55)+(K56*G56)+(K57*G57)+(K58*G58)+(K59*G59)+(K60*G60)+(K61*G61) -> 0.002060187413 | L62: =Sanierungsdesign!$E$4*10^-6 -> 0.0002 | M62: 14.4 | N62: TRUE | P62: 0 | Q62: =(Q49*$G$49)+(Q50*$G$50)+(Q51*$G$51)+(Q52*$G$52)+(Q53*$G$53)+(Q54*$G$54)+(Q55*$G$55)+(Q56*$G$56)+(Q57*$G$57)+(Q58*$G$58)+(Q59*$G$59)+(Q60*$G$60)+(Q61*$G$61) -> 1.44770035 | R62: =(R49*$G$49)+(R50*$G$50)+(R51*$G$51)+(R52*$G$52)+(R53*$G$53)+(R54*$G$54)+(R55*$G$55)+(R56*$G$56)+(R57*$G$57)+(R58*$G$58)+(R59*$G$59)+(R60*$G$60)+(R61*$G$61) -> 7.883829695e-10 | S62: =SUM(S49:S61) -> 4.174e-06 | T62: =SUM(T49:T61) -> 4.801326733e-05 | U62: =SUM(U49:U61) -> 4.383926733e-05 | V62: =SUM(V49:V61) -> 2.165332996 | W62: =AVERAGE(W49:W61) -> 0.04382090633 | X62: =T62/K62 -> 0.02330529107 | Y62: 45 | Z62: 0.02330529107 | AA62: =Z62*EXP((-$J$6/Heterogenität!$D$4)*1) -> 0.02306613111 | AB62: =AF61*Bodencharakterisierung!$E$11/$J$20 -> 4.342401692e-05 | AC62: =((150*($J$2^0.87)*(AB62^0.79)*$J$3)/(Bodencharakterisierung!$E$13^2))*($J$12-Z62)*3600*24 -> 0.08210255682 | AD62: 0.0002391599663 | AE62: =AE61-AD62*Bodencharakterisierung!$E$8 -> 0.06278604171 | AF62: =IF(AE62>$J$18,(AE62/(Bodencharakterisierung!$E$11*1000)),0) -> 4.144293182e-05 | AG62: 0.02330529107 | AH62: 45 | AJ62: =(AD62)*$G$11*Bodencharakterisierung!$E$8 -> 3.458468138e-06 | AK62: =IF(AH62>0,(AJ62*Schadstoffbelastung!$K$11+$G$34)/($G$12*$G$7)+AK61,NA()) -> 0.09675194649 | AM62: 45 | AN62: =IF(AF62<=$J$9*0.05,AS61*EXP((-$J$6*1)/Heterogenität!$D$4),Z62) -> 0.02330529107 | AO62: =IF(OR(AF62>=$J$19, AR61/$J$5<AN62),0, Bodencharakterisierung!$E$8*$J$11*((AR61/$J$5)-AN62)) -> 0 | AP62: 0 | AQ62: =AQ61-AP62*Bodencharakterisierung!$E$8 -> 0.0066397905 | AR62: =AQ62/(Bodencharakterisierung!$E$11*1000) -> 4.3827e-06 | AS62: 0.02330529107 | AT62: 45 | AV62: =(AP62)*$G$11*Bodencharakterisierung!$E$8 -> 0 | AW62: =IF(AF62<=$J$9*1.05,(AV62*Schadstoffbelastung!$K$11)/($G$12*$G$7)+AW61,NA()) ->  | AX62: 23072.23816 | AY62: 178 | AZ62: 3.739020746 | BA62: 0.09675194649 | BB62: 0 | BC62: 0.2822688 | BE62: 4.3827 | BF62: =#REF!*10^6 ->  | BG62: 41.44293182 | BH62: 23305.29107
Y63: 46 | Z63: 0.02330529107 | AA63: =Z63*EXP((-$J$6/Heterogenität!$D$4)*1) -> 0.02306613111 | AB63: =AF62*Bodencharakterisierung!$E$11/$J$20 -> 4.336950095e-05 | AC63: =((150*($J$2^0.87)*(AB63^0.79)*$J$3)/(Bodencharakterisierung!$E$13^2))*($J$12-Z63)*3600*24 -> 0.08202111737 | AD63: 0.0002391599663 | AE63: =AE62-AD63*Bodencharakterisierung!$E$8 -> 0.06270711892 | AF63: =IF(AE63>$J$18,(AE63/(Bodencharakterisierung!$E$11*1000)),0) -> 4.139083757e-05 | AG63: 0.02330529107 | AH63: 46 | AJ63: =(AD63)*$G$11*Bodencharakterisierung!$E$8 -> 3.458468138e-06 | AK63: =IF(AH63>0,(AJ63*Schadstoffbelastung!$K$11+$G$34)/($G$12*$G$7)+AK62,NA()) -> 0.09891941375 | AM63: 46 | AN63: =IF(AF63<=$J$9*0.05,AS62*EXP((-$J$6*1)/Heterogenität!$D$4),Z63) -> 0.02330529107 | AO63: =IF(OR(AF63>=$J$19, AR62/$J$5<AN63),0, Bodencharakterisierung!$E$8*$J$11*((AR62/$J$5)-AN63)) -> 0 | AP63: 0 | AQ63: =AQ62-AP63*Bodencharakterisierung!$E$8 -> 0.0066397905 | AR63: =AQ63/(Bodencharakterisierung!$E$11*1000) -> 4.3827e-06 | AS63: 0.02330529107 | AT63: 46 | AV63: =(AP63)*$G$11*Bodencharakterisierung!$E$8 -> 0 | AW63: =IF(AF63<=$J$9*1.05,(AV63*Schadstoffbelastung!$K$11)/($G$12*$G$7)+AW62,NA()) ->  | AX63: 23072.23816 | AY63: 179 | AZ63: 3.747460854 | BA63: 0.09891941375 | BB63: 0 | BC63: 0.28854144 | BE63: 4.3827 | BF63: =#REF!*10^6 ->  | BG63: 41.39083757 | BH63: 23305.29107
Y64: 47 | Z64: 0.02330529107 | AA64: =Z64*EXP((-$J$6/Heterogenität!$D$4)*1) -> 0.02306613111 | AB64: =AF63*Bodencharakterisierung!$E$11/$J$20 -> 4.331498498e-05 | AC64: =((150*($J$2^0.87)*(AB64^0.79)*$J$3)/(Bodencharakterisierung!$E$13^2))*($J$12-Z64)*3600*24 -> 0.08193965643 | AD64: 0.0002391599663 | AE64: =AE63-AD64*Bodencharakterisierung!$E$8 -> 0.06262819614 | AF64: =IF(AE64>$J$18,(AE64/(Bodencharakterisierung!$E$11*1000)),0) -> 4.133874332e-05 | AG64: 0.02330529107 | AH64: 47 | AJ64: =(AD64)*$G$11*Bodencharakterisierung!$E$8 -> 3.458468138e-06 | AK64: =IF(AH64>0,(AJ64*Schadstoffbelastung!$K$11+$G$34)/($G$12*$G$7)+AK63,NA()) -> 0.101086881 | AM64: 47 | AN64: =IF(AF64<=$J$9*0.05,AS63*EXP((-$J$6*1)/Heterogenität!$D$4),Z64) -> 0.02330529107 | AO64: =IF(OR(AF64>=$J$19, AR63/$J$5<AN64),0, Bodencharakterisierung!$E$8*$J$11*((AR63/$J$5)-AN64)) -> 0 | AP64: 0 | AQ64: =AQ63-AP64*Bodencharakterisierung!$E$8 -> 0.0066397905 | AR64: =AQ64/(Bodencharakterisierung!$E$11*1000) -> 4.3827e-06 | AS64: 0.02330529107 | AT64: 47 | AV64: =(AP64)*$G$11*Bodencharakterisierung!$E$8 -> 0 | AW64: =IF(AF64<=$J$9*1.05,(AV64*Schadstoffbelastung!$K$11)/($G$12*$G$7)+AW63,NA()) ->  | AX64: 23072.23816 | AY64: 180 | AZ64: 3.755900961 | BA64: 0.101086881 | BB64: 0 | BC64: 0.29481408 | BE64: 4.3827 | BF64: =#REF!*10^6 ->  | BG64: 41.33874332 | BH64: 23305.29107
Y65: 48 | Z65: 0.02330529107 | AA65: =Z65*EXP((-$J$6/Heterogenität!$D$4)*1) -> 0.02306613111 | AB65: =AF64*Bodencharakterisierung!$E$11/$J$20 -> 4.326046901e-05 | AC65: =((150*($J$2^0.87)*(AB65^0.79)*$J$3)/(Bodencharakterisierung!$E$13^2))*($J$12-Z65)*3600*24 -> 0.08185817395 | AD65: 0.0002391599663 | AE65: =AE64-AD65*Bodencharakterisierung!$E$8 -> 0.06254927335 | AF65: =IF(AE65>$J$18,(AE65/(Bodencharakterisierung!$E$11*1000)),0) -> 4.128664907e-05 | AG65: 0.02330529107 | AH65: 48 | AJ65: =(AD65)*$G$11*Bodencharakterisierung!$E$8 -> 3.458468138e-06 | AK65: =IF(AH65>0,(AJ65*Schadstoffbelastung!$K$11+$G$34)/($G$12*$G$7)+AK64,NA()) -> 0.1032543483 | AM65: 48 | AN65: =IF(AF65<=$J$9*0.05,AS64*EXP((-$J$6*1)/Heterogenität!$D$4),Z65) -> 0.02330529107 | AO65: =IF(OR(AF65>=$J$19, AR64/$J$5<AN65),0, Bodencharakterisierung!$E$8*$J$11*((AR64/$J$5)-AN65)) -> 0 | AP65: 0 | AQ65: =AQ64-AP65*Bodencharakterisierung!$E$8 -> 0.0066397905 | AR65: =AQ65/(Bodencharakterisierung!$E$11*1000) -> 4.3827e-06 | AS65: 0.02330529107 | AT65: 48 | AV65: =(AP65)*$G$11*Bodencharakterisierung!$E$8 -> 0 | AW65: =IF(AF65<=$J$9*1.05,(AV65*Schadstoffbelastung!$K$11)/($G$12*$G$7)+AW64,NA()) ->  | AX65: 23072.23816 | AY65: 181 | AZ65: 3.764341068 | BA65: 0.1032543483 | BB65: 0 | BC65: 0.30108672 | BE65: 4.3827 | BF65: =#REF!*10^6 ->  | BG65: 41.28664907 | BH65: 23305.29107
B66: Verwendetes Substrat | D66: Stöch. Faktor | E66: =VLOOKUP($C$31,$B$70:$E$79,4,FALSE) -> 90.1 | Y66: 49 | Z66: 0.02330529107 | AA66: =Z66*EXP((-$J$6/Heterogenität!$D$4)*1) -> 0.02306613111 | AB66: =AF65*Bodencharakterisierung!$E$11/$J$20 -> 4.320595304e-05 | AC66: =((150*($J$2^0.87)*(AB66^0.79)*$J$3)/(Bodencharakterisierung!$E$13^2))*($J$12-Z66)*3600*24 -> 0.08177666991 | AD66: 0.0002391599663 | AE66: =AE65-AD66*Bodencharakterisierung!$E$8 -> 0.06247035056 | AF66: =IF(AE66>$J$18,(AE66/(Bodencharakterisierung!$E$11*1000)),0) -> 4.123455482e-05 | AG66: 0.02330529107 | AH66: 49 | AJ66: =(AD66)*$G$11*Bodencharakterisierung!$E$8 -> 3.458468138e-06 | AK66: =IF(AH66>0,(AJ66*Schadstoffbelastung!$K$11+$G$34)/($G$12*$G$7)+AK65,NA()) -> 0.1054218155 | AM66: 49 | AN66: =IF(AF66<=$J$9*0.05,AS65*EXP((-$J$6*1)/Heterogenität!$D$4),Z66) -> 0.02330529107 | AO66: =IF(OR(AF66>=$J$19, AR65/$J$5<AN66),0, Bodencharakterisierung!$E$8*$J$11*((AR65/$J$5)-AN66)) -> 0 | AP66: 0 | AQ66: =AQ65-AP66*Bodencharakterisierung!$E$8 -> 0.0066397905 | AR66: =AQ66/(Bodencharakterisierung!$E$11*1000) -> 4.3827e-06 | AS66: 0.02330529107 | AT66: 49 | AV66: =(AP66)*$G$11*Bodencharakterisierung!$E$8 -> 0 | AW66: =IF(AF66<=$J$9*1.05,(AV66*Schadstoffbelastung!$K$11)/($G$12*$G$7)+AW65,NA()) ->  | AX66: 23072.23816 | AY66: 182 | AZ66: 3.772781176 | BA66: 0.1054218155 | BB66: 0 | BC66: 0.30735936 | BE66: 4.3827 | BF66: =#REF!*10^6 ->  | BG66: 41.23455482 | BH66: 23305.29107
Y67: 50 | Z67: 0.02330529107 | AA67: =Z67*EXP((-$J$6/Heterogenität!$D$4)*1) -> 0.02306613111 | AB67: =AF66*Bodencharakterisierung!$E$11/$J$20 -> 4.315143707e-05 | AC67: =((150*($J$2^0.87)*(AB67^0.79)*$J$3)/(Bodencharakterisierung!$E$13^2))*($J$12-Z67)*3600*24 -> 0.08169514427 | AD67: 0.0002391599663 | AE67: =AE66-AD67*Bodencharakterisierung!$E$8 -> 0.06239142777 | AF67: =IF(AE67>$J$18,(AE67/(Bodencharakterisierung!$E$11*1000)),0) -> 4.118246057e-05 | AG67: 0.02330529107 | AH67: 50 | AJ67: =(AD67)*$G$11*Bodencharakterisierung!$E$8 -> 3.458468138e-06 | AK67: =IF(AH67>0,(AJ67*Schadstoffbelastung!$K$11+$G$34)/($G$12*$G$7)+AK66,NA()) -> 0.1075892828 | AM67: 50 | AN67: =IF(AF67<=$J$9*0.05,AS66*EXP((-$J$6*1)/Heterogenität!$D$4),Z67) -> 0.02330529107 | AO67: =IF(OR(AF67>=$J$19, AR66/$J$5<AN67),0, Bodencharakterisierung!$E$8*$J$11*((AR66/$J$5)-AN67)) -> 0 | AP67: 0 | AQ67: =AQ66-AP67*Bodencharakterisierung!$E$8 -> 0.0066397905 | AR67: =AQ67/(Bodencharakterisierung!$E$11*1000) -> 4.3827e-06 | AS67: 0.02330529107 | AT67: 50 | AV67: =(AP67)*$G$11*Bodencharakterisierung!$E$8 -> 0 | AW67: =IF(AF67<=$J$9*1.05,(AV67*Schadstoffbelastung!$K$11)/($G$12*$G$7)+AW66,NA()) ->  | AX67: 23072.23816 | AY67: 183 | AZ67: 3.781221283 | BA67: 0.1075892828 | BB67: 0 | BC67: 0.313632 | BE67: 4.3827 | BF67: =#REF!*10^6 ->  | BG67: 41.18246057 | BH67: 23305.29107
C68: Molmasse Substrat g/mol | D68: H2 Bildung mol / mol Substrat | E68: Gramm Substrat / 1 Gramm H2 | Y68: 51 | Z68: 0.02330529107 | AA68: =Z68*EXP((-$J$6/Heterogenität!$D$4)*1) -> 0.02306613111 | AB68: =AF67*Bodencharakterisierung!$E$11/$J$20 -> 4.30969211e-05 | AC68: =((150*($J$2^0.87)*(AB68^0.79)*$J$3)/(Bodencharakterisierung!$E$13^2))*($J$12-Z68)*3600*24 -> 0.08161359699 | AD68: 0.0002391599663 | AE68: =AE67-AD68*Bodencharakterisierung!$E$8 -> 0.06231250498 | AF68: =IF(AE68>$J$18,(AE68/(Bodencharakterisierung!$E$11*1000)),0) -> 4.113036632e-05 | AG68: 0.02330529107 | AH68: 51 | AJ68: =(AD68)*$G$11*Bodencharakterisierung!$E$8 -> 3.458468138e-06 | AK68: =IF(AH68>0,(AJ68*Schadstoffbelastung!$K$11+$G$34)/($G$12*$G$7)+AK67,NA()) -> 0.10975675 | AM68: 51 | AN68: =IF(AF68<=$J$9*0.05,AS67*EXP((-$J$6*1)/Heterogenität!$D$4),Z68) -> 0.02330529107 | AO68: =IF(OR(AF68>=$J$19, AR67/$J$5<AN68),0, Bodencharakterisierung!$E$8*$J$11*((AR67/$J$5)-AN68)) -> 0 | AP68: 0 | AQ68: =AQ67-AP68*Bodencharakterisierung!$E$8 -> 0.0066397905 | AR68: =AQ68/(Bodencharakterisierung!$E$11*1000) -> 4.3827e-06 | AS68: 0.02330529107 | AT68: 51 | AV68: =(AP68)*$G$11*Bodencharakterisierung!$E$8 -> 0 | AW68: =IF(AF68<=$J$9*1.05,(AV68*Schadstoffbelastung!$K$11)/($G$12*$G$7)+AW67,NA()) ->  | AX68: 23072.23816 | AY68: 184 | AZ68: 3.78966139 | BA68: 0.10975675 | BB68: 0 | BC68: 0.31990464 | BE68: 4.3827 | BF68: =#REF!*10^6 ->  | BG68: 41.13036632 | BH68: 23305.29107
B69: Elektronendonator (ED) | Y69: 52 | Z69: 0.02330529107 | AA69: =Z69*EXP((-$J$6/Heterogenität!$D$4)*1) -> 0.02306613111 | AB69: =AF68*Bodencharakterisierung!$E$11/$J$20 -> 4.304240513e-05 | AC69: =((150*($J$2^0.87)*(AB69^0.79)*$J$3)/(Bodencharakterisierung!$E$13^2))*($J$12-Z69)*3600*24 -> 0.08153202805 | AD69: 0.0002391599663 | AE69: =AE68-AD69*Bodencharakterisierung!$E$8 -> 0.06223358219 | AF69: =IF(AE69>$J$18,(AE69/(Bodencharakterisierung!$E$11*1000)),0) -> 4.107827207e-05 | AG69: 0.02330529107 | AH69: 52 | AJ69: =(AD69)*$G$11*Bodencharakterisierung!$E$8 -> 3.458468138e-06 | AK69: =IF(AH69>0,(AJ69*Schadstoffbelastung!$K$11+$G$34)/($G$12*$G$7)+AK68,NA()) -> 0.1119242173 | AM69: 52 | AN69: =IF(AF69<=$J$9*0.05,AS68*EXP((-$J$6*1)/Heterogenität!$D$4),Z69) -> 0.02330529107 | AO69: =IF(OR(AF69>=$J$19, AR68/$J$5<AN69),0, Bodencharakterisierung!$E$8*$J$11*((AR68/$J$5)-AN69)) -> 0 | AP69: 0 | AQ69: =AQ68-AP69*Bodencharakterisierung!$E$8 -> 0.0066397905 | AR69: =AQ69/(Bodencharakterisierung!$E$11*1000) -> 4.3827e-06 | AS69: 0.02330529107 | AT69: 52 | AV69: =(AP69)*$G$11*Bodencharakterisierung!$E$8 -> 0 | AW69: =IF(AF69<=$J$9*1.05,(AV69*Schadstoffbelastung!$K$11)/($G$12*$G$7)+AW68,NA()) ->  | AX69: 23072.23816 | AY69: 185 | AZ69: 3.798101497 | BA69: 0.1119242173 | BB69: 0 | BC69: 0.32617728 | BE69: 4.3827 | BF69: =#REF!*10^6 ->  | BG69: 41.07827207 | BH69: 23305.29107
B70: Wasserstoff | C70: 2 | D70: 1 | E70: 1 | Y70: 53 | Z70: 0.02330529107 | AA70: =Z70*EXP((-$J$6/Heterogenität!$D$4)*1) -> 0.02306613111 | AB70: =AF69*Bodencharakterisierung!$E$11/$J$20 -> 4.298788916e-05 | AC70: =((150*($J$2^0.87)*(AB70^0.79)*$J$3)/(Bodencharakterisierung!$E$13^2))*($J$12-Z70)*3600*24 -> 0.08145043741 | AD70: 0.0002391599663 | AE70: =AE69-AD70*Bodencharakterisierung!$E$8 -> 0.0621546594 | AF70: =IF(AE70>$J$18,(AE70/(Bodencharakterisierung!$E$11*1000)),0) -> 4.102617782e-05 | AG70: 0.02330529107 | AH70: 53 | AJ70: =(AD70)*$G$11*Bodencharakterisierung!$E$8 -> 3.458468138e-06 | AK70: =IF(AH70>0,(AJ70*Schadstoffbelastung!$K$11+$G$34)/($G$12*$G$7)+AK69,NA()) -> 0.1140916845 | AM70: 53 | AN70: =IF(AF70<=$J$9*0.05,AS69*EXP((-$J$6*1)/Heterogenität!$D$4),Z70) -> 0.02330529107 | AO70: =IF(OR(AF70>=$J$19, AR69/$J$5<AN70),0, Bodencharakterisierung!$E$8*$J$11*((AR69/$J$5)-AN70)) -> 0 | AP70: 0 | AQ70: =AQ69-AP70*Bodencharakterisierung!$E$8 -> 0.0066397905 | AR70: =AQ70/(Bodencharakterisierung!$E$11*1000) -> 4.3827e-06 | AS70: 0.02330529107 | AT70: 53 | AV70: =(AP70)*$G$11*Bodencharakterisierung!$E$8 -> 0 | AW70: =IF(AF70<=$J$9*1.05,(AV70*Schadstoffbelastung!$K$11)/($G$12*$G$7)+AW69,NA()) ->  | AX70: 23072.23816 | AY70: 186 | AZ70: 3.806541605 | BA70: 0.1140916845 | BB70: 0 | BC70: 0.33244992 | BE70: 4.3827 | BF70: =#REF!*10^6 ->  | BG70: 41.02617782 | BH70: 23305.29107
B71: Acetat | C71: 60.1 | D71: 4 | E71: 30.05 | Y71: 54 | Z71: 0.02330529107 | AA71: =Z71*EXP((-$J$6/Heterogenität!$D$4)*1) -> 0.02306613111 | AB71: =AF70*Bodencharakterisierung!$E$11/$J$20 -> 4.293337319e-05 | AC71: =((150*($J$2^0.87)*(AB71^0.79)*$J$3)/(Bodencharakterisierung!$E$13^2))*($J$12-Z71)*3600*24 -> 0.08136882504 | AD71: 0.0002391599663 | AE71: =AE70-AD71*Bodencharakterisierung!$E$8 -> 0.06207573661 | AF71: =IF(AE71>$J$18,(AE71/(Bodencharakterisierung!$E$11*1000)),0) -> 4.097408357e-05 | AG71: 0.02330529107 | AH71: 54 | AJ71: =(AD71)*$G$11*Bodencharakterisierung!$E$8 -> 3.458468138e-06 | AK71: =IF(AH71>0,(AJ71*Schadstoffbelastung!$K$11+$G$34)/($G$12*$G$7)+AK70,NA()) -> 0.1162591518 | AM71: 54 | AN71: =IF(AF71<=$J$9*0.05,AS70*EXP((-$J$6*1)/Heterogenität!$D$4),Z71) -> 0.02330529107 | AO71: =IF(OR(AF71>=$J$19, AR70/$J$5<AN71),0, Bodencharakterisierung!$E$8*$J$11*((AR70/$J$5)-AN71)) -> 0 | AP71: 0 | AQ71: =AQ70-AP71*Bodencharakterisierung!$E$8 -> 0.0066397905 | AR71: =AQ71/(Bodencharakterisierung!$E$11*1000) -> 4.3827e-06 | AS71: 0.02330529107 | AT71: 54 | AV71: =(AP71)*$G$11*Bodencharakterisierung!$E$8 -> 0 | AW71: =IF(AF71<=$J$9*1.05,(AV71*Schadstoffbelastung!$K$11)/($G$12*$G$7)+AW70,NA()) ->  | AX71: 23072.23816 | AY71: 187 | AZ71: 3.814981712 | BA71: 0.1162591518 | BB71: 0 | BC71: 0.33872256 | BE71: 4.3827 | BF71: =#REF!*10^6 ->  | BG71: 40.97408357 | BH71: 23305.29107
B72: Ethanol | C72: 46.1 | D72: 6 | E72: 23.05 | Y72: 55 | Z72: 0.02330529107 | AA72: =Z72*EXP((-$J$6/Heterogenität!$D$4)*1) -> 0.02306613111 | AB72: =AF71*Bodencharakterisierung!$E$11/$J$20 -> 4.287885722e-05 | AC72: =((150*($J$2^0.87)*(AB72^0.79)*$J$3)/(Bodencharakterisierung!$E$13^2))*($J$12-Z72)*3600*24 -> 0.08128719091 | AD72: 0.0002391599663 | AE72: =AE71-AD72*Bodencharakterisierung!$E$8 -> 0.06199681382 | AF72: =IF(AE72>$J$18,(AE72/(Bodencharakterisierung!$E$11*1000)),0) -> 4.092198932e-05 | AG72: 0.02330529107 | AH72: 55 | AJ72: =(AD72)*$G$11*Bodencharakterisierung!$E$8 -> 3.458468138e-06 | AK72: =IF(AH72>0,(AJ72*Schadstoffbelastung!$K$11+$G$34)/($G$12*$G$7)+AK71,NA()) -> 0.118426619 | AM72: 55 | AN72: =IF(AF72<=$J$9*0.05,AS71*EXP((-$J$6*1)/Heterogenität!$D$4),Z72) -> 0.02330529107 | AO72: =IF(OR(AF72>=$J$19, AR71/$J$5<AN72),0, Bodencharakterisierung!$E$8*$J$11*((AR71/$J$5)-AN72)) -> 0 | AP72: 0 | AQ72: =AQ71-AP72*Bodencharakterisierung!$E$8 -> 0.0066397905 | AR72: =AQ72/(Bodencharakterisierung!$E$11*1000) -> 4.3827e-06 | AS72: 0.02330529107 | AT72: 55 | AV72: =(AP72)*$G$11*Bodencharakterisierung!$E$8 -> 0 | AW72: =IF(AF72<=$J$9*1.05,(AV72*Schadstoffbelastung!$K$11)/($G$12*$G$7)+AW71,NA()) ->  | AX72: 23072.23816 | AY72: 188 | AZ72: 3.823421819 | BA72: 0.118426619 | BB72: 0 | BC72: 0.3449952 | BE72: 4.3827 | BF72: =#REF!*10^6 ->  | BG72: 40.92198932 | BH72: 23305.29107
B73: Laktat | C73: 90.1 | D73: 6 | E73: 45.05 | Y73: 56 | Z73: 0.02330529107 | AA73: =Z73*EXP((-$J$6/Heterogenität!$D$4)*1) -> 0.02306613111 | AB73: =AF72*Bodencharakterisierung!$E$11/$J$20 -> 4.282434125e-05 | AC73: =((150*($J$2^0.87)*(AB73^0.79)*$J$3)/(Bodencharakterisierung!$E$13^2))*($J$12-Z73)*3600*24 -> 0.08120553497 | AD73: 0.0002391599663 | AE73: =AE72-AD73*Bodencharakterisierung!$E$8 -> 0.06191789104 | AF73: =IF(AE73>$J$18,(AE73/(Bodencharakterisierung!$E$11*1000)),0) -> 4.086989507e-05 | AG73: 0.02330529107 | AH73: 56 | AJ73: =(AD73)*$G$11*Bodencharakterisierung!$E$8 -> 3.458468138e-06 | AK73: =IF(AH73>0,(AJ73*Schadstoffbelastung!$K$11+$G$34)/($G$12*$G$7)+AK72,NA()) -> 0.1205940863 | AM73: 56 | AN73: =IF(AF73<=$J$9*0.05,AS72*EXP((-$J$6*1)/Heterogenität!$D$4),Z73) -> 0.02330529107 | AO73: =IF(OR(AF73>=$J$19, AR72/$J$5<AN73),0, Bodencharakterisierung!$E$8*$J$11*((AR72/$J$5)-AN73)) -> 0 | AP73: 0 | AQ73: =AQ72-AP73*Bodencharakterisierung!$E$8 -> 0.0066397905 | AR73: =AQ73/(Bodencharakterisierung!$E$11*1000) -> 4.3827e-06 | AS73: 0.02330529107 | AT73: 56 | AV73: =(AP73)*$G$11*Bodencharakterisierung!$E$8 -> 0 | AW73: =IF(AF73<=$J$9*1.05,(AV73*Schadstoffbelastung!$K$11)/($G$12*$G$7)+AW72,NA()) ->  | AX73: 23072.23816 | AY73: 189 | AZ73: 3.831861926 | BA73: 0.1205940863 | BB73: 0 | BC73: 0.35126784 | BE73: 4.3827 | BF73: =#REF!*10^6 ->  | BG73: 40.86989507 | BH73: 23305.29107
B74: Glucose | C74: 180.2 | D74: 12 | E74: 90.1 | Y74: 57 | Z74: 0.02330529107 | AA74: =Z74*EXP((-$J$6/Heterogenität!$D$4)*1) -> 0.02306613111 | AB74: =AF73*Bodencharakterisierung!$E$11/$J$20 -> 4.276982528e-05 | AC74: =((150*($J$2^0.87)*(AB74^0.79)*$J$3)/(Bodencharakterisierung!$E$13^2))*($J$12-Z74)*3600*24 -> 0.08112385721 | AD74: 0.0002391599663 | AE74: =AE73-AD74*Bodencharakterisierung!$E$8 -> 0.06183896825 | AF74: =IF(AE74>$J$18,(AE74/(Bodencharakterisierung!$E$11*1000)),0) -> 4.081780082e-05 | AG74: 0.02330529107 | AH74: 57 | AJ74: =(AD74)*$G$11*Bodencharakterisierung!$E$8 -> 3.458468138e-06 | AK74: =IF(AH74>0,(AJ74*Schadstoffbelastung!$K$11+$G$34)/($G$12*$G$7)+AK73,NA()) -> 0.1227615536 | AM74: 57 | AN74: =IF(AF74<=$J$9*0.05,AS73*EXP((-$J$6*1)/Heterogenität!$D$4),Z74) -> 0.02330529107 | AO74: =IF(OR(AF74>=$J$19, AR73/$J$5<AN74),0, Bodencharakterisierung!$E$8*$J$11*((AR73/$J$5)-AN74)) -> 0 | AP74: 0 | AQ74: =AQ73-AP74*Bodencharakterisierung!$E$8 -> 0.0066397905 | AR74: =AQ74/(Bodencharakterisierung!$E$11*1000) -> 4.3827e-06 | AS74: 0.02330529107 | AT74: 57 | AV74: =(AP74)*$G$11*Bodencharakterisierung!$E$8 -> 0 | AW74: =IF(AF74<=$J$9*1.05,(AV74*Schadstoffbelastung!$K$11)/($G$12*$G$7)+AW73,NA()) ->  | AX74: 23072.23816 | AY74: 190 | AZ74: 3.840302034 | BA74: 0.1227615536 | BB74: 0 | BC74: 0.35754048 | BE74: 4.3827 | BF74: =#REF!*10^6 ->  | BG74: 40.81780082 | BH74: 23305.29107
B75: Sojaöl | C75: 873.1 | D75: 165.5 | E75: 436.55 | Y75: 58 | Z75: 0.02330529107 | AA75: =Z75*EXP((-$J$6/Heterogenität!$D$4)*1) -> 0.02306613111 | AB75: =AF74*Bodencharakterisierung!$E$11/$J$20 -> 4.271530931e-05 | AC75: =((150*($J$2^0.87)*(AB75^0.79)*$J$3)/(Bodencharakterisierung!$E$13^2))*($J$12-Z75)*3600*24 -> 0.08104215757 | AD75: 0.0002391599663 | AE75: =AE74-AD75*Bodencharakterisierung!$E$8 -> 0.06176004546 | AF75: =IF(AE75>$J$18,(AE75/(Bodencharakterisierung!$E$11*1000)),0) -> 4.076570657e-05 | AG75: 0.02330529107 | AH75: 58 | AJ75: =(AD75)*$G$11*Bodencharakterisierung!$E$8 -> 3.458468138e-06 | AK75: =IF(AH75>0,(AJ75*Schadstoffbelastung!$K$11+$G$34)/($G$12*$G$7)+AK74,NA()) -> 0.1249290208 | AM75: 58 | AN75: =IF(AF75<=$J$9*0.05,AS74*EXP((-$J$6*1)/Heterogenität!$D$4),Z75) -> 0.02330529107 | AO75: =IF(OR(AF75>=$J$19, AR74/$J$5<AN75),0, Bodencharakterisierung!$E$8*$J$11*((AR74/$J$5)-AN75)) -> 0 | AP75: 0 | AQ75: =AQ74-AP75*Bodencharakterisierung!$E$8 -> 0.0066397905 | AR75: =AQ75/(Bodencharakterisierung!$E$11*1000) -> 4.3827e-06 | AS75: 0.02330529107 | AT75: 58 | AV75: =(AP75)*$G$11*Bodencharakterisierung!$E$8 -> 0 | AW75: =IF(AF75<=$J$9*1.05,(AV75*Schadstoffbelastung!$K$11)/($G$12*$G$7)+AW74,NA()) ->  | AX75: 23072.23816 | AY75: 191 | AZ75: 3.848742141 | BA75: 0.1249290208 | BB75: 0 | BC75: 0.36381312 | BE75: 4.3827 | BF75: =#REF!*10^6 ->  | BG75: 40.76570657 | BH75: 23305.29107
B76: Palmöl | C76: 848.5 | D76: 152.8 | E76: 424.25 | Y76: 59 | Z76: 0.02330529107 | AA76: =Z76*EXP((-$J$6/Heterogenität!$D$4)*1) -> 0.02306613111 | AB76: =AF75*Bodencharakterisierung!$E$11/$J$20 -> 4.266079334e-05 | AC76: =((150*($J$2^0.87)*(AB76^0.79)*$J$3)/(Bodencharakterisierung!$E$13^2))*($J$12-Z76)*3600*24 -> 0.08096043604 | AD76: 0.0002391599663 | AE76: =AE75-AD76*Bodencharakterisierung!$E$8 -> 0.06168112267 | AF76: =IF(AE76>$J$18,(AE76/(Bodencharakterisierung!$E$11*1000)),0) -> 4.071361232e-05 | AG76: 0.02330529107 | AH76: 59 | AJ76: =(AD76)*$G$11*Bodencharakterisierung!$E$8 -> 3.458468138e-06 | AK76: =IF(AH76>0,(AJ76*Schadstoffbelastung!$K$11+$G$34)/($G$12*$G$7)+AK75,NA()) -> 0.1270964881 | AM76: 59 | AN76: =IF(AF76<=$J$9*0.05,AS75*EXP((-$J$6*1)/Heterogenität!$D$4),Z76) -> 0.02330529107 | AO76: =IF(OR(AF76>=$J$19, AR75/$J$5<AN76),0, Bodencharakterisierung!$E$8*$J$11*((AR75/$J$5)-AN76)) -> 0 | AP76: 0 | AQ76: =AQ75-AP76*Bodencharakterisierung!$E$8 -> 0.0066397905 | AR76: =AQ76/(Bodencharakterisierung!$E$11*1000) -> 4.3827e-06 | AS76: 0.02330529107 | AT76: 59 | AV76: =(AP76)*$G$11*Bodencharakterisierung!$E$8 -> 0 | AW76: =IF(AF76<=$J$9*1.05,(AV76*Schadstoffbelastung!$K$11)/($G$12*$G$7)+AW75,NA()) ->  | AX76: 23072.23816 | AY76: 192 | AZ76: 3.857182248 | BA76: 0.1270964881 | BB76: 0 | BC76: 0.37008576 | BE76: 4.3827 | BF76: =#REF!*10^6 ->  | BG76: 40.71361232 | BH76: 23305.29107
B77: Rapsöl | C77: 884.6 | D77: 159.3 | E77: 442.3 | Y77: 60 | Z77: 0.02330529107 | AA77: =Z77*EXP((-$J$6/Heterogenität!$D$4)*1) -> 0.02306613111 | AB77: =AF76*Bodencharakterisierung!$E$11/$J$20 -> 4.260627737e-05 | AC77: =((150*($J$2^0.87)*(AB77^0.79)*$J$3)/(Bodencharakterisierung!$E$13^2))*($J$12-Z77)*3600*24 -> 0.08087869258 | AD77: 0.0002391599663 | AE77: =AE76-AD77*Bodencharakterisierung!$E$8 -> 0.06160219988 | AF77: =IF(AE77>$J$18,(AE77/(Bodencharakterisierung!$E$11*1000)),0) -> 4.066151807e-05 | AG77: 0.02330529107 | AH77: 60 | AJ77: =(AD77)*$G$11*Bodencharakterisierung!$E$8 -> 3.458468138e-06 | AK77: =IF(AH77>0,(AJ77*Schadstoffbelastung!$K$11+$G$34)/($G$12*$G$7)+AK76,NA()) -> 0.1292639553 | AM77: 60 | AN77: =IF(AF77<=$J$9*0.05,AS76*EXP((-$J$6*1)/Heterogenität!$D$4),Z77) -> 0.02330529107 | AO77: =IF(OR(AF77>=$J$19, AR76/$J$5<AN77),0, Bodencharakterisierung!$E$8*$J$11*((AR76/$J$5)-AN77)) -> 0 | AP77: 0 | AQ77: =AQ76-AP77*Bodencharakterisierung!$E$8 -> 0.0066397905 | AR77: =AQ77/(Bodencharakterisierung!$E$11*1000) -> 4.3827e-06 | AS77: 0.02330529107 | AT77: 60 | AV77: =(AP77)*$G$11*Bodencharakterisierung!$E$8 -> 0 | AW77: =IF(AF77<=$J$9*1.05,(AV77*Schadstoffbelastung!$K$11)/($G$12*$G$7)+AW76,NA()) ->  | AX77: 23072.23816 | AY77: 193 | AZ77: 3.865622355 | BA77: 0.1292639553 | BB77: 0 | BC77: 0.3763584 | BE77: 4.3827 | BF77: =#REF!*10^6 ->  | BG77: 40.66151807 | BH77: 23305.29107
B78: Biomasse | C78: 113.1 | D78: 10 | E78: 56.55 | Y78: 61 | Z78: 0.02330529107 | AA78: =Z78*EXP((-$J$6/Heterogenität!$D$4)*1) -> 0.02306613111 | AB78: =AF77*Bodencharakterisierung!$E$11/$J$20 -> 4.25517614e-05 | AC78: =((150*($J$2^0.87)*(AB78^0.79)*$J$3)/(Bodencharakterisierung!$E$13^2))*($J$12-Z78)*3600*24 -> 0.08079692714 | AD78: 0.0002391599663 | AE78: =AE77-AD78*Bodencharakterisierung!$E$8 -> 0.06152327709 | AF78: =IF(AE78>$J$18,(AE78/(Bodencharakterisierung!$E$11*1000)),0) -> 4.060942382e-05 | AG78: 0.02330529107 | AH78: 61 | AJ78: =(AD78)*$G$11*Bodencharakterisierung!$E$8 -> 3.458468138e-06 | AK78: =IF(AH78>0,(AJ78*Schadstoffbelastung!$K$11+$G$34)/($G$12*$G$7)+AK77,NA()) -> 0.1314314226 | AM78: 61 | AN78: =IF(AF78<=$J$9*0.05,AS77*EXP((-$J$6*1)/Heterogenität!$D$4),Z78) -> 0.02330529107 | AO78: =IF(OR(AF78>=$J$19, AR77/$J$5<AN78),0, Bodencharakterisierung!$E$8*$J$11*((AR77/$J$5)-AN78)) -> 0 | AP78: 0 | AQ78: =AQ77-AP78*Bodencharakterisierung!$E$8 -> 0.0066397905 | AR78: =AQ78/(Bodencharakterisierung!$E$11*1000) -> 4.3827e-06 | AS78: 0.02330529107 | AT78: 61 | AV78: =(AP78)*$G$11*Bodencharakterisierung!$E$8 -> 0 | AW78: =IF(AF78<=$J$9*1.05,(AV78*Schadstoffbelastung!$K$11)/($G$12*$G$7)+AW77,NA()) ->  | AX78: 23072.23816 | AY78: 194 | AZ78: 3.874062463 | BA78: 0.1314314226 | BB78: 0 | BC78: 0.38263104 | BE78: 4.3827 | BF78: =#REF!*10^6 ->  | BG78: 40.60942382 | BH78: 23305.29107
B79: Andere | C79: 0 | D79: 0 | E79: 0 | Y79: 62 | Z79: 0.02330529107 | AA79: =Z79*EXP((-$J$6/Heterogenität!$D$4)*1) -> 0.02306613111 | AB79: =AF78*Bodencharakterisierung!$E$11/$J$20 -> 4.249724543e-05 | AC79: =((150*($J$2^0.87)*(AB79^0.79)*$J$3)/(Bodencharakterisierung!$E$13^2))*($J$12-Z79)*3600*24 -> 0.08071513971 | AD79: 0.0002391599663 | AE79: =AE78-AD79*Bodencharakterisierung!$E$8 -> 0.0614443543 | AF79: =IF(AE79>$J$18,(AE79/(Bodencharakterisierung!$E$11*1000)),0) -> 4.055732957e-05 | AG79: 0.02330529107 | AH79: 62 | AJ79: =(AD79)*$G$11*Bodencharakterisierung!$E$8 -> 3.458468138e-06 | AK79: =IF(AH79>0,(AJ79*Schadstoffbelastung!$K$11+$G$34)/($G$12*$G$7)+AK78,NA()) -> 0.1335988898 | AM79: 62 | AN79: =IF(AF79<=$J$9*0.05,AS78*EXP((-$J$6*1)/Heterogenität!$D$4),Z79) -> 0.02330529107 | AO79: =IF(OR(AF79>=$J$19, AR78/$J$5<AN79),0, Bodencharakterisierung!$E$8*$J$11*((AR78/$J$5)-AN79)) -> 0 | AP79: 0 | AQ79: =AQ78-AP79*Bodencharakterisierung!$E$8 -> 0.0066397905 | AR79: =AQ79/(Bodencharakterisierung!$E$11*1000) -> 4.3827e-06 | AS79: 0.02330529107 | AT79: 62 | AV79: =(AP79)*$G$11*Bodencharakterisierung!$E$8 -> 0 | AW79: =IF(AF79<=$J$9*1.05,(AV79*Schadstoffbelastung!$K$11)/($G$12*$G$7)+AW78,NA()) ->  | AX79: 23072.23816 | AY79: 195 | AZ79: 3.88250257 | BA79: 0.1335988898 | BB79: 0 | BC79: 0.38890368 | BE79: 4.3827 | BF79: =#REF!*10^6 ->  | BG79: 40.55732957 | BH79: 23305.29107
Y80: 63 | Z80: 0.02330529107 | AA80: =Z80*EXP((-$J$6/Heterogenität!$D$4)*1) -> 0.02306613111 | AB80: =AF79*Bodencharakterisierung!$E$11/$J$20 -> 4.244272946e-05 | AC80: =((150*($J$2^0.87)*(AB80^0.79)*$J$3)/(Bodencharakterisierung!$E$13^2))*($J$12-Z80)*3600*24 -> 0.08063333024 | AD80: 0.0002391599663 | AE80: =AE79-AD80*Bodencharakterisierung!$E$8 -> 0.06136543151 | AF80: =IF(AE80>$J$18,(AE80/(Bodencharakterisierung!$E$11*1000)),0) -> 4.050523532e-05 | AG80: 0.02330529107 | AH80: 63 | AJ80: =(AD80)*$G$11*Bodencharakterisierung!$E$8 -> 3.458468138e-06 | AK80: =IF(AH80>0,(AJ80*Schadstoffbelastung!$K$11+$G$34)/($G$12*$G$7)+AK79,NA()) -> 0.1357663571 | AM80: 63 | AN80: =IF(AF80<=$J$9*0.05,AS79*EXP((-$J$6*1)/Heterogenität!$D$4),Z80) -> 0.02330529107 | AO80: =IF(OR(AF80>=$J$19, AR79/$J$5<AN80),0, Bodencharakterisierung!$E$8*$J$11*((AR79/$J$5)-AN80)) -> 0 | AP80: 0 | AQ80: =AQ79-AP80*Bodencharakterisierung!$E$8 -> 0.0066397905 | AR80: =AQ80/(Bodencharakterisierung!$E$11*1000) -> 4.3827e-06 | AS80: 0.02330529107 | AT80: 63 | AV80: =(AP80)*$G$11*Bodencharakterisierung!$E$8 -> 0 | AW80: =IF(AF80<=$J$9*1.05,(AV80*Schadstoffbelastung!$K$11)/($G$12*$G$7)+AW79,NA()) ->  | AX80: 23072.23816 | AY80: 196 | AZ80: 3.890942677 | BA80: 0.1357663571 | BB80: 0 | BC80: 0.39517632 | BE80: 4.3827 | BF80: =#REF!*10^6 ->  | BG80: 40.50523532 | BH80: 23305.29107
B81: LCKW | C81: Inventar kg | D81: Inventar g | E81: benötigte H2-Menge g | F81: Substrat-menge g | G81: Substrat-menge kg | Y81: 64 | Z81: 0.02330529107 | AA81: =Z81*EXP((-$J$6/Heterogenität!$D$4)*1) -> 0.02306613111 | AB81: =AF80*Bodencharakterisierung!$E$11/$J$20 -> 4.238821349e-05 | AC81: =((150*($J$2^0.87)*(AB81^0.79)*$J$3)/(Bodencharakterisierung!$E$13^2))*($J$12-Z81)*3600*24 -> 0.0805514987 | AD81: 0.0002391599663 | AE81: =AE80-AD81*Bodencharakterisierung!$E$8 -> 0.06128650872 | AF81: =IF(AE81>$J$18,(AE81/(Bodencharakterisierung!$E$11*1000)),0) -> 4.045314107e-05 | AG81: 0.02330529107 | AH81: 64 | AJ81: =(AD81)*$G$11*Bodencharakterisierung!$E$8 -> 3.458468138e-06 | AK81: =IF(AH81>0,(AJ81*Schadstoffbelastung!$K$11+$G$34)/($G$12*$G$7)+AK80,NA()) -> 0.1379338243 | AM81: 64 | AN81: =IF(AF81<=$J$9*0.05,AS80*EXP((-$J$6*1)/Heterogenität!$D$4),Z81) -> 0.02330529107 | AO81: =IF(OR(AF81>=$J$19, AR80/$J$5<AN81),0, Bodencharakterisierung!$E$8*$J$11*((AR80/$J$5)-AN81)) -> 0 | AP81: 0 | AQ81: =AQ80-AP81*Bodencharakterisierung!$E$8 -> 0.0066397905 | AR81: =AQ81/(Bodencharakterisierung!$E$11*1000) -> 4.3827e-06 | AS81: 0.02330529107 | AT81: 64 | AV81: =(AP81)*$G$11*Bodencharakterisierung!$E$8 -> 0 | AW81: =IF(AF81<=$J$9*1.05,(AV81*Schadstoffbelastung!$K$11)/($G$12*$G$7)+AW80,NA()) ->  | AX81: 23072.23816 | AY81: 197 | AZ81: 3.899382784 | BA81: 0.1379338243 | BB81: 0 | BC81: 0.40144896 | BE81: 4.3827 | BF81: =#REF!*10^6 ->  | BG81: 40.45314107 | BH81: =AN81*10^6 -> 23305.29107
Y82: 65 | Z82: 0.02330529107 | AA82: =Z82*EXP((-$J$6/Heterogenität!$D$4)*1) -> 0.02306613111 | AB82: =AF81*Bodencharakterisierung!$E$11/$J$20 -> 4.233369752e-05 | AC82: =((150*($J$2^0.87)*(AB82^0.79)*$J$3)/(Bodencharakterisierung!$E$13^2))*($J$12-Z82)*3600*24 -> 0.08046964505 | AD82: 0.0002391599663 | AE82: =AE81-AD82*Bodencharakterisierung!$E$8 -> 0.06120758594 | AF82: =IF(AE82>$J$18,(AE82/(Bodencharakterisierung!$E$11*1000)),0) -> 4.040104682e-05 | AG82: 0.02330529107 | AH82: 65 | AJ82: =(AD82)*$G$11*Bodencharakterisierung!$E$8 -> 3.458468138e-06 | AK82: =IF(AH82>0,(AJ82*Schadstoffbelastung!$K$11+$G$34)/($G$12*$G$7)+AK81,NA()) -> 0.1401012916 | AM82: 65 | AN82: =IF(AF82<=$J$9*0.05,AS81*EXP((-$J$6*1)/Heterogenität!$D$4),Z82) -> 0.02330529107 | AO82: =IF(OR(AF82>=$J$19, AR81/$J$5<AN82),0, Bodencharakterisierung!$E$8*$J$11*((AR81/$J$5)-AN82)) -> 0 | AP82: 0 | AQ82: =AQ81-AP82*Bodencharakterisierung!$E$8 -> 0.0066397905 | AR82: =AQ82/(Bodencharakterisierung!$E$11*1000) -> 4.3827e-06 | AS82: 0.02330529107 | AT82: =IF(AN82>$G$5,AM82,NA()) -> 65 | AV82: =(AP82)*$G$11*Bodencharakterisierung!$E$8 -> 0 | AW82: =IF(AF82<=$J$9*1.05,(AV82*Schadstoffbelastung!$K$11)/($G$12*$G$7)+AW81,NA()) ->  | AX82: =IF(BH82>($G$5*10^6),BH82*0.99,9999) -> 23072.23816 | AY82: =AT82+$G$3 -> 198 | AZ82: 3.907822892 | BA82: 0.1401012916 | BB82: 0 | BC82: 0.4077216 | BE82: 4.3827 | BF82: =#REF!*10^6 ->  | BG82: =AF82*10^6 -> 40.40104682 | BH82: 23305.29107
B83: Tetrachlorethen | C83: =IFERROR(Schadstoffbelastung!E4,0) -> 48.5856 | D83: =C83*1000 -> 48585.6 | E83: =D83*Sanierungsdesign!M11 -> 2341.474699 | F83: =E83*$E$66 -> 210966.8704 | G83: =F83/1000 -> 210.9668704 | Y83: 66 | Z83: =AG82 -> 0.02330529107 | AA83: =Z83*EXP((-$J$6/Heterogenität!$D$4)*1) -> 0.02306613111 | AB83: =AF82*Bodencharakterisierung!$E$11/$J$20 -> 4.227918155e-05 | AC83: =((150*($J$2^0.87)*(AB83^0.79)*$J$3)/(Bodencharakterisierung!$E$13^2))*($J$12-Z83)*3600*24 -> 0.08038776927 | AD83: =MIN(AC83,Z83-AA83) -> 0.0002391599663 | AE83: =AE82-AD83*Bodencharakterisierung!$E$8 -> 0.06112866315 | AF83: =IF(AE83>$J$18,(AE83/(Bodencharakterisierung!$E$11*1000)),0) -> 4.034895257e-05 | AG83: =AA83+AD83 -> 0.02330529107 | AH83: =IF(AD83>0,Y83,NA()) -> 66 | AJ83: =(AD83)*$G$11*Bodencharakterisierung!$E$8 -> 3.458468138e-06 | AK83: =IF(AH83>0,(AJ83*Schadstoffbelastung!$K$11+$G$34)/($G$12*$G$7)+AK82,NA()) -> 0.1422687589 | AM83: 66 | AN83: =IF(AF83<=$J$9*0.05,AS82*EXP((-$J$6*1)/Heterogenität!$D$4),Z83) -> 0.02330529107 | AO83: =IF(OR(AF83>=$J$19, AR82/$J$5<AN83),0, Bodencharakterisierung!$E$8*$J$11*((AR82/$J$5)-AN83)) -> 0 | AP83: 0 | AQ83: =AQ82-AP83*Bodencharakterisierung!$E$8 -> 0.0066397905 | AR83: =AQ83/(Bodencharakterisierung!$E$11*1000) -> 4.3827e-06 | AS83: =AN83+AP83 -> 0.02330529107 | AT83: 66 | AV83: =(AP83)*$G$11*Bodencharakterisierung!$E$8 -> 0 | AW83: =IF(AF83<=$J$9*1.05,(AV83*Schadstoffbelastung!$K$11)/($G$12*$G$7)+AW82,NA()) ->  | AX83: 23072.23816 | AY83: 199 | AZ83: =IF(ISNUMBER(AT83),BA83+BB83+BC83+$AZ$17,"") -> 3.916262999 | BA83: =IF(ISNUMBER(AK83),AK83,BA82) -> 0.1422687589 | BB83: =IF(ISNUMBER(AW83),AW83,0) -> 0 | BC83: 0.41399424 | BE83: =AR83*10^6 -> 4.3827 | BF83: =#REF!*10^6 ->  | BG83: 40.34895257 | BH83: 23305.29107
B84: Trichlorethen | C84: =IFERROR(Schadstoffbelastung!E5,0) -> 18.76392 | D84: 18763.92 | E84: =D84*Sanierungsdesign!M12 -> 859.4161832 | F84: =E84*$E$66 -> 77433.39811 | G84: =F84/1000 -> 77.43339811 | Y84: 67 | Z84: 0.02330529107 | AA84: =Z84*EXP((-$J$6/Heterogenität!$D$4)*1) -> 0.02306613111 | AB84: =AF83*Bodencharakterisierung!$E$11/$J$20 -> 4.222466558e-05 | AC84: =((150*($J$2^0.87)*(AB84^0.79)*$J$3)/(Bodencharakterisierung!$E$13^2))*($J$12-Z84)*3600*24 -> 0.08030587131 | AD84: 0.0002391599663 | AE84: =AE83-AD84*Bodencharakterisierung!$E$8 -> 0.06104974036 | AF84: =IF(AE84>$J$18,(AE84/(Bodencharakterisierung!$E$11*1000)),0) -> 4.029685832e-05 | AG84: 0.02330529107 | AH84: 67 | AJ84: =(AD84)*$G$11*Bodencharakterisierung!$E$8 -> 3.458468138e-06 | AK84: =IF(AH84>0,(AJ84*Schadstoffbelastung!$K$11+$G$34)/($G$12*$G$7)+AK83,NA()) -> 0.1444362261 | AM84: 67 | AN84: =IF(AF84<=$J$9*0.05,AS83*EXP((-$J$6*1)/Heterogenität!$D$4),Z84) -> 0.02330529107 | AO84: =IF(OR(AF84>=$J$19, AR83/$J$5<AN84),0, Bodencharakterisierung!$E$8*$J$11*((AR83/$J$5)-AN84)) -> 0 | AP84: =MIN(AO84,AS83-AN84) -> 0 | AQ84: =AQ83-AP84*Bodencharakterisierung!$E$8 -> 0.0066397905 | AR84: =AQ84/(Bodencharakterisierung!$E$11*1000) -> 4.3827e-06 | AS84: 0.02330529107 | AT84: 67 | AV84: =(AP84)*$G$11*Bodencharakterisierung!$E$8 -> 0 | AW84: =IF(AF84<=$J$9*1.05,(AV84*Schadstoffbelastung!$K$11)/($G$12*$G$7)+AW83,NA()) ->  | AX84: 23072.23816 | AY84: 200 | AZ84: 3.924703106 | BA84: 0.1444362261 | BB84: 0 | BC84: =$G$34/$G$12/$G$8+BC83 -> 0.42026688 | BE84: 4.3827 | BF84: =#REF!*10^6 ->  | BG84: 40.29685832 | BH84: 23305.29107
B85: cis-1,2-Dichlorethen | C85: =IFERROR(Schadstoffbelastung!E6,0) -> 16.965 | D85: 16965 | E85: =D85*Sanierungsdesign!M13 -> 699.5876289 | F85: 63032.84536 | G85: 63.03284536 | Y85: 68 | Z85: 0.02330529107 | AA85: =Z85*EXP((-$J$6/Heterogenität!$D$4)*1) -> 0.02306613111 | AB85: =AF84*Bodencharakterisierung!$E$11/$J$20 -> 4.217014961e-05 | AC85: =((150*($J$2^0.87)*(AB85^0.79)*$J$3)/(Bodencharakterisierung!$E$13^2))*($J$12-Z85)*3600*24 -> 0.08022395115 | AD85: 0.0002391599663 | AE85: =AE84-AD85*Bodencharakterisierung!$E$8 -> 0.06097081757 | AF85: =IF(AE85>$J$18,(AE85/(Bodencharakterisierung!$E$11*1000)),0) -> 4.024476407e-05 | AG85: 0.02330529107 | AH85: 68 | AJ85: =(AD85)*$G$11*Bodencharakterisierung!$E$8 -> 3.458468138e-06 | AK85: =IF(AH85>0,(AJ85*Schadstoffbelastung!$K$11+$G$34)/($G$12*$G$7)+AK84,NA()) -> 0.1466036934 | AM85: 68 | AN85: =IF(AF85<=$J$9*0.05,AS84*EXP((-$J$6*1)/Heterogenität!$D$4),Z85) -> 0.02330529107 | AO85: =IF(OR(AF85>=$J$19, AR84/$J$5<AN85),0, Bodencharakterisierung!$E$8*$J$11*((AR84/$J$5)-AN85)) -> 0 | AP85: 0 | AQ85: =AQ84-AP85*Bodencharakterisierung!$E$8 -> 0.0066397905 | AR85: =AQ85/(Bodencharakterisierung!$E$11*1000) -> 4.3827e-06 | AS85: 0.02330529107 | AT85: 68 | AV85: =(AP85)*$G$11*Bodencharakterisierung!$E$8 -> 0 | AW85: =IF(AF85<=$J$9*1.05,(AV85*Schadstoffbelastung!$K$11)/($G$12*$G$7)+AW84,NA()) ->  | AX85: 23072.23816 | AY85: 201 | AZ85: 3.933143213 | BA85: 0.1466036934 | BB85: 0 | BC85: 0.42653952 | BE85: 4.3827 | BF85: =#REF!*10^6 ->  | BG85: 40.24476407 | BH85: 23305.29107
B86: trans-1,2-Dichlorethen | C86: =IFERROR(Schadstoffbelastung!E7,0) -> 1.4868e-10 | D86: 1.4868e-07 | E86: =D86*Sanierungsdesign!M14 -> 6.131134021e-09 | F86: 5.524151753e-07 | G86: 5.524151753e-10 | Y86: 69 | Z86: 0.02330529107 | AA86: =Z86*EXP((-$J$6/Heterogenität!$D$4)*1) -> 0.02306613111 | AB86: =AF85*Bodencharakterisierung!$E$11/$J$20 -> 4.211563364e-05 | AC86: =((150*($J$2^0.87)*(AB86^0.79)*$J$3)/(Bodencharakterisierung!$E$13^2))*($J$12-Z86)*3600*24 -> 0.08014200874 | AD86: 0.0002391599663 | AE86: =AE85-AD86*Bodencharakterisierung!$E$8 -> 0.06089189478 | AF86: =IF(AE86>$J$18,(AE86/(Bodencharakterisierung!$E$11*1000)),0) -> 4.019266982e-05 | AG86: 0.02330529107 | AH86: 69 | AJ86: =(AD86)*$G$11*Bodencharakterisierung!$E$8 -> 3.458468138e-06 | AK86: =IF(AH86>0,(AJ86*Schadstoffbelastung!$K$11+$G$34)/($G$12*$G$7)+AK85,NA()) -> 0.1487711606 | AM86: 69 | AN86: =IF(AF86<=$J$9*0.05,AS85*EXP((-$J$6*1)/Heterogenität!$D$4),Z86) -> 0.02330529107 | AO86: =IF(OR(AF86>=$J$19, AR85/$J$5<AN86),0, Bodencharakterisierung!$E$8*$J$11*((AR85/$J$5)-AN86)) -> 0 | AP86: 0 | AQ86: =AQ85-AP86*Bodencharakterisierung!$E$8 -> 0.0066397905 | AR86: =AQ86/(Bodencharakterisierung!$E$11*1000) -> 4.3827e-06 | AS86: 0.02330529107 | AT86: 69 | AV86: =(AP86)*$G$11*Bodencharakterisierung!$E$8 -> 0 | AW86: =IF(AF86<=$J$9*1.05,(AV86*Schadstoffbelastung!$K$11)/($G$12*$G$7)+AW85,NA()) ->  | AX86: 23072.23816 | AY86: 202 | AZ86: 3.941583321 | BA86: 0.1487711606 | BB86: 0 | BC86: 0.43281216 | BE86: 4.3827 | BF86: =#REF!*10^6 ->  | BG86: 40.19266982 | BH86: 23305.29107
B87: 1,1-Dichlorethen | C87: =IFERROR(Schadstoffbelastung!E8,0) -> 1.6778718e-10 | D87: 1.6778718e-07 | E87: =D87*Sanierungsdesign!M15 -> 6.919058969e-09 | F87: 6.234072131e-07 | G87: 6.234072131e-10 | Y87: 70 | Z87: 0.02330529107 | AA87: =Z87*EXP((-$J$6/Heterogenität!$D$4)*1) -> 0.02306613111 | AB87: =AF86*Bodencharakterisierung!$E$11/$J$20 -> 4.206111767e-05 | AC87: =((150*($J$2^0.87)*(AB87^0.79)*$J$3)/(Bodencharakterisierung!$E$13^2))*($J$12-Z87)*3600*24 -> 0.08006004406 | AD87: 0.0002391599663 | AE87: =AE86-AD87*Bodencharakterisierung!$E$8 -> 0.06081297199 | AF87: =IF(AE87>$J$18,(AE87/(Bodencharakterisierung!$E$11*1000)),0) -> 4.014057557e-05 | AG87: 0.02330529107 | AH87: 70 | AJ87: =(AD87)*$G$11*Bodencharakterisierung!$E$8 -> 3.458468138e-06 | AK87: =IF(AH87>0,(AJ87*Schadstoffbelastung!$K$11+$G$34)/($G$12*$G$7)+AK86,NA()) -> 0.1509386279 | AM87: 70 | AN87: =IF(AF87<=$J$9*0.05,AS86*EXP((-$J$6*1)/Heterogenität!$D$4),Z87) -> 0.02330529107 | AO87: =IF(OR(AF87>=$J$19, AR86/$J$5<AN87),0, Bodencharakterisierung!$E$8*$J$11*((AR86/$J$5)-AN87)) -> 0 | AP87: 0 | AQ87: =AQ86-AP87*Bodencharakterisierung!$E$8 -> 0.0066397905 | AR87: =AQ87/(Bodencharakterisierung!$E$11*1000) -> 4.3827e-06 | AS87: 0.02330529107 | AT87: 70 | AV87: =(AP87)*$G$11*Bodencharakterisierung!$E$8 -> 0 | AW87: =IF(AF87<=$J$9*1.05,(AV87*Schadstoffbelastung!$K$11)/($G$12*$G$7)+AW86,NA()) ->  | AX87: 23072.23816 | AY87: 203 | AZ87: 3.950023428 | BA87: 0.1509386279 | BB87: 0 | BC87: 0.4390848 | BE87: 4.3827 | BF87: =#REF!*10^6 ->  | BG87: 40.14057557 | BH87: 23305.29107
B88: Vinylchlorid | C88: =IFERROR(Schadstoffbelastung!E9,0) -> 2.9736 | D88: 2973.6 | E88: =D88*Sanierungsdesign!M16 -> 94.4 | F88: 8505.44 | G88: 8.50544 | Y88: 71 | Z88: 0.02330529107 | AA88: =Z88*EXP((-$J$6/Heterogenität!$D$4)*1) -> 0.02306613111 | AB88: =AF87*Bodencharakterisierung!$E$11/$J$20 -> 4.20066017e-05 | AC88: =((150*($J$2^0.87)*(AB88^0.79)*$J$3)/(Bodencharakterisierung!$E$13^2))*($J$12-Z88)*3600*24 -> 0.07997805706 | AD88: 0.0002391599663 | AE88: =AE87-AD88*Bodencharakterisierung!$E$8 -> 0.0607340492 | AF88: =IF(AE88>$J$18,(AE88/(Bodencharakterisierung!$E$11*1000)),0) -> 4.008848132e-05 | AG88: 0.02330529107 | AH88: 71 | AJ88: =(AD88)*$G$11*Bodencharakterisierung!$E$8 -> 3.458468138e-06 | AK88: =IF(AH88>0,(AJ88*Schadstoffbelastung!$K$11+$G$34)/($G$12*$G$7)+AK87,NA()) -> 0.1531060951 | AM88: 71 | AN88: =IF(AF88<=$J$9*0.05,AS87*EXP((-$J$6*1)/Heterogenität!$D$4),Z88) -> 0.02330529107 | AO88: =IF(OR(AF88>=$J$19, AR87/$J$5<AN88),0, Bodencharakterisierung!$E$8*$J$11*((AR87/$J$5)-AN88)) -> 0 | AP88: 0 | AQ88: =AQ87-AP88*Bodencharakterisierung!$E$8 -> 0.0066397905 | AR88: =AQ88/(Bodencharakterisierung!$E$11*1000) -> 4.3827e-06 | AS88: 0.02330529107 | AT88: 71 | AV88: =(AP88)*$G$11*Bodencharakterisierung!$E$8 -> 0 | AW88: =IF(AF88<=$J$9*1.05,(AV88*Schadstoffbelastung!$K$11)/($G$12*$G$7)+AW87,NA()) ->  | AX88: 23072.23816 | AY88: 204 | AZ88: 3.958463535 | BA88: 0.1531060951 | BB88: 0 | BC88: 0.44535744 | BE88: 4.3827 | BF88: =#REF!*10^6 ->  | BG88: 40.08848132 | BH88: 23305.29107
B89: Tetrachlormethan | C89: =IFERROR(Schadstoffbelastung!E10,0) -> 5.588208e-10 | D89: 5.588208e-07 | E89: =D89*Sanierungsdesign!M17 -> 2.902965195e-08 | F89: 2.615571641e-06 | G89: 2.615571641e-09 | Y89: 72 | Z89: 0.02330529107 | AA89: =Z89*EXP((-$J$6/Heterogenität!$D$4)*1) -> 0.02306613111 | AB89: =AF88*Bodencharakterisierung!$E$11/$J$20 -> 4.195208573e-05 | AC89: =((150*($J$2^0.87)*(AB89^0.79)*$J$3)/(Bodencharakterisierung!$E$13^2))*($J$12-Z89)*3600*24 -> 0.07989604771 | AD89: 0.0002391599663 | AE89: =AE88-AD89*Bodencharakterisierung!$E$8 -> 0.06065512641 | AF89: =IF(AE89>$J$18,(AE89/(Bodencharakterisierung!$E$11*1000)),0) -> 4.003638707e-05 | AG89: 0.02330529107 | AH89: 72 | AJ89: =(AD89)*$G$11*Bodencharakterisierung!$E$8 -> 3.458468138e-06 | AK89: =IF(AH89>0,(AJ89*Schadstoffbelastung!$K$11+$G$34)/($G$12*$G$7)+AK88,NA()) -> 0.1552735624 | AM89: 72 | AN89: =IF(AF89<=$J$9*0.05,AS88*EXP((-$J$6*1)/Heterogenität!$D$4),Z89) -> 0.02330529107 | AO89: =IF(OR(AF89>=$J$19, AR88/$J$5<AN89),0, Bodencharakterisierung!$E$8*$J$11*((AR88/$J$5)-AN89)) -> 0 | AP89: 0 | AQ89: =AQ88-AP89*Bodencharakterisierung!$E$8 -> 0.0066397905 | AR89: =AQ89/(Bodencharakterisierung!$E$11*1000) -> 4.3827e-06 | AS89: 0.02330529107 | AT89: 72 | AV89: =(AP89)*$G$11*Bodencharakterisierung!$E$8 -> 0 | AW89: =IF(AF89<=$J$9*1.05,(AV89*Schadstoffbelastung!$K$11)/($G$12*$G$7)+AW88,NA()) ->  | AX89: 23072.23816 | AY89: 205 | AZ89: 3.966903642 | BA89: 0.1552735624 | BB89: 0 | BC89: 0.45163008 | BE89: 4.3827 | BF89: =#REF!*10^6 ->  | BG89: 40.03638707 | BH89: 23305.29107
B90: Trichlormethan | C90: =IFERROR(Schadstoffbelastung!E11,0) -> 1.3269978e-10 | D90: 1.3269978e-07 | E90: =D90*Sanierungsdesign!M18 -> 6.69074521e-09 | F90: 6.028361434e-07 | G90: 6.028361434e-10 | Y90: 73 | Z90: 0.02330529107 | AA90: =Z90*EXP((-$J$6/Heterogenität!$D$4)*1) -> 0.02306613111 | AB90: =AF89*Bodencharakterisierung!$E$11/$J$20 -> 4.189756976e-05 | AC90: =((150*($J$2^0.87)*(AB90^0.79)*$J$3)/(Bodencharakterisierung!$E$13^2))*($J$12-Z90)*3600*24 -> 0.07981401599 | AD90: 0.0002391599663 | AE90: =AE89-AD90*Bodencharakterisierung!$E$8 -> 0.06057620362 | AF90: =IF(AE90>$J$18,(AE90/(Bodencharakterisierung!$E$11*1000)),0) -> 3.998429282e-05 | AG90: 0.02330529107 | AH90: 73 | AJ90: =(AD90)*$G$11*Bodencharakterisierung!$E$8 -> 3.458468138e-06 | AK90: =IF(AH90>0,(AJ90*Schadstoffbelastung!$K$11+$G$34)/($G$12*$G$7)+AK89,NA()) -> 0.1574410296 | AM90: 73 | AN90: =IF(AF90<=$J$9*0.05,AS89*EXP((-$J$6*1)/Heterogenität!$D$4),Z90) -> 0.02330529107 | AO90: =IF(OR(AF90>=$J$19, AR89/$J$5<AN90),0, Bodencharakterisierung!$E$8*$J$11*((AR89/$J$5)-AN90)) -> 0 | AP90: 0 | AQ90: =AQ89-AP90*Bodencharakterisierung!$E$8 -> 0.0066397905 | AR90: =AQ90/(Bodencharakterisierung!$E$11*1000) -> 4.3827e-06 | AS90: 0.02330529107 | AT90: 73 | AV90: =(AP90)*$G$11*Bodencharakterisierung!$E$8 -> 0 | AW90: =IF(AF90<=$J$9*1.05,(AV90*Schadstoffbelastung!$K$11)/($G$12*$G$7)+AW89,NA()) ->  | AX90: 23072.23816 | AY90: 206 | AZ90: 3.97534375 | BA90: 0.1574410296 | BB90: 0 | BC90: 0.45790272 | BE90: 4.3827 | BF90: =#REF!*10^6 ->  | BG90: 39.98429282 | BH90: 23305.29107
B91: Dichlormethan | C91: =IFERROR(Schadstoffbelastung!E12,0) -> 6.16887e-11 | D91: 6.16887e-08 | E91: =D91*Sanierungsdesign!M19 -> 2.902997647e-09 | F91: 2.61560088e-07 | G91: 2.61560088e-10 | Y91: 74 | Z91: 0.02330529107 | AA91: =Z91*EXP((-$J$6/Heterogenität!$D$4)*1) -> 0.02306613111 | AB91: =AF90*Bodencharakterisierung!$E$11/$J$20 -> 4.184305379e-05 | AC91: =((150*($J$2^0.87)*(AB91^0.79)*$J$3)/(Bodencharakterisierung!$E$13^2))*($J$12-Z91)*3600*24 -> 0.07973196184 | AD91: 0.0002391599663 | AE91: =AE90-AD91*Bodencharakterisierung!$E$8 -> 0.06049728084 | AF91: =IF(AE91>$J$18,(AE91/(Bodencharakterisierung!$E$11*1000)),0) -> 3.993219857e-05 | AG91: 0.02330529107 | AH91: 74 | AJ91: =(AD91)*$G$11*Bodencharakterisierung!$E$8 -> 3.458468138e-06 | AK91: =IF(AH91>0,(AJ91*Schadstoffbelastung!$K$11+$G$34)/($G$12*$G$7)+AK90,NA()) -> 0.1596084969 | AM91: 74 | AN91: =IF(AF91<=$J$9*0.05,AS90*EXP((-$J$6*1)/Heterogenität!$D$4),Z91) -> 0.02330529107 | AO91: =IF(OR(AF91>=$J$19, AR90/$J$5<AN91),0, Bodencharakterisierung!$E$8*$J$11*((AR90/$J$5)-AN91)) -> 0 | AP91: 0 | AQ91: =AQ90-AP91*Bodencharakterisierung!$E$8 -> 0.0066397905 | AR91: =AQ91/(Bodencharakterisierung!$E$11*1000) -> 4.3827e-06 | AS91: 0.02330529107 | AT91: 74 | AV91: =(AP91)*$G$11*Bodencharakterisierung!$E$8 -> 0 | AW91: =IF(AF91<=$J$9*1.05,(AV91*Schadstoffbelastung!$K$11)/($G$12*$G$7)+AW90,NA()) ->  | AX91: 23072.23816 | AY91: 207 | AZ91: 3.983783857 | BA91: 0.1596084969 | BB91: 0 | BC91: 0.46417536 | BE91: 4.3827 | BF91: =#REF!*10^6 ->  | BG91: 39.93219857 | BH91: 23305.29107
B92: 1,1,1-Trichlorethan | C92: =IFERROR(Schadstoffbelastung!E13,0) -> 3.01392e-11 | D92: 3.01392e-08 | E92: =D92*Sanierungsdesign!M20 -> 1.355545561e-09 | F92: 1.22134655e-07 | G92: 1.22134655e-10 | Y92: 75 | Z92: 0.02330529107 | AA92: =Z92*EXP((-$J$6/Heterogenität!$D$4)*1) -> 0.02306613111 | AB92: =AF91*Bodencharakterisierung!$E$11/$J$20 -> 4.178853782e-05 | AC92: =((150*($J$2^0.87)*(AB92^0.79)*$J$3)/(Bodencharakterisierung!$E$13^2))*($J$12-Z92)*3600*24 -> 0.07964988524 | AD92: 0.0002391599663 | AE92: =AE91-AD92*Bodencharakterisierung!$E$8 -> 0.06041835805 | AF92: =IF(AE92>$J$18,(AE92/(Bodencharakterisierung!$E$11*1000)),0) -> 3.988010432e-05 | AG92: 0.02330529107 | AH92: 75 | AJ92: =(AD92)*$G$11*Bodencharakterisierung!$E$8 -> 3.458468138e-06 | AK92: =IF(AH92>0,(AJ92*Schadstoffbelastung!$K$11+$G$34)/($G$12*$G$7)+AK91,NA()) -> 0.1617759642 | AM92: 75 | AN92: =IF(AF92<=$J$9*0.05,AS91*EXP((-$J$6*1)/Heterogenität!$D$4),Z92) -> 0.02330529107 | AO92: =IF(OR(AF92>=$J$19, AR91/$J$5<AN92),0, Bodencharakterisierung!$E$8*$J$11*((AR91/$J$5)-AN92)) -> 0 | AP92: 0 | AQ92: =AQ91-AP92*Bodencharakterisierung!$E$8 -> 0.0066397905 | AR92: =AQ92/(Bodencharakterisierung!$E$11*1000) -> 4.3827e-06 | AS92: 0.02330529107 | AT92: 75 | AV92: =(AP92)*$G$11*Bodencharakterisierung!$E$8 -> 0 | AW92: =IF(AF92<=$J$9*1.05,(AV92*Schadstoffbelastung!$K$11)/($G$12*$G$7)+AW91,NA()) ->  | AX92: 23072.23816 | AY92: 208 | AZ92: 3.992223964 | BA92: 0.1617759642 | BB92: 0 | BC92: 0.470448 | BE92: 4.3827 | BF92: =#REF!*10^6 ->  | BG92: 39.88010432 | BH92: 23305.29107
B93: 1,1,2-Trichlorethan | C93: =IFERROR(Schadstoffbelastung!E14,0) -> 1.1893752e-10 | D93: 1.1893752e-07 | E93: =D93*Sanierungsdesign!M21 -> 5.349353243e-09 | F93: 4.819767272e-07 | G93: 4.819767272e-10 | Y93: 76 | Z93: 0.02330529107 | AA93: =Z93*EXP((-$J$6/Heterogenität!$D$4)*1) -> 0.02306613111 | AB93: =AF92*Bodencharakterisierung!$E$11/$J$20 -> 4.173402185e-05 | AC93: =((150*($J$2^0.87)*(AB93^0.79)*$J$3)/(Bodencharakterisierung!$E$13^2))*($J$12-Z93)*3600*24 -> 0.07956778615 | AD93: 0.0002391599663 | AE93: =AE92-AD93*Bodencharakterisierung!$E$8 -> 0.06033943526 | AF93: =IF(AE93>$J$18,(AE93/(Bodencharakterisierung!$E$11*1000)),0) -> 3.982801007e-05 | AG93: 0.02330529107 | AH93: 76 | AJ93: =(AD93)*$G$11*Bodencharakterisierung!$E$8 -> 3.458468138e-06 | AK93: =IF(AH93>0,(AJ93*Schadstoffbelastung!$K$11+$G$34)/($G$12*$G$7)+AK92,NA()) -> 0.1639434314 | AM93: 76 | AN93: =IF(AF93<=$J$9*0.05,AS92*EXP((-$J$6*1)/Heterogenität!$D$4),Z93) -> 0.02330529107 | AO93: =IF(OR(AF93>=$J$19, AR92/$J$5<AN93),0, Bodencharakterisierung!$E$8*$J$11*((AR92/$J$5)-AN93)) -> 0 | AP93: 0 | AQ93: =AQ92-AP93*Bodencharakterisierung!$E$8 -> 0.0066397905 | AR93: =AQ93/(Bodencharakterisierung!$E$11*1000) -> 4.3827e-06 | AS93: 0.02330529107 | AT93: 76 | AV93: =(AP93)*$G$11*Bodencharakterisierung!$E$8 -> 0 | AW93: =IF(AF93<=$J$9*1.05,(AV93*Schadstoffbelastung!$K$11)/($G$12*$G$7)+AW92,NA()) ->  | AX93: 23072.23816 | AY93: 209 | AZ93: 4.000664071 | BA93: 0.1639434314 | BB93: 0 | BC93: 0.47672064 | BE93: 4.3827 | BF93: =#REF!*10^6 ->  | BG93: 39.82801007 | BH93: 23305.29107
B94: 1,1-Dichlorethan | C94: =IFERROR(Schadstoffbelastung!E15,0) -> 1.0457532e-10 | D94: 1.0457532e-07 | E94: =D94*Sanierungsdesign!M22 -> 4.226973323e-09 | F94: 3.808502964e-07 | G94: 3.808502964e-10 | Y94: 77 | Z94: 0.02330529107 | AA94: =Z94*EXP((-$J$6/Heterogenität!$D$4)*1) -> 0.02306613111 | AB94: =AF93*Bodencharakterisierung!$E$11/$J$20 -> 4.167950588e-05 | AC94: =((150*($J$2^0.87)*(AB94^0.79)*$J$3)/(Bodencharakterisierung!$E$13^2))*($J$12-Z94)*3600*24 -> 0.07948566454 | AD94: 0.0002391599663 | AE94: =AE93-AD94*Bodencharakterisierung!$E$8 -> 0.06026051247 | AF94: =IF(AE94>$J$18,(AE94/(Bodencharakterisierung!$E$11*1000)),0) -> 3.977591582e-05 | AG94: 0.02330529107 | AH94: 77 | AJ94: =(AD94)*$G$11*Bodencharakterisierung!$E$8 -> 3.458468138e-06 | AK94: =IF(AH94>0,(AJ94*Schadstoffbelastung!$K$11+$G$34)/($G$12*$G$7)+AK93,NA()) -> 0.1661108987 | AM94: 77 | AN94: =IF(AF94<=$J$9*0.05,AS93*EXP((-$J$6*1)/Heterogenität!$D$4),Z94) -> 0.02330529107 | AO94: =IF(OR(AF94>=$J$19, AR93/$J$5<AN94),0, Bodencharakterisierung!$E$8*$J$11*((AR93/$J$5)-AN94)) -> 0 | AP94: 0 | AQ94: =AQ93-AP94*Bodencharakterisierung!$E$8 -> 0.0066397905 | AR94: =AQ94/(Bodencharakterisierung!$E$11*1000) -> 4.3827e-06 | AS94: 0.02330529107 | AT94: 77 | AV94: =(AP94)*$G$11*Bodencharakterisierung!$E$8 -> 0 | AW94: =IF(AF94<=$J$9*1.05,(AV94*Schadstoffbelastung!$K$11)/($G$12*$G$7)+AW93,NA()) ->  | AX94: 23072.23816 | AY94: 210 | AZ94: 4.009104179 | BA94: 0.1661108987 | BB94: 0 | BC94: 0.48299328 | BE94: 4.3827 | BF94: =#REF!*10^6 ->  | BG94: 39.77591582 | BH94: 23305.29107
B95: 1,2-Dichlorethan | C95: =IFERROR(Schadstoffbelastung!E16,0) -> 1.115928e-10 | D95: 1.115928e-07 | E95: =D95*Sanierungsdesign!M23 -> 4.510622474e-09 | F95: 4.064070849e-07 | G95: 4.064070849e-10 | Y95: 78 | Z95: 0.02330529107 | AA95: =Z95*EXP((-$J$6/Heterogenität!$D$4)*1) -> 0.02306613111 | AB95: =AF94*Bodencharakterisierung!$E$11/$J$20 -> 4.162498991e-05 | AC95: =((150*($J$2^0.87)*(AB95^0.79)*$J$3)/(Bodencharakterisierung!$E$13^2))*($J$12-Z95)*3600*24 -> 0.07940352037 | AD95: 0.0002391599663 | AE95: =AE94-AD95*Bodencharakterisierung!$E$8 -> 0.06018158968 | AF95: =IF(AE95>$J$18,(AE95/(Bodencharakterisierung!$E$11*1000)),0) -> 3.972382157e-05 | AG95: 0.02330529107 | AH95: 78 | AJ95: =(AD95)*$G$11*Bodencharakterisierung!$E$8 -> 3.458468138e-06 | AK95: =IF(AH95>0,(AJ95*Schadstoffbelastung!$K$11+$G$34)/($G$12*$G$7)+AK94,NA()) -> 0.1682783659 | AM95: 78 | AN95: =IF(AF95<=$J$9*0.05,AS94*EXP((-$J$6*1)/Heterogenität!$D$4),Z95) -> 0.02330529107 | AO95: =IF(OR(AF95>=$J$19, AR94/$J$5<AN95),0, Bodencharakterisierung!$E$8*$J$11*((AR94/$J$5)-AN95)) -> 0 | AP95: 0 | AQ95: =AQ94-AP95*Bodencharakterisierung!$E$8 -> 0.0066397905 | AR95: =AQ95/(Bodencharakterisierung!$E$11*1000) -> 4.3827e-06 | AS95: 0.02330529107 | AT95: 78 | AV95: =(AP95)*$G$11*Bodencharakterisierung!$E$8 -> 0 | AW95: =IF(AF95<=$J$9*1.05,(AV95*Schadstoffbelastung!$K$11)/($G$12*$G$7)+AW94,NA()) ->  | AX95: 23072.23816 | AY95: 211 | AZ95: 4.017544286 | BA95: 0.1682783659 | BB95: 0 | BC95: 0.48926592 | BE95: 4.3827 | BF95: =#REF!*10^6 ->  | BG95: 39.72382157 | BH95: 23305.29107
B96: Summe LCKW | C96: =SUM(C83:C95) -> 87.28812 | D96: =C96*1000 -> 87288.12 | E96: =SUM(E83:E95) -> 3994.878511 | F96: =E96*$E$66 -> 359938.5538 | G96: 359.9385538 | Y96: 79 | Z96: 0.02330529107 | AA96: =Z96*EXP((-$J$6/Heterogenität!$D$4)*1) -> 0.02306613111 | AB96: =AF95*Bodencharakterisierung!$E$11/$J$20 -> 4.157047394e-05 | AC96: =((150*($J$2^0.87)*(AB96^0.79)*$J$3)/(Bodencharakterisierung!$E$13^2))*($J$12-Z96)*3600*24 -> 0.0793213536 | AD96: 0.0002391599663 | AE96: =AE95-AD96*Bodencharakterisierung!$E$8 -> 0.06010266689 | AF96: =IF(AE96>$J$18,(AE96/(Bodencharakterisierung!$E$11*1000)),0) -> 3.967172732e-05 | AG96: 0.02330529107 | AH96: 79 | AJ96: =(AD96)*$G$11*Bodencharakterisierung!$E$8 -> 3.458468138e-06 | AK96: =IF(AH96>0,(AJ96*Schadstoffbelastung!$K$11+$G$34)/($G$12*$G$7)+AK95,NA()) -> 0.1704458332 | AM96: 79 | AN96: =IF(AF96<=$J$9*0.05,AS95*EXP((-$J$6*1)/Heterogenität!$D$4),Z96) -> 0.02330529107 | AO96: =IF(OR(AF96>=$J$19, AR95/$J$5<AN96),0, Bodencharakterisierung!$E$8*$J$11*((AR95/$J$5)-AN96)) -> 0 | AP96: 0 | AQ96: =AQ95-AP96*Bodencharakterisierung!$E$8 -> 0.0066397905 | AR96: =AQ96/(Bodencharakterisierung!$E$11*1000) -> 4.3827e-06 | AS96: 0.02330529107 | AT96: 79 | AV96: =(AP96)*$G$11*Bodencharakterisierung!$E$8 -> 0 | AW96: =IF(AF96<=$J$9*1.05,(AV96*Schadstoffbelastung!$K$11)/($G$12*$G$7)+AW95,NA()) ->  | AX96: 23072.23816 | AY96: 212 | AZ96: 4.025984393 | BA96: 0.1704458332 | BB96: 0 | BC96: 0.49553856 | BE96: 4.3827 | BF96: =#REF!*10^6 ->  | BG96: 39.67172732 | BH96: 23305.29107
Y97: 80 | Z97: 0.02330529107 | AA97: =Z97*EXP((-$J$6/Heterogenität!$D$4)*1) -> 0.02306613111 | AB97: =AF96*Bodencharakterisierung!$E$11/$J$20 -> 4.151595797e-05 | AC97: =((150*($J$2^0.87)*(AB97^0.79)*$J$3)/(Bodencharakterisierung!$E$13^2))*($J$12-Z97)*3600*24 -> 0.0792391642 | AD97: 0.0002391599663 | AE97: =AE96-AD97*Bodencharakterisierung!$E$8 -> 0.0600237441 | AF97: =IF(AE97>$J$18,(AE97/(Bodencharakterisierung!$E$11*1000)),0) -> 3.961963307e-05 | AG97: 0.02330529107 | AH97: 80 | AJ97: =(AD97)*$G$11*Bodencharakterisierung!$E$8 -> 3.458468138e-06 | AK97: =IF(AH97>0,(AJ97*Schadstoffbelastung!$K$11+$G$34)/($G$12*$G$7)+AK96,NA()) -> 0.1726133004 | AM97: 80 | AN97: =IF(AF97<=$J$9*0.05,AS96*EXP((-$J$6*1)/Heterogenität!$D$4),Z97) -> 0.02330529107 | AO97: =IF(OR(AF97>=$J$19, AR96/$J$5<AN97),0, Bodencharakterisierung!$E$8*$J$11*((AR96/$J$5)-AN97)) -> 0 | AP97: 0 | AQ97: =AQ96-AP97*Bodencharakterisierung!$E$8 -> 0.0066397905 | AR97: =AQ97/(Bodencharakterisierung!$E$11*1000) -> 4.3827e-06 | AS97: 0.02330529107 | AT97: 80 | AV97: =(AP97)*$G$11*Bodencharakterisierung!$E$8 -> 0 | AW97: =IF(AF97<=$J$9*1.05,(AV97*Schadstoffbelastung!$K$11)/($G$12*$G$7)+AW96,NA()) ->  | AX97: 23072.23816 | AY97: 213 | AZ97: 4.0344245 | BA97: 0.1726133004 | BB97: 0 | BC97: 0.5018112 | BE97: 4.3827 | BF97: =#REF!*10^6 ->  | BG97: 39.61963307 | BH97: 23305.29107
Y98: 81 | Z98: 0.02330529107 | AA98: =Z98*EXP((-$J$6/Heterogenität!$D$4)*1) -> 0.02306613111 | AB98: =AF97*Bodencharakterisierung!$E$11/$J$20 -> 4.1461442e-05 | AC98: =((150*($J$2^0.87)*(AB98^0.79)*$J$3)/(Bodencharakterisierung!$E$13^2))*($J$12-Z98)*3600*24 -> 0.07915695214 | AD98: 0.0002391599663 | AE98: =AE97-AD98*Bodencharakterisierung!$E$8 -> 0.05994482131 | AF98: =IF(AE98>$J$18,(AE98/(Bodencharakterisierung!$E$11*1000)),0) -> 3.956753882e-05 | AG98: 0.02330529107 | AH98: 81 | AJ98: =(AD98)*$G$11*Bodencharakterisierung!$E$8 -> 3.458468138e-06 | AK98: =IF(AH98>0,(AJ98*Schadstoffbelastung!$K$11+$G$34)/($G$12*$G$7)+AK97,NA()) -> 0.1747807677 | AM98: 81 | AN98: =IF(AF98<=$J$9*0.05,AS97*EXP((-$J$6*1)/Heterogenität!$D$4),Z98) -> 0.02330529107 | AO98: =IF(OR(AF98>=$J$19, AR97/$J$5<AN98),0, Bodencharakterisierung!$E$8*$J$11*((AR97/$J$5)-AN98)) -> 0 | AP98: 0 | AQ98: =AQ97-AP98*Bodencharakterisierung!$E$8 -> 0.0066397905 | AR98: =AQ98/(Bodencharakterisierung!$E$11*1000) -> 4.3827e-06 | AS98: 0.02330529107 | AT98: 81 | AV98: =(AP98)*$G$11*Bodencharakterisierung!$E$8 -> 0 | AW98: =IF(AF98<=$J$9*1.05,(AV98*Schadstoffbelastung!$K$11)/($G$12*$G$7)+AW97,NA()) ->  | AX98: 23072.23816 | AY98: 214 | AZ98: 4.042864608 | BA98: 0.1747807677 | BB98: 0 | BC98: 0.50808384 | BE98: 4.3827 | BF98: =#REF!*10^6 ->  | BG98: 39.56753882 | BH98: 23305.29107
Y99: 82 | Z99: 0.02330529107 | AA99: =Z99*EXP((-$J$6/Heterogenität!$D$4)*1) -> 0.02306613111 | AB99: =AF98*Bodencharakterisierung!$E$11/$J$20 -> 4.140692603e-05 | AC99: =((150*($J$2^0.87)*(AB99^0.79)*$J$3)/(Bodencharakterisierung!$E$13^2))*($J$12-Z99)*3600*24 -> 0.07907471737 | AD99: 0.0002391599663 | AE99: =AE98-AD99*Bodencharakterisierung!$E$8 -> 0.05986589852 | AF99: =IF(AE99>$J$18,(AE99/(Bodencharakterisierung!$E$11*1000)),0) -> 3.951544457e-05 | AG99: 0.02330529107 | AH99: 82 | AJ99: =(AD99)*$G$11*Bodencharakterisierung!$E$8 -> 3.458468138e-06 | AK99: =IF(AH99>0,(AJ99*Schadstoffbelastung!$K$11+$G$34)/($G$12*$G$7)+AK98,NA()) -> 0.1769482349 | AM99: 82 | AN99: =IF(AF99<=$J$9*0.05,AS98*EXP((-$J$6*1)/Heterogenität!$D$4),Z99) -> 0.02330529107 | AO99: =IF(OR(AF99>=$J$19, AR98/$J$5<AN99),0, Bodencharakterisierung!$E$8*$J$11*((AR98/$J$5)-AN99)) -> 0 | AP99: 0 | AQ99: =AQ98-AP99*Bodencharakterisierung!$E$8 -> 0.0066397905 | AR99: =AQ99/(Bodencharakterisierung!$E$11*1000) -> 4.3827e-06 | AS99: 0.02330529107 | AT99: 82 | AV99: =(AP99)*$G$11*Bodencharakterisierung!$E$8 -> 0 | AW99: =IF(AF99<=$J$9*1.05,(AV99*Schadstoffbelastung!$K$11)/($G$12*$G$7)+AW98,NA()) ->  | AX99: 23072.23816 | AY99: 215 | AZ99: 4.051304715 | BA99: 0.1769482349 | BB99: 0 | BC99: 0.51435648 | BE99: 4.3827 | BF99: =#REF!*10^6 ->  | BG99: 39.51544457 | BH99: 23305.29107
Y100: 83 | Z100: 0.02330529107 | AA100: =Z100*EXP((-$J$6/Heterogenität!$D$4)*1) -> 0.02306613111 | AB100: =AF99*Bodencharakterisierung!$E$11/$J$20 -> 4.135241006e-05 | AC100: =((150*($J$2^0.87)*(AB100^0.79)*$J$3)/(Bodencharakterisierung!$E$13^2))*($J$12-Z100)*3600*24 -> 0.07899245986 | AD100: 0.0002391599663 | AE100: =AE99-AD100*Bodencharakterisierung!$E$8 -> 0.05978697574 | AF100: =IF(AE100>$J$18,(AE100/(Bodencharakterisierung!$E$11*1000)),0) -> 3.946335032e-05 | AG100: 0.02330529107 | AH100: 83 | AJ100: =(AD100)*$G$11*Bodencharakterisierung!$E$8 -> 3.458468138e-06 | AK100: =IF(AH100>0,(AJ100*Schadstoffbelastung!$K$11+$G$34)/($G$12*$G$7)+AK99,NA()) -> 0.1791157022 | AM100: 83 | AN100: =IF(AF100<=$J$9*0.05,AS99*EXP((-$J$6*1)/Heterogenität!$D$4),Z100) -> 0.02330529107 | AO100: =IF(OR(AF100>=$J$19, AR99/$J$5<AN100),0, Bodencharakterisierung!$E$8*$J$11*((AR99/$J$5)-AN100)) -> 0 | AP100: 0 | AQ100: =AQ99-AP100*Bodencharakterisierung!$E$8 -> 0.0066397905 | AR100: =AQ100/(Bodencharakterisierung!$E$11*1000) -> 4.3827e-06 | AS100: 0.02330529107 | AT100: 83 | AV100: =(AP100)*$G$11*Bodencharakterisierung!$E$8 -> 0 | AW100: =IF(AF100<=$J$9*1.05,(AV100*Schadstoffbelastung!$K$11)/($G$12*$G$7)+AW99,NA()) ->  | AX100: 23072.23816 | AY100: 216 | AZ100: 4.059744822 | BA100: 0.1791157022 | BB100: 0 | BC100: 0.52062912 | BE100: 4.3827 | BF100: =#REF!*10^6 ->  | BG100: 39.46335032 | BH100: 23305.29107
Y101: 84 | Z101: 0.02330529107 | AA101: =Z101*EXP((-$J$6/Heterogenität!$D$4)*1) -> 0.02306613111 | AB101: =AF100*Bodencharakterisierung!$E$11/$J$20 -> 4.129789409e-05 | AC101: =((150*($J$2^0.87)*(AB101^0.79)*$J$3)/(Bodencharakterisierung!$E$13^2))*($J$12-Z101)*3600*24 -> 0.07891017957 | AD101: 0.0002391599663 | AE101: =AE100-AD101*Bodencharakterisierung!$E$8 -> 0.05970805295 | AF101: =IF(AE101>$J$18,(AE101/(Bodencharakterisierung!$E$11*1000)),0) -> 3.941125607e-05 | AG101: 0.02330529107 | AH101: 84 | AJ101: =(AD101)*$G$11*Bodencharakterisierung!$E$8 -> 3.458468138e-06 | AK101: =IF(AH101>0,(AJ101*Schadstoffbelastung!$K$11+$G$34)/($G$12*$G$7)+AK100,NA()) -> 0.1812831695 | AM101: 84 | AN101: =IF(AF101<=$J$9*0.05,AS100*EXP((-$J$6*1)/Heterogenität!$D$4),Z101) -> 0.02330529107 | AO101: =IF(OR(AF101>=$J$19, AR100/$J$5<AN101),0, Bodencharakterisierung!$E$8*$J$11*((AR100/$J$5)-AN101)) -> 0 | AP101: 0 | AQ101: =AQ100-AP101*Bodencharakterisierung!$E$8 -> 0.0066397905 | AR101: =AQ101/(Bodencharakterisierung!$E$11*1000) -> 4.3827e-06 | AS101: 0.02330529107 | AT101: 84 | AV101: =(AP101)*$G$11*Bodencharakterisierung!$E$8 -> 0 | AW101: =IF(AF101<=$J$9*1.05,(AV101*Schadstoffbelastung!$K$11)/($G$12*$G$7)+AW100,NA()) ->  | AX101: 23072.23816 | AY101: 217 | AZ101: 4.068184929 | BA101: 0.1812831695 | BB101: 0 | BC101: 0.52690176 | BE101: 4.3827 | BF101: =#REF!*10^6 ->  | BG101: 39.41125607 | BH101: 23305.29107
Y102: 85 | Z102: 0.02330529107 | AA102: =Z102*EXP((-$J$6/Heterogenität!$D$4)*1) -> 0.02306613111 | AB102: =AF101*Bodencharakterisierung!$E$11/$J$20 -> 4.124337812e-05 | AC102: =((150*($J$2^0.87)*(AB102^0.79)*$J$3)/(Bodencharakterisierung!$E$13^2))*($J$12-Z102)*3600*24 -> 0.07882787647 | AD102: 0.0002391599663 | AE102: =AE101-AD102*Bodencharakterisierung!$E$8 -> 0.05962913016 | AF102: =IF(AE102>$J$18,(AE102/(Bodencharakterisierung!$E$11*1000)),0) -> 3.935916182e-05 | AG102: 0.02330529107 | AH102: 85 | AJ102: =(AD102)*$G$11*Bodencharakterisierung!$E$8 -> 3.458468138e-06 | AK102: =IF(AH102>0,(AJ102*Schadstoffbelastung!$K$11+$G$34)/($G$12*$G$7)+AK101,NA()) -> 0.1834506367 | AM102: 85 | AN102: =IF(AF102<=$J$9*0.05,AS101*EXP((-$J$6*1)/Heterogenität!$D$4),Z102) -> 0.02330529107 | AO102: =IF(OR(AF102>=$J$19, AR101/$J$5<AN102),0, Bodencharakterisierung!$E$8*$J$11*((AR101/$J$5)-AN102)) -> 0 | AP102: 0 | AQ102: =AQ101-AP102*Bodencharakterisierung!$E$8 -> 0.0066397905 | AR102: =AQ102/(Bodencharakterisierung!$E$11*1000) -> 4.3827e-06 | AS102: 0.02330529107 | AT102: 85 | AV102: =(AP102)*$G$11*Bodencharakterisierung!$E$8 -> 0 | AW102: =IF(AF102<=$J$9*1.05,(AV102*Schadstoffbelastung!$K$11)/($G$12*$G$7)+AW101,NA()) ->  | AX102: 23072.23816 | AY102: 218 | AZ102: 4.076625037 | BA102: 0.1834506367 | BB102: 0 | BC102: 0.5331744 | BE102: 4.3827 | BF102: =#REF!*10^6 ->  | BG102: 39.35916182 | BH102: 23305.29107
Y103: 86 | Z103: 0.02330529107 | AA103: =Z103*EXP((-$J$6/Heterogenität!$D$4)*1) -> 0.02306613111 | AB103: =AF102*Bodencharakterisierung!$E$11/$J$20 -> 4.118886215e-05 | AC103: =((150*($J$2^0.87)*(AB103^0.79)*$J$3)/(Bodencharakterisierung!$E$13^2))*($J$12-Z103)*3600*24 -> 0.07874555053 | AD103: 0.0002391599663 | AE103: =AE102-AD103*Bodencharakterisierung!$E$8 -> 0.05955020737 | AF103: =IF(AE103>$J$18,(AE103/(Bodencharakterisierung!$E$11*1000)),0) -> 3.930706757e-05 | AG103: 0.02330529107 | AH103: 86 | AJ103: =(AD103)*$G$11*Bodencharakterisierung!$E$8 -> 3.458468138e-06 | AK103: =IF(AH103>0,(AJ103*Schadstoffbelastung!$K$11+$G$34)/($G$12*$G$7)+AK102,NA()) -> 0.185618104 | AM103: 86 | AN103: =IF(AF103<=$J$9*0.05,AS102*EXP((-$J$6*1)/Heterogenität!$D$4),Z103) -> 0.02330529107 | AO103: =IF(OR(AF103>=$J$19, AR102/$J$5<AN103),0, Bodencharakterisierung!$E$8*$J$11*((AR102/$J$5)-AN103)) -> 0 | AP103: 0 | AQ103: =AQ102-AP103*Bodencharakterisierung!$E$8 -> 0.0066397905 | AR103: =AQ103/(Bodencharakterisierung!$E$11*1000) -> 4.3827e-06 | AS103: 0.02330529107 | AT103: 86 | AV103: =(AP103)*$G$11*Bodencharakterisierung!$E$8 -> 0 | AW103: =IF(AF103<=$J$9*1.05,(AV103*Schadstoffbelastung!$K$11)/($G$12*$G$7)+AW102,NA()) ->  | AX103: 23072.23816 | AY103: 219 | AZ103: 4.085065144 | BA103: 0.185618104 | BB103: 0 | BC103: 0.53944704 | BE103: 4.3827 | BF103: =#REF!*10^6 ->  | BG103: 39.30706757 | BH103: 23305.29107
Y104: 87 | Z104: 0.02330529107 | AA104: =Z104*EXP((-$J$6/Heterogenität!$D$4)*1) -> 0.02306613111 | AB104: =AF103*Bodencharakterisierung!$E$11/$J$20 -> 4.113434618e-05 | AC104: =((150*($J$2^0.87)*(AB104^0.79)*$J$3)/(Bodencharakterisierung!$E$13^2))*($J$12-Z104)*3600*24 -> 0.07866320169 | AD104: 0.0002391599663 | AE104: =AE103-AD104*Bodencharakterisierung!$E$8 -> 0.05947128458 | AF104: =IF(AE104>$J$18,(AE104/(Bodencharakterisierung!$E$11*1000)),0) -> 3.925497332e-05 | AG104: 0.02330529107 | AH104: 87 | AJ104: =(AD104)*$G$11*Bodencharakterisierung!$E$8 -> 3.458468138e-06 | AK104: =IF(AH104>0,(AJ104*Schadstoffbelastung!$K$11+$G$34)/($G$12*$G$7)+AK103,NA()) -> 0.1877855712 | AM104: 87 | AN104: =IF(AF104<=$J$9*0.05,AS103*EXP((-$J$6*1)/Heterogenität!$D$4),Z104) -> 0.02330529107 | AO104: =IF(OR(AF104>=$J$19, AR103/$J$5<AN104),0, Bodencharakterisierung!$E$8*$J$11*((AR103/$J$5)-AN104)) -> 0 | AP104: 0 | AQ104: =AQ103-AP104*Bodencharakterisierung!$E$8 -> 0.0066397905 | AR104: =AQ104/(Bodencharakterisierung!$E$11*1000) -> 4.3827e-06 | AS104: 0.02330529107 | AT104: 87 | AV104: =(AP104)*$G$11*Bodencharakterisierung!$E$8 -> 0 | AW104: =IF(AF104<=$J$9*1.05,(AV104*Schadstoffbelastung!$K$11)/($G$12*$G$7)+AW103,NA()) ->  | AX104: 23072.23816 | AY104: 220 | AZ104: 4.093505251 | BA104: 0.1877855712 | BB104: 0 | BC104: 0.54571968 | BE104: 4.3827 | BF104: =#REF!*10^6 ->  | BG104: 39.25497332 | BH104: 23305.29107
Y105: 88 | Z105: 0.02330529107 | AA105: =Z105*EXP((-$J$6/Heterogenität!$D$4)*1) -> 0.02306613111 | AB105: =AF104*Bodencharakterisierung!$E$11/$J$20 -> 4.107983021e-05 | AC105: =((150*($J$2^0.87)*(AB105^0.79)*$J$3)/(Bodencharakterisierung!$E$13^2))*($J$12-Z105)*3600*24 -> 0.07858082994 | AD105: 0.0002391599663 | AE105: =AE104-AD105*Bodencharakterisierung!$E$8 -> 0.05939236179 | AF105: =IF(AE105>$J$18,(AE105/(Bodencharakterisierung!$E$11*1000)),0) -> 3.920287907e-05 | AG105: 0.02330529107 | AH105: 88 | AJ105: =(AD105)*$G$11*Bodencharakterisierung!$E$8 -> 3.458468138e-06 | AK105: =IF(AH105>0,(AJ105*Schadstoffbelastung!$K$11+$G$34)/($G$12*$G$7)+AK104,NA()) -> 0.1899530385 | AM105: 88 | AN105: =IF(AF105<=$J$9*0.05,AS104*EXP((-$J$6*1)/Heterogenität!$D$4),Z105) -> 0.02330529107 | AO105: =IF(OR(AF105>=$J$19, AR104/$J$5<AN105),0, Bodencharakterisierung!$E$8*$J$11*((AR104/$J$5)-AN105)) -> 0 | AP105: 0 | AQ105: =AQ104-AP105*Bodencharakterisierung!$E$8 -> 0.0066397905 | AR105: =AQ105/(Bodencharakterisierung!$E$11*1000) -> 4.3827e-06 | AS105: 0.02330529107 | AT105: 88 | AV105: =(AP105)*$G$11*Bodencharakterisierung!$E$8 -> 0 | AW105: =IF(AF105<=$J$9*1.05,(AV105*Schadstoffbelastung!$K$11)/($G$12*$G$7)+AW104,NA()) ->  | AX105: 23072.23816 | AY105: 221 | AZ105: 4.101945358 | BA105: 0.1899530385 | BB105: 0 | BC105: 0.55199232 | BE105: 4.3827 | BF105: =#REF!*10^6 ->  | BG105: 39.20287907 | BH105: 23305.29107
Y106: 89 | Z106: 0.02330529107 | AA106: =Z106*EXP((-$J$6/Heterogenität!$D$4)*1) -> 0.02306613111 | AB106: =AF105*Bodencharakterisierung!$E$11/$J$20 -> 4.102531424e-05 | AC106: =((150*($J$2^0.87)*(AB106^0.79)*$J$3)/(Bodencharakterisierung!$E$13^2))*($J$12-Z106)*3600*24 -> 0.07849843522 | AD106: 0.0002391599663 | AE106: =AE105-AD106*Bodencharakterisierung!$E$8 -> 0.059313439 | AF106: =IF(AE106>$J$18,(AE106/(Bodencharakterisierung!$E$11*1000)),0) -> 3.915078482e-05 | AG106: 0.02330529107 | AH106: 89 | AJ106: =(AD106)*$G$11*Bodencharakterisierung!$E$8 -> 3.458468138e-06 | AK106: =IF(AH106>0,(AJ106*Schadstoffbelastung!$K$11+$G$34)/($G$12*$G$7)+AK105,NA()) -> 0.1921205057 | AM106: 89 | AN106: =IF(AF106<=$J$9*0.05,AS105*EXP((-$J$6*1)/Heterogenität!$D$4),Z106) -> 0.02330529107 | AO106: =IF(OR(AF106>=$J$19, AR105/$J$5<AN106),0, Bodencharakterisierung!$E$8*$J$11*((AR105/$J$5)-AN106)) -> 0 | AP106: 0 | AQ106: =AQ105-AP106*Bodencharakterisierung!$E$8 -> 0.0066397905 | AR106: =AQ106/(Bodencharakterisierung!$E$11*1000) -> 4.3827e-06 | AS106: 0.02330529107 | AT106: 89 | AV106: =(AP106)*$G$11*Bodencharakterisierung!$E$8 -> 0 | AW106: =IF(AF106<=$J$9*1.05,(AV106*Schadstoffbelastung!$K$11)/($G$12*$G$7)+AW105,NA()) ->  | AX106: 23072.23816 | AY106: 222 | AZ106: 4.110385466 | BA106: 0.1921205057 | BB106: 0 | BC106: 0.55826496 | BE106: 4.3827 | BF106: =#REF!*10^6 ->  | BG106: 39.15078482 | BH106: 23305.29107
Y107: 90 | Z107: 0.02330529107 | AA107: =Z107*EXP((-$J$6/Heterogenität!$D$4)*1) -> 0.02306613111 | AB107: =AF106*Bodencharakterisierung!$E$11/$J$20 -> 4.097079827e-05 | AC107: =((150*($J$2^0.87)*(AB107^0.79)*$J$3)/(Bodencharakterisierung!$E$13^2))*($J$12-Z107)*3600*24 -> 0.07841601751 | AD107: 0.0002391599663 | AE107: =AE106-AD107*Bodencharakterisierung!$E$8 -> 0.05923451621 | AF107: =IF(AE107>$J$18,(AE107/(Bodencharakterisierung!$E$11*1000)),0) -> 3.909869057e-05 | AG107: 0.02330529107 | AH107: 90 | AJ107: =(AD107)*$G$11*Bodencharakterisierung!$E$8 -> 3.458468138e-06 | AK107: =IF(AH107>0,(AJ107*Schadstoffbelastung!$K$11+$G$34)/($G$12*$G$7)+AK106,NA()) -> 0.194287973 | AM107: 90 | AN107: =IF(AF107<=$J$9*0.05,AS106*EXP((-$J$6*1)/Heterogenität!$D$4),Z107) -> 0.02330529107 | AO107: =IF(OR(AF107>=$J$19, AR106/$J$5<AN107),0, Bodencharakterisierung!$E$8*$J$11*((AR106/$J$5)-AN107)) -> 0 | AP107: 0 | AQ107: =AQ106-AP107*Bodencharakterisierung!$E$8 -> 0.0066397905 | AR107: =AQ107/(Bodencharakterisierung!$E$11*1000) -> 4.3827e-06 | AS107: 0.02330529107 | AT107: 90 | AV107: =(AP107)*$G$11*Bodencharakterisierung!$E$8 -> 0 | AW107: =IF(AF107<=$J$9*1.05,(AV107*Schadstoffbelastung!$K$11)/($G$12*$G$7)+AW106,NA()) ->  | AX107: 23072.23816 | AY107: 223 | AZ107: 4.118825573 | BA107: 0.194287973 | BB107: 0 | BC107: 0.5645376 | BE107: 4.3827 | BF107: =#REF!*10^6 ->  | BG107: 39.09869057 | BH107: 23305.29107
Y108: 91 | Z108: 0.02330529107 | AA108: =Z108*EXP((-$J$6/Heterogenität!$D$4)*1) -> 0.02306613111 | AB108: =AF107*Bodencharakterisierung!$E$11/$J$20 -> 4.09162823e-05 | AC108: =((150*($J$2^0.87)*(AB108^0.79)*$J$3)/(Bodencharakterisierung!$E$13^2))*($J$12-Z108)*3600*24 -> 0.07833357677 | AD108: 0.0002391599663 | AE108: =AE107-AD108*Bodencharakterisierung!$E$8 -> 0.05915559343 | AF108: =IF(AE108>$J$18,(AE108/(Bodencharakterisierung!$E$11*1000)),0) -> 3.904659632e-05 | AG108: 0.02330529107 | AH108: 91 | AJ108: =(AD108)*$G$11*Bodencharakterisierung!$E$8 -> 3.458468138e-06 | AK108: =IF(AH108>0,(AJ108*Schadstoffbelastung!$K$11+$G$34)/($G$12*$G$7)+AK107,NA()) -> 0.1964554402 | AM108: 91 | AN108: =IF(AF108<=$J$9*0.05,AS107*EXP((-$J$6*1)/Heterogenität!$D$4),Z108) -> 0.02330529107 | AO108: =IF(OR(AF108>=$J$19, AR107/$J$5<AN108),0, Bodencharakterisierung!$E$8*$J$11*((AR107/$J$5)-AN108)) -> 0 | AP108: 0 | AQ108: =AQ107-AP108*Bodencharakterisierung!$E$8 -> 0.0066397905 | AR108: =AQ108/(Bodencharakterisierung!$E$11*1000) -> 4.3827e-06 | AS108: 0.02330529107 | AT108: 91 | AV108: =(AP108)*$G$11*Bodencharakterisierung!$E$8 -> 0 | AW108: =IF(AF108<=$J$9*1.05,(AV108*Schadstoffbelastung!$K$11)/($G$12*$G$7)+AW107,NA()) ->  | AX108: 23072.23816 | AY108: 224 | AZ108: 4.12726568 | BA108: 0.1964554402 | BB108: 0 | BC108: 0.57081024 | BE108: 4.3827 | BF108: =#REF!*10^6 ->  | BG108: 39.04659632 | BH108: 23305.29107
Y109: 92 | Z109: 0.02330529107 | AA109: =Z109*EXP((-$J$6/Heterogenität!$D$4)*1) -> 0.02306613111 | AB109: =AF108*Bodencharakterisierung!$E$11/$J$20 -> 4.086176633e-05 | AC109: =((150*($J$2^0.87)*(AB109^0.79)*$J$3)/(Bodencharakterisierung!$E$13^2))*($J$12-Z109)*3600*24 -> 0.07825111296 | AD109: 0.0002391599663 | AE109: =AE108-AD109*Bodencharakterisierung!$E$8 -> 0.05907667064 | AF109: =IF(AE109>$J$18,(AE109/(Bodencharakterisierung!$E$11*1000)),0) -> 3.899450207e-05 | AG109: 0.02330529107 | AH109: 92 | AJ109: =(AD109)*$G$11*Bodencharakterisierung!$E$8 -> 3.458468138e-06 | AK109: =IF(AH109>0,(AJ109*Schadstoffbelastung!$K$11+$G$34)/($G$12*$G$7)+AK108,NA()) -> 0.1986229075 | AM109: 92 | AN109: =IF(AF109<=$J$9*0.05,AS108*EXP((-$J$6*1)/Heterogenität!$D$4),Z109) -> 0.02330529107 | AO109: =IF(OR(AF109>=$J$19, AR108/$J$5<AN109),0, Bodencharakterisierung!$E$8*$J$11*((AR108/$J$5)-AN109)) -> 0 | AP109: 0 | AQ109: =AQ108-AP109*Bodencharakterisierung!$E$8 -> 0.0066397905 | AR109: =AQ109/(Bodencharakterisierung!$E$11*1000) -> 4.3827e-06 | AS109: 0.02330529107 | AT109: 92 | AV109: =(AP109)*$G$11*Bodencharakterisierung!$E$8 -> 0 | AW109: =IF(AF109<=$J$9*1.05,(AV109*Schadstoffbelastung!$K$11)/($G$12*$G$7)+AW108,NA()) ->  | AX109: 23072.23816 | AY109: 225 | AZ109: 4.135705787 | BA109: 0.1986229075 | BB109: 0 | BC109: 0.57708288 | BE109: 4.3827 | BF109: =#REF!*10^6 ->  | BG109: 38.99450207 | BH109: 23305.29107
Y110: 93 | Z110: 0.02330529107 | AA110: =Z110*EXP((-$J$6/Heterogenität!$D$4)*1) -> 0.02306613111 | AB110: =AF109*Bodencharakterisierung!$E$11/$J$20 -> 4.080725036e-05 | AC110: =((150*($J$2^0.87)*(AB110^0.79)*$J$3)/(Bodencharakterisierung!$E$13^2))*($J$12-Z110)*3600*24 -> 0.07816862604 | AD110: 0.0002391599663 | AE110: =AE109-AD110*Bodencharakterisierung!$E$8 -> 0.05899774785 | AF110: =IF(AE110>$J$18,(AE110/(Bodencharakterisierung!$E$11*1000)),0) -> 3.894240782e-05 | AG110: 0.02330529107 | AH110: 93 | AJ110: =(AD110)*$G$11*Bodencharakterisierung!$E$8 -> 3.458468138e-06 | AK110: =IF(AH110>0,(AJ110*Schadstoffbelastung!$K$11+$G$34)/($G$12*$G$7)+AK109,NA()) -> 0.2007903747 | AM110: 93 | AN110: =IF(AF110<=$J$9*0.05,AS109*EXP((-$J$6*1)/Heterogenität!$D$4),Z110) -> 0.02330529107 | AO110: =IF(OR(AF110>=$J$19, AR109/$J$5<AN110),0, Bodencharakterisierung!$E$8*$J$11*((AR109/$J$5)-AN110)) -> 0 | AP110: 0 | AQ110: =AQ109-AP110*Bodencharakterisierung!$E$8 -> 0.0066397905 | AR110: =AQ110/(Bodencharakterisierung!$E$11*1000) -> 4.3827e-06 | AS110: 0.02330529107 | AT110: 93 | AV110: =(AP110)*$G$11*Bodencharakterisierung!$E$8 -> 0 | AW110: =IF(AF110<=$J$9*1.05,(AV110*Schadstoffbelastung!$K$11)/($G$12*$G$7)+AW109,NA()) ->  | AX110: 23072.23816 | AY110: 226 | AZ110: 4.144145895 | BA110: 0.2007903747 | BB110: 0 | BC110: 0.58335552 | BE110: 4.3827 | BF110: =#REF!*10^6 ->  | BG110: 38.94240782 | BH110: 23305.29107
Y111: 94 | Z111: 0.02330529107 | AA111: =Z111*EXP((-$J$6/Heterogenität!$D$4)*1) -> 0.02306613111 | AB111: =AF110*Bodencharakterisierung!$E$11/$J$20 -> 4.075273439e-05 | AC111: =((150*($J$2^0.87)*(AB111^0.79)*$J$3)/(Bodencharakterisierung!$E$13^2))*($J$12-Z111)*3600*24 -> 0.07808611597 | AD111: 0.0002391599663 | AE111: =AE110-AD111*Bodencharakterisierung!$E$8 -> 0.05891882506 | AF111: =IF(AE111>$J$18,(AE111/(Bodencharakterisierung!$E$11*1000)),0) -> 3.889031357e-05 | AG111: 0.02330529107 | AH111: 94 | AJ111: =(AD111)*$G$11*Bodencharakterisierung!$E$8 -> 3.458468138e-06 | AK111: =IF(AH111>0,(AJ111*Schadstoffbelastung!$K$11+$G$34)/($G$12*$G$7)+AK110,NA()) -> 0.202957842 | AM111: 94 | AN111: =IF(AF111<=$J$9*0.05,AS110*EXP((-$J$6*1)/Heterogenität!$D$4),Z111) -> 0.02330529107 | AO111: =IF(OR(AF111>=$J$19, AR110/$J$5<AN111),0, Bodencharakterisierung!$E$8*$J$11*((AR110/$J$5)-AN111)) -> 0 | AP111: 0 | AQ111: =AQ110-AP111*Bodencharakterisierung!$E$8 -> 0.0066397905 | AR111: =AQ111/(Bodencharakterisierung!$E$11*1000) -> 4.3827e-06 | AS111: 0.02330529107 | AT111: 94 | AV111: =(AP111)*$G$11*Bodencharakterisierung!$E$8 -> 0 | AW111: =IF(AF111<=$J$9*1.05,(AV111*Schadstoffbelastung!$K$11)/($G$12*$G$7)+AW110,NA()) ->  | AX111: 23072.23816 | AY111: 227 | AZ111: 4.152586002 | BA111: 0.202957842 | BB111: 0 | BC111: 0.58962816 | BE111: 4.3827 | BF111: =#REF!*10^6 ->  | BG111: 38.89031357 | BH111: 23305.29107
Y112: 95 | Z112: 0.02330529107 | AA112: =Z112*EXP((-$J$6/Heterogenität!$D$4)*1) -> 0.02306613111 | AB112: =AF111*Bodencharakterisierung!$E$11/$J$20 -> 4.069821842e-05 | AC112: =((150*($J$2^0.87)*(AB112^0.79)*$J$3)/(Bodencharakterisierung!$E$13^2))*($J$12-Z112)*3600*24 -> 0.07800358272 | AD112: 0.0002391599663 | AE112: =AE111-AD112*Bodencharakterisierung!$E$8 -> 0.05883990227 | AF112: =IF(AE112>$J$18,(AE112/(Bodencharakterisierung!$E$11*1000)),0) -> 3.883821932e-05 | AG112: 0.02330529107 | AH112: 95 | AJ112: =(AD112)*$G$11*Bodencharakterisierung!$E$8 -> 3.458468138e-06 | AK112: =IF(AH112>0,(AJ112*Schadstoffbelastung!$K$11+$G$34)/($G$12*$G$7)+AK111,NA()) -> 0.2051253093 | AM112: 95 | AN112: =IF(AF112<=$J$9*0.05,AS111*EXP((-$J$6*1)/Heterogenität!$D$4),Z112) -> 0.02330529107 | AO112: =IF(OR(AF112>=$J$19, AR111/$J$5<AN112),0, Bodencharakterisierung!$E$8*$J$11*((AR111/$J$5)-AN112)) -> 0 | AP112: 0 | AQ112: =AQ111-AP112*Bodencharakterisierung!$E$8 -> 0.0066397905 | AR112: =AQ112/(Bodencharakterisierung!$E$11*1000) -> 4.3827e-06 | AS112: 0.02330529107 | AT112: 95 | AV112: =(AP112)*$G$11*Bodencharakterisierung!$E$8 -> 0 | AW112: =IF(AF112<=$J$9*1.05,(AV112*Schadstoffbelastung!$K$11)/($G$12*$G$7)+AW111,NA()) ->  | AX112: 23072.23816 | AY112: 228 | AZ112: 4.161026109 | BA112: 0.2051253093 | BB112: 0 | BC112: 0.5959008 | BE112: 4.3827 | BF112: =#REF!*10^6 ->  | BG112: 38.83821932 | BH112: 23305.29107
Y113: 96 | Z113: 0.02330529107 | AA113: =Z113*EXP((-$J$6/Heterogenität!$D$4)*1) -> 0.02306613111 | AB113: =AF112*Bodencharakterisierung!$E$11/$J$20 -> 4.064370245e-05 | AC113: =((150*($J$2^0.87)*(AB113^0.79)*$J$3)/(Bodencharakterisierung!$E$13^2))*($J$12-Z113)*3600*24 -> 0.07792102626 | AD113: 0.0002391599663 | AE113: =AE112-AD113*Bodencharakterisierung!$E$8 -> 0.05876097948 | AF113: =IF(AE113>$J$18,(AE113/(Bodencharakterisierung!$E$11*1000)),0) -> 3.878612507e-05 | AG113: 0.02330529107 | AH113: 96 | AJ113: =(AD113)*$G$11*Bodencharakterisierung!$E$8 -> 3.458468138e-06 | AK113: =IF(AH113>0,(AJ113*Schadstoffbelastung!$K$11+$G$34)/($G$12*$G$7)+AK112,NA()) -> 0.2072927765 | AM113: 96 | AN113: =IF(AF113<=$J$9*0.05,AS112*EXP((-$J$6*1)/Heterogenität!$D$4),Z113) -> 0.02330529107 | AO113: =IF(OR(AF113>=$J$19, AR112/$J$5<AN113),0, Bodencharakterisierung!$E$8*$J$11*((AR112/$J$5)-AN113)) -> 0 | AP113: 0 | AQ113: =AQ112-AP113*Bodencharakterisierung!$E$8 -> 0.0066397905 | AR113: =AQ113/(Bodencharakterisierung!$E$11*1000) -> 4.3827e-06 | AS113: 0.02330529107 | AT113: 96 | AV113: =(AP113)*$G$11*Bodencharakterisierung!$E$8 -> 0 | AW113: =IF(AF113<=$J$9*1.05,(AV113*Schadstoffbelastung!$K$11)/($G$12*$G$7)+AW112,NA()) ->  | AX113: 23072.23816 | AY113: 229 | AZ113: 4.169466217 | BA113: 0.2072927765 | BB113: 0 | BC113: 0.60217344 | BE113: 4.3827 | BF113: =#REF!*10^6 ->  | BG113: 38.78612507 | BH113: 23305.29107
Y114: 97 | Z114: 0.02330529107 | AA114: =Z114*EXP((-$J$6/Heterogenität!$D$4)*1) -> 0.02306613111 | AB114: =AF113*Bodencharakterisierung!$E$11/$J$20 -> 4.058918648e-05 | AC114: =((150*($J$2^0.87)*(AB114^0.79)*$J$3)/(Bodencharakterisierung!$E$13^2))*($J$12-Z114)*3600*24 -> 0.07783844653 | AD114: 0.0002391599663 | AE114: =AE113-AD114*Bodencharakterisierung!$E$8 -> 0.05868205669 | AF114: =IF(AE114>$J$18,(AE114/(Bodencharakterisierung!$E$11*1000)),0) -> 3.873403082e-05 | AG114: 0.02330529107 | AH114: 97 | AJ114: =(AD114)*$G$11*Bodencharakterisierung!$E$8 -> 3.458468138e-06 | AK114: =IF(AH114>0,(AJ114*Schadstoffbelastung!$K$11+$G$34)/($G$12*$G$7)+AK113,NA()) -> 0.2094602438 | AM114: 97 | AN114: =IF(AF114<=$J$9*0.05,AS113*EXP((-$J$6*1)/Heterogenität!$D$4),Z114) -> 0.02330529107 | AO114: =IF(OR(AF114>=$J$19, AR113/$J$5<AN114),0, Bodencharakterisierung!$E$8*$J$11*((AR113/$J$5)-AN114)) -> 0 | AP114: 0 | AQ114: =AQ113-AP114*Bodencharakterisierung!$E$8 -> 0.0066397905 | AR114: =AQ114/(Bodencharakterisierung!$E$11*1000) -> 4.3827e-06 | AS114: 0.02330529107 | AT114: 97 | AV114: =(AP114)*$G$11*Bodencharakterisierung!$E$8 -> 0 | AW114: =IF(AF114<=$J$9*1.05,(AV114*Schadstoffbelastung!$K$11)/($G$12*$G$7)+AW113,NA()) ->  | AX114: 23072.23816 | AY114: 230 | AZ114: 4.177906324 | BA114: 0.2094602438 | BB114: 0 | BC114: 0.60844608 | BE114: 4.3827 | BF114: =#REF!*10^6 ->  | BG114: 38.73403082 | BH114: 23305.29107
Y115: 98 | Z115: 0.02330529107 | AA115: =Z115*EXP((-$J$6/Heterogenität!$D$4)*1) -> 0.02306613111 | AB115: =AF114*Bodencharakterisierung!$E$11/$J$20 -> 4.053467051e-05 | AC115: =((150*($J$2^0.87)*(AB115^0.79)*$J$3)/(Bodencharakterisierung!$E$13^2))*($J$12-Z115)*3600*24 -> 0.07775584351 | AD115: 0.0002391599663 | AE115: =AE114-AD115*Bodencharakterisierung!$E$8 -> 0.0586031339 | AF115: =IF(AE115>$J$18,(AE115/(Bodencharakterisierung!$E$11*1000)),0) -> 3.868193657e-05 | AG115: 0.02330529107 | AH115: 98 | AJ115: =(AD115)*$G$11*Bodencharakterisierung!$E$8 -> 3.458468138e-06 | AK115: =IF(AH115>0,(AJ115*Schadstoffbelastung!$K$11+$G$34)/($G$12*$G$7)+AK114,NA()) -> 0.211627711 | AM115: 98 | AN115: =IF(AF115<=$J$9*0.05,AS114*EXP((-$J$6*1)/Heterogenität!$D$4),Z115) -> 0.02330529107 | AO115: =IF(OR(AF115>=$J$19, AR114/$J$5<AN115),0, Bodencharakterisierung!$E$8*$J$11*((AR114/$J$5)-AN115)) -> 0 | AP115: 0 | AQ115: =AQ114-AP115*Bodencharakterisierung!$E$8 -> 0.0066397905 | AR115: =AQ115/(Bodencharakterisierung!$E$11*1000) -> 4.3827e-06 | AS115: 0.02330529107 | AT115: 98 | AV115: =(AP115)*$G$11*Bodencharakterisierung!$E$8 -> 0 | AW115: =IF(AF115<=$J$9*1.05,(AV115*Schadstoffbelastung!$K$11)/($G$12*$G$7)+AW114,NA()) ->  | AX115: 23072.23816 | AY115: 231 | AZ115: 4.186346431 | BA115: 0.211627711 | BB115: 0 | BC115: 0.61471872 | BE115: 4.3827 | BF115: =#REF!*10^6 ->  | BG115: 38.68193657 | BH115: 23305.29107
Y116: 99 | Z116: 0.02330529107 | AA116: =Z116*EXP((-$J$6/Heterogenität!$D$4)*1) -> 0.02306613111 | AB116: =AF115*Bodencharakterisierung!$E$11/$J$20 -> 4.048015454e-05 | AC116: =((150*($J$2^0.87)*(AB116^0.79)*$J$3)/(Bodencharakterisierung!$E$13^2))*($J$12-Z116)*3600*24 -> 0.07767321716 | AD116: 0.0002391599663 | AE116: =AE115-AD116*Bodencharakterisierung!$E$8 -> 0.05852421111 | AF116: =IF(AE116>$J$18,(AE116/(Bodencharakterisierung!$E$11*1000)),0) -> 3.862984232e-05 | AG116: 0.02330529107 | AH116: 99 | AJ116: =(AD116)*$G$11*Bodencharakterisierung!$E$8 -> 3.458468138e-06 | AK116: =IF(AH116>0,(AJ116*Schadstoffbelastung!$K$11+$G$34)/($G$12*$G$7)+AK115,NA()) -> 0.2137951783 | AM116: 99 | AN116: =IF(AF116<=$J$9*0.05,AS115*EXP((-$J$6*1)/Heterogenität!$D$4),Z116) -> 0.02330529107 | AO116: =IF(OR(AF116>=$J$19, AR115/$J$5<AN116),0, Bodencharakterisierung!$E$8*$J$11*((AR115/$J$5)-AN116)) -> 0 | AP116: 0 | AQ116: =AQ115-AP116*Bodencharakterisierung!$E$8 -> 0.0066397905 | AR116: =AQ116/(Bodencharakterisierung!$E$11*1000) -> 4.3827e-06 | AS116: 0.02330529107 | AT116: 99 | AV116: =(AP116)*$G$11*Bodencharakterisierung!$E$8 -> 0 | AW116: =IF(AF116<=$J$9*1.05,(AV116*Schadstoffbelastung!$K$11)/($G$12*$G$7)+AW115,NA()) ->  | AX116: 23072.23816 | AY116: 232 | AZ116: 4.194786538 | BA116: 0.2137951783 | BB116: 0 | BC116: 0.62099136 | BE116: 4.3827 | BF116: =#REF!*10^6 ->  | BG116: 38.62984232 | BH116: 23305.29107
Y117: 100 | Z117: 0.02330529107 | AA117: =Z117*EXP((-$J$6/Heterogenität!$D$4)*1) -> 0.02306613111 | AB117: =AF116*Bodencharakterisierung!$E$11/$J$20 -> 4.042563857e-05 | AC117: =((150*($J$2^0.87)*(AB117^0.79)*$J$3)/(Bodencharakterisierung!$E$13^2))*($J$12-Z117)*3600*24 -> 0.07759056744 | AD117: 0.0002391599663 | AE117: =AE116-AD117*Bodencharakterisierung!$E$8 -> 0.05844528833 | AF117: =IF(AE117>$J$18,(AE117/(Bodencharakterisierung!$E$11*1000)),0) -> 3.857774807e-05 | AG117: 0.02330529107 | AH117: 100 | AJ117: =(AD117)*$G$11*Bodencharakterisierung!$E$8 -> 3.458468138e-06 | AK117: =IF(AH117>0,(AJ117*Schadstoffbelastung!$K$11+$G$34)/($G$12*$G$7)+AK116,NA()) -> 0.2159626455 | AM117: 100 | AN117: =IF(AF117<=$J$9*0.05,AS116*EXP((-$J$6*1)/Heterogenität!$D$4),Z117) -> 0.02330529107 | AO117: =IF(OR(AF117>=$J$19, AR116/$J$5<AN117),0, Bodencharakterisierung!$E$8*$J$11*((AR116/$J$5)-AN117)) -> 0 | AP117: 0 | AQ117: =AQ116-AP117*Bodencharakterisierung!$E$8 -> 0.0066397905 | AR117: =AQ117/(Bodencharakterisierung!$E$11*1000) -> 4.3827e-06 | AS117: 0.02330529107 | AT117: 100 | AV117: =(AP117)*$G$11*Bodencharakterisierung!$E$8 -> 0 | AW117: =IF(AF117<=$J$9*1.05,(AV117*Schadstoffbelastung!$K$11)/($G$12*$G$7)+AW116,NA()) ->  | AX117: 23072.23816 | AY117: 233 | AZ117: 4.203226646 | BA117: 0.2159626455 | BB117: 0 | BC117: 0.627264 | BE117: 4.3827 | BF117: =#REF!*10^6 ->  | BG117: 38.57774807 | BH117: 23305.29107
Y118: 101 | Z118: 0.02330529107 | AA118: =Z118*EXP((-$J$6/Heterogenität!$D$4)*1) -> 0.02306613111 | AB118: =AF117*Bodencharakterisierung!$E$11/$J$20 -> 4.03711226e-05 | AC118: =((150*($J$2^0.87)*(AB118^0.79)*$J$3)/(Bodencharakterisierung!$E$13^2))*($J$12-Z118)*3600*24 -> 0.0775078943 | AD118: 0.0002391599663 | AE118: =AE117-AD118*Bodencharakterisierung!$E$8 -> 0.05836636554 | AF118: =IF(AE118>$J$18,(AE118/(Bodencharakterisierung!$E$11*1000)),0) -> 3.852565382e-05 | AG118: 0.02330529107 | AH118: 101 | AJ118: =(AD118)*$G$11*Bodencharakterisierung!$E$8 -> 3.458468138e-06 | AK118: =IF(AH118>0,(AJ118*Schadstoffbelastung!$K$11+$G$34)/($G$12*$G$7)+AK117,NA()) -> 0.2181301128 | AM118: 101 | AN118: =IF(AF118<=$J$9*0.05,AS117*EXP((-$J$6*1)/Heterogenität!$D$4),Z118) -> 0.02330529107 | AO118: =IF(OR(AF118>=$J$19, AR117/$J$5<AN118),0, Bodencharakterisierung!$E$8*$J$11*((AR117/$J$5)-AN118)) -> 0 | AP118: 0 | AQ118: =AQ117-AP118*Bodencharakterisierung!$E$8 -> 0.0066397905 | AR118: =AQ118/(Bodencharakterisierung!$E$11*1000) -> 4.3827e-06 | AS118: 0.02330529107 | AT118: 101 | AV118: =(AP118)*$G$11*Bodencharakterisierung!$E$8 -> 0 | AW118: =IF(AF118<=$J$9*1.05,(AV118*Schadstoffbelastung!$K$11)/($G$12*$G$7)+AW117,NA()) ->  | AX118: 23072.23816 | AY118: 234 | AZ118: 4.211666753 | BA118: 0.2181301128 | BB118: 0 | BC118: 0.63353664 | BE118: 4.3827 | BF118: =#REF!*10^6 ->  | BG118: 38.52565382 | BH118: 23305.29107
Y119: 102 | Z119: 0.02330529107 | AA119: =Z119*EXP((-$J$6/Heterogenität!$D$4)*1) -> 0.02306613111 | AB119: =AF118*Bodencharakterisierung!$E$11/$J$20 -> 4.031660663e-05 | AC119: =((150*($J$2^0.87)*(AB119^0.79)*$J$3)/(Bodencharakterisierung!$E$13^2))*($J$12-Z119)*3600*24 -> 0.07742519772 | AD119: 0.0002391599663 | AE119: =AE118-AD119*Bodencharakterisierung!$E$8 -> 0.05828744275 | AF119: =IF(AE119>$J$18,(AE119/(Bodencharakterisierung!$E$11*1000)),0) -> 3.847355957e-05 | AG119: 0.02330529107 | AH119: 102 | AJ119: =(AD119)*$G$11*Bodencharakterisierung!$E$8 -> 3.458468138e-06 | AK119: =IF(AH119>0,(AJ119*Schadstoffbelastung!$K$11+$G$34)/($G$12*$G$7)+AK118,NA()) -> 0.22029758 | AM119: 102 | AN119: =IF(AF119<=$J$9*0.05,AS118*EXP((-$J$6*1)/Heterogenität!$D$4),Z119) -> 0.02330529107 | AO119: =IF(OR(AF119>=$J$19, AR118/$J$5<AN119),0, Bodencharakterisierung!$E$8*$J$11*((AR118/$J$5)-AN119)) -> 0 | AP119: 0 | AQ119: =AQ118-AP119*Bodencharakterisierung!$E$8 -> 0.0066397905 | AR119: =AQ119/(Bodencharakterisierung!$E$11*1000) -> 4.3827e-06 | AS119: 0.02330529107 | AT119: 102 | AV119: =(AP119)*$G$11*Bodencharakterisierung!$E$8 -> 0 | AW119: =IF(AF119<=$J$9*1.05,(AV119*Schadstoffbelastung!$K$11)/($G$12*$G$7)+AW118,NA()) ->  | AX119: 23072.23816 | AY119: 235 | AZ119: 4.22010686 | BA119: 0.22029758 | BB119: 0 | BC119: 0.63980928 | BE119: 4.3827 | BF119: =#REF!*10^6 ->  | BG119: 38.47355957 | BH119: 23305.29107
Y120: 103 | Z120: 0.02330529107 | AA120: =Z120*EXP((-$J$6/Heterogenität!$D$4)*1) -> 0.02306613111 | AB120: =AF119*Bodencharakterisierung!$E$11/$J$20 -> 4.026209066e-05 | AC120: =((150*($J$2^0.87)*(AB120^0.79)*$J$3)/(Bodencharakterisierung!$E$13^2))*($J$12-Z120)*3600*24 -> 0.07734247765 | AD120: 0.0002391599663 | AE120: =AE119-AD120*Bodencharakterisierung!$E$8 -> 0.05820851996 | AF120: =IF(AE120>$J$18,(AE120/(Bodencharakterisierung!$E$11*1000)),0) -> 3.842146532e-05 | AG120: 0.02330529107 | AH120: 103 | AJ120: =(AD120)*$G$11*Bodencharakterisierung!$E$8 -> 3.458468138e-06 | AK120: =IF(AH120>0,(AJ120*Schadstoffbelastung!$K$11+$G$34)/($G$12*$G$7)+AK119,NA()) -> 0.2224650473 | AM120: 103 | AN120: =IF(AF120<=$J$9*0.05,AS119*EXP((-$J$6*1)/Heterogenität!$D$4),Z120) -> 0.02330529107 | AO120: =IF(OR(AF120>=$J$19, AR119/$J$5<AN120),0, Bodencharakterisierung!$E$8*$J$11*((AR119/$J$5)-AN120)) -> 0 | AP120: 0 | AQ120: =AQ119-AP120*Bodencharakterisierung!$E$8 -> 0.0066397905 | AR120: =AQ120/(Bodencharakterisierung!$E$11*1000) -> 4.3827e-06 | AS120: 0.02330529107 | AT120: 103 | AV120: =(AP120)*$G$11*Bodencharakterisierung!$E$8 -> 0 | AW120: =IF(AF120<=$J$9*1.05,(AV120*Schadstoffbelastung!$K$11)/($G$12*$G$7)+AW119,NA()) ->  | AX120: 23072.23816 | AY120: 236 | AZ120: 4.228546967 | BA120: 0.2224650473 | BB120: 0 | BC120: 0.64608192 | BE120: 4.3827 | BF120: =#REF!*10^6 ->  | BG120: 38.42146532 | BH120: 23305.29107
Y121: 104 | Z121: 0.02330529107 | AA121: =Z121*EXP((-$J$6/Heterogenität!$D$4)*1) -> 0.02306613111 | AB121: =AF120*Bodencharakterisierung!$E$11/$J$20 -> 4.020757469e-05 | AC121: =((150*($J$2^0.87)*(AB121^0.79)*$J$3)/(Bodencharakterisierung!$E$13^2))*($J$12-Z121)*3600*24 -> 0.07725973406 | AD121: 0.0002391599663 | AE121: =AE120-AD121*Bodencharakterisierung!$E$8 -> 0.05812959717 | AF121: =IF(AE121>$J$18,(AE121/(Bodencharakterisierung!$E$11*1000)),0) -> 3.836937107e-05 | AG121: 0.02330529107 | AH121: 104 | AJ121: =(AD121)*$G$11*Bodencharakterisierung!$E$8 -> 3.458468138e-06 | AK121: =IF(AH121>0,(AJ121*Schadstoffbelastung!$K$11+$G$34)/($G$12*$G$7)+AK120,NA()) -> 0.2246325146 | AM121: 104 | AN121: =IF(AF121<=$J$9*0.05,AS120*EXP((-$J$6*1)/Heterogenität!$D$4),Z121) -> 0.02330529107 | AO121: =IF(OR(AF121>=$J$19, AR120/$J$5<AN121),0, Bodencharakterisierung!$E$8*$J$11*((AR120/$J$5)-AN121)) -> 0 | AP121: 0 | AQ121: =AQ120-AP121*Bodencharakterisierung!$E$8 -> 0.0066397905 | AR121: =AQ121/(Bodencharakterisierung!$E$11*1000) -> 4.3827e-06 | AS121: 0.02330529107 | AT121: 104 | AV121: =(AP121)*$G$11*Bodencharakterisierung!$E$8 -> 0 | AW121: =IF(AF121<=$J$9*1.05,(AV121*Schadstoffbelastung!$K$11)/($G$12*$G$7)+AW120,NA()) ->  | AX121: 23072.23816 | AY121: 237 | AZ121: 4.236987075 | BA121: 0.2246325146 | BB121: 0 | BC121: 0.65235456 | BE121: 4.3827 | BF121: =#REF!*10^6 ->  | BG121: 38.36937107 | BH121: 23305.29107
Y122: 105 | Z122: 0.02330529107 | AA122: =Z122*EXP((-$J$6/Heterogenität!$D$4)*1) -> 0.02306613111 | AB122: =AF121*Bodencharakterisierung!$E$11/$J$20 -> 4.015305872e-05 | AC122: =((150*($J$2^0.87)*(AB122^0.79)*$J$3)/(Bodencharakterisierung!$E$13^2))*($J$12-Z122)*3600*24 -> 0.07717696691 | AD122: 0.0002391599663 | AE122: =AE121-AD122*Bodencharakterisierung!$E$8 -> 0.05805067438 | AF122: =IF(AE122>$J$18,(AE122/(Bodencharakterisierung!$E$11*1000)),0) -> 3.831727682e-05 | AG122: 0.02330529107 | AH122: 105 | AJ122: =(AD122)*$G$11*Bodencharakterisierung!$E$8 -> 3.458468138e-06 | AK122: =IF(AH122>0,(AJ122*Schadstoffbelastung!$K$11+$G$34)/($G$12*$G$7)+AK121,NA()) -> 0.2267999818 | AM122: 105 | AN122: =IF(AF122<=$J$9*0.05,AS121*EXP((-$J$6*1)/Heterogenität!$D$4),Z122) -> 0.02330529107 | AO122: =IF(OR(AF122>=$J$19, AR121/$J$5<AN122),0, Bodencharakterisierung!$E$8*$J$11*((AR121/$J$5)-AN122)) -> 0 | AP122: 0 | AQ122: =AQ121-AP122*Bodencharakterisierung!$E$8 -> 0.0066397905 | AR122: =AQ122/(Bodencharakterisierung!$E$11*1000) -> 4.3827e-06 | AS122: 0.02330529107 | AT122: 105 | AV122: =(AP122)*$G$11*Bodencharakterisierung!$E$8 -> 0 | AW122: =IF(AF122<=$J$9*1.05,(AV122*Schadstoffbelastung!$K$11)/($G$12*$G$7)+AW121,NA()) ->  | AX122: 23072.23816 | AY122: 238 | AZ122: 4.245427182 | BA122: 0.2267999818 | BB122: 0 | BC122: 0.6586272 | BE122: 4.3827 | BF122: =#REF!*10^6 ->  | BG122: 38.31727682 | BH122: 23305.29107
Y123: 106 | Z123: 0.02330529107 | AA123: =Z123*EXP((-$J$6/Heterogenität!$D$4)*1) -> 0.02306613111 | AB123: =AF122*Bodencharakterisierung!$E$11/$J$20 -> 4.009854275e-05 | AC123: =((150*($J$2^0.87)*(AB123^0.79)*$J$3)/(Bodencharakterisierung!$E$13^2))*($J$12-Z123)*3600*24 -> 0.07709417615 | AD123: 0.0002391599663 | AE123: =AE122-AD123*Bodencharakterisierung!$E$8 -> 0.05797175159 | AF123: =IF(AE123>$J$18,(AE123/(Bodencharakterisierung!$E$11*1000)),0) -> 3.826518257e-05 | AG123: 0.02330529107 | AH123: 106 | AJ123: =(AD123)*$G$11*Bodencharakterisierung!$E$8 -> 3.458468138e-06 | AK123: =IF(AH123>0,(AJ123*Schadstoffbelastung!$K$11+$G$34)/($G$12*$G$7)+AK122,NA()) -> 0.2289674491 | AM123: 106 | AN123: =IF(AF123<=$J$9*0.05,AS122*EXP((-$J$6*1)/Heterogenität!$D$4),Z123) -> 0.02330529107 | AO123: =IF(OR(AF123>=$J$19, AR122/$J$5<AN123),0, Bodencharakterisierung!$E$8*$J$11*((AR122/$J$5)-AN123)) -> 0 | AP123: 0 | AQ123: =AQ122-AP123*Bodencharakterisierung!$E$8 -> 0.0066397905 | AR123: =AQ123/(Bodencharakterisierung!$E$11*1000) -> 4.3827e-06 | AS123: 0.02330529107 | AT123: 106 | AV123: =(AP123)*$G$11*Bodencharakterisierung!$E$8 -> 0 | AW123: =IF(AF123<=$J$9*1.05,(AV123*Schadstoffbelastung!$K$11)/($G$12*$G$7)+AW122,NA()) ->  | AX123: 23072.23816 | AY123: 239 | AZ123: 4.253867289 | BA123: 0.2289674491 | BB123: 0 | BC123: 0.66489984 | BE123: 4.3827 | BF123: =#REF!*10^6 ->  | BG123: 38.26518257 | BH123: 23305.29107
Y124: 107 | Z124: 0.02330529107 | AA124: =Z124*EXP((-$J$6/Heterogenität!$D$4)*1) -> 0.02306613111 | AB124: =AF123*Bodencharakterisierung!$E$11/$J$20 -> 4.004402678e-05 | AC124: =((150*($J$2^0.87)*(AB124^0.79)*$J$3)/(Bodencharakterisierung!$E$13^2))*($J$12-Z124)*3600*24 -> 0.07701136176 | AD124: 0.0002391599663 | AE124: =AE123-AD124*Bodencharakterisierung!$E$8 -> 0.0578928288 | AF124: =IF(AE124>$J$18,(AE124/(Bodencharakterisierung!$E$11*1000)),0) -> 3.821308832e-05 | AG124: 0.02330529107 | AH124: 107 | AJ124: =(AD124)*$G$11*Bodencharakterisierung!$E$8 -> 3.458468138e-06 | AK124: =IF(AH124>0,(AJ124*Schadstoffbelastung!$K$11+$G$34)/($G$12*$G$7)+AK123,NA()) -> 0.2311349163 | AM124: 107 | AN124: =IF(AF124<=$J$9*0.05,AS123*EXP((-$J$6*1)/Heterogenität!$D$4),Z124) -> 0.02330529107 | AO124: =IF(OR(AF124>=$J$19, AR123/$J$5<AN124),0, Bodencharakterisierung!$E$8*$J$11*((AR123/$J$5)-AN124)) -> 0 | AP124: 0 | AQ124: =AQ123-AP124*Bodencharakterisierung!$E$8 -> 0.0066397905 | AR124: =AQ124/(Bodencharakterisierung!$E$11*1000) -> 4.3827e-06 | AS124: 0.02330529107 | AT124: 107 | AV124: =(AP124)*$G$11*Bodencharakterisierung!$E$8 -> 0 | AW124: =IF(AF124<=$J$9*1.05,(AV124*Schadstoffbelastung!$K$11)/($G$12*$G$7)+AW123,NA()) ->  | AX124: 23072.23816 | AY124: 240 | AZ124: 4.262307396 | BA124: 0.2311349163 | BB124: 0 | BC124: 0.67117248 | BE124: 4.3827 | BF124: =#REF!*10^6 ->  | BG124: 38.21308832 | BH124: 23305.29107
Y125: 108 | Z125: 0.02330529107 | AA125: =Z125*EXP((-$J$6/Heterogenität!$D$4)*1) -> 0.02306613111 | AB125: =AF124*Bodencharakterisierung!$E$11/$J$20 -> 3.998951081e-05 | AC125: =((150*($J$2^0.87)*(AB125^0.79)*$J$3)/(Bodencharakterisierung!$E$13^2))*($J$12-Z125)*3600*24 -> 0.07692852368 | AD125: 0.0002391599663 | AE125: =AE124-AD125*Bodencharakterisierung!$E$8 -> 0.05781390601 | AF125: =IF(AE125>$J$18,(AE125/(Bodencharakterisierung!$E$11*1000)),0) -> 3.816099407e-05 | AG125: 0.02330529107 | AH125: 108 | AJ125: =(AD125)*$G$11*Bodencharakterisierung!$E$8 -> 3.458468138e-06 | AK125: =IF(AH125>0,(AJ125*Schadstoffbelastung!$K$11+$G$34)/($G$12*$G$7)+AK124,NA()) -> 0.2333023836 | AM125: 108 | AN125: =IF(AF125<=$J$9*0.05,AS124*EXP((-$J$6*1)/Heterogenität!$D$4),Z125) -> 0.02330529107 | AO125: =IF(OR(AF125>=$J$19, AR124/$J$5<AN125),0, Bodencharakterisierung!$E$8*$J$11*((AR124/$J$5)-AN125)) -> 0 | AP125: 0 | AQ125: =AQ124-AP125*Bodencharakterisierung!$E$8 -> 0.0066397905 | AR125: =AQ125/(Bodencharakterisierung!$E$11*1000) -> 4.3827e-06 | AS125: 0.02330529107 | AT125: 108 | AV125: =(AP125)*$G$11*Bodencharakterisierung!$E$8 -> 0 | AW125: =IF(AF125<=$J$9*1.05,(AV125*Schadstoffbelastung!$K$11)/($G$12*$G$7)+AW124,NA()) ->  | AX125: 23072.23816 | AY125: 241 | AZ125: 4.270747504 | BA125: 0.2333023836 | BB125: 0 | BC125: 0.67744512 | BE125: 4.3827 | BF125: =#REF!*10^6 ->  | BG125: 38.16099407 | BH125: 23305.29107
Y126: 109 | Z126: 0.02330529107 | AA126: =Z126*EXP((-$J$6/Heterogenität!$D$4)*1) -> 0.02306613111 | AB126: =AF125*Bodencharakterisierung!$E$11/$J$20 -> 3.993499484e-05 | AC126: =((150*($J$2^0.87)*(AB126^0.79)*$J$3)/(Bodencharakterisierung!$E$13^2))*($J$12-Z126)*3600*24 -> 0.07684566188 | AD126: 0.0002391599663 | AE126: =AE125-AD126*Bodencharakterisierung!$E$8 -> 0.05773498323 | AF126: =IF(AE126>$J$18,(AE126/(Bodencharakterisierung!$E$11*1000)),0) -> 3.810889982e-05 | AG126: 0.02330529107 | AH126: 109 | AJ126: =(AD126)*$G$11*Bodencharakterisierung!$E$8 -> 3.458468138e-06 | AK126: =IF(AH126>0,(AJ126*Schadstoffbelastung!$K$11+$G$34)/($G$12*$G$7)+AK125,NA()) -> 0.2354698508 | AM126: 109 | AN126: =IF(AF126<=$J$9*0.05,AS125*EXP((-$J$6*1)/Heterogenität!$D$4),Z126) -> 0.02330529107 | AO126: =IF(OR(AF126>=$J$19, AR125/$J$5<AN126),0, Bodencharakterisierung!$E$8*$J$11*((AR125/$J$5)-AN126)) -> 0 | AP126: 0 | AQ126: =AQ125-AP126*Bodencharakterisierung!$E$8 -> 0.0066397905 | AR126: =AQ126/(Bodencharakterisierung!$E$11*1000) -> 4.3827e-06 | AS126: 0.02330529107 | AT126: 109 | AV126: =(AP126)*$G$11*Bodencharakterisierung!$E$8 -> 0 | AW126: =IF(AF126<=$J$9*1.05,(AV126*Schadstoffbelastung!$K$11)/($G$12*$G$7)+AW125,NA()) ->  | AX126: 23072.23816 | AY126: 242 | AZ126: 4.279187611 | BA126: 0.2354698508 | BB126: 0 | BC126: 0.68371776 | BE126: 4.3827 | BF126: =#REF!*10^6 ->  | BG126: 38.10889982 | BH126: 23305.29107
Y127: 110 | Z127: 0.02330529107 | AA127: =Z127*EXP((-$J$6/Heterogenität!$D$4)*1) -> 0.02306613111 | AB127: =AF126*Bodencharakterisierung!$E$11/$J$20 -> 3.988047887e-05 | AC127: =((150*($J$2^0.87)*(AB127^0.79)*$J$3)/(Bodencharakterisierung!$E$13^2))*($J$12-Z127)*3600*24 -> 0.07676277633 | AD127: 0.0002391599663 | AE127: =AE126-AD127*Bodencharakterisierung!$E$8 -> 0.05765606044 | AF127: =IF(AE127>$J$18,(AE127/(Bodencharakterisierung!$E$11*1000)),0) -> 3.805680557e-05 | AG127: 0.02330529107 | AH127: 110 | AJ127: =(AD127)*$G$11*Bodencharakterisierung!$E$8 -> 3.458468138e-06 | AK127: =IF(AH127>0,(AJ127*Schadstoffbelastung!$K$11+$G$34)/($G$12*$G$7)+AK126,NA()) -> 0.2376373181 | AM127: 110 | AN127: =IF(AF127<=$J$9*0.05,AS126*EXP((-$J$6*1)/Heterogenität!$D$4),Z127) -> 0.02330529107 | AO127: =IF(OR(AF127>=$J$19, AR126/$J$5<AN127),0, Bodencharakterisierung!$E$8*$J$11*((AR126/$J$5)-AN127)) -> 0 | AP127: 0 | AQ127: =AQ126-AP127*Bodencharakterisierung!$E$8 -> 0.0066397905 | AR127: =AQ127/(Bodencharakterisierung!$E$11*1000) -> 4.3827e-06 | AS127: 0.02330529107 | AT127: 110 | AV127: =(AP127)*$G$11*Bodencharakterisierung!$E$8 -> 0 | AW127: =IF(AF127<=$J$9*1.05,(AV127*Schadstoffbelastung!$K$11)/($G$12*$G$7)+AW126,NA()) ->  | AX127: 23072.23816 | AY127: 243 | AZ127: 4.287627718 | BA127: 0.2376373181 | BB127: 0 | BC127: 0.6899904 | BE127: 4.3827 | BF127: =#REF!*10^6 ->  | BG127: 38.05680557 | BH127: 23305.29107
Y128: 111 | Z128: 0.02330529107 | AA128: =Z128*EXP((-$J$6/Heterogenität!$D$4)*1) -> 0.02306613111 | AB128: =AF127*Bodencharakterisierung!$E$11/$J$20 -> 3.98259629e-05 | AC128: =((150*($J$2^0.87)*(AB128^0.79)*$J$3)/(Bodencharakterisierung!$E$13^2))*($J$12-Z128)*3600*24 -> 0.07667986698 | AD128: 0.0002391599663 | AE128: =AE127-AD128*Bodencharakterisierung!$E$8 -> 0.05757713765 | AF128: =IF(AE128>$J$18,(AE128/(Bodencharakterisierung!$E$11*1000)),0) -> 3.800471132e-05 | AG128: 0.02330529107 | AH128: 111 | AJ128: =(AD128)*$G$11*Bodencharakterisierung!$E$8 -> 3.458468138e-06 | AK128: =IF(AH128>0,(AJ128*Schadstoffbelastung!$K$11+$G$34)/($G$12*$G$7)+AK127,NA()) -> 0.2398047853 | AM128: 111 | AN128: =IF(AF128<=$J$9*0.05,AS127*EXP((-$J$6*1)/Heterogenität!$D$4),Z128) -> 0.02330529107 | AO128: =IF(OR(AF128>=$J$19, AR127/$J$5<AN128),0, Bodencharakterisierung!$E$8*$J$11*((AR127/$J$5)-AN128)) -> 0 | AP128: 0 | AQ128: =AQ127-AP128*Bodencharakterisierung!$E$8 -> 0.0066397905 | AR128: =AQ128/(Bodencharakterisierung!$E$11*1000) -> 4.3827e-06 | AS128: 0.02330529107 | AT128: 111 | AV128: =(AP128)*$G$11*Bodencharakterisierung!$E$8 -> 0 | AW128: =IF(AF128<=$J$9*1.05,(AV128*Schadstoffbelastung!$K$11)/($G$12*$G$7)+AW127,NA()) ->  | AX128: 23072.23816 | AY128: 244 | AZ128: 4.296067825 | BA128: 0.2398047853 | BB128: 0 | BC128: 0.69626304 | BE128: 4.3827 | BF128: =#REF!*10^6 ->  | BG128: 38.00471132 | BH128: 23305.29107
Y129: 112 | Z129: 0.02330529107 | AA129: =Z129*EXP((-$J$6/Heterogenität!$D$4)*1) -> 0.02306613111 | AB129: =AF128*Bodencharakterisierung!$E$11/$J$20 -> 3.977144693e-05 | AC129: =((150*($J$2^0.87)*(AB129^0.79)*$J$3)/(Bodencharakterisierung!$E$13^2))*($J$12-Z129)*3600*24 -> 0.07659693379 | AD129: 0.0002391599663 | AE129: =AE128-AD129*Bodencharakterisierung!$E$8 -> 0.05749821486 | AF129: =IF(AE129>$J$18,(AE129/(Bodencharakterisierung!$E$11*1000)),0) -> 3.795261707e-05 | AG129: 0.02330529107 | AH129: 112 | AJ129: =(AD129)*$G$11*Bodencharakterisierung!$E$8 -> 3.458468138e-06 | AK129: =IF(AH129>0,(AJ129*Schadstoffbelastung!$K$11+$G$34)/($G$12*$G$7)+AK128,NA()) -> 0.2419722526 | AM129: 112 | AN129: =IF(AF129<=$J$9*0.05,AS128*EXP((-$J$6*1)/Heterogenität!$D$4),Z129) -> 0.02330529107 | AO129: =IF(OR(AF129>=$J$19, AR128/$J$5<AN129),0, Bodencharakterisierung!$E$8*$J$11*((AR128/$J$5)-AN129)) -> 0 | AP129: 0 | AQ129: =AQ128-AP129*Bodencharakterisierung!$E$8 -> 0.0066397905 | AR129: =AQ129/(Bodencharakterisierung!$E$11*1000) -> 4.3827e-06 | AS129: 0.02330529107 | AT129: 112 | AV129: =(AP129)*$G$11*Bodencharakterisierung!$E$8 -> 0 | AW129: =IF(AF129<=$J$9*1.05,(AV129*Schadstoffbelastung!$K$11)/($G$12*$G$7)+AW128,NA()) ->  | AX129: 23072.23816 | AY129: 245 | AZ129: 4.304507933 | BA129: 0.2419722526 | BB129: 0 | BC129: 0.70253568 | BE129: 4.3827 | BF129: =#REF!*10^6 ->  | BG129: 37.95261707 | BH129: 23305.29107
Y130: 113 | Z130: 0.02330529107 | AA130: =Z130*EXP((-$J$6/Heterogenität!$D$4)*1) -> 0.02306613111 | AB130: =AF129*Bodencharakterisierung!$E$11/$J$20 -> 3.971693096e-05 | AC130: =((150*($J$2^0.87)*(AB130^0.79)*$J$3)/(Bodencharakterisierung!$E$13^2))*($J$12-Z130)*3600*24 -> 0.07651397673 | AD130: 0.0002391599663 | AE130: =AE129-AD130*Bodencharakterisierung!$E$8 -> 0.05741929207 | AF130: =IF(AE130>$J$18,(AE130/(Bodencharakterisierung!$E$11*1000)),0) -> 3.790052282e-05 | AG130: 0.02330529107 | AH130: 113 | AJ130: =(AD130)*$G$11*Bodencharakterisierung!$E$8 -> 3.458468138e-06 | AK130: =IF(AH130>0,(AJ130*Schadstoffbelastung!$K$11+$G$34)/($G$12*$G$7)+AK129,NA()) -> 0.2441397199 | AM130: 113 | AN130: =IF(AF130<=$J$9*0.05,AS129*EXP((-$J$6*1)/Heterogenität!$D$4),Z130) -> 0.02330529107 | AO130: =IF(OR(AF130>=$J$19, AR129/$J$5<AN130),0, Bodencharakterisierung!$E$8*$J$11*((AR129/$J$5)-AN130)) -> 0 | AP130: 0 | AQ130: =AQ129-AP130*Bodencharakterisierung!$E$8 -> 0.0066397905 | AR130: =AQ130/(Bodencharakterisierung!$E$11*1000) -> 4.3827e-06 | AS130: 0.02330529107 | AT130: 113 | AV130: =(AP130)*$G$11*Bodencharakterisierung!$E$8 -> 0 | AW130: =IF(AF130<=$J$9*1.05,(AV130*Schadstoffbelastung!$K$11)/($G$12*$G$7)+AW129,NA()) ->  | AX130: 23072.23816 | AY130: 246 | AZ130: 4.31294804 | BA130: 0.2441397199 | BB130: 0 | BC130: 0.70880832 | BE130: 4.3827 | BF130: =#REF!*10^6 ->  | BG130: 37.90052282 | BH130: 23305.29107
Y131: 114 | Z131: 0.02330529107 | AA131: =Z131*EXP((-$J$6/Heterogenität!$D$4)*1) -> 0.02306613111 | AB131: =AF130*Bodencharakterisierung!$E$11/$J$20 -> 3.966241499e-05 | AC131: =((150*($J$2^0.87)*(AB131^0.79)*$J$3)/(Bodencharakterisierung!$E$13^2))*($J$12-Z131)*3600*24 -> 0.07643099575 | AD131: 0.0002391599663 | AE131: =AE130-AD131*Bodencharakterisierung!$E$8 -> 0.05734036928 | AF131: =IF(AE131>$J$18,(AE131/(Bodencharakterisierung!$E$11*1000)),0) -> 3.784842857e-05 | AG131: 0.02330529107 | AH131: 114 | AJ131: =(AD131)*$G$11*Bodencharakterisierung!$E$8 -> 3.458468138e-06 | AK131: =IF(AH131>0,(AJ131*Schadstoffbelastung!$K$11+$G$34)/($G$12*$G$7)+AK130,NA()) -> 0.2463071871 | AM131: 114 | AN131: =IF(AF131<=$J$9*0.05,AS130*EXP((-$J$6*1)/Heterogenität!$D$4),Z131) -> 0.02330529107 | AO131: =IF(OR(AF131>=$J$19, AR130/$J$5<AN131),0, Bodencharakterisierung!$E$8*$J$11*((AR130/$J$5)-AN131)) -> 0 | AP131: 0 | AQ131: =AQ130-AP131*Bodencharakterisierung!$E$8 -> 0.0066397905 | AR131: =AQ131/(Bodencharakterisierung!$E$11*1000) -> 4.3827e-06 | AS131: 0.02330529107 | AT131: 114 | AV131: =(AP131)*$G$11*Bodencharakterisierung!$E$8 -> 0 | AW131: =IF(AF131<=$J$9*1.05,(AV131*Schadstoffbelastung!$K$11)/($G$12*$G$7)+AW130,NA()) ->  | AX131: 23072.23816 | AY131: 247 | AZ131: 4.321388147 | BA131: 0.2463071871 | BB131: 0 | BC131: 0.71508096 | BE131: 4.3827 | BF131: =#REF!*10^6 ->  | BG131: 37.84842857 | BH131: 23305.29107
Y132: 115 | Z132: 0.02330529107 | AA132: =Z132*EXP((-$J$6/Heterogenität!$D$4)*1) -> 0.02306613111 | AB132: =AF131*Bodencharakterisierung!$E$11/$J$20 -> 3.960789902e-05 | AC132: =((150*($J$2^0.87)*(AB132^0.79)*$J$3)/(Bodencharakterisierung!$E$13^2))*($J$12-Z132)*3600*24 -> 0.07634799082 | AD132: 0.0002391599663 | AE132: =AE131-AD132*Bodencharakterisierung!$E$8 -> 0.05726144649 | AF132: =IF(AE132>$J$18,(AE132/(Bodencharakterisierung!$E$11*1000)),0) -> 3.779633432e-05 | AG132: 0.02330529107 | AH132: 115 | AJ132: =(AD132)*$G$11*Bodencharakterisierung!$E$8 -> 3.458468138e-06 | AK132: =IF(AH132>0,(AJ132*Schadstoffbelastung!$K$11+$G$34)/($G$12*$G$7)+AK131,NA()) -> 0.2484746544 | AM132: 115 | AN132: =IF(AF132<=$J$9*0.05,AS131*EXP((-$J$6*1)/Heterogenität!$D$4),Z132) -> 0.02330529107 | AO132: =IF(OR(AF132>=$J$19, AR131/$J$5<AN132),0, Bodencharakterisierung!$E$8*$J$11*((AR131/$J$5)-AN132)) -> 0 | AP132: 0 | AQ132: =AQ131-AP132*Bodencharakterisierung!$E$8 -> 0.0066397905 | AR132: =AQ132/(Bodencharakterisierung!$E$11*1000) -> 4.3827e-06 | AS132: 0.02330529107 | AT132: 115 | AV132: =(AP132)*$G$11*Bodencharakterisierung!$E$8 -> 0 | AW132: =IF(AF132<=$J$9*1.05,(AV132*Schadstoffbelastung!$K$11)/($G$12*$G$7)+AW131,NA()) ->  | AX132: 23072.23816 | AY132: 248 | AZ132: 4.329828254 | BA132: 0.2484746544 | BB132: 0 | BC132: 0.7213536 | BE132: 4.3827 | BF132: =#REF!*10^6 ->  | BG132: 37.79633432 | BH132: 23305.29107
Y133: 116 | Z133: 0.02330529107 | AA133: =Z133*EXP((-$J$6/Heterogenität!$D$4)*1) -> 0.02306613111 | AB133: =AF132*Bodencharakterisierung!$E$11/$J$20 -> 3.955338305e-05 | AC133: =((150*($J$2^0.87)*(AB133^0.79)*$J$3)/(Bodencharakterisierung!$E$13^2))*($J$12-Z133)*3600*24 -> 0.07626496189 | AD133: 0.0002391599663 | AE133: =AE132-AD133*Bodencharakterisierung!$E$8 -> 0.0571825237 | AF133: =IF(AE133>$J$18,(AE133/(Bodencharakterisierung!$E$11*1000)),0) -> 3.774424007e-05 | AG133: 0.02330529107 | AH133: 116 | AJ133: =(AD133)*$G$11*Bodencharakterisierung!$E$8 -> 3.458468138e-06 | AK133: =IF(AH133>0,(AJ133*Schadstoffbelastung!$K$11+$G$34)/($G$12*$G$7)+AK132,NA()) -> 0.2506421216 | AM133: 116 | AN133: =IF(AF133<=$J$9*0.05,AS132*EXP((-$J$6*1)/Heterogenität!$D$4),Z133) -> 0.02330529107 | AO133: =IF(OR(AF133>=$J$19, AR132/$J$5<AN133),0, Bodencharakterisierung!$E$8*$J$11*((AR132/$J$5)-AN133)) -> 0 | AP133: 0 | AQ133: =AQ132-AP133*Bodencharakterisierung!$E$8 -> 0.0066397905 | AR133: =AQ133/(Bodencharakterisierung!$E$11*1000) -> 4.3827e-06 | AS133: 0.02330529107 | AT133: 116 | AV133: =(AP133)*$G$11*Bodencharakterisierung!$E$8 -> 0 | AW133: =IF(AF133<=$J$9*1.05,(AV133*Schadstoffbelastung!$K$11)/($G$12*$G$7)+AW132,NA()) ->  | AX133: 23072.23816 | AY133: 249 | AZ133: 4.338268362 | BA133: 0.2506421216 | BB133: 0 | BC133: 0.72762624 | BE133: 4.3827 | BF133: =#REF!*10^6 ->  | BG133: 37.74424007 | BH133: 23305.29107
Y134: 117 | Z134: 0.02330529107 | AA134: =Z134*EXP((-$J$6/Heterogenität!$D$4)*1) -> 0.02306613111 | AB134: =AF133*Bodencharakterisierung!$E$11/$J$20 -> 3.949886708e-05 | AC134: =((150*($J$2^0.87)*(AB134^0.79)*$J$3)/(Bodencharakterisierung!$E$13^2))*($J$12-Z134)*3600*24 -> 0.07618190893 | AD134: 0.0002391599663 | AE134: =AE133-AD134*Bodencharakterisierung!$E$8 -> 0.05710360091 | AF134: =IF(AE134>$J$18,(AE134/(Bodencharakterisierung!$E$11*1000)),0) -> 3.769214582e-05 | AG134: 0.02330529107 | AH134: 117 | AJ134: =(AD134)*$G$11*Bodencharakterisierung!$E$8 -> 3.458468138e-06 | AK134: =IF(AH134>0,(AJ134*Schadstoffbelastung!$K$11+$G$34)/($G$12*$G$7)+AK133,NA()) -> 0.2528095889 | AM134: 117 | AN134: =IF(AF134<=$J$9*0.05,AS133*EXP((-$J$6*1)/Heterogenität!$D$4),Z134) -> 0.02330529107 | AO134: =IF(OR(AF134>=$J$19, AR133/$J$5<AN134),0, Bodencharakterisierung!$E$8*$J$11*((AR133/$J$5)-AN134)) -> 0 | AP134: 0 | AQ134: =AQ133-AP134*Bodencharakterisierung!$E$8 -> 0.0066397905 | AR134: =AQ134/(Bodencharakterisierung!$E$11*1000) -> 4.3827e-06 | AS134: 0.02330529107 | AT134: 117 | AV134: =(AP134)*$G$11*Bodencharakterisierung!$E$8 -> 0 | AW134: =IF(AF134<=$J$9*1.05,(AV134*Schadstoffbelastung!$K$11)/($G$12*$G$7)+AW133,NA()) ->  | AX134: 23072.23816 | AY134: 250 | AZ134: 4.346708469 | BA134: 0.2528095889 | BB134: 0 | BC134: 0.73389888 | BE134: 4.3827 | BF134: =#REF!*10^6 ->  | BG134: 37.69214582 | BH134: 23305.29107
Y135: 118 | Z135: 0.02330529107 | AA135: =Z135*EXP((-$J$6/Heterogenität!$D$4)*1) -> 0.02306613111 | AB135: =AF134*Bodencharakterisierung!$E$11/$J$20 -> 3.944435111e-05 | AC135: =((150*($J$2^0.87)*(AB135^0.79)*$J$3)/(Bodencharakterisierung!$E$13^2))*($J$12-Z135)*3600*24 -> 0.07609883189 | AD135: 0.0002391599663 | AE135: =AE134-AD135*Bodencharakterisierung!$E$8 -> 0.05702467813 | AF135: =IF(AE135>$J$18,(AE135/(Bodencharakterisierung!$E$11*1000)),0) -> 3.764005157e-05 | AG135: 0.02330529107 | AH135: 118 | AJ135: =(AD135)*$G$11*Bodencharakterisierung!$E$8 -> 3.458468138e-06 | AK135: =IF(AH135>0,(AJ135*Schadstoffbelastung!$K$11+$G$34)/($G$12*$G$7)+AK134,NA()) -> 0.2549770561 | AM135: 118 | AN135: =IF(AF135<=$J$9*0.05,AS134*EXP((-$J$6*1)/Heterogenität!$D$4),Z135) -> 0.02330529107 | AO135: =IF(OR(AF135>=$J$19, AR134/$J$5<AN135),0, Bodencharakterisierung!$E$8*$J$11*((AR134/$J$5)-AN135)) -> 0 | AP135: 0 | AQ135: =AQ134-AP135*Bodencharakterisierung!$E$8 -> 0.0066397905 | AR135: =AQ135/(Bodencharakterisierung!$E$11*1000) -> 4.3827e-06 | AS135: 0.02330529107 | AT135: 118 | AV135: =(AP135)*$G$11*Bodencharakterisierung!$E$8 -> 0 | AW135: =IF(AF135<=$J$9*1.05,(AV135*Schadstoffbelastung!$K$11)/($G$12*$G$7)+AW134,NA()) ->  | AX135: 23072.23816 | AY135: 251 | AZ135: 4.355148576 | BA135: 0.2549770561 | BB135: 0 | BC135: 0.74017152 | BE135: 4.3827 | BF135: =#REF!*10^6 ->  | BG135: 37.64005157 | BH135: 23305.29107
Y136: 119 | Z136: 0.02330529107 | AA136: =Z136*EXP((-$J$6/Heterogenität!$D$4)*1) -> 0.02306613111 | AB136: =AF135*Bodencharakterisierung!$E$11/$J$20 -> 3.938983514e-05 | AC136: =((150*($J$2^0.87)*(AB136^0.79)*$J$3)/(Bodencharakterisierung!$E$13^2))*($J$12-Z136)*3600*24 -> 0.07601573073 | AD136: 0.0002391599663 | AE136: =AE135-AD136*Bodencharakterisierung!$E$8 -> 0.05694575534 | AF136: =IF(AE136>$J$18,(AE136/(Bodencharakterisierung!$E$11*1000)),0) -> 3.758795732e-05 | AG136: 0.02330529107 | AH136: 119 | AJ136: =(AD136)*$G$11*Bodencharakterisierung!$E$8 -> 3.458468138e-06 | AK136: =IF(AH136>0,(AJ136*Schadstoffbelastung!$K$11+$G$34)/($G$12*$G$7)+AK135,NA()) -> 0.2571445234 | AM136: 119 | AN136: =IF(AF136<=$J$9*0.05,AS135*EXP((-$J$6*1)/Heterogenität!$D$4),Z136) -> 0.02330529107 | AO136: =IF(OR(AF136>=$J$19, AR135/$J$5<AN136),0, Bodencharakterisierung!$E$8*$J$11*((AR135/$J$5)-AN136)) -> 0 | AP136: 0 | AQ136: =AQ135-AP136*Bodencharakterisierung!$E$8 -> 0.0066397905 | AR136: =AQ136/(Bodencharakterisierung!$E$11*1000) -> 4.3827e-06 | AS136: 0.02330529107 | AT136: 119 | AV136: =(AP136)*$G$11*Bodencharakterisierung!$E$8 -> 0 | AW136: =IF(AF136<=$J$9*1.05,(AV136*Schadstoffbelastung!$K$11)/($G$12*$G$7)+AW135,NA()) ->  | AX136: 23072.23816 | AY136: 252 | AZ136: 4.363588683 | BA136: 0.2571445234 | BB136: 0 | BC136: 0.74644416 | BE136: 4.3827 | BF136: =#REF!*10^6 ->  | BG136: 37.58795732 | BH136: 23305.29107
Y137: 120 | Z137: 0.02330529107 | AA137: =Z137*EXP((-$J$6/Heterogenität!$D$4)*1) -> 0.02306613111 | AB137: =AF136*Bodencharakterisierung!$E$11/$J$20 -> 3.933531917e-05 | AC137: =((150*($J$2^0.87)*(AB137^0.79)*$J$3)/(Bodencharakterisierung!$E$13^2))*($J$12-Z137)*3600*24 -> 0.07593260542 | AD137: 0.0002391599663 | AE137: =AE136-AD137*Bodencharakterisierung!$E$8 -> 0.05686683255 | AF137: =IF(AE137>$J$18,(AE137/(Bodencharakterisierung!$E$11*1000)),0) -> 3.753586307e-05 | AG137: 0.02330529107 | AH137: 120 | AJ137: =(AD137)*$G$11*Bodencharakterisierung!$E$8 -> 3.458468138e-06 | AK137: =IF(AH137>0,(AJ137*Schadstoffbelastung!$K$11+$G$34)/($G$12*$G$7)+AK136,NA()) -> 0.2593119906 | AM137: 120 | AN137: =IF(AF137<=$J$9*0.05,AS136*EXP((-$J$6*1)/Heterogenität!$D$4),Z137) -> 0.02330529107 | AO137: =IF(OR(AF137>=$J$19, AR136/$J$5<AN137),0, Bodencharakterisierung!$E$8*$J$11*((AR136/$J$5)-AN137)) -> 0 | AP137: 0 | AQ137: =AQ136-AP137*Bodencharakterisierung!$E$8 -> 0.0066397905 | AR137: =AQ137/(Bodencharakterisierung!$E$11*1000) -> 4.3827e-06 | AS137: 0.02330529107 | AT137: 120 | AV137: =(AP137)*$G$11*Bodencharakterisierung!$E$8 -> 0 | AW137: =IF(AF137<=$J$9*1.05,(AV137*Schadstoffbelastung!$K$11)/($G$12*$G$7)+AW136,NA()) ->  | AX137: 23072.23816 | AY137: 253 | AZ137: 4.372028791 | BA137: 0.2593119906 | BB137: 0 | BC137: 0.7527168 | BE137: 4.3827 | BF137: =#REF!*10^6 ->  | BG137: 37.53586307 | BH137: 23305.29107
Y138: 121 | Z138: 0.02330529107 | AA138: =Z138*EXP((-$J$6/Heterogenität!$D$4)*1) -> 0.02306613111 | AB138: =AF137*Bodencharakterisierung!$E$11/$J$20 -> 3.92808032e-05 | AC138: =((150*($J$2^0.87)*(AB138^0.79)*$J$3)/(Bodencharakterisierung!$E$13^2))*($J$12-Z138)*3600*24 -> 0.07584945591 | AD138: 0.0002391599663 | AE138: =AE137-AD138*Bodencharakterisierung!$E$8 -> 0.05678790976 | AF138: =IF(AE138>$J$18,(AE138/(Bodencharakterisierung!$E$11*1000)),0) -> 3.748376882e-05 | AG138: 0.02330529107 | AH138: 121 | AJ138: =(AD138)*$G$11*Bodencharakterisierung!$E$8 -> 3.458468138e-06 | AK138: =IF(AH138>0,(AJ138*Schadstoffbelastung!$K$11+$G$34)/($G$12*$G$7)+AK137,NA()) -> 0.2614794579 | AM138: 121 | AN138: =IF(AF138<=$J$9*0.05,AS137*EXP((-$J$6*1)/Heterogenität!$D$4),Z138) -> 0.02330529107 | AO138: =IF(OR(AF138>=$J$19, AR137/$J$5<AN138),0, Bodencharakterisierung!$E$8*$J$11*((AR137/$J$5)-AN138)) -> 0 | AP138: 0 | AQ138: =AQ137-AP138*Bodencharakterisierung!$E$8 -> 0.0066397905 | AR138: =AQ138/(Bodencharakterisierung!$E$11*1000) -> 4.3827e-06 | AS138: 0.02330529107 | AT138: 121 | AV138: =(AP138)*$G$11*Bodencharakterisierung!$E$8 -> 0 | AW138: =IF(AF138<=$J$9*1.05,(AV138*Schadstoffbelastung!$K$11)/($G$12*$G$7)+AW137,NA()) ->  | AX138: 23072.23816 | AY138: 254 | AZ138: 4.380468898 | BA138: 0.2614794579 | BB138: 0 | BC138: 0.75898944 | BE138: 4.3827 | BF138: =#REF!*10^6 ->  | BG138: 37.48376882 | BH138: 23305.29107
Y139: 122 | Z139: 0.02330529107 | AA139: =Z139*EXP((-$J$6/Heterogenität!$D$4)*1) -> 0.02306613111 | AB139: =AF138*Bodencharakterisierung!$E$11/$J$20 -> 3.922628723e-05 | AC139: =((150*($J$2^0.87)*(AB139^0.79)*$J$3)/(Bodencharakterisierung!$E$13^2))*($J$12-Z139)*3600*24 -> 0.07576628216 | AD139: 0.0002391599663 | AE139: =AE138-AD139*Bodencharakterisierung!$E$8 -> 0.05670898697 | AF139: =IF(AE139>$J$18,(AE139/(Bodencharakterisierung!$E$11*1000)),0) -> 3.743167457e-05 | AG139: 0.02330529107 | AH139: 122 | AJ139: =(AD139)*$G$11*Bodencharakterisierung!$E$8 -> 3.458468138e-06 | AK139: =IF(AH139>0,(AJ139*Schadstoffbelastung!$K$11+$G$34)/($G$12*$G$7)+AK138,NA()) -> 0.2636469252 | AM139: 122 | AN139: =IF(AF139<=$J$9*0.05,AS138*EXP((-$J$6*1)/Heterogenität!$D$4),Z139) -> 0.02330529107 | AO139: =IF(OR(AF139>=$J$19, AR138/$J$5<AN139),0, Bodencharakterisierung!$E$8*$J$11*((AR138/$J$5)-AN139)) -> 0 | AP139: 0 | AQ139: =AQ138-AP139*Bodencharakterisierung!$E$8 -> 0.0066397905 | AR139: =AQ139/(Bodencharakterisierung!$E$11*1000) -> 4.3827e-06 | AS139: 0.02330529107 | AT139: 122 | AV139: =(AP139)*$G$11*Bodencharakterisierung!$E$8 -> 0 | AW139: =IF(AF139<=$J$9*1.05,(AV139*Schadstoffbelastung!$K$11)/($G$12*$G$7)+AW138,NA()) ->  | AX139: 23072.23816 | AY139: 255 | AZ139: 4.388909005 | BA139: 0.2636469252 | BB139: 0 | BC139: 0.76526208 | BE139: 4.3827 | BF139: =#REF!*10^6 ->  | BG139: 37.43167457 | BH139: 23305.29107
Y140: 123 | Z140: 0.02330529107 | AA140: =Z140*EXP((-$J$6/Heterogenität!$D$4)*1) -> 0.02306613111 | AB140: =AF139*Bodencharakterisierung!$E$11/$J$20 -> 3.917177126e-05 | AC140: =((150*($J$2^0.87)*(AB140^0.79)*$J$3)/(Bodencharakterisierung!$E$13^2))*($J$12-Z140)*3600*24 -> 0.07568308414 | AD140: 0.0002391599663 | AE140: =AE139-AD140*Bodencharakterisierung!$E$8 -> 0.05663006418 | AF140: =IF(AE140>$J$18,(AE140/(Bodencharakterisierung!$E$11*1000)),0) -> 3.737958032e-05 | AG140: 0.02330529107 | AH140: 123 | AJ140: =(AD140)*$G$11*Bodencharakterisierung!$E$8 -> 3.458468138e-06 | AK140: =IF(AH140>0,(AJ140*Schadstoffbelastung!$K$11+$G$34)/($G$12*$G$7)+AK139,NA()) -> 0.2658143924 | AM140: 123 | AN140: =IF(AF140<=$J$9*0.05,AS139*EXP((-$J$6*1)/Heterogenität!$D$4),Z140) -> 0.02330529107 | AO140: =IF(OR(AF140>=$J$19, AR139/$J$5<AN140),0, Bodencharakterisierung!$E$8*$J$11*((AR139/$J$5)-AN140)) -> 0 | AP140: 0 | AQ140: =AQ139-AP140*Bodencharakterisierung!$E$8 -> 0.0066397905 | AR140: =AQ140/(Bodencharakterisierung!$E$11*1000) -> 4.3827e-06 | AS140: 0.02330529107 | AT140: 123 | AV140: =(AP140)*$G$11*Bodencharakterisierung!$E$8 -> 0 | AW140: =IF(AF140<=$J$9*1.05,(AV140*Schadstoffbelastung!$K$11)/($G$12*$G$7)+AW139,NA()) ->  | AX140: 23072.23816 | AY140: 256 | AZ140: 4.397349112 | BA140: 0.2658143924 | BB140: 0 | BC140: 0.77153472 | BE140: 4.3827 | BF140: =#REF!*10^6 ->  | BG140: 37.37958032 | BH140: 23305.29107
Y141: 124 | Z141: 0.02330529107 | AA141: =Z141*EXP((-$J$6/Heterogenität!$D$4)*1) -> 0.02306613111 | AB141: =AF140*Bodencharakterisierung!$E$11/$J$20 -> 3.911725529e-05 | AC141: =((150*($J$2^0.87)*(AB141^0.79)*$J$3)/(Bodencharakterisierung!$E$13^2))*($J$12-Z141)*3600*24 -> 0.07559986179 | AD141: 0.0002391599663 | AE141: =AE140-AD141*Bodencharakterisierung!$E$8 -> 0.05655114139 | AF141: =IF(AE141>$J$18,(AE141/(Bodencharakterisierung!$E$11*1000)),0) -> 3.732748607e-05 | AG141: 0.02330529107 | AH141: 124 | AJ141: =(AD141)*$G$11*Bodencharakterisierung!$E$8 -> 3.458468138e-06 | AK141: =IF(AH141>0,(AJ141*Schadstoffbelastung!$K$11+$G$34)/($G$12*$G$7)+AK140,NA()) -> 0.2679818597 | AM141: 124 | AN141: =IF(AF141<=$J$9*0.05,AS140*EXP((-$J$6*1)/Heterogenität!$D$4),Z141) -> 0.02330529107 | AO141: =IF(OR(AF141>=$J$19, AR140/$J$5<AN141),0, Bodencharakterisierung!$E$8*$J$11*((AR140/$J$5)-AN141)) -> 0 | AP141: 0 | AQ141: =AQ140-AP141*Bodencharakterisierung!$E$8 -> 0.0066397905 | AR141: =AQ141/(Bodencharakterisierung!$E$11*1000) -> 4.3827e-06 | AS141: 0.02330529107 | AT141: 124 | AV141: =(AP141)*$G$11*Bodencharakterisierung!$E$8 -> 0 | AW141: =IF(AF141<=$J$9*1.05,(AV141*Schadstoffbelastung!$K$11)/($G$12*$G$7)+AW140,NA()) ->  | AX141: 23072.23816 | AY141: 257 | AZ141: 4.40578922 | BA141: 0.2679818597 | BB141: 0 | BC141: 0.77780736 | BE141: 4.3827 | BF141: =#REF!*10^6 ->  | BG141: 37.32748607 | BH141: 23305.29107
Y142: 125 | Z142: 0.02330529107 | AA142: =Z142*EXP((-$J$6/Heterogenität!$D$4)*1) -> 0.02306613111 | AB142: =AF141*Bodencharakterisierung!$E$11/$J$20 -> 3.906273932e-05 | AC142: =((150*($J$2^0.87)*(AB142^0.79)*$J$3)/(Bodencharakterisierung!$E$13^2))*($J$12-Z142)*3600*24 -> 0.07551661509 | AD142: 0.0002391599663 | AE142: =AE141-AD142*Bodencharakterisierung!$E$8 -> 0.0564722186 | AF142: =IF(AE142>$J$18,(AE142/(Bodencharakterisierung!$E$11*1000)),0) -> 3.727539182e-05 | AG142: 0.02330529107 | AH142: 125 | AJ142: =(AD142)*$G$11*Bodencharakterisierung!$E$8 -> 3.458468138e-06 | AK142: =IF(AH142>0,(AJ142*Schadstoffbelastung!$K$11+$G$34)/($G$12*$G$7)+AK141,NA()) -> 0.2701493269 | AM142: 125 | AN142: =IF(AF142<=$J$9*0.05,AS141*EXP((-$J$6*1)/Heterogenität!$D$4),Z142) -> 0.02330529107 | AO142: =IF(OR(AF142>=$J$19, AR141/$J$5<AN142),0, Bodencharakterisierung!$E$8*$J$11*((AR141/$J$5)-AN142)) -> 0 | AP142: 0 | AQ142: =AQ141-AP142*Bodencharakterisierung!$E$8 -> 0.0066397905 | AR142: =AQ142/(Bodencharakterisierung!$E$11*1000) -> 4.3827e-06 | AS142: 0.02330529107 | AT142: 125 | AV142: =(AP142)*$G$11*Bodencharakterisierung!$E$8 -> 0 | AW142: =IF(AF142<=$J$9*1.05,(AV142*Schadstoffbelastung!$K$11)/($G$12*$G$7)+AW141,NA()) ->  | AX142: 23072.23816 | AY142: 258 | AZ142: 4.414229327 | BA142: 0.2701493269 | BB142: 0 | BC142: 0.78408 | BE142: 4.3827 | BF142: =#REF!*10^6 ->  | BG142: 37.27539182 | BH142: 23305.29107
Y143: 126 | Z143: 0.02330529107 | AA143: =Z143*EXP((-$J$6/Heterogenität!$D$4)*1) -> 0.02306613111 | AB143: =AF142*Bodencharakterisierung!$E$11/$J$20 -> 3.900822335e-05 | AC143: =((150*($J$2^0.87)*(AB143^0.79)*$J$3)/(Bodencharakterisierung!$E$13^2))*($J$12-Z143)*3600*24 -> 0.07543334399 | AD143: 0.0002391599663 | AE143: =AE142-AD143*Bodencharakterisierung!$E$8 -> 0.05639329581 | AF143: =IF(AE143>$J$18,(AE143/(Bodencharakterisierung!$E$11*1000)),0) -> 3.722329757e-05 | AG143: 0.02330529107 | AH143: 126 | AJ143: =(AD143)*$G$11*Bodencharakterisierung!$E$8 -> 3.458468138e-06 | AK143: =IF(AH143>0,(AJ143*Schadstoffbelastung!$K$11+$G$34)/($G$12*$G$7)+AK142,NA()) -> 0.2723167942 | AM143: 126 | AN143: =IF(AF143<=$J$9*0.05,AS142*EXP((-$J$6*1)/Heterogenität!$D$4),Z143) -> 0.02330529107 | AO143: =IF(OR(AF143>=$J$19, AR142/$J$5<AN143),0, Bodencharakterisierung!$E$8*$J$11*((AR142/$J$5)-AN143)) -> 0 | AP143: 0 | AQ143: =AQ142-AP143*Bodencharakterisierung!$E$8 -> 0.0066397905 | AR143: =AQ143/(Bodencharakterisierung!$E$11*1000) -> 4.3827e-06 | AS143: 0.02330529107 | AT143: 126 | AV143: =(AP143)*$G$11*Bodencharakterisierung!$E$8 -> 0 | AW143: =IF(AF143<=$J$9*1.05,(AV143*Schadstoffbelastung!$K$11)/($G$12*$G$7)+AW142,NA()) ->  | AX143: 23072.23816 | AY143: 259 | AZ143: 4.422669434 | BA143: 0.2723167942 | BB143: 0 | BC143: 0.79035264 | BE143: 4.3827 | BF143: =#REF!*10^6 ->  | BG143: 37.22329757 | BH143: 23305.29107
Y144: 127 | Z144: 0.02330529107 | AA144: =Z144*EXP((-$J$6/Heterogenität!$D$4)*1) -> 0.02306613111 | AB144: =AF143*Bodencharakterisierung!$E$11/$J$20 -> 3.895370738e-05 | AC144: =((150*($J$2^0.87)*(AB144^0.79)*$J$3)/(Bodencharakterisierung!$E$13^2))*($J$12-Z144)*3600*24 -> 0.07535004844 | AD144: 0.0002391599663 | AE144: =AE143-AD144*Bodencharakterisierung!$E$8 -> 0.05631437303 | AF144: =IF(AE144>$J$18,(AE144/(Bodencharakterisierung!$E$11*1000)),0) -> 3.717120332e-05 | AG144: 0.02330529107 | AH144: 127 | AJ144: =(AD144)*$G$11*Bodencharakterisierung!$E$8 -> 3.458468138e-06 | AK144: =IF(AH144>0,(AJ144*Schadstoffbelastung!$K$11+$G$34)/($G$12*$G$7)+AK143,NA()) -> 0.2744842614 | AM144: 127 | AN144: =IF(AF144<=$J$9*0.05,AS143*EXP((-$J$6*1)/Heterogenität!$D$4),Z144) -> 0.02330529107 | AO144: =IF(OR(AF144>=$J$19, AR143/$J$5<AN144),0, Bodencharakterisierung!$E$8*$J$11*((AR143/$J$5)-AN144)) -> 0 | AP144: 0 | AQ144: =AQ143-AP144*Bodencharakterisierung!$E$8 -> 0.0066397905 | AR144: =AQ144/(Bodencharakterisierung!$E$11*1000) -> 4.3827e-06 | AS144: 0.02330529107 | AT144: 127 | AV144: =(AP144)*$G$11*Bodencharakterisierung!$E$8 -> 0 | AW144: =IF(AF144<=$J$9*1.05,(AV144*Schadstoffbelastung!$K$11)/($G$12*$G$7)+AW143,NA()) ->  | AX144: 23072.23816 | AY144: 260 | AZ144: 4.431109541 | BA144: 0.2744842614 | BB144: 0 | BC144: 0.79662528 | BE144: 4.3827 | BF144: =#REF!*10^6 ->  | BG144: 37.17120332 | BH144: 23305.29107
Y145: 128 | Z145: 0.02330529107 | AA145: =Z145*EXP((-$J$6/Heterogenität!$D$4)*1) -> 0.02306613111 | AB145: =AF144*Bodencharakterisierung!$E$11/$J$20 -> 3.889919141e-05 | AC145: =((150*($J$2^0.87)*(AB145^0.79)*$J$3)/(Bodencharakterisierung!$E$13^2))*($J$12-Z145)*3600*24 -> 0.07526672841 | AD145: 0.0002391599663 | AE145: =AE144-AD145*Bodencharakterisierung!$E$8 -> 0.05623545024 | AF145: =IF(AE145>$J$18,(AE145/(Bodencharakterisierung!$E$11*1000)),0) -> 3.711910907e-05 | AG145: 0.02330529107 | AH145: 128 | AJ145: =(AD145)*$G$11*Bodencharakterisierung!$E$8 -> 3.458468138e-06 | AK145: =IF(AH145>0,(AJ145*Schadstoffbelastung!$K$11+$G$34)/($G$12*$G$7)+AK144,NA()) -> 0.2766517287 | AM145: 128 | AN145: =IF(AF145<=$J$9*0.05,AS144*EXP((-$J$6*1)/Heterogenität!$D$4),Z145) -> 0.02330529107 | AO145: =IF(OR(AF145>=$J$19, AR144/$J$5<AN145),0, Bodencharakterisierung!$E$8*$J$11*((AR144/$J$5)-AN145)) -> 0 | AP145: 0 | AQ145: =AQ144-AP145*Bodencharakterisierung!$E$8 -> 0.0066397905 | AR145: =AQ145/(Bodencharakterisierung!$E$11*1000) -> 4.3827e-06 | AS145: 0.02330529107 | AT145: 128 | AV145: =(AP145)*$G$11*Bodencharakterisierung!$E$8 -> 0 | AW145: =IF(AF145<=$J$9*1.05,(AV145*Schadstoffbelastung!$K$11)/($G$12*$G$7)+AW144,NA()) ->  | AX145: 23072.23816 | AY145: 261 | AZ145: 4.439549649 | BA145: 0.2766517287 | BB145: 0 | BC145: 0.80289792 | BE145: 4.3827 | BF145: =#REF!*10^6 ->  | BG145: 37.11910907 | BH145: =AN145*10^6 -> 23305.29107
Y146: 129 | Z146: 0.02330529107 | AA146: =Z146*EXP((-$J$6/Heterogenität!$D$4)*1) -> 0.02306613111 | AB146: =AF145*Bodencharakterisierung!$E$11/$J$20 -> 3.884467544e-05 | AC146: =((150*($J$2^0.87)*(AB146^0.79)*$J$3)/(Bodencharakterisierung!$E$13^2))*($J$12-Z146)*3600*24 -> 0.07518338385 | AD146: 0.0002391599663 | AE146: =AE145-AD146*Bodencharakterisierung!$E$8 -> 0.05615652745 | AF146: =IF(AE146>$J$18,(AE146/(Bodencharakterisierung!$E$11*1000)),0) -> 3.706701482e-05 | AG146: 0.02330529107 | AH146: 129 | AJ146: =(AD146)*$G$11*Bodencharakterisierung!$E$8 -> 3.458468138e-06 | AK146: =IF(AH146>0,(AJ146*Schadstoffbelastung!$K$11+$G$34)/($G$12*$G$7)+AK145,NA()) -> 0.2788191959 | AM146: 129 | AN146: =IF(AF146<=$J$9*0.05,AS145*EXP((-$J$6*1)/Heterogenität!$D$4),Z146) -> 0.02330529107 | AO146: =IF(OR(AF146>=$J$19, AR145/$J$5<AN146),0, Bodencharakterisierung!$E$8*$J$11*((AR145/$J$5)-AN146)) -> 0 | AP146: 0 | AQ146: =AQ145-AP146*Bodencharakterisierung!$E$8 -> 0.0066397905 | AR146: =AQ146/(Bodencharakterisierung!$E$11*1000) -> 4.3827e-06 | AS146: 0.02330529107 | AT146: =IF(AN146>$G$5,AM146,NA()) -> 129 | AV146: =(AP146)*$G$11*Bodencharakterisierung!$E$8 -> 0 | AW146: =IF(AF146<=$J$9*1.05,(AV146*Schadstoffbelastung!$K$11)/($G$12*$G$7)+AW145,NA()) ->  | AX146: =IF(BH146>($G$5*10^6),BH146*0.99,9999) -> 23072.23816 | AY146: =AT146+$G$3 -> 262 | AZ146: 4.447989756 | BA146: 0.2788191959 | BB146: 0 | BC146: 0.80917056 | BE146: 4.3827 | BF146: =#REF!*10^6 ->  | BG146: =AF146*10^6 -> 37.06701482 | BH146: 23305.29107
Y147: 130 | Z147: =AG146 -> 0.02330529107 | AA147: =Z147*EXP((-$J$6/Heterogenität!$D$4)*1) -> 0.02306613111 | AB147: =AF146*Bodencharakterisierung!$E$11/$J$20 -> 3.879015947e-05 | AC147: =((150*($J$2^0.87)*(AB147^0.79)*$J$3)/(Bodencharakterisierung!$E$13^2))*($J$12-Z147)*3600*24 -> 0.07510001473 | AD147: =MIN(AC147,Z147-AA147) -> 0.0002391599663 | AE147: =AE146-AD147*Bodencharakterisierung!$E$8 -> 0.05607760466 | AF147: =IF(AE147>$J$18,(AE147/(Bodencharakterisierung!$E$11*1000)),0) -> 3.701492057e-05 | AG147: =AA147+AD147 -> 0.02330529107 | AH147: =IF(AD147>0,Y147,NA()) -> 130 | AJ147: =(AD147)*$G$11*Bodencharakterisierung!$E$8 -> 3.458468138e-06 | AK147: =IF(AH147>0,(AJ147*Schadstoffbelastung!$K$11+$G$34)/($G$12*$G$7)+AK146,NA()) -> 0.2809866632 | AM147: 130 | AN147: =IF(AF147<=$J$9*0.05,AS146*EXP((-$J$6*1)/Heterogenität!$D$4),Z147) -> 0.02330529107 | AO147: =IF(OR(AF147>=$J$19, AR146/$J$5<AN147),0, Bodencharakterisierung!$E$8*$J$11*((AR146/$J$5)-AN147)) -> 0 | AP147: 0 | AQ147: =AQ146-AP147*Bodencharakterisierung!$E$8 -> 0.0066397905 | AR147: =AQ147/(Bodencharakterisierung!$E$11*1000) -> 4.3827e-06 | AS147: =AN147+AP147 -> 0.02330529107 | AT147: 130 | AV147: =(AP147)*$G$11*Bodencharakterisierung!$E$8 -> 0 | AW147: =IF(AF147<=$J$9*1.05,(AV147*Schadstoffbelastung!$K$11)/($G$12*$G$7)+AW146,NA()) ->  | AX147: 23072.23816 | AY147: 263 | AZ147: =IF(ISNUMBER(AT147),BA147+BB147+BC147+$AZ$17,"") -> 4.456429863 | BA147: =IF(ISNUMBER(AK147),AK147,BA146) -> 0.2809866632 | BB147: =IF(ISNUMBER(AW147),AW147,0) -> 0 | BC147: 0.8154432 | BE147: =AR147*10^6 -> 4.3827 | BF147: =#REF!*10^6 ->  | BG147: 37.01492057 | BH147: 23305.29107
Y148: 131 | Z148: 0.02330529107 | AA148: =Z148*EXP((-$J$6/Heterogenität!$D$4)*1) -> 0.02306613111 | AB148: =AF147*Bodencharakterisierung!$E$11/$J$20 -> 3.87356435e-05 | AC148: =((150*($J$2^0.87)*(AB148^0.79)*$J$3)/(Bodencharakterisierung!$E$13^2))*($J$12-Z148)*3600*24 -> 0.07501662099 | AD148: 0.0002391599663 | AE148: =AE147-AD148*Bodencharakterisierung!$E$8 -> 0.05599868187 | AF148: =IF(AE148>$J$18,(AE148/(Bodencharakterisierung!$E$11*1000)),0) -> 3.696282632e-05 | AG148: 0.02330529107 | AH148: 131 | AJ148: =(AD148)*$G$11*Bodencharakterisierung!$E$8 -> 3.458468138e-06 | AK148: =IF(AH148>0,(AJ148*Schadstoffbelastung!$K$11+$G$34)/($G$12*$G$7)+AK147,NA()) -> 0.2831541305 | AM148: 131 | AN148: =IF(AF148<=$J$9*0.05,AS147*EXP((-$J$6*1)/Heterogenität!$D$4),Z148) -> 0.02330529107 | AO148: =IF(OR(AF148>=$J$19, AR147/$J$5<AN148),0, Bodencharakterisierung!$E$8*$J$11*((AR147/$J$5)-AN148)) -> 0 | AP148: =MIN(AO148,AS147-AN148) -> 0 | AQ148: =AQ147-AP148*Bodencharakterisierung!$E$8 -> 0.0066397905 | AR148: =AQ148/(Bodencharakterisierung!$E$11*1000) -> 4.3827e-06 | AS148: 0.02330529107 | AT148: 131 | AV148: =(AP148)*$G$11*Bodencharakterisierung!$E$8 -> 0 | AW148: =IF(AF148<=$J$9*1.05,(AV148*Schadstoffbelastung!$K$11)/($G$12*$G$7)+AW147,NA()) ->  | AX148: 23072.23816 | AY148: 264 | AZ148: 4.46486997 | BA148: 0.2831541305 | BB148: 0 | BC148: =$G$34/$G$12/$G$8+BC147 -> 0.82171584 | BE148: 4.3827 | BF148: =#REF!*10^6 ->  | BG148: 36.96282632 | BH148: 23305.29107
Y149: 132 | Z149: 0.02330529107 | AA149: =Z149*EXP((-$J$6/Heterogenität!$D$4)*1) -> 0.02306613111 | AB149: =AF148*Bodencharakterisierung!$E$11/$J$20 -> 3.868112753e-05 | AC149: =((150*($J$2^0.87)*(AB149^0.79)*$J$3)/(Bodencharakterisierung!$E$13^2))*($J$12-Z149)*3600*24 -> 0.07493320261 | AD149: 0.0002391599663 | AE149: =AE148-AD149*Bodencharakterisierung!$E$8 -> 0.05591975908 | AF149: =IF(AE149>$J$18,(AE149/(Bodencharakterisierung!$E$11*1000)),0) -> 3.691073207e-05 | AG149: 0.02330529107 | AH149: 132 | AJ149: =(AD149)*$G$11*Bodencharakterisierung!$E$8 -> 3.458468138e-06 | AK149: =IF(AH149>0,(AJ149*Schadstoffbelastung!$K$11+$G$34)/($G$12*$G$7)+AK148,NA()) -> 0.2853215977 | AM149: 132 | AN149: =IF(AF149<=$J$9*0.05,AS148*EXP((-$J$6*1)/Heterogenität!$D$4),Z149) -> 0.02330529107 | AO149: =IF(OR(AF149>=$J$19, AR148/$J$5<AN149),0, Bodencharakterisierung!$E$8*$J$11*((AR148/$J$5)-AN149)) -> 0 | AP149: 0 | AQ149: =AQ148-AP149*Bodencharakterisierung!$E$8 -> 0.0066397905 | AR149: =AQ149/(Bodencharakterisierung!$E$11*1000) -> 4.3827e-06 | AS149: 0.02330529107 | AT149: 132 | AV149: =(AP149)*$G$11*Bodencharakterisierung!$E$8 -> 0 | AW149: =IF(AF149<=$J$9*1.05,(AV149*Schadstoffbelastung!$K$11)/($G$12*$G$7)+AW148,NA()) ->  | AX149: 23072.23816 | AY149: 265 | AZ149: 4.473310078 | BA149: 0.2853215977 | BB149: 0 | BC149: 0.82798848 | BE149: 4.3827 | BF149: =#REF!*10^6 ->  | BG149: 36.91073207 | BH149: 23305.29107
Y150: 133 | Z150: 0.02330529107 | AA150: =Z150*EXP((-$J$6/Heterogenität!$D$4)*1) -> 0.02306613111 | AB150: =AF149*Bodencharakterisierung!$E$11/$J$20 -> 3.862661156e-05 | AC150: =((150*($J$2^0.87)*(AB150^0.79)*$J$3)/(Bodencharakterisierung!$E$13^2))*($J$12-Z150)*3600*24 -> 0.07484975954 | AD150: 0.0002391599663 | AE150: =AE149-AD150*Bodencharakterisierung!$E$8 -> 0.05584083629 | AF150: =IF(AE150>$J$18,(AE150/(Bodencharakterisierung!$E$11*1000)),0) -> 3.685863782e-05 | AG150: 0.02330529107 | AH150: 133 | AJ150: =(AD150)*$G$11*Bodencharakterisierung!$E$8 -> 3.458468138e-06 | AK150: =IF(AH150>0,(AJ150*Schadstoffbelastung!$K$11+$G$34)/($G$12*$G$7)+AK149,NA()) -> 0.287489065 | AM150: 133 | AN150: =IF(AF150<=$J$9*0.05,AS149*EXP((-$J$6*1)/Heterogenität!$D$4),Z150) -> 0.02330529107 | AO150: =IF(OR(AF150>=$J$19, AR149/$J$5<AN150),0, Bodencharakterisierung!$E$8*$J$11*((AR149/$J$5)-AN150)) -> 0 | AP150: 0 | AQ150: =AQ149-AP150*Bodencharakterisierung!$E$8 -> 0.0066397905 | AR150: =AQ150/(Bodencharakterisierung!$E$11*1000) -> 4.3827e-06 | AS150: 0.02330529107 | AT150: 133 | AV150: =(AP150)*$G$11*Bodencharakterisierung!$E$8 -> 0 | AW150: =IF(AF150<=$J$9*1.05,(AV150*Schadstoffbelastung!$K$11)/($G$12*$G$7)+AW149,NA()) ->  | AX150: 23072.23816 | AY150: 266 | AZ150: 4.481750185 | BA150: 0.287489065 | BB150: 0 | BC150: 0.83426112 | BE150: 4.3827 | BF150: =#REF!*10^6 ->  | BG150: 36.85863782 | BH150: 23305.29107
Y151: 134 | Z151: =AG150 -> 0.02330529107 | AA151: =Z151*EXP((-$J$6/Heterogenität!$D$4)*1) -> 0.02306613111 | AB151: =AF150*Bodencharakterisierung!$E$11/$J$20 -> 3.857209559e-05 | AC151: =((150*($J$2^0.87)*(AB151^0.79)*$J$3)/(Bodencharakterisierung!$E$13^2))*($J$12-Z151)*3600*24 -> 0.07476629172 | AD151: =MIN(AC151,Z151-AA151) -> 0.0002391599663 | AE151: =AE150-AD151*Bodencharakterisierung!$E$8 -> 0.0557619135 | AF151: =IF(AE151>$J$18,(AE151/(Bodencharakterisierung!$E$11*1000)),0) -> 3.680654357e-05 | AG151: =AA151+AD151 -> 0.02330529107 | AH151: =IF(AD151>0,Y151,NA()) -> 134 | AJ151: =(AD151)*$G$11*Bodencharakterisierung!$E$8 -> 3.458468138e-06 | AK151: =IF(AH151>0,(AJ151*Schadstoffbelastung!$K$11+$G$34)/($G$12*$G$7)+AK150,NA()) -> 0.2896565322 | AM151: 134 | AN151: =IF(AF151<=$J$9*0.05,AS150*EXP((-$J$6*1)/Heterogenität!$D$4),Z151) -> 0.02330529107 | AO151: =IF(OR(AF151>=$J$19, AR150/$J$5<AN151),0, Bodencharakterisierung!$E$8*$J$11*((AR150/$J$5)-AN151)) -> 0 | AP151: =MIN(AO151,AS150-AN151) -> 0 | AQ151: =AQ150-AP151*Bodencharakterisierung!$E$8 -> 0.0066397905 | AR151: =AQ151/(Bodencharakterisierung!$E$11*1000) -> 4.3827e-06 | AS151: =AN151+AP151 -> 0.02330529107 | AT151: =IF(AN151>$G$5,AM151,NA()) -> 134 | AV151: =(AP151)*$G$11*Bodencharakterisierung!$E$8 -> 0 | AW151: =IF(AF151<=$J$9*1.05,(AV151*Schadstoffbelastung!$K$11)/($G$12*$G$7)+AW150,NA()) ->  | AX151: =IF(BH151>($G$5*10^6),BH151*0.99,9999) -> 23072.23816 | AY151: =AT151+$G$3 -> 267 | AZ151: =IF(ISNUMBER(AT151),BA151+BB151+BC151+$AZ$17,"") -> 4.490190292 | BA151: =IF(ISNUMBER(AK151),AK151,BA150) -> 0.2896565322 | BB151: =IF(ISNUMBER(AW151),AW151,0) -> 0 | BC151: 0.84053376 | BE151: =AR151*10^6 -> 4.3827 | BF151: =#REF!*10^6 ->  | BG151: =AF151*10^6 -> 36.80654357 | BH151: =AN151*10^6 -> 23305.29107
Y152: 135 | Z152: 0.02330529107 | AA152: =Z152*EXP((-$J$6/Heterogenität!$D$4)*1) -> 0.02306613111 | AB152: =AF151*Bodencharakterisierung!$E$11/$J$20 -> 3.851757962e-05 | AC152: =((150*($J$2^0.87)*(AB152^0.79)*$J$3)/(Bodencharakterisierung!$E$13^2))*($J$12-Z152)*3600*24 -> 0.07468279914 | AD152: 0.0002391599663 | AE152: =AE151-AD152*Bodencharakterisierung!$E$8 -> 0.05568299071 | AF152: =IF(AE152>$J$18,(AE152/(Bodencharakterisierung!$E$11*1000)),0) -> 3.675444932e-05 | AG152: 0.02330529107 | AH152: 135 | AJ152: =(AD152)*$G$11*Bodencharakterisierung!$E$8 -> 3.458468138e-06 | AK152: =IF(AH152>0,(AJ152*Schadstoffbelastung!$K$11+$G$34)/($G$12*$G$7)+AK151,NA()) -> 0.2918239995 | AM152: 135 | AN152: =IF(AF152<=$J$9*0.05,AS151*EXP((-$J$6*1)/Heterogenität!$D$4),Z152) -> 0.02330529107 | AO152: =IF(OR(AF152>=$J$19, AR151/$J$5<AN152),0, Bodencharakterisierung!$E$8*$J$11*((AR151/$J$5)-AN152)) -> 0 | AP152: 0 | AQ152: =AQ151-AP152*Bodencharakterisierung!$E$8 -> 0.0066397905 | AR152: =AQ152/(Bodencharakterisierung!$E$11*1000) -> 4.3827e-06 | AS152: 0.02330529107 | AT152: 135 | AV152: =(AP152)*$G$11*Bodencharakterisierung!$E$8 -> 0 | AW152: =IF(AF152<=$J$9*1.05,(AV152*Schadstoffbelastung!$K$11)/($G$12*$G$7)+AW151,NA()) ->  | AX152: 23072.23816 | AY152: 268 | AZ152: 4.498630399 | BA152: 0.2918239995 | BB152: 0 | BC152: 0.8468064 | BE152: 4.3827 | BF152: =#REF!*10^6 ->  | BG152: 36.75444932 | BH152: 23305.29107
Y153: 136 | Z153: 0.02330529107 | AA153: =Z153*EXP((-$J$6/Heterogenität!$D$4)*1) -> 0.02306613111 | AB153: =AF152*Bodencharakterisierung!$E$11/$J$20 -> 3.846306365e-05 | AC153: =((150*($J$2^0.87)*(AB153^0.79)*$J$3)/(Bodencharakterisierung!$E$13^2))*($J$12-Z153)*3600*24 -> 0.07459928173 | AD153: 0.0002391599663 | AE153: =AE152-AD153*Bodencharakterisierung!$E$8 -> 0.05560406793 | AF153: =IF(AE153>$J$18,(AE153/(Bodencharakterisierung!$E$11*1000)),0) -> 3.670235507e-05 | AG153: 0.02330529107 | AH153: 136 | AJ153: =(AD153)*$G$11*Bodencharakterisierung!$E$8 -> 3.458468138e-06 | AK153: =IF(AH153>0,(AJ153*Schadstoffbelastung!$K$11+$G$34)/($G$12*$G$7)+AK152,NA()) -> 0.2939914667 | AM153: 136 | AN153: =IF(AF153<=$J$9*0.05,AS152*EXP((-$J$6*1)/Heterogenität!$D$4),Z153) -> 0.02330529107 | AO153: =IF(OR(AF153>=$J$19, AR152/$J$5<AN153),0, Bodencharakterisierung!$E$8*$J$11*((AR152/$J$5)-AN153)) -> 0 | AP153: 0 | AQ153: =AQ152-AP153*Bodencharakterisierung!$E$8 -> 0.0066397905 | AR153: =AQ153/(Bodencharakterisierung!$E$11*1000) -> 4.3827e-06 | AS153: 0.02330529107 | AT153: 136 | AV153: =(AP153)*$G$11*Bodencharakterisierung!$E$8 -> 0 | AW153: =IF(AF153<=$J$9*1.05,(AV153*Schadstoffbelastung!$K$11)/($G$12*$G$7)+AW152,NA()) ->  | AX153: 23072.23816 | AY153: 269 | AZ153: 4.507070507 | BA153: 0.2939914667 | BB153: 0 | BC153: 0.85307904 | BE153: 4.3827 | BF153: =#REF!*10^6 ->  | BG153: 36.70235507 | BH153: 23305.29107
Y154: 137 | Z154: 0.02330529107 | AA154: =Z154*EXP((-$J$6/Heterogenität!$D$4)*1) -> 0.02306613111 | AB154: =AF153*Bodencharakterisierung!$E$11/$J$20 -> 3.840854768e-05 | AC154: =((150*($J$2^0.87)*(AB154^0.79)*$J$3)/(Bodencharakterisierung!$E$13^2))*($J$12-Z154)*3600*24 -> 0.07451573946 | AD154: 0.0002391599663 | AE154: =AE153-AD154*Bodencharakterisierung!$E$8 -> 0.05552514514 | AF154: =IF(AE154>$J$18,(AE154/(Bodencharakterisierung!$E$11*1000)),0) -> 3.665026082e-05 | AG154: 0.02330529107 | AH154: 137 | AJ154: =(AD154)*$G$11*Bodencharakterisierung!$E$8 -> 3.458468138e-06 | AK154: =IF(AH154>0,(AJ154*Schadstoffbelastung!$K$11+$G$34)/($G$12*$G$7)+AK153,NA()) -> 0.296158934 | AM154: 137 | AN154: =IF(AF154<=$J$9*0.05,AS153*EXP((-$J$6*1)/Heterogenität!$D$4),Z154) -> 0.02330529107 | AO154: =IF(OR(AF154>=$J$19, AR153/$J$5<AN154),0, Bodencharakterisierung!$E$8*$J$11*((AR153/$J$5)-AN154)) -> 0 | AP154: 0 | AQ154: =AQ153-AP154*Bodencharakterisierung!$E$8 -> 0.0066397905 | AR154: =AQ154/(Bodencharakterisierung!$E$11*1000) -> 4.3827e-06 | AS154: 0.02330529107 | AT154: 137 | AV154: =(AP154)*$G$11*Bodencharakterisierung!$E$8 -> 0 | AW154: =IF(AF154<=$J$9*1.05,(AV154*Schadstoffbelastung!$K$11)/($G$12*$G$7)+AW153,NA()) ->  | AX154: 23072.23816 | AY154: 270 | AZ154: 4.515510614 | BA154: 0.296158934 | BB154: 0 | BC154: 0.85935168 | BE154: 4.3827 | BF154: =#REF!*10^6 ->  | BG154: 36.65026082 | BH154: 23305.29107
Y155: 138 | Z155: 0.02330529107 | AA155: =Z155*EXP((-$J$6/Heterogenität!$D$4)*1) -> 0.02306613111 | AB155: =AF154*Bodencharakterisierung!$E$11/$J$20 -> 3.835403171e-05 | AC155: =((150*($J$2^0.87)*(AB155^0.79)*$J$3)/(Bodencharakterisierung!$E$13^2))*($J$12-Z155)*3600*24 -> 0.07443217228 | AD155: 0.0002391599663 | AE155: =AE154-AD155*Bodencharakterisierung!$E$8 -> 0.05544622235 | AF155: =IF(AE155>$J$18,(AE155/(Bodencharakterisierung!$E$11*1000)),0) -> 3.659816657e-05 | AG155: 0.02330529107 | AH155: 138 | AJ155: =(AD155)*$G$11*Bodencharakterisierung!$E$8 -> 3.458468138e-06 | AK155: =IF(AH155>0,(AJ155*Schadstoffbelastung!$K$11+$G$34)/($G$12*$G$7)+AK154,NA()) -> 0.2983264012 | AM155: 138 | AN155: =IF(AF155<=$J$9*0.05,AS154*EXP((-$J$6*1)/Heterogenität!$D$4),Z155) -> 0.02330529107 | AO155: =IF(OR(AF155>=$J$19, AR154/$J$5<AN155),0, Bodencharakterisierung!$E$8*$J$11*((AR154/$J$5)-AN155)) -> 0 | AP155: 0 | AQ155: =AQ154-AP155*Bodencharakterisierung!$E$8 -> 0.0066397905 | AR155: =AQ155/(Bodencharakterisierung!$E$11*1000) -> 4.3827e-06 | AS155: 0.02330529107 | AT155: 138 | AV155: =(AP155)*$G$11*Bodencharakterisierung!$E$8 -> 0 | AW155: =IF(AF155<=$J$9*1.05,(AV155*Schadstoffbelastung!$K$11)/($G$12*$G$7)+AW154,NA()) ->  | AX155: 23072.23816 | AY155: 271 | AZ155: 4.523950721 | BA155: 0.2983264012 | BB155: 0 | BC155: 0.86562432 | BE155: 4.3827 | BF155: =#REF!*10^6 ->  | BG155: 36.59816657 | BH155: 23305.29107
Y156: 139 | Z156: 0.02330529107 | AA156: =Z156*EXP((-$J$6/Heterogenität!$D$4)*1) -> 0.02306613111 | AB156: =AF155*Bodencharakterisierung!$E$11/$J$20 -> 3.829951574e-05 | AC156: =((150*($J$2^0.87)*(AB156^0.79)*$J$3)/(Bodencharakterisierung!$E$13^2))*($J$12-Z156)*3600*24 -> 0.07434858016 | AD156: 0.0002391599663 | AE156: =AE155-AD156*Bodencharakterisierung!$E$8 -> 0.05536729956 | AF156: =IF(AE156>$J$18,(AE156/(Bodencharakterisierung!$E$11*1000)),0) -> 3.654607232e-05 | AG156: 0.02330529107 | AH156: 139 | AJ156: =(AD156)*$G$11*Bodencharakterisierung!$E$8 -> 3.458468138e-06 | AK156: =IF(AH156>0,(AJ156*Schadstoffbelastung!$K$11+$G$34)/($G$12*$G$7)+AK155,NA()) -> 0.3004938685 | AM156: 139 | AN156: =IF(AF156<=$J$9*0.05,AS155*EXP((-$J$6*1)/Heterogenität!$D$4),Z156) -> 0.02330529107 | AO156: =IF(OR(AF156>=$J$19, AR155/$J$5<AN156),0, Bodencharakterisierung!$E$8*$J$11*((AR155/$J$5)-AN156)) -> 0 | AP156: 0 | AQ156: =AQ155-AP156*Bodencharakterisierung!$E$8 -> 0.0066397905 | AR156: =AQ156/(Bodencharakterisierung!$E$11*1000) -> 4.3827e-06 | AS156: 0.02330529107 | AT156: 139 | AV156: =(AP156)*$G$11*Bodencharakterisierung!$E$8 -> 0 | AW156: =IF(AF156<=$J$9*1.05,(AV156*Schadstoffbelastung!$K$11)/($G$12*$G$7)+AW155,NA()) ->  | AX156: 23072.23816 | AY156: 272 | AZ156: 4.532390828 | BA156: 0.3004938685 | BB156: 0 | BC156: 0.87189696 | BE156: 4.3827 | BF156: =#REF!*10^6 ->  | BG156: 36.54607232 | BH156: 23305.29107
Y157: 140 | Z157: 0.02330529107 | AA157: =Z157*EXP((-$J$6/Heterogenität!$D$4)*1) -> 0.02306613111 | AB157: =AF156*Bodencharakterisierung!$E$11/$J$20 -> 3.824499977e-05 | AC157: =((150*($J$2^0.87)*(AB157^0.79)*$J$3)/(Bodencharakterisierung!$E$13^2))*($J$12-Z157)*3600*24 -> 0.07426496305 | AD157: 0.0002391599663 | AE157: =AE156-AD157*Bodencharakterisierung!$E$8 -> 0.05528837677 | AF157: =IF(AE157>$J$18,(AE157/(Bodencharakterisierung!$E$11*1000)),0) -> 3.649397807e-05 | AG157: 0.02330529107 | AH157: 140 | AJ157: =(AD157)*$G$11*Bodencharakterisierung!$E$8 -> 3.458468138e-06 | AK157: =IF(AH157>0,(AJ157*Schadstoffbelastung!$K$11+$G$34)/($G$12*$G$7)+AK156,NA()) -> 0.3026613358 | AM157: 140 | AN157: =IF(AF157<=$J$9*0.05,AS156*EXP((-$J$6*1)/Heterogenität!$D$4),Z157) -> 0.02330529107 | AO157: =IF(OR(AF157>=$J$19, AR156/$J$5<AN157),0, Bodencharakterisierung!$E$8*$J$11*((AR156/$J$5)-AN157)) -> 0 | AP157: 0 | AQ157: =AQ156-AP157*Bodencharakterisierung!$E$8 -> 0.0066397905 | AR157: =AQ157/(Bodencharakterisierung!$E$11*1000) -> 4.3827e-06 | AS157: 0.02330529107 | AT157: 140 | AV157: =(AP157)*$G$11*Bodencharakterisierung!$E$8 -> 0 | AW157: =IF(AF157<=$J$9*1.05,(AV157*Schadstoffbelastung!$K$11)/($G$12*$G$7)+AW156,NA()) ->  | AX157: 23072.23816 | AY157: 273 | AZ157: 4.540830936 | BA157: 0.3026613358 | BB157: 0 | BC157: 0.8781696 | BE157: 4.3827 | BF157: =#REF!*10^6 ->  | BG157: 36.49397807 | BH157: 23305.29107
Y158: 141 | Z158: 0.02330529107 | AA158: =Z158*EXP((-$J$6/Heterogenität!$D$4)*1) -> 0.02306613111 | AB158: =AF157*Bodencharakterisierung!$E$11/$J$20 -> 3.81904838e-05 | AC158: =((150*($J$2^0.87)*(AB158^0.79)*$J$3)/(Bodencharakterisierung!$E$13^2))*($J$12-Z158)*3600*24 -> 0.0741813209 | AD158: 0.0002391599663 | AE158: =AE157-AD158*Bodencharakterisierung!$E$8 -> 0.05520945398 | AF158: =IF(AE158>$J$18,(AE158/(Bodencharakterisierung!$E$11*1000)),0) -> 3.644188382e-05 | AG158: 0.02330529107 | AH158: 141 | AJ158: =(AD158)*$G$11*Bodencharakterisierung!$E$8 -> 3.458468138e-06 | AK158: =IF(AH158>0,(AJ158*Schadstoffbelastung!$K$11+$G$34)/($G$12*$G$7)+AK157,NA()) -> 0.304828803 | AM158: 141 | AN158: =IF(AF158<=$J$9*0.05,AS157*EXP((-$J$6*1)/Heterogenität!$D$4),Z158) -> 0.02330529107 | AO158: =IF(OR(AF158>=$J$19, AR157/$J$5<AN158),0, Bodencharakterisierung!$E$8*$J$11*((AR157/$J$5)-AN158)) -> 0 | AP158: 0 | AQ158: =AQ157-AP158*Bodencharakterisierung!$E$8 -> 0.0066397905 | AR158: =AQ158/(Bodencharakterisierung!$E$11*1000) -> 4.3827e-06 | AS158: 0.02330529107 | AT158: 141 | AV158: =(AP158)*$G$11*Bodencharakterisierung!$E$8 -> 0 | AW158: =IF(AF158<=$J$9*1.05,(AV158*Schadstoffbelastung!$K$11)/($G$12*$G$7)+AW157,NA()) ->  | AX158: 23072.23816 | AY158: 274 | AZ158: 4.549271043 | BA158: 0.304828803 | BB158: 0 | BC158: 0.88444224 | BE158: 4.3827 | BF158: =#REF!*10^6 ->  | BG158: 36.44188382 | BH158: 23305.29107
Y159: 142 | Z159: 0.02330529107 | AA159: =Z159*EXP((-$J$6/Heterogenität!$D$4)*1) -> 0.02306613111 | AB159: =AF158*Bodencharakterisierung!$E$11/$J$20 -> 3.813596783e-05 | AC159: =((150*($J$2^0.87)*(AB159^0.79)*$J$3)/(Bodencharakterisierung!$E$13^2))*($J$12-Z159)*3600*24 -> 0.07409765367 | AD159: 0.0002391599663 | AE159: =AE158-AD159*Bodencharakterisierung!$E$8 -> 0.05513053119 | AF159: =IF(AE159>$J$18,(AE159/(Bodencharakterisierung!$E$11*1000)),0) -> 3.638978957e-05 | AG159: 0.02330529107 | AH159: 142 | AJ159: =(AD159)*$G$11*Bodencharakterisierung!$E$8 -> 3.458468138e-06 | AK159: =IF(AH159>0,(AJ159*Schadstoffbelastung!$K$11+$G$34)/($G$12*$G$7)+AK158,NA()) -> 0.3069962703 | AM159: 142 | AN159: =IF(AF159<=$J$9*0.05,AS158*EXP((-$J$6*1)/Heterogenität!$D$4),Z159) -> 0.02330529107 | AO159: =IF(OR(AF159>=$J$19, AR158/$J$5<AN159),0, Bodencharakterisierung!$E$8*$J$11*((AR158/$J$5)-AN159)) -> 0 | AP159: 0 | AQ159: =AQ158-AP159*Bodencharakterisierung!$E$8 -> 0.0066397905 | AR159: =AQ159/(Bodencharakterisierung!$E$11*1000) -> 4.3827e-06 | AS159: 0.02330529107 | AT159: 142 | AV159: =(AP159)*$G$11*Bodencharakterisierung!$E$8 -> 0 | AW159: =IF(AF159<=$J$9*1.05,(AV159*Schadstoffbelastung!$K$11)/($G$12*$G$7)+AW158,NA()) ->  | AX159: 23072.23816 | AY159: 275 | AZ159: 4.55771115 | BA159: 0.3069962703 | BB159: 0 | BC159: 0.89071488 | BE159: 4.3827 | BF159: =#REF!*10^6 ->  | BG159: 36.38978957 | BH159: 23305.29107
Y160: 143 | Z160: 0.02330529107 | AA160: =Z160*EXP((-$J$6/Heterogenität!$D$4)*1) -> 0.02306613111 | AB160: =AF159*Bodencharakterisierung!$E$11/$J$20 -> 3.808145186e-05 | AC160: =((150*($J$2^0.87)*(AB160^0.79)*$J$3)/(Bodencharakterisierung!$E$13^2))*($J$12-Z160)*3600*24 -> 0.07401396133 | AD160: 0.0002391599663 | AE160: =AE159-AD160*Bodencharakterisierung!$E$8 -> 0.0550516084 | AF160: =IF(AE160>$J$18,(AE160/(Bodencharakterisierung!$E$11*1000)),0) -> 3.633769532e-05 | AG160: 0.02330529107 | AH160: 143 | AJ160: =(AD160)*$G$11*Bodencharakterisierung!$E$8 -> 3.458468138e-06 | AK160: =IF(AH160>0,(AJ160*Schadstoffbelastung!$K$11+$G$34)/($G$12*$G$7)+AK159,NA()) -> 0.3091637375 | AM160: 143 | AN160: =IF(AF160<=$J$9*0.05,AS159*EXP((-$J$6*1)/Heterogenität!$D$4),Z160) -> 0.02330529107 | AO160: =IF(OR(AF160>=$J$19, AR159/$J$5<AN160),0, Bodencharakterisierung!$E$8*$J$11*((AR159/$J$5)-AN160)) -> 0 | AP160: 0 | AQ160: =AQ159-AP160*Bodencharakterisierung!$E$8 -> 0.0066397905 | AR160: =AQ160/(Bodencharakterisierung!$E$11*1000) -> 4.3827e-06 | AS160: 0.02330529107 | AT160: 143 | AV160: =(AP160)*$G$11*Bodencharakterisierung!$E$8 -> 0 | AW160: =IF(AF160<=$J$9*1.05,(AV160*Schadstoffbelastung!$K$11)/($G$12*$G$7)+AW159,NA()) ->  | AX160: 23072.23816 | AY160: 276 | AZ160: 4.566151258 | BA160: 0.3091637375 | BB160: 0 | BC160: 0.89698752 | BE160: 4.3827 | BF160: =#REF!*10^6 ->  | BG160: 36.33769532 | BH160: 23305.29107
Y161: 144 | Z161: 0.02330529107 | AA161: =Z161*EXP((-$J$6/Heterogenität!$D$4)*1) -> 0.02306613111 | AB161: =AF160*Bodencharakterisierung!$E$11/$J$20 -> 3.802693589e-05 | AC161: =((150*($J$2^0.87)*(AB161^0.79)*$J$3)/(Bodencharakterisierung!$E$13^2))*($J$12-Z161)*3600*24 -> 0.07393024382 | AD161: 0.0002391599663 | AE161: =AE160-AD161*Bodencharakterisierung!$E$8 -> 0.05497268561 | AF161: =IF(AE161>$J$18,(AE161/(Bodencharakterisierung!$E$11*1000)),0) -> 3.628560107e-05 | AG161: 0.02330529107 | AH161: 144 | AJ161: =(AD161)*$G$11*Bodencharakterisierung!$E$8 -> 3.458468138e-06 | AK161: =IF(AH161>0,(AJ161*Schadstoffbelastung!$K$11+$G$34)/($G$12*$G$7)+AK160,NA()) -> 0.3113312048 | AM161: 144 | AN161: =IF(AF161<=$J$9*0.05,AS160*EXP((-$J$6*1)/Heterogenität!$D$4),Z161) -> 0.02330529107 | AO161: =IF(OR(AF161>=$J$19, AR160/$J$5<AN161),0, Bodencharakterisierung!$E$8*$J$11*((AR160/$J$5)-AN161)) -> 0 | AP161: 0 | AQ161: =AQ160-AP161*Bodencharakterisierung!$E$8 -> 0.0066397905 | AR161: =AQ161/(Bodencharakterisierung!$E$11*1000) -> 4.3827e-06 | AS161: 0.02330529107 | AT161: 144 | AV161: =(AP161)*$G$11*Bodencharakterisierung!$E$8 -> 0 | AW161: =IF(AF161<=$J$9*1.05,(AV161*Schadstoffbelastung!$K$11)/($G$12*$G$7)+AW160,NA()) ->  | AX161: 23072.23816 | AY161: 277 | AZ161: 4.574591365 | BA161: 0.3113312048 | BB161: 0 | BC161: 0.90326016 | BE161: 4.3827 | BF161: =#REF!*10^6 ->  | BG161: 36.28560107 | BH161: 23305.29107
Y162: 145 | Z162: 0.02330529107 | AA162: =Z162*EXP((-$J$6/Heterogenität!$D$4)*1) -> 0.02306613111 | AB162: =AF161*Bodencharakterisierung!$E$11/$J$20 -> 3.797241992e-05 | AC162: =((150*($J$2^0.87)*(AB162^0.79)*$J$3)/(Bodencharakterisierung!$E$13^2))*($J$12-Z162)*3600*24 -> 0.0738465011 | AD162: 0.0002391599663 | AE162: =AE161-AD162*Bodencharakterisierung!$E$8 -> 0.05489376283 | AF162: =IF(AE162>$J$18,(AE162/(Bodencharakterisierung!$E$11*1000)),0) -> 3.623350682e-05 | AG162: 0.02330529107 | AH162: 145 | AJ162: =(AD162)*$G$11*Bodencharakterisierung!$E$8 -> 3.458468138e-06 | AK162: =IF(AH162>0,(AJ162*Schadstoffbelastung!$K$11+$G$34)/($G$12*$G$7)+AK161,NA()) -> 0.313498672 | AM162: 145 | AN162: =IF(AF162<=$J$9*0.05,AS161*EXP((-$J$6*1)/Heterogenität!$D$4),Z162) -> 0.02330529107 | AO162: =IF(OR(AF162>=$J$19, AR161/$J$5<AN162),0, Bodencharakterisierung!$E$8*$J$11*((AR161/$J$5)-AN162)) -> 0 | AP162: 0 | AQ162: =AQ161-AP162*Bodencharakterisierung!$E$8 -> 0.0066397905 | AR162: =AQ162/(Bodencharakterisierung!$E$11*1000) -> 4.3827e-06 | AS162: 0.02330529107 | AT162: 145 | AV162: =(AP162)*$G$11*Bodencharakterisierung!$E$8 -> 0 | AW162: =IF(AF162<=$J$9*1.05,(AV162*Schadstoffbelastung!$K$11)/($G$12*$G$7)+AW161,NA()) ->  | AX162: 23072.23816 | AY162: 278 | AZ162: 4.583031472 | BA162: 0.313498672 | BB162: 0 | BC162: 0.9095328 | BE162: 4.3827 | BF162: =#REF!*10^6 ->  | BG162: 36.23350682 | BH162: 23305.29107
Y163: 146 | Z163: 0.02330529107 | AA163: =Z163*EXP((-$J$6/Heterogenität!$D$4)*1) -> 0.02306613111 | AB163: =AF162*Bodencharakterisierung!$E$11/$J$20 -> 3.791790395e-05 | AC163: =((150*($J$2^0.87)*(AB163^0.79)*$J$3)/(Bodencharakterisierung!$E$13^2))*($J$12-Z163)*3600*24 -> 0.07376273313 | AD163: 0.0002391599663 | AE163: =AE162-AD163*Bodencharakterisierung!$E$8 -> 0.05481484004 | AF163: =IF(AE163>$J$18,(AE163/(Bodencharakterisierung!$E$11*1000)),0) -> 3.618141257e-05 | AG163: 0.02330529107 | AH163: 146 | AJ163: =(AD163)*$G$11*Bodencharakterisierung!$E$8 -> 3.458468138e-06 | AK163: =IF(AH163>0,(AJ163*Schadstoffbelastung!$K$11+$G$34)/($G$12*$G$7)+AK162,NA()) -> 0.3156661393 | AM163: 146 | AN163: =IF(AF163<=$J$9*0.05,AS162*EXP((-$J$6*1)/Heterogenität!$D$4),Z163) -> 0.02330529107 | AO163: =IF(OR(AF163>=$J$19, AR162/$J$5<AN163),0, Bodencharakterisierung!$E$8*$J$11*((AR162/$J$5)-AN163)) -> 0 | AP163: 0 | AQ163: =AQ162-AP163*Bodencharakterisierung!$E$8 -> 0.0066397905 | AR163: =AQ163/(Bodencharakterisierung!$E$11*1000) -> 4.3827e-06 | AS163: 0.02330529107 | AT163: 146 | AV163: =(AP163)*$G$11*Bodencharakterisierung!$E$8 -> 0 | AW163: =IF(AF163<=$J$9*1.05,(AV163*Schadstoffbelastung!$K$11)/($G$12*$G$7)+AW162,NA()) ->  | AX163: 23072.23816 | AY163: 279 | AZ163: 4.591471579 | BA163: 0.3156661393 | BB163: 0 | BC163: 0.91580544 | BE163: 4.3827 | BF163: =#REF!*10^6 ->  | BG163: 36.18141257 | BH163: 23305.29107
Y164: 147 | Z164: 0.02330529107 | AA164: =Z164*EXP((-$J$6/Heterogenität!$D$4)*1) -> 0.02306613111 | AB164: =AF163*Bodencharakterisierung!$E$11/$J$20 -> 3.786338798e-05 | AC164: =((150*($J$2^0.87)*(AB164^0.79)*$J$3)/(Bodencharakterisierung!$E$13^2))*($J$12-Z164)*3600*24 -> 0.07367893987 | AD164: 0.0002391599663 | AE164: =AE163-AD164*Bodencharakterisierung!$E$8 -> 0.05473591725 | AF164: =IF(AE164>$J$18,(AE164/(Bodencharakterisierung!$E$11*1000)),0) -> 3.612931832e-05 | AG164: 0.02330529107 | AH164: 147 | AJ164: =(AD164)*$G$11*Bodencharakterisierung!$E$8 -> 3.458468138e-06 | AK164: =IF(AH164>0,(AJ164*Schadstoffbelastung!$K$11+$G$34)/($G$12*$G$7)+AK163,NA()) -> 0.3178336065 | AM164: 147 | AN164: =IF(AF164<=$J$9*0.05,AS163*EXP((-$J$6*1)/Heterogenität!$D$4),Z164) -> 0.02330529107 | AO164: =IF(OR(AF164>=$J$19, AR163/$J$5<AN164),0, Bodencharakterisierung!$E$8*$J$11*((AR163/$J$5)-AN164)) -> 0 | AP164: 0 | AQ164: =AQ163-AP164*Bodencharakterisierung!$E$8 -> 0.0066397905 | AR164: =AQ164/(Bodencharakterisierung!$E$11*1000) -> 4.3827e-06 | AS164: 0.02330529107 | AT164: 147 | AV164: =(AP164)*$G$11*Bodencharakterisierung!$E$8 -> 0 | AW164: =IF(AF164<=$J$9*1.05,(AV164*Schadstoffbelastung!$K$11)/($G$12*$G$7)+AW163,NA()) ->  | AX164: 23072.23816 | AY164: 280 | AZ164: 4.599911687 | BA164: 0.3178336065 | BB164: 0 | BC164: 0.92207808 | BE164: 4.3827 | BF164: =#REF!*10^6 ->  | BG164: 36.12931832 | BH164: 23305.29107
Y165: 148 | Z165: 0.02330529107 | AA165: =Z165*EXP((-$J$6/Heterogenität!$D$4)*1) -> 0.02306613111 | AB165: =AF164*Bodencharakterisierung!$E$11/$J$20 -> 3.780887201e-05 | AC165: =((150*($J$2^0.87)*(AB165^0.79)*$J$3)/(Bodencharakterisierung!$E$13^2))*($J$12-Z165)*3600*24 -> 0.07359512127 | AD165: 0.0002391599663 | AE165: =AE164-AD165*Bodencharakterisierung!$E$8 -> 0.05465699446 | AF165: =IF(AE165>$J$18,(AE165/(Bodencharakterisierung!$E$11*1000)),0) -> 3.607722407e-05 | AG165: 0.02330529107 | AH165: 148 | AJ165: =(AD165)*$G$11*Bodencharakterisierung!$E$8 -> 3.458468138e-06 | AK165: =IF(AH165>0,(AJ165*Schadstoffbelastung!$K$11+$G$34)/($G$12*$G$7)+AK164,NA()) -> 0.3200010738 | AM165: 148 | AN165: =IF(AF165<=$J$9*0.05,AS164*EXP((-$J$6*1)/Heterogenität!$D$4),Z165) -> 0.02330529107 | AO165: =IF(OR(AF165>=$J$19, AR164/$J$5<AN165),0, Bodencharakterisierung!$E$8*$J$11*((AR164/$J$5)-AN165)) -> 0 | AP165: 0 | AQ165: =AQ164-AP165*Bodencharakterisierung!$E$8 -> 0.0066397905 | AR165: =AQ165/(Bodencharakterisierung!$E$11*1000) -> 4.3827e-06 | AS165: 0.02330529107 | AT165: 148 | AV165: =(AP165)*$G$11*Bodencharakterisierung!$E$8 -> 0 | AW165: =IF(AF165<=$J$9*1.05,(AV165*Schadstoffbelastung!$K$11)/($G$12*$G$7)+AW164,NA()) ->  | AX165: 23072.23816 | AY165: 281 | AZ165: 4.608351794 | BA165: 0.3200010738 | BB165: 0 | BC165: 0.92835072 | BE165: 4.3827 | BF165: =#REF!*10^6 ->  | BG165: 36.07722407 | BH165: 23305.29107
Y166: 149 | Z166: 0.02330529107 | AA166: =Z166*EXP((-$J$6/Heterogenität!$D$4)*1) -> 0.02306613111 | AB166: =AF165*Bodencharakterisierung!$E$11/$J$20 -> 3.775435604e-05 | AC166: =((150*($J$2^0.87)*(AB166^0.79)*$J$3)/(Bodencharakterisierung!$E$13^2))*($J$12-Z166)*3600*24 -> 0.07351127728 | AD166: 0.0002391599663 | AE166: =AE165-AD166*Bodencharakterisierung!$E$8 -> 0.05457807167 | AF166: =IF(AE166>$J$18,(AE166/(Bodencharakterisierung!$E$11*1000)),0) -> 3.602512982e-05 | AG166: 0.02330529107 | AH166: 149 | AJ166: =(AD166)*$G$11*Bodencharakterisierung!$E$8 -> 3.458468138e-06 | AK166: =IF(AH166>0,(AJ166*Schadstoffbelastung!$K$11+$G$34)/($G$12*$G$7)+AK165,NA()) -> 0.3221685411 | AM166: 149 | AN166: =IF(AF166<=$J$9*0.05,AS165*EXP((-$J$6*1)/Heterogenität!$D$4),Z166) -> 0.02330529107 | AO166: =IF(OR(AF166>=$J$19, AR165/$J$5<AN166),0, Bodencharakterisierung!$E$8*$J$11*((AR165/$J$5)-AN166)) -> 0 | AP166: 0 | AQ166: =AQ165-AP166*Bodencharakterisierung!$E$8 -> 0.0066397905 | AR166: =AQ166/(Bodencharakterisierung!$E$11*1000) -> 4.3827e-06 | AS166: 0.02330529107 | AT166: 149 | AV166: =(AP166)*$G$11*Bodencharakterisierung!$E$8 -> 0 | AW166: =IF(AF166<=$J$9*1.05,(AV166*Schadstoffbelastung!$K$11)/($G$12*$G$7)+AW165,NA()) ->  | AX166: 23072.23816 | AY166: 282 | AZ166: 4.616791901 | BA166: 0.3221685411 | BB166: 0 | BC166: 0.93462336 | BE166: 4.3827 | BF166: =#REF!*10^6 ->  | BG166: 36.02512982 | BH166: 23305.29107
Y167: 150 | Z167: 0.02330529107 | AA167: =Z167*EXP((-$J$6/Heterogenität!$D$4)*1) -> 0.02306613111 | AB167: =AF166*Bodencharakterisierung!$E$11/$J$20 -> 3.769984007e-05 | AC167: =((150*($J$2^0.87)*(AB167^0.79)*$J$3)/(Bodencharakterisierung!$E$13^2))*($J$12-Z167)*3600*24 -> 0.07342740786 | AD167: 0.0002391599663 | AE167: =AE166-AD167*Bodencharakterisierung!$E$8 -> 0.05449914888 | AF167: =IF(AE167>$J$18,(AE167/(Bodencharakterisierung!$E$11*1000)),0) -> 3.597303557e-05 | AG167: 0.02330529107 | AH167: 150 | AJ167: =(AD167)*$G$11*Bodencharakterisierung!$E$8 -> 3.458468138e-06 | AK167: =IF(AH167>0,(AJ167*Schadstoffbelastung!$K$11+$G$34)/($G$12*$G$7)+AK166,NA()) -> 0.3243360083 | AM167: 150 | AN167: =IF(AF167<=$J$9*0.05,AS166*EXP((-$J$6*1)/Heterogenität!$D$4),Z167) -> 0.02330529107 | AO167: =IF(OR(AF167>=$J$19, AR166/$J$5<AN167),0, Bodencharakterisierung!$E$8*$J$11*((AR166/$J$5)-AN167)) -> 0 | AP167: 0 | AQ167: =AQ166-AP167*Bodencharakterisierung!$E$8 -> 0.0066397905 | AR167: =AQ167/(Bodencharakterisierung!$E$11*1000) -> 4.3827e-06 | AS167: 0.02330529107 | AT167: 150 | AV167: =(AP167)*$G$11*Bodencharakterisierung!$E$8 -> 0 | AW167: =IF(AF167<=$J$9*1.05,(AV167*Schadstoffbelastung!$K$11)/($G$12*$G$7)+AW166,NA()) ->  | AX167: 23072.23816 | AY167: 283 | AZ167: 4.625232008 | BA167: 0.3243360083 | BB167: 0 | BC167: 0.940896 | BE167: 4.3827 | BF167: =#REF!*10^6 ->  | BG167: 35.97303557 | BH167: 23305.29107
Y168: 151 | Z168: 0.02330529107 | AA168: =Z168*EXP((-$J$6/Heterogenität!$D$4)*1) -> 0.02306613111 | AB168: =AF167*Bodencharakterisierung!$E$11/$J$20 -> 3.76453241e-05 | AC168: =((150*($J$2^0.87)*(AB168^0.79)*$J$3)/(Bodencharakterisierung!$E$13^2))*($J$12-Z168)*3600*24 -> 0.07334351297 | AD168: 0.0002391599663 | AE168: =AE167-AD168*Bodencharakterisierung!$E$8 -> 0.05442022609 | AF168: =IF(AE168>$J$18,(AE168/(Bodencharakterisierung!$E$11*1000)),0) -> 3.592094132e-05 | AG168: 0.02330529107 | AH168: 151 | AJ168: =(AD168)*$G$11*Bodencharakterisierung!$E$8 -> 3.458468138e-06 | AK168: =IF(AH168>0,(AJ168*Schadstoffbelastung!$K$11+$G$34)/($G$12*$G$7)+AK167,NA()) -> 0.3265034756 | AM168: 151 | AN168: =IF(AF168<=$J$9*0.05,AS167*EXP((-$J$6*1)/Heterogenität!$D$4),Z168) -> 0.02330529107 | AO168: =IF(OR(AF168>=$J$19, AR167/$J$5<AN168),0, Bodencharakterisierung!$E$8*$J$11*((AR167/$J$5)-AN168)) -> 0 | AP168: 0 | AQ168: =AQ167-AP168*Bodencharakterisierung!$E$8 -> 0.0066397905 | AR168: =AQ168/(Bodencharakterisierung!$E$11*1000) -> 4.3827e-06 | AS168: 0.02330529107 | AT168: 151 | AV168: =(AP168)*$G$11*Bodencharakterisierung!$E$8 -> 0 | AW168: =IF(AF168<=$J$9*1.05,(AV168*Schadstoffbelastung!$K$11)/($G$12*$G$7)+AW167,NA()) ->  | AX168: 23072.23816 | AY168: 284 | AZ168: 4.633672116 | BA168: 0.3265034756 | BB168: 0 | BC168: 0.94716864 | BE168: 4.3827 | BF168: =#REF!*10^6 ->  | BG168: 35.92094132 | BH168: 23305.29107
Y169: 152 | Z169: 0.02330529107 | AA169: =Z169*EXP((-$J$6/Heterogenität!$D$4)*1) -> 0.02306613111 | AB169: =AF168*Bodencharakterisierung!$E$11/$J$20 -> 3.759080813e-05 | AC169: =((150*($J$2^0.87)*(AB169^0.79)*$J$3)/(Bodencharakterisierung!$E$13^2))*($J$12-Z169)*3600*24 -> 0.07325959257 | AD169: 0.0002391599663 | AE169: =AE168-AD169*Bodencharakterisierung!$E$8 -> 0.0543413033 | AF169: =IF(AE169>$J$18,(AE169/(Bodencharakterisierung!$E$11*1000)),0) -> 3.586884707e-05 | AG169: 0.02330529107 | AH169: 152 | AJ169: =(AD169)*$G$11*Bodencharakterisierung!$E$8 -> 3.458468138e-06 | AK169: =IF(AH169>0,(AJ169*Schadstoffbelastung!$K$11+$G$34)/($G$12*$G$7)+AK168,NA()) -> 0.3286709428 | AM169: 152 | AN169: =IF(AF169<=$J$9*0.05,AS168*EXP((-$J$6*1)/Heterogenität!$D$4),Z169) -> 0.02330529107 | AO169: =IF(OR(AF169>=$J$19, AR168/$J$5<AN169),0, Bodencharakterisierung!$E$8*$J$11*((AR168/$J$5)-AN169)) -> 0 | AP169: 0 | AQ169: =AQ168-AP169*Bodencharakterisierung!$E$8 -> 0.0066397905 | AR169: =AQ169/(Bodencharakterisierung!$E$11*1000) -> 4.3827e-06 | AS169: 0.02330529107 | AT169: 152 | AV169: =(AP169)*$G$11*Bodencharakterisierung!$E$8 -> 0 | AW169: =IF(AF169<=$J$9*1.05,(AV169*Schadstoffbelastung!$K$11)/($G$12*$G$7)+AW168,NA()) ->  | AX169: 23072.23816 | AY169: 285 | AZ169: 4.642112223 | BA169: 0.3286709428 | BB169: 0 | BC169: 0.95344128 | BE169: 4.3827 | BF169: =#REF!*10^6 ->  | BG169: 35.86884707 | BH169: 23305.29107
Y170: 153 | Z170: 0.02330529107 | AA170: =Z170*EXP((-$J$6/Heterogenität!$D$4)*1) -> 0.02306613111 | AB170: =AF169*Bodencharakterisierung!$E$11/$J$20 -> 3.753629216e-05 | AC170: =((150*($J$2^0.87)*(AB170^0.79)*$J$3)/(Bodencharakterisierung!$E$13^2))*($J$12-Z170)*3600*24 -> 0.0731756466 | AD170: 0.0002391599663 | AE170: =AE169-AD170*Bodencharakterisierung!$E$8 -> 0.05426238052 | AF170: =IF(AE170>$J$18,(AE170/(Bodencharakterisierung!$E$11*1000)),0) -> 3.581675282e-05 | AG170: 0.02330529107 | AH170: 153 | AJ170: =(AD170)*$G$11*Bodencharakterisierung!$E$8 -> 3.458468138e-06 | AK170: =IF(AH170>0,(AJ170*Schadstoffbelastung!$K$11+$G$34)/($G$12*$G$7)+AK169,NA()) -> 0.3308384101 | AM170: 153 | AN170: =IF(AF170<=$J$9*0.05,AS169*EXP((-$J$6*1)/Heterogenität!$D$4),Z170) -> 0.02330529107 | AO170: =IF(OR(AF170>=$J$19, AR169/$J$5<AN170),0, Bodencharakterisierung!$E$8*$J$11*((AR169/$J$5)-AN170)) -> 0 | AP170: 0 | AQ170: =AQ169-AP170*Bodencharakterisierung!$E$8 -> 0.0066397905 | AR170: =AQ170/(Bodencharakterisierung!$E$11*1000) -> 4.3827e-06 | AS170: 0.02330529107 | AT170: 153 | AV170: =(AP170)*$G$11*Bodencharakterisierung!$E$8 -> 0 | AW170: =IF(AF170<=$J$9*1.05,(AV170*Schadstoffbelastung!$K$11)/($G$12*$G$7)+AW169,NA()) ->  | AX170: 23072.23816 | AY170: 286 | AZ170: 4.65055233 | BA170: 0.3308384101 | BB170: 0 | BC170: 0.95971392 | BE170: 4.3827 | BF170: =#REF!*10^6 ->  | BG170: 35.81675282 | BH170: 23305.29107
Y171: 154 | Z171: 0.02330529107 | AA171: =Z171*EXP((-$J$6/Heterogenität!$D$4)*1) -> 0.02306613111 | AB171: =AF170*Bodencharakterisierung!$E$11/$J$20 -> 3.748177619e-05 | AC171: =((150*($J$2^0.87)*(AB171^0.79)*$J$3)/(Bodencharakterisierung!$E$13^2))*($J$12-Z171)*3600*24 -> 0.07309167503 | AD171: 0.0002391599663 | AE171: =AE170-AD171*Bodencharakterisierung!$E$8 -> 0.05418345773 | AF171: =IF(AE171>$J$18,(AE171/(Bodencharakterisierung!$E$11*1000)),0) -> 3.576465857e-05 | AG171: 0.02330529107 | AH171: 154 | AJ171: =(AD171)*$G$11*Bodencharakterisierung!$E$8 -> 3.458468138e-06 | AK171: =IF(AH171>0,(AJ171*Schadstoffbelastung!$K$11+$G$34)/($G$12*$G$7)+AK170,NA()) -> 0.3330058773 | AM171: 154 | AN171: =IF(AF171<=$J$9*0.05,AS170*EXP((-$J$6*1)/Heterogenität!$D$4),Z171) -> 0.02330529107 | AO171: =IF(OR(AF171>=$J$19, AR170/$J$5<AN171),0, Bodencharakterisierung!$E$8*$J$11*((AR170/$J$5)-AN171)) -> 0 | AP171: 0 | AQ171: =AQ170-AP171*Bodencharakterisierung!$E$8 -> 0.0066397905 | AR171: =AQ171/(Bodencharakterisierung!$E$11*1000) -> 4.3827e-06 | AS171: 0.02330529107 | AT171: 154 | AV171: =(AP171)*$G$11*Bodencharakterisierung!$E$8 -> 0 | AW171: =IF(AF171<=$J$9*1.05,(AV171*Schadstoffbelastung!$K$11)/($G$12*$G$7)+AW170,NA()) ->  | AX171: 23072.23816 | AY171: 287 | AZ171: 4.658992437 | BA171: 0.3330058773 | BB171: 0 | BC171: 0.96598656 | BE171: 4.3827 | BF171: =#REF!*10^6 ->  | BG171: 35.76465857 | BH171: 23305.29107
Y172: 155 | Z172: 0.02330529107 | AA172: =Z172*EXP((-$J$6/Heterogenität!$D$4)*1) -> 0.02306613111 | AB172: =AF171*Bodencharakterisierung!$E$11/$J$20 -> 3.742726022e-05 | AC172: =((150*($J$2^0.87)*(AB172^0.79)*$J$3)/(Bodencharakterisierung!$E$13^2))*($J$12-Z172)*3600*24 -> 0.0730076778 | AD172: 0.0002391599663 | AE172: =AE171-AD172*Bodencharakterisierung!$E$8 -> 0.05410453494 | AF172: =IF(AE172>$J$18,(AE172/(Bodencharakterisierung!$E$11*1000)),0) -> 3.571256432e-05 | AG172: 0.02330529107 | AH172: 155 | AJ172: =(AD172)*$G$11*Bodencharakterisierung!$E$8 -> 3.458468138e-06 | AK172: =IF(AH172>0,(AJ172*Schadstoffbelastung!$K$11+$G$34)/($G$12*$G$7)+AK171,NA()) -> 0.3351733446 | AM172: 155 | AN172: =IF(AF172<=$J$9*0.05,AS171*EXP((-$J$6*1)/Heterogenität!$D$4),Z172) -> 0.02330529107 | AO172: =IF(OR(AF172>=$J$19, AR171/$J$5<AN172),0, Bodencharakterisierung!$E$8*$J$11*((AR171/$J$5)-AN172)) -> 0 | AP172: 0 | AQ172: =AQ171-AP172*Bodencharakterisierung!$E$8 -> 0.0066397905 | AR172: =AQ172/(Bodencharakterisierung!$E$11*1000) -> 4.3827e-06 | AS172: 0.02330529107 | AT172: 155 | AV172: =(AP172)*$G$11*Bodencharakterisierung!$E$8 -> 0 | AW172: =IF(AF172<=$J$9*1.05,(AV172*Schadstoffbelastung!$K$11)/($G$12*$G$7)+AW171,NA()) ->  | AX172: 23072.23816 | AY172: 288 | AZ172: 4.667432545 | BA172: 0.3351733446 | BB172: 0 | BC172: 0.9722592 | BE172: 4.3827 | BF172: =#REF!*10^6 ->  | BG172: 35.71256432 | BH172: 23305.29107
Y173: 156 | Z173: 0.02330529107 | AA173: =Z173*EXP((-$J$6/Heterogenität!$D$4)*1) -> 0.02306613111 | AB173: =AF172*Bodencharakterisierung!$E$11/$J$20 -> 3.737274425e-05 | AC173: =((150*($J$2^0.87)*(AB173^0.79)*$J$3)/(Bodencharakterisierung!$E$13^2))*($J$12-Z173)*3600*24 -> 0.07292365488 | AD173: 0.0002391599663 | AE173: =AE172-AD173*Bodencharakterisierung!$E$8 -> 0.05402561215 | AF173: =IF(AE173>$J$18,(AE173/(Bodencharakterisierung!$E$11*1000)),0) -> 3.566047007e-05 | AG173: 0.02330529107 | AH173: 156 | AJ173: =(AD173)*$G$11*Bodencharakterisierung!$E$8 -> 3.458468138e-06 | AK173: =IF(AH173>0,(AJ173*Schadstoffbelastung!$K$11+$G$34)/($G$12*$G$7)+AK172,NA()) -> 0.3373408118 | AM173: 156 | AN173: =IF(AF173<=$J$9*0.05,AS172*EXP((-$J$6*1)/Heterogenität!$D$4),Z173) -> 0.02330529107 | AO173: =IF(OR(AF173>=$J$19, AR172/$J$5<AN173),0, Bodencharakterisierung!$E$8*$J$11*((AR172/$J$5)-AN173)) -> 0 | AP173: 0 | AQ173: =AQ172-AP173*Bodencharakterisierung!$E$8 -> 0.0066397905 | AR173: =AQ173/(Bodencharakterisierung!$E$11*1000) -> 4.3827e-06 | AS173: 0.02330529107 | AT173: 156 | AV173: =(AP173)*$G$11*Bodencharakterisierung!$E$8 -> 0 | AW173: =IF(AF173<=$J$9*1.05,(AV173*Schadstoffbelastung!$K$11)/($G$12*$G$7)+AW172,NA()) ->  | AX173: 23072.23816 | AY173: 289 | AZ173: 4.675872652 | BA173: 0.3373408118 | BB173: 0 | BC173: 0.97853184 | BE173: 4.3827 | BF173: =#REF!*10^6 ->  | BG173: 35.66047007 | BH173: 23305.29107
Y174: 157 | Z174: 0.02330529107 | AA174: =Z174*EXP((-$J$6/Heterogenität!$D$4)*1) -> 0.02306613111 | AB174: =AF173*Bodencharakterisierung!$E$11/$J$20 -> 3.731822828e-05 | AC174: =((150*($J$2^0.87)*(AB174^0.79)*$J$3)/(Bodencharakterisierung!$E$13^2))*($J$12-Z174)*3600*24 -> 0.07283960621 | AD174: 0.0002391599663 | AE174: =AE173-AD174*Bodencharakterisierung!$E$8 -> 0.05394668936 | AF174: =IF(AE174>$J$18,(AE174/(Bodencharakterisierung!$E$11*1000)),0) -> 3.560837581e-05 | AG174: 0.02330529107 | AH174: 157 | AJ174: =(AD174)*$G$11*Bodencharakterisierung!$E$8 -> 3.458468138e-06 | AK174: =IF(AH174>0,(AJ174*Schadstoffbelastung!$K$11+$G$34)/($G$12*$G$7)+AK173,NA()) -> 0.3395082791 | AM174: 157 | AN174: =IF(AF174<=$J$9*0.05,AS173*EXP((-$J$6*1)/Heterogenität!$D$4),Z174) -> 0.02330529107 | AO174: =IF(OR(AF174>=$J$19, AR173/$J$5<AN174),0, Bodencharakterisierung!$E$8*$J$11*((AR173/$J$5)-AN174)) -> 0 | AP174: 0 | AQ174: =AQ173-AP174*Bodencharakterisierung!$E$8 -> 0.0066397905 | AR174: =AQ174/(Bodencharakterisierung!$E$11*1000) -> 4.3827e-06 | AS174: 0.02330529107 | AT174: 157 | AV174: =(AP174)*$G$11*Bodencharakterisierung!$E$8 -> 0 | AW174: =IF(AF174<=$J$9*1.05,(AV174*Schadstoffbelastung!$K$11)/($G$12*$G$7)+AW173,NA()) ->  | AX174: 23072.23816 | AY174: 290 | AZ174: 4.684312759 | BA174: 0.3395082791 | BB174: 0 | BC174: 0.98480448 | BE174: 4.3827 | BF174: =#REF!*10^6 ->  | BG174: 35.60837581 | BH174: 23305.29107
Y175: 158 | Z175: 0.02330529107 | AA175: =Z175*EXP((-$J$6/Heterogenität!$D$4)*1) -> 0.02306613111 | AB175: =AF174*Bodencharakterisierung!$E$11/$J$20 -> 3.726371231e-05 | AC175: =((150*($J$2^0.87)*(AB175^0.79)*$J$3)/(Bodencharakterisierung!$E$13^2))*($J$12-Z175)*3600*24 -> 0.07275553176 | AD175: 0.0002391599663 | AE175: =AE174-AD175*Bodencharakterisierung!$E$8 -> 0.05386776657 | AF175: =IF(AE175>$J$18,(AE175/(Bodencharakterisierung!$E$11*1000)),0) -> 3.555628156e-05 | AG175: 0.02330529107 | AH175: 158 | AJ175: =(AD175)*$G$11*Bodencharakterisierung!$E$8 -> 3.458468138e-06 | AK175: =IF(AH175>0,(AJ175*Schadstoffbelastung!$K$11+$G$34)/($G$12*$G$7)+AK174,NA()) -> 0.3416757463 | AM175: 158 | AN175: =IF(AF175<=$J$9*0.05,AS174*EXP((-$J$6*1)/Heterogenität!$D$4),Z175) -> 0.02330529107 | AO175: =IF(OR(AF175>=$J$19, AR174/$J$5<AN175),0, Bodencharakterisierung!$E$8*$J$11*((AR174/$J$5)-AN175)) -> 0 | AP175: 0 | AQ175: =AQ174-AP175*Bodencharakterisierung!$E$8 -> 0.0066397905 | AR175: =AQ175/(Bodencharakterisierung!$E$11*1000) -> 4.3827e-06 | AS175: 0.02330529107 | AT175: 158 | AV175: =(AP175)*$G$11*Bodencharakterisierung!$E$8 -> 0 | AW175: =IF(AF175<=$J$9*1.05,(AV175*Schadstoffbelastung!$K$11)/($G$12*$G$7)+AW174,NA()) ->  | AX175: 23072.23816 | AY175: 291 | AZ175: 4.692752866 | BA175: 0.3416757463 | BB175: 0 | BC175: 0.99107712 | BE175: 4.3827 | BF175: =#REF!*10^6 ->  | BG175: 35.55628156 | BH175: 23305.29107
